Workbook

Sheet Instructions
D2: Due: Monday, June 15th, 2015
C4: NYC Carbon Challenge - Hospitals
C5: Carbon Emissions Inventory
C9: Submission Instructions for the Carbon Emissions Inventory
C10: Please see Notes section at the end of this tab for additional information on each step listed below.
C11: What is the Carbon Emissions Inventory? The Carbon Emissions Inventory is an accounting of your organization's total carbon emissions for each year of the NYC Carbon Challenge. The NYC Mayor’s Office of Sustainability has created this spreadsheet as a tool to calculate your organization's energy use and associated carbon emissions. The Inventory begins with your baseline year and requires your energy use data for each additional year thereafter until the last year of the Challenge.
C12: Principles for a Carbon Emissions Inventory: 1. Completeness: All fuel types and facilities are accounted for in the Inventory. 2. Consistency: The same methodology is used to calculate energy use and emissions each year.
C13: Steps for Completing the Carbon Emissions Inventory:
C14: 1. Identify Facilities Identify all buildings and facilities that make up your organization, including all rental properties that your organization owns or operates. This will be used to retrieve your energy use data and calculate your gross square footage. 2. Calculate Gross Square Feet Calculate your facility's total gross square feet by adding together the gross square footage of all owned and leased facilities. *Note: For information on how to calculate square footage for rental properties, please refer to the Notes section below. 3. Retrieve Energy Use Data Using your oil bills and monthly utility bills, retrieve energy use data by fuel type for the previous calendar year for all buildings and facilities owned or leased. For example, your 2015 submission will include energy usage from January 1, 2014 through December 31, 2014. 4. Aggregate Energy Use Data Calculate your organization's total energy use by adding together all energy use by fuel type in owned and leased facilities for the submission year. *Note: For information on how to calculate energy use from rental properties, please refer to the Notes tab of this spreadsheet. *Note: For the 2015 Inventory, aggregating energy use by campus is optional--see Step 6 for more information. 5. Input Energy Use Data and Current Square Footage into the Carbon Emissions Inventory Enter your organization's total energy use by fuel type and total gross square footage under the submission year in the Inventory tab of this spreadsheet. Note that you now have the option of including a biodiesel blend fuel in your inventory, but you must select the blend from the yellow dropdown menu. Please also enter the correct Base Year and Submission Year at the top of the Inventory tab of this spreadsheet. *Note: Please be sure that your Inventory includes all previous energy use and square footage from your baseline year through the current year. 6. Optional: Input Campus-Level Energy Use and Square Footage Data If you choose this option, aggregate your organization's energy use by fuel type and gross square footage for each campus and input this information in the Campus tab of this spreadsheet. For the definition of a "campus," please refer to the Notes section below *Note: The sum of your organization's energy use and gross square footage from each campus should match your total energy use data and gross square footage entered in the Inventory.
C15: 7. Optional: Input Waste Tonnage Data In order to select this option, you must unhide the waste/fleet entry form on the Inventory tab by clicking the yellow button at the top right. If you choose this option, aggregate your organization's annual waste tonnage (short tons) by category (Mixed MSW, Mixed Recycled, Compost) using monthly carter bills or an annual report. If you have completed a physical waste audit, fill out the 'Waste Characterization %' column in addition to the annual Mixed MSW tonnage data, otherwise leave that column blank. Annual tonnage of recycled/composted waste is not required, but there is a space to report as it is useful information for your Climate Action Plan.
C16: 8. Optional: Input Fleet Fuel Use Data In order to select this option, you must unhide the waste/fleet entry form on the inventory tab by clicking the yellow button at the top right. If you choose this option, aggregate your organization's annual fuel consumption (gallons/year) by fuel type (gasoline, diesel, B20 biodiesel, or B5 biodiesel) and input this information on the 'Transportation' section of the inventory. If your institution has additional types of fuel, please contact Patrick Love at plove@cityhall.nyc.gov.
C17: 9. Submit the Carbon Emissions Inventory Submit the completed Carbon Emissions Inventory to the NYC Mayor's Office of Sustainability by Monday June 15th 2015 and save a copy for your records. Please submit your Inventory by emailing the completed spreadsheet as an attachment to plove@cityhall.nyc.gov.
C26: Notes for Completing the Carbon Emissions Inventory
C27: Additional Information for Submission Instructions:
C28: 1. Identify Facilities
C29: All buildings and facilities required for the Inventory include the following: 1. All properties that your organization owns or operates, regardless of size. 2. All rental properties and tenant spaces greater than 10,000 square feet, including properties that your organization owns and leases _____to another party and properties that your organization does not own and leases from another party. 3. Optional: All rental properties and tenant spaces less than 10,000 square feet, including properties that your organization owns and _____leases to another party and properties that you do not own and lease from another party. Be sure you understand the full breadth of your organization's facilities and its record-keeping system, including how many buildings and facilities you own, lease, and operate and the utility accounts that correspond to each of these facilities.
C30: 2. Calculate Gross Square Feet
C31: You will need to calculate the total gross square footage of your organization for your baseline year and each additional year thereafter. An accurate calculation of your organization's square footage is necessary for the Challenge because the 30% reduction goal is measured in terms of emissions intensity, or carbon emissions reductions per square foot. For purposes of the Challenge, please calculate gross square footage for your properties in the following ways: 1. All properties that you own and operate: - Count 100% of the square footage. 2. Rental properties and tenant spaces greater than 10,000 square feet: - If you pay the entire utility bill: Count 100% of the square footage. - If you do NOT pay the entire utility bill, regardless of the proportion that you pay: Count 50% of the square footage. 3. Optional (but recommended): Rental properties and tenant spaces less than 10,000 square feet: - If you pay the entire utility bill: Count 100% of the energy use. - If you do NOT pay the entire utility bill: Count only the proportion that you pay.
C32: 3. Retrieve Energy Use Data
C33: For each of the properties included above, locate your organization's energy use in terms of electricity, natural gas, heating oil #2, #4 and #6, steam and propane or other fuels used for backup generation. You will be able to obtain this information from your organization's heating oil and monthly utility bills. Please be sure to include energy use data from all energy sources and aggregate these sources either in total or by campus for all 12 months of the year. Please also be sure to account for all shared meters and leased properties where costs are divided by contractual agreements. For purposes of the Challenge, energy use data is reported using the following metrics: 1. Electricity: Kilowatt-Hours (kWh) 2. Natural gas: Thermal Units (Therms) 3. Heating oil distillates #2, #4 and #6: US Gallons (US Gal) 4. Steam: Million Pounds (Mlbs) 5. Diesel or other fuels used for backup generation: US Gallons (US Gal) *Note: If you cannot locate records of your monthly utility bills, ConEdison will be able to provide you with copies. If you have any trouble obtaining these records, please email Jenna Tatum in the Mayor’s Office of Long-Term Planning and Sustainability at jtatum@cityhall.nyc.gov and we will help you obtain them.
C34: 4. Aggregate Energy Use Data
C35: There are two options for aggregating your energy use data: 1. Aggregate your organization's total energy usage by fuel type for all buildings and facilities combined. 2. Aggregate your organization's energy usage broken down by the separate campuses that make up your organization--see Step 6 for _____ more information on this option. To aggregate yearly energy use data by fuel type, add together all of your organization's energy use in the calendar year in terms of electricity, natural gas, heating oil #2, #4 and #6, steam and propane or other fuels for backup. Please include energy use from ALL properties owned, leased and operated and check that energy use for each fuel type is measured in the correct metrics. For purposes of the Challenge, please aggregate energy use data for your properties in the following ways: 1. Properties that you own and operate: - Count 100% of energy use. 2. Rental properties and tenant spaces greater than 10,000 square feet: - If you pay the entire utility bill: Count 100% of the energy use. - If you do NOT pay the entire utility bill: Count only the proportion that you pay. 3. Optional (but recommended): Rental properties and tenant spaces less than 10,000 square feet: - If you pay the entire utility bill: Count 100% of the energy use. - If you do NOT pay the entire utility bill: Count only the proportion that you pay.
C36: 5. Input Your Energy Use Data and Current Square Footage into the Carbon Emissions Inventory
C37: Once you have compiled your aggregate energy usage for each fuel type, there are two options to input your data: 1. Input your organization's total energy use by fuel type and total gross square footage for the submission year under the Inventory tab _____of this spreadsheet. 2. Input your organization's campus-level energy use and gross square footage for the submission year under the Campus tab of this _____spreadsheet--see Step 6 for more information on this option. Please be sure to also enter the correct Base Year and Submission Year in the upper right hand corner of the Inventory tab of this spreadsheet. For purposes of the Challenge, "Business as Usual" for 2017-2018 is calculated as a 1% compound annual increase in energy use over the baseline year. Gross square footage is necessary for the Challenge because emissions reductions are measured in terms of energy intensity, or your organization's reduction in emissions per square foot. If it is not possible to obtain your gross square footage for all years, at a minimum the Inventory must include your gross square footage for the baseline year and the current year. The Carbon Emissions Inventory tool will automatically calculate your organization's associated carbon emissions (Mtons CO2e), standardized energy usage (MMBtu), emissions intensity (lbs. of CO2e/ sq. ft.), energy use intensity (MMBtu/ sq. ft.) and total percentage reductions of carbon emissions (Mtons CO2e) and energy use (MMBtu) since the baseline year. The spreadsheet will also automatically populate the data tables and charts located in the Summary and Graphs tabs. To ensure that all calculations are correct, please be sure that your Inventory includes accurate energy use and gross square footage for every year of the Challenge, beginning with your baseline year through the submission year.
C38: 6. Optional: Input Campus-Level Energy Use Data and Square Footage
C39: For CY 2015, you have the option to input your organization's campus-level energy use by fuel type and gross square footage in the Campus tab of this spreadsheet. For purposes of the Challenge, a "campus" is defined as a logical geographic grouping of your organization's buildings and facilities. Buildings and facilities do not need to be physically connected, but should include all facilities owned and operated in a general area. Please aggregate your campus-level energy use data by adding together your organization's total energy use on each campus in terms of electricity, natural gas, heating oil #2, #4 and #6, steam and propane or other fuels used for backup. Please include energy use from ALL properties owned, leased and operated on each campus and check that energy use for each fuel type is measured in the correct metrics. Please input your energy use data by fuel type and square footage in the Campus tab of this spreadsheet for the submission year. The spreadsheet will automatically calculate your organization's total energy use by fuel type, total gross square footage, associated carbon emissions, energy intensity and percentage reductions of carbon emissions and energy usage since your baseline year. Please be sure to enter the total energy use and total gross square footage generated in this section into the Inventory tab, or make sure that the information you have entered in both sections match.
C40: 7. Optional: Input Waste Tonnage Data
C41: Including waste data is optional but encouraged for the Challenge. The entry rows for waste (and fleet) data can be shown or hidden on the Inventory tab by using the yellow button at the top of that sheet. Should your institution decide to include waste data, the minimum reporting requirement for waste is the total annual tonnage of municipal solid waste (mixed/unsorted MSW), based on carter bills or an annual waste report. Completing a physical waste audit is optional, but will provide waste characterization percentages, which that will make the emissions calculations more accurate and most likely more favorable. The minimum waste characterization of the mixed/unsorted MSW include Mixed Recyclables (waste that could be recycled), Mixed Organics (waste that could be composted), and Sorted MSW (all remaining waste). Hiring waste audit professionals to complete a physical audit is highly recommended, but not required. Due to a lack of current available research, at this time the Mayor’s Office is not including regulated medical waste, regulated medical waste (red bag waste, sharps, trace chemical waste), hazardous waste (RCRA pharmaceutical waste, chemical waste, universal waste), bulk waste, e-waste/technoscrap, or waste from construction and demolition. Recycled and composted waste is are assumed to contribute negligible zero emissions, but reporting the amount of diverted tonnage can be useful for the Climate Action Plan and awareness purposes.
C42: 8. Optional: Input Fleet Fuel Data
C43: Including fuel data from vehicle fleets is optional but encouraged for the Challenge. The entry rows for fleet (and waste) data can be shown or hidden on the Inventory tab by using the yellow button at the top of that sheet. Should your institution decide to include fleet data, the minimum reporting requirement for fleets are the total annual gallons of fuel consumed, aggregated by fuel type (gasoline, diesel, biodiesel). The electricity used to fuel hybrid, plug-ins, and electric vehicles are assumed be reported in an institution’s electricity bill, which would be reported in the ‘Energy’ section of the GHG inventory. Fleets are vehicles owned and operated by the institution which includes maintenance vehicles, intercampus bus/shuttles, and security vehicles; this, but does not include personal commuting or employer-owned vehicles that are leased to individuals.
C44: 9. Submit the Carbon Emissions Inventory
C45: Please submit your Carbon Emissions Inventory to the NYC Mayor’s of Sustainability no later than Monday, June 15th, 2015. Please email a completed version of this spreadsheet as an attachment to Patrick Love at plove@cityhall.nyc.gov. If you are having trouble filling out any portion of this Inventory, please contact Patrick Love in the NYC Mayor's Office of Sustainability at the above e-mail address as soon as possible so we can help answer your questions.
C46: Notes on Inventory Calculations
C47: All years use 2005 emissions coefficients for electricity to eliminate fluctuations in utility emissions factors. All emissions coefficients for natural gas, heating oil, steam and propane are based on the EPA's 2010 coefficients.
B48: Explanations or Assumptions for Inputs
C49: Please include any explanations or assumptions for your inputs here.

Sheet Inventory
D3: NYC Carbon Challenge - Hospitals | J3: Name of Hospital | K3: Hospital
D4: Carbon Emissions Inventory
J5: Submission Year | K5: 2014
J7: Base Year | K7: 2005
J9: Submission Year - Carbon Intensity | K9: =Summary!$BF$65 -> 1e-08
J11: Base Year - Carbon Intensity (lbs CO2e/sq.ft.) | K11: =IF($K$7=2000,$K$63, IF($K$7=2001,$K$109, IF($K$7=2002,$K$155, IF($K$7=2003,$K$201, IF($K$7=2004,$K$247, IF($K$7=2005,$K$293, IF($K$7=2006,$K$339, IF($K$7=2007,$K$385, IF($K$7=2008,$K$431, IF($K$7=2009,$K$477, IF($K$7=2010,$K$523, IF($K$7=0,0)))))))))))) -> 
J13: 30% Reduction Goal (lbs CO2e/sq.ft.) | K13: =IFERROR($K$11*0.7,"") -> 
J15: Business As Usual 2017-18 (CO2e/sq.ft.) | K15: =IFERROR(K11*(1.01^(K5-baseline_year)),"") -> 
E20: 2000 | F20: =IF($K$7=2000,"Base Year", "") -> 
E22: Energy Use
E23: Fuel Type | F23: Fuel Consumed | G23: Units | H23: CO2e Coefficient | I23: MMBtu Coefficient | J23: MMBTUs | K23: CO2e (Mtons)
C24: 2000
E25: Electricity | G25: kWh | H25: =VLOOKUP($C24,Coefficients!$A$5:$AB$25,3) -> 0.0004227035007 | I25: =VLOOKUP(C24,Coefficients!$A$5:$AB$25,2) -> 0.009546 | J25: =$I25*$F25 -> 0 | K25: =$H25*$F25 -> 0
E26: Natural Gas | G26: Therms | H26: =VLOOKUP(C24,Coefficients!$A$5:$AB$25,5) -> 0.0053156 | I26: =VLOOKUP(C24,Coefficients!$A$5:$AB$25,4) -> 0.1 | J26: =$I26*$F26 -> 0 | K26: 0
E27: Distillate Fuel Oil (#2) | G27: US Gallons | H27: =VLOOKUP(C24,Coefficients!$A$5:$AB$25,7) -> 0.010264026 | I27: =VLOOKUP(C24,Coefficients!$A$5:$AB$25,6) -> 0.138 | J27: 0 | K27: 0
E28: Distillate Fuel Oil (#4) | G28: US Gallons | H28: =VLOOKUP(C24,Coefficients!$A$5:$AB$25,9) -> 0.011016722 | I28: =VLOOKUP(C24,Coefficients!$A$5:$AB$25,8) -> 0.146 | J28: 0 | K28: 0
E29: Residual Fuel Oil (#6) | G29: US Gallons | H29: =VLOOKUP(C24,Coefficients!$A$5:$AB$25,11) -> 0.01132755 | I29: =VLOOKUP(C24,Coefficients!$A$5:$AB$25,10) -> 0.15 | J29: 0 | K29: 0
E30: No. 2 Oil with B5 Blend | G30: US Gallons | H30: =VLOOKUP(E30,'Biodiesel Coefficients'!$J$2:$M$9, 3,FALSE) -> 0.01022376678 | I30: =VLOOKUP(E30,'Biodiesel Coefficients'!$J$2:$M$9, 4,FALSE) -> 0.1375 | J30: =IFERROR($I30*$F30,0) -> 0 | K30: =IFERROR($H30*$F30,0) -> 0
E31: On-Site Renewable Electricity | G31: kWh | H31: 0 | I31: 0.0034121412 | J31: =IFERROR($I31*$F31,0) -> 0 | K31: =IFERROR($H31*$F31,0) -> 0
E32: Diesel Fuel (Back-up Gen.) | G32: US Gallons | H32: =VLOOKUP(C24,Coefficients!$A$5:$AB$25,13) -> 0.010264026 | I32: =VLOOKUP(C24,Coefficients!$A$5:$AB$25,12) -> 0.138 | J32: 0 | K32: 0
E33: District Steam | G33: Mlbs | H33: =VLOOKUP(C24,Coefficients!$A$5:$AB$25,15) -> 0.086629611 | I33: =VLOOKUP(C24,Coefficients!$A$5:$AB$25,14) -> 1.33015 | J33: 0 | K33: 0
H35: TOTAL | J35: =SUM(J25:J33) -> 0 | K35: =SUM(K25:K33) -> 0
E36: Waste (optional)
F37: Waste Type | G37: Weight | H37: Waste Characterization % | I37: Units | J37: CO2e Coefficient | K37: CO2e (Mtons)
E38: Was a physical waste audit completed in the past 5 years?
F39: Unsorted MSW | H39: =IF(E41="yes", "", 100%) -> 1 | I39: Tons | J39: ='Waste Coeff.'!$D$9 -> 0.819 | K39: =IF($E40="Yes", "", $G39*$J39) -> 0
E40: No | F40: Mixed Recyclables | G40: =$G39*H40 -> 0 | I40: Tons | J40: ='Waste Coeff.'!$D$10 -> 0.416475 | K40: =IF($E40="No", "", $G40*$J40) -> 
E41: =IF(E40="yes","Enter % values in waste characterization column","Ignore waste characterization column") -> Ignore waste characterization column | F41: Food Scraps/Organics | G41: =$G39*H41 -> 0 | I41: Tons | J41: ='Waste Coeff.'!$D$11 -> 0.2821275 | K41: =IF($E40="No", "", $G41*$J41) -> 
F42: Sorted MSW | G42: =$G39*H42 -> 0 | I42: Tons | J42: ='Waste Coeff.'!$D$9 -> 0.819 | K42: =IF($E40="No", "", $G42*$J42) -> 
E43: Yes | F43: Recycled | I43: Tons | J43: 0 | K43: =$J43*$G43 -> 0
E44: No | F44: Composted | I44: Tons | J44: 0 | K44: 0
J46: TOTAL | K46: =IF($E40="yes",SUM(K40:K44),SUM(K39,K43:K44)) -> 0
E47: Fleets (optional)
F48: Fuel Type | H48: Fuel Consumed | I48: Units | J48: CO2 Coefficient | K48: CO2 (Mtons)
F50: Gasoline | I50: Gallons | J50: ='Fleets Coeff.'!$D$5 -> 0.008477 | K50: =$H50*$J50 -> 0
F51: Diesel Fuel (Distillate No. 2) | I51: Gallons | J51: ='Fleets Coeff.'!$D$6 -> 0.01021 | K51: =$H51*$J51 -> 0
F52: Biodiesel (B20) | I52: Gallons | J52: ='Fleets Coeff.'!$D$7 -> 0.0086716 | K52: =$H52*$J52 -> 0
F53: Biodiesel (B5) | I53: Gallons | J53: ='Fleets Coeff.'!$D$8 -> 0.00852565 | K53: =$H53*$J53 -> 0
J55: TOTAL | K55: =SUM(K50:K53) -> 0
J57: TOTAL CO2e* | K57: =SUM($K35,$K46,$K55) -> 0
J59: Square Footage
J61: MMBTU / sq.ft. | K61: =IF(ISERR((J35)/K59),"",((J35)/K59)) -> 
J63: Carbon Intensity (lbs CO2e/sq.ft.) | K63: =IF(ISERR((K57*2204.62)/K59),"",((K57*2204.62)/K59)) -> 
E66: 2001 | F66: =IF($K$7=2001,"Base Year", "") -> 
E68: Energy Use
E69: Fuel Type | F69: Fuel Consumed | G69: Units | H69: CO2e Coefficient | I69: MMBtu Coefficient | J69: MMBTUs | K69: CO2e (Mtons)
C70: 2000
E71: Electricity | G71: kWh | H71: =VLOOKUP($C70,Coefficients!$A$5:$AB$25,3) -> 0.0004227035007 | I71: =VLOOKUP(C70,Coefficients!$A$5:$AB$25,2) -> 0.009546 | J71: =$I71*$F71 -> 0 | K71: =$H71*$F71 -> 0
E72: Natural Gas | G72: Therms | H72: =VLOOKUP(C70,Coefficients!$A$5:$AB$25,5) -> 0.0053156 | I72: =VLOOKUP(C70,Coefficients!$A$5:$AB$25,4) -> 0.1 | J72: =$I72*$F72 -> 0 | K72: 0
E73: Distillate Fuel Oil (#2) | G73: US Gallons | H73: =VLOOKUP(C70,Coefficients!$A$5:$AB$25,7) -> 0.010264026 | I73: =VLOOKUP(C70,Coefficients!$A$5:$AB$25,6) -> 0.138 | J73: 0 | K73: 0
E74: Distillate Fuel Oil (#4) | G74: US Gallons | H74: =VLOOKUP(C70,Coefficients!$A$5:$AB$25,9) -> 0.011016722 | I74: =VLOOKUP(C70,Coefficients!$A$5:$AB$25,8) -> 0.146 | J74: 0 | K74: 0
E75: Residual Fuel Oil (#6) | G75: US Gallons | H75: =VLOOKUP(C70,Coefficients!$A$5:$AB$25,11) -> 0.01132755 | I75: =VLOOKUP(C70,Coefficients!$A$5:$AB$25,10) -> 0.15 | J75: 0 | K75: 0
E76: Biodiesel Blend (Select Type) | G76: US Gallons | H76: =VLOOKUP(E76,'Biodiesel Coefficients'!$J$2:$M$9, 3,FALSE) -> (Selection needed) | I76: =VLOOKUP(E76,'Biodiesel Coefficients'!$J$2:$M$9, 4,FALSE) -> (Selection needed) | J76: =IFERROR($I76*$F76,0) -> 0 | K76: =IFERROR($H76*$F76,0) -> 0
E77: On-Site Renewable Electricity | G77: kWh | H77: 0 | I77: 0.0034121412 | J77: =IFERROR($I77*$F77,0) -> 0 | K77: =IFERROR($H77*$F77,0) -> 0
E78: Diesel Fuel (Back-up Gen.) | G78: US Gallons | H78: =VLOOKUP(C70,Coefficients!$A$5:$AB$25,13) -> 0.010264026 | I78: =VLOOKUP(C70,Coefficients!$A$5:$AB$25,12) -> 0.138 | J78: 0 | K78: 0
E79: District Steam | G79: Mlbs | H79: =VLOOKUP(C70,Coefficients!$A$5:$AB$25,15) -> 0.086629611 | I79: =VLOOKUP(C70,Coefficients!$A$5:$AB$25,14) -> 1.33015 | J79: 0 | K79: 0
H81: TOTAL | J81: =SUM(J71:J79) -> 0 | K81: =SUM(K71:K79) -> 0
E82: Waste (optional)
F83: Waste Type | G83: Weight | H83: Waste Characterization % | I83: Units | J83: CO2e Coefficient | K83: CO2e (Mtons)
E84: Was a physical waste audit completed in the past 5 years?
F85: Unsorted MSW | H85: =IF(E87="yes", "", 100%) -> 1 | I85: Tons | J85: ='Waste Coeff.'!$D$9 -> 0.819 | K85: =IF($E86="Yes", "", $G85*$J85) -> 0
E86: No | F86: Mixed Recyclables | G86: =$G85*H86 -> 0 | I86: Tons | J86: ='Waste Coeff.'!$D$10 -> 0.416475 | K86: =IF($E86="No", "", $G86*$J86) -> 
E87: =IF(E86="yes","Enter % values in waste characterization column","Ignore waste characterization column") -> Ignore waste characterization column | F87: Food Scraps/Organics | G87: =$G85*H87 -> 0 | I87: Tons | J87: ='Waste Coeff.'!$D$11 -> 0.2821275 | K87: =IF($E86="No", "", $G87*$J87) -> 
F88: Sorted MSW | G88: =$G85*H88 -> 0 | I88: Tons | J88: ='Waste Coeff.'!$D$9 -> 0.819 | K88: =IF($E86="No", "", $G88*$J88) -> 
E89: Yes | F89: Recycled | I89: Tons | J89: 0 | K89: =$J89*$G89 -> 0
E90: No | F90: Composted | I90: Tons | J90: 0 | K90: 0
J92: TOTAL | K92: =IF($E86="yes",SUM(K86:K90),SUM(K85,K89:K90)) -> 0
E93: Fleets (optional)
F94: Fuel Type | H94: Fuel Consumed | I94: Units | J94: CO2 Coefficient | K94: CO2 (Mtons)
F96: Gasoline | I96: Gallons | J96: ='Fleets Coeff.'!$D$5 -> 0.008477 | K96: =$H96*$J96 -> 0
F97: Diesel Fuel (Distillate No. 2) | I97: Gallons | J97: ='Fleets Coeff.'!$D$6 -> 0.01021 | K97: =$H97*$J97 -> 0
F98: Biodiesel (B20) | I98: Gallons | J98: ='Fleets Coeff.'!$D$7 -> 0.0086716 | K98: =$H98*$J98 -> 0
F99: Biodiesel (B5) | I99: Gallons | J99: ='Fleets Coeff.'!$D$8 -> 0.00852565 | K99: =$H99*$J99 -> 0
J101: TOTAL | K101: =SUM(K96:K99) -> 0
J103: TOTAL CO2e* | K103: =SUM($K81,$K92,$K101) -> 0
J105: Square Footage
J107: MMBTU / sq.ft. | K107: =IF(ISERR((J81)/K105),"",((J81)/K105)) -> 
J109: Carbon Intensity (lbs CO2e/sq.ft.) | K109: =IF(ISERR((K103*2204.62)/K105),"",((K103*2204.62)/K105)) -> 
E112: 2002 | F112: =IF($K$7=2002,"Base Year", "") -> 
E114: Energy Use
E115: Fuel Type | F115: Fuel Consumed | G115: Units | H115: CO2e Coefficient | I115: MMBtu Coefficient | J115: MMBTUs | K115: CO2e (Mtons)
C116: 2000
E117: Electricity | G117: kWh | H117: =VLOOKUP($C116,Coefficients!$A$5:$AB$25,3) -> 0.0004227035007 | I117: =VLOOKUP(C116,Coefficients!$A$5:$AB$25,2) -> 0.009546 | J117: =$I117*$F117 -> 0 | K117: =$H117*$F117 -> 0
E118: Natural Gas | G118: Therms | H118: =VLOOKUP(C116,Coefficients!$A$5:$AB$25,5) -> 0.0053156 | I118: =VLOOKUP(C116,Coefficients!$A$5:$AB$25,4) -> 0.1 | J118: =$I118*$F118 -> 0 | K118: 0
E119: Distillate Fuel Oil (#2) | G119: US Gallons | H119: =VLOOKUP(C116,Coefficients!$A$5:$AB$25,7) -> 0.010264026 | I119: =VLOOKUP(C116,Coefficients!$A$5:$AB$25,6) -> 0.138 | J119: 0 | K119: 0
E120: Distillate Fuel Oil (#4) | G120: US Gallons | H120: =VLOOKUP(C116,Coefficients!$A$5:$AB$25,9) -> 0.011016722 | I120: =VLOOKUP(C116,Coefficients!$A$5:$AB$25,8) -> 0.146 | J120: 0 | K120: 0
E121: Residual Fuel Oil (#6) | G121: US Gallons | H121: =VLOOKUP(C116,Coefficients!$A$5:$AB$25,11) -> 0.01132755 | I121: =VLOOKUP(C116,Coefficients!$A$5:$AB$25,10) -> 0.15 | J121: 0 | K121: 0
E122: Biodiesel Blend (Select Type) | G122: US Gallons | H122: =VLOOKUP(E122,'Biodiesel Coefficients'!$J$2:$M$9, 3,FALSE) -> (Selection needed) | I122: =VLOOKUP(E122,'Biodiesel Coefficients'!$J$2:$M$9, 4,FALSE) -> (Selection needed) | J122: =IFERROR($I122*$F122,0) -> 0 | K122: =IFERROR($H122*$F122,0) -> 0
E123: On-Site Renewable Electricity | G123: kWh | H123: 0 | I123: 0.0034121412 | J123: =IFERROR($I123*$F123,0) -> 0 | K123: =IFERROR($H123*$F123,0) -> 0
E124: Diesel Fuel (Back-up Gen.) | G124: US Gallons | H124: =VLOOKUP(C116,Coefficients!$A$5:$AB$25,13) -> 0.010264026 | I124: =VLOOKUP(C116,Coefficients!$A$5:$AB$25,12) -> 0.138 | J124: 0 | K124: 0
E125: District Steam | G125: Mlbs | H125: =VLOOKUP(C116,Coefficients!$A$5:$AB$25,15) -> 0.086629611 | I125: =VLOOKUP(C116,Coefficients!$A$5:$AB$25,14) -> 1.33015 | J125: 0 | K125: 0
H127: TOTAL | J127: =SUM(J117:J125) -> 0 | K127: =SUM(K117:K125) -> 0
E128: Waste (optional)
F129: Waste Type | G129: Weight | H129: Waste Characterization % | I129: Units | J129: CO2e Coefficient | K129: CO2e (Mtons)
E130: Was a physical waste audit completed in the past 5 years?
F131: Unsorted MSW | H131: =IF(E133="yes", "", 100%) -> 1 | I131: Tons | J131: ='Waste Coeff.'!$D$9 -> 0.819 | K131: =IF($E132="Yes", "", $G131*$J131) -> 0
E132: No | F132: Mixed Recyclables | G132: =$G131*H132 -> 0 | I132: Tons | J132: ='Waste Coeff.'!$D$10 -> 0.416475 | K132: =IF($E132="No", "", $G132*$J132) -> 
E133: =IF(E132="yes","Enter % values in waste characterization column","Ignore waste characterization column") -> Ignore waste characterization column | F133: Food Scraps/Organics | G133: =$G131*H133 -> 0 | I133: Tons | J133: ='Waste Coeff.'!$D$11 -> 0.2821275 | K133: =IF($E132="No", "", $G133*$J133) -> 
F134: Sorted MSW | G134: =$G131*H134 -> 0 | I134: Tons | J134: ='Waste Coeff.'!$D$9 -> 0.819 | K134: =IF($E132="No", "", $G134*$J134) -> 
E135: Yes | F135: Recycled | I135: Tons | J135: 0 | K135: =$J135*$G135 -> 0
E136: No | F136: Composted | I136: Tons | J136: 0 | K136: 0
J138: TOTAL | K138: =IF($E132="yes",SUM(K132:K136),SUM(K131,K135:K136)) -> 0
E139: Fleets (optional)
F140: Fuel Type | H140: Fuel Consumed | I140: Units | J140: CO2 Coefficient | K140: CO2 (Mtons)
F142: Gasoline | I142: Gallons | J142: ='Fleets Coeff.'!$D$5 -> 0.008477 | K142: =$H142*$J142 -> 0
F143: Diesel Fuel (Distillate No. 2) | I143: Gallons | J143: ='Fleets Coeff.'!$D$6 -> 0.01021 | K143: =$H143*$J143 -> 0
F144: Biodiesel (B20) | I144: Gallons | J144: ='Fleets Coeff.'!$D$7 -> 0.0086716 | K144: =$H144*$J144 -> 0
F145: Biodiesel (B5) | I145: Gallons | J145: ='Fleets Coeff.'!$D$8 -> 0.00852565 | K145: =$H145*$J145 -> 0
J147: TOTAL | K147: =SUM(K142:K145) -> 0
J149: TOTAL CO2e* | K149: =SUM($K127,$K138,$K147) -> 0
J151: Square Footage
J153: MMBTU / sq.ft. | K153: =IF(ISERR((J127)/K151),"",((J127)/K151)) -> 
J155: Carbon Intensity (lbs CO2e/sq.ft.) | K155: =IF(ISERR((K149*2204.62)/K151),"",((K149*2204.62)/K151)) -> 
E158: 2003 | F158: =IF($K$7=2003,"Base Year", "") -> 
E160: Energy Use
E161: Fuel Type | F161: Fuel Consumed | G161: Units | H161: CO2e Coefficient | I161: MMBtu Coefficient | J161: MMBTUs | K161: CO2e (Mtons)
C162: 2000
E163: Electricity | G163: kWh | H163: =VLOOKUP($C162,Coefficients!$A$5:$AB$25,3) -> 0.0004227035007 | I163: =VLOOKUP(C162,Coefficients!$A$5:$AB$25,2) -> 0.009546 | J163: =$I163*$F163 -> 0 | K163: =$H163*$F163 -> 0
E164: Natural Gas | G164: Therms | H164: =VLOOKUP(C162,Coefficients!$A$5:$AB$25,5) -> 0.0053156 | I164: =VLOOKUP(C162,Coefficients!$A$5:$AB$25,4) -> 0.1 | J164: =$I164*$F164 -> 0 | K164: 0
E165: Distillate Fuel Oil (#2) | G165: US Gallons | H165: =VLOOKUP(C162,Coefficients!$A$5:$AB$25,7) -> 0.010264026 | I165: =VLOOKUP(C162,Coefficients!$A$5:$AB$25,6) -> 0.138 | J165: 0 | K165: 0
E166: Distillate Fuel Oil (#4) | G166: US Gallons | H166: =VLOOKUP(C162,Coefficients!$A$5:$AB$25,9) -> 0.011016722 | I166: =VLOOKUP(C162,Coefficients!$A$5:$AB$25,8) -> 0.146 | J166: 0 | K166: 0
E167: Residual Fuel Oil (#6) | G167: US Gallons | H167: =VLOOKUP(C162,Coefficients!$A$5:$AB$25,11) -> 0.01132755 | I167: =VLOOKUP(C162,Coefficients!$A$5:$AB$25,10) -> 0.15 | J167: 0 | K167: 0
E168: Biodiesel Blend (Select Type) | G168: US Gallons | H168: =VLOOKUP(E168,'Biodiesel Coefficients'!$J$2:$M$9, 3,FALSE) -> (Selection needed) | I168: =VLOOKUP(E168,'Biodiesel Coefficients'!$J$2:$M$9, 4,FALSE) -> (Selection needed) | J168: =IFERROR($I168*$F168,0) -> 0 | K168: =IFERROR($H168*$F168,0) -> 0
E169: On-Site Renewable Electricity | G169: kWh | H169: 0 | I169: 0.0034121412 | J169: =IFERROR($I169*$F169,0) -> 0 | K169: =IFERROR($H169*$F169,0) -> 0
E170: Diesel Fuel (Back-up Gen.) | G170: US Gallons | H170: =VLOOKUP(C162,Coefficients!$A$5:$AB$25,13) -> 0.010264026 | I170: =VLOOKUP(C162,Coefficients!$A$5:$AB$25,12) -> 0.138 | J170: 0 | K170: 0
E171: District Steam | G171: Mlbs | H171: =VLOOKUP(C162,Coefficients!$A$5:$AB$25,15) -> 0.086629611 | I171: =VLOOKUP(C162,Coefficients!$A$5:$AB$25,14) -> 1.33015 | J171: 0 | K171: 0
H173: TOTAL | J173: =SUM(J163:J171) -> 0 | K173: =SUM(K163:K171) -> 0
E174: Waste (optional)
F175: Waste Type | G175: Weight | H175: Waste Characterization % | I175: Units | J175: CO2e Coefficient | K175: CO2e (Mtons)
E176: Was a physical waste audit completed in the past 5 years?
F177: Unsorted MSW | H177: =IF(E179="yes", "", 100%) -> 1 | I177: Tons | J177: ='Waste Coeff.'!$D$9 -> 0.819 | K177: =IF($E178="Yes", "", $G177*$J177) -> 0
E178: No | F178: Mixed Recyclables | G178: =$G177*H178 -> 0 | I178: Tons | J178: ='Waste Coeff.'!$D$10 -> 0.416475 | K178: =IF($E178="No", "", $G178*$J178) -> 
E179: =IF(E178="yes","Enter % values in waste characterization column","Ignore waste characterization column") -> Ignore waste characterization column | F179: Food Scraps/Organics | G179: =$G177*H179 -> 0 | I179: Tons | J179: ='Waste Coeff.'!$D$11 -> 0.2821275 | K179: =IF($E178="No", "", $G179*$J179) -> 
F180: Sorted MSW | G180: =$G177*H180 -> 0 | I180: Tons | J180: ='Waste Coeff.'!$D$9 -> 0.819 | K180: =IF($E178="No", "", $G180*$J180) -> 
E181: Yes | F181: Recycled | I181: Tons | J181: 0 | K181: =$J181*$G181 -> 0
E182: No | F182: Composted | I182: Tons | J182: 0 | K182: 0
J184: TOTAL | K184: =IF($E178="yes",SUM(K178:K182),SUM(K177,K181:K182)) -> 0
E185: Fleets (optional)
F186: Fuel Type | H186: Fuel Consumed | I186: Units | J186: CO2 Coefficient | K186: CO2 (Mtons)
F188: Gasoline | I188: Gallons | J188: ='Fleets Coeff.'!$D$5 -> 0.008477 | K188: =$H188*$J188 -> 0
F189: Diesel Fuel (Distillate No. 2) | I189: Gallons | J189: ='Fleets Coeff.'!$D$6 -> 0.01021 | K189: =$H189*$J189 -> 0
F190: Biodiesel (B20) | I190: Gallons | J190: ='Fleets Coeff.'!$D$7 -> 0.0086716 | K190: =$H190*$J190 -> 0
F191: Biodiesel (B5) | I191: Gallons | J191: ='Fleets Coeff.'!$D$8 -> 0.00852565 | K191: =$H191*$J191 -> 0
J193: TOTAL | K193: =SUM(K188:K191) -> 0
J195: TOTAL CO2e* | K195: =SUM($K173,$K184,$K193) -> 0
J197: Square Footage
J199: MMBTU / sq.ft. | K199: =IF(ISERR((J173)/K197),"",((J173)/K197)) -> 
J201: Carbon Intensity (lbs CO2e/sq.ft.) | K201: =IF(ISERR((K195*2204.62)/K197),"",((K195*2204.62)/K197)) -> 
E204: 2004 | F204: =IF($K$7=2004,"Base Year", "") -> 
E206: Energy Use
E207: Fuel Type | F207: Fuel Consumed | G207: Units | H207: CO2e Coefficient | I207: MMBtu Coefficient | J207: MMBTUs | K207: CO2e (Mtons)
C208: 2000
E209: Electricity | G209: kWh | H209: =VLOOKUP($C208,Coefficients!$A$5:$AB$25,3) -> 0.0004227035007 | I209: =VLOOKUP(C208,Coefficients!$A$5:$AB$25,2) -> 0.009546 | J209: =$I209*$F209 -> 0 | K209: =$H209*$F209 -> 0
E210: Natural Gas | G210: Therms | H210: =VLOOKUP(C208,Coefficients!$A$5:$AB$25,5) -> 0.0053156 | I210: =VLOOKUP(C208,Coefficients!$A$5:$AB$25,4) -> 0.1 | J210: =$I210*$F210 -> 0 | K210: 0
E211: Distillate Fuel Oil (#2) | G211: US Gallons | H211: =VLOOKUP(C208,Coefficients!$A$5:$AB$25,7) -> 0.010264026 | I211: =VLOOKUP(C208,Coefficients!$A$5:$AB$25,6) -> 0.138 | J211: 0 | K211: 0
E212: Distillate Fuel Oil (#4) | G212: US Gallons | H212: =VLOOKUP(C208,Coefficients!$A$5:$AB$25,9) -> 0.011016722 | I212: =VLOOKUP(C208,Coefficients!$A$5:$AB$25,8) -> 0.146 | J212: 0 | K212: 0
E213: Residual Fuel Oil (#6) | G213: US Gallons | H213: =VLOOKUP(C208,Coefficients!$A$5:$AB$25,11) -> 0.01132755 | I213: =VLOOKUP(C208,Coefficients!$A$5:$AB$25,10) -> 0.15 | J213: 0 | K213: 0
E214: Biodiesel Blend (Select Type) | G214: US Gallons | H214: =VLOOKUP(E214,'Biodiesel Coefficients'!$J$2:$M$9, 3,FALSE) -> (Selection needed) | I214: =VLOOKUP(E214,'Biodiesel Coefficients'!$J$2:$M$9, 4,FALSE) -> (Selection needed) | J214: =IFERROR($I214*$F214,0) -> 0 | K214: =IFERROR($H214*$F214,0) -> 0
E215: On-Site Renewable Electricity | G215: kWh | H215: 0 | I215: 0.0034121412 | J215: =IFERROR($I215*$F215,0) -> 0 | K215: =IFERROR($H215*$F215,0) -> 0
E216: Diesel Fuel (Back-up Gen.) | G216: US Gallons | H216: =VLOOKUP(C208,Coefficients!$A$5:$AB$25,13) -> 0.010264026 | I216: =VLOOKUP(C208,Coefficients!$A$5:$AB$25,12) -> 0.138 | J216: 0 | K216: 0
E217: District Steam | G217: Mlbs | H217: =VLOOKUP(C208,Coefficients!$A$5:$AB$25,15) -> 0.086629611 | I217: =VLOOKUP(C208,Coefficients!$A$5:$AB$25,14) -> 1.33015 | J217: 0 | K217: 0
H219: TOTAL | J219: =SUM(J209:J217) -> 0 | K219: =SUM(K209:K217) -> 0
E220: Waste (optional)
F221: Waste Type | G221: Weight | H221: Waste Characterization % | I221: Units | J221: CO2e Coefficient | K221: CO2e (Mtons)
E222: Was a physical waste audit completed in the past 5 years?
F223: Unsorted MSW | H223: =IF(E225="yes", "", 100%) -> 1 | I223: Tons | J223: ='Waste Coeff.'!$D$9 -> 0.819 | K223: =IF($E224="Yes", "", $G223*$J223) -> 0
E224: No | F224: Mixed Recyclables | G224: =$G223*H224 -> 0 | I224: Tons | J224: ='Waste Coeff.'!$D$10 -> 0.416475 | K224: =IF($E224="No", "", $G224*$J224) -> 
E225: =IF(E224="yes","Enter % values in waste characterization column","Ignore waste characterization column") -> Ignore waste characterization column | F225: Food Scraps/Organics | G225: =$G223*H225 -> 0 | I225: Tons | J225: ='Waste Coeff.'!$D$11 -> 0.2821275 | K225: =IF($E224="No", "", $G225*$J225) -> 
F226: Sorted MSW | G226: =$G223*H226 -> 0 | I226: Tons | J226: ='Waste Coeff.'!$D$9 -> 0.819 | K226: =IF($E224="No", "", $G226*$J226) -> 
E227: Yes | F227: Recycled | I227: Tons | J227: 0 | K227: =$J227*$G227 -> 0
E228: No | F228: Composted | I228: Tons | J228: 0 | K228: 0
J230: TOTAL | K230: =IF($E224="yes",SUM(K224:K228),SUM(K223,K227:K228)) -> 0
E231: Fleets (optional)
F232: Fuel Type | H232: Fuel Consumed | I232: Units | J232: CO2 Coefficient | K232: CO2 (Mtons)
F234: Gasoline | I234: Gallons | J234: ='Fleets Coeff.'!$D$5 -> 0.008477 | K234: =$H234*$J234 -> 0
F235: Diesel Fuel (Distillate No. 2) | I235: Gallons | J235: ='Fleets Coeff.'!$D$6 -> 0.01021 | K235: =$H235*$J235 -> 0
F236: Biodiesel (B20) | I236: Gallons | J236: ='Fleets Coeff.'!$D$7 -> 0.0086716 | K236: =$H236*$J236 -> 0
F237: Biodiesel (B5) | I237: Gallons | J237: ='Fleets Coeff.'!$D$8 -> 0.00852565 | K237: =$H237*$J237 -> 0
J239: TOTAL | K239: =SUM(K234:K237) -> 0
J241: TOTAL CO2e* | K241: =SUM($K219,$K230,$K239) -> 0
J243: Square Footage
J245: MMBTU / sq.ft. | K245: =IF(ISERR((J219)/K243),"",((J219)/K243)) -> 
J247: Carbon Intensity (lbs CO2e/sq.ft.) | K247: =IF(ISERR((K241*2204.62)/K243),"",((K241*2204.62)/K243)) -> 
E250: 2005 | F250: =IF(Inventory!$K$7=2005,"Base Year", "") -> Base Year
E252: Energy Use
E253: Fuel Type | F253: Fuel Consumed | G253: Units | H253: CO2e Coefficient | I253: MMBtu Coefficient | J253: MMBTUs | K253: CO2e (Mtons)
C254: 2000
E255: Electricity | G255: kWh | H255: =VLOOKUP($C254,Coefficients!$A$5:$AB$25,3) -> 0.0004227035007 | I255: =VLOOKUP(C254,Coefficients!$A$5:$AB$25,2) -> 0.009546 | J255: =$I255*$F255 -> 0 | K255: =$H255*$F255 -> 0
E256: Natural Gas | G256: Therms | H256: =VLOOKUP(C254,Coefficients!$A$5:$AB$25,5) -> 0.0053156 | I256: =VLOOKUP(C254,Coefficients!$A$5:$AB$25,4) -> 0.1 | J256: =$I256*$F256 -> 0 | K256: 0
E257: Distillate Fuel Oil (#2) | G257: US Gallons | H257: =VLOOKUP(C254,Coefficients!$A$5:$AB$25,7) -> 0.010264026 | I257: =VLOOKUP(C254,Coefficients!$A$5:$AB$25,6) -> 0.138 | J257: 0 | K257: 0
E258: Distillate Fuel Oil (#4) | G258: US Gallons | H258: =VLOOKUP(C254,Coefficients!$A$5:$AB$25,9) -> 0.011016722 | I258: =VLOOKUP(C254,Coefficients!$A$5:$AB$25,8) -> 0.146 | J258: 0 | K258: 0
E259: Residual Fuel Oil (#6) | G259: US Gallons | H259: =VLOOKUP(C254,Coefficients!$A$5:$AB$25,11) -> 0.01132755 | I259: =VLOOKUP(C254,Coefficients!$A$5:$AB$25,10) -> 0.15 | J259: 0 | K259: 0
E260: Biodiesel Blend (Select Type) | G260: US Gallons | H260: =VLOOKUP(E260,'Biodiesel Coefficients'!$J$2:$M$9, 3,FALSE) -> (Selection needed) | I260: =VLOOKUP(E260,'Biodiesel Coefficients'!$J$2:$M$9, 4,FALSE) -> (Selection needed) | J260: =IFERROR($I260*$F260,0) -> 0 | K260: =IFERROR($H260*$F260,0) -> 0
E261: On-Site Renewable Electricity | G261: kWh | H261: 0 | I261: 0.0034121412 | J261: =IFERROR($I261*$F261,0) -> 0 | K261: =IFERROR($H261*$F261,0) -> 0
E262: Diesel Fuel (Back-up Gen.) | G262: US Gallons | H262: =VLOOKUP(C254,Coefficients!$A$5:$AB$25,13) -> 0.010264026 | I262: =VLOOKUP(C254,Coefficients!$A$5:$AB$25,12) -> 0.138 | J262: 0 | K262: 0
E263: District Steam | G263: Mlbs | H263: =VLOOKUP(C254,Coefficients!$A$5:$AB$25,15) -> 0.086629611 | I263: =VLOOKUP(C254,Coefficients!$A$5:$AB$25,14) -> 1.33015 | J263: =$I263*$F263 -> 0 | K263: =$H263*$F263 -> 0
H265: TOTAL | J265: =SUM(J255:J263) -> 0 | K265: =SUM(K255:K263) -> 0
E266: Waste (optional)
F267: Waste Type | G267: Weight | H267: Waste Characterization % | I267: Units | J267: CO2e Coefficient | K267: CO2e (Mtons)
E268: Was a physical waste audit completed in the past 5 years?
... 575 more rows

Sheet REC Offsets
N3: Name of Hospital | O3: =Inventory!$K$3 -> Hospital
C4: NYC Carbon Challenge - Hospitals
C5: Carbon Emissions Inventory | N5: Submission Year | O5: =Inventory!$K$5 -> 2014
N7: Base Year | O7: =Inventory!$K$7 -> 2005
N9: Submission Year - Carbon Intensity | O9: =Inventory!$K$9 -> 1e-08
N11: Base Year - Carbon Intensity | O11: =Inventory!$K$11 -> 
N13: 30% Reduction Goal (By CY2017) | O13: =Inventory!$K$15 -> 
C15: Explanation: Purchases of renewable energy certificates (RECs) from off-site renewable energy production may be used to offset consumption of electricity from
C16: the grid in the NYC Carbon Challenge. NYC Carbon Challenge rules dictate that these purchases account for no more than 15% of the total required carbon intensity
C17: reduction of 30% – ie. 4.5% of your base year's carbon intensity. Because the number of RECS that can be applied to the Challenge depends on a percentage of carbon
C18: intensity, the number of RECS you may apply is calcuated each year based on current square footage. All REC purchases up to the allowable maximum will count toward
C19: offsetting your electricity consumption.
C21: Instructions: The table below will calculate the kWh of RECs that you may apply to the Challenge. Enter the amount of RECs you have purchased in the light blue column,
C22: and the appropriate amount will be applied to your inventory -- the number you have purchased or the maximum allowable, whichever is less. In order for RECs to qualify
C23: towards fulfilling your Carbon Challenge carbon intensity reduction goal, the purchase contracts must be long-term, lasting at least through 2030. Additionally, you must
C24: submit documentation verifying the RECs purchase with the Mayor’s Office of Sustainability.
D26: =O3&"'s carbon intensity allowed to be offset by RECs in "&Inventory!K5&"" -> Hospital's carbon intensity allowed to be offset by RECs in 2014
D27: =IFERROR(($O$11)*0.3*0.15," -") -> - | F27: (lbs CO2e/sq. ft.)
D29: Year | E29: REC purchases | F29: Carbon Intensity | G29: Percent Change | H29: Sq. Ft. | I29: Carbon allowed to be offset | J29: Allowed RECs | K29: Applied RECs
E30: (kWh) | F30: (lbs CO2e/sq. Ft.) | G30: From Base Year | I30: (Mtons CO2e) | J30: (kWh) | K30: (kWh)
D31: =baseline_year -> 2005 | F31: =IFERROR(LOOKUP(D31,Inventory!$E$20:$E$940,OFFSET(Inventory!$E$20:$E$940,43,6)),"") ->  | G31: =IFERROR((F31-$O$11)/$O$11,"") ->  | H31: =IFERROR(LOOKUP(D31,Inventory!$E$20:$E$940,OFFSET(Inventory!$E$20:$E$940,39,6)),"") -> 0 | I31: =IFERROR(($D$27/2204.6226)*H31,"") ->  | J31: =IFERROR(I31/Coefficients!$C$5,"") ->  | K31: =IF(ISBLANK(E31),"",IF(E31>J31,J31,E31)) -> 
D32: =IFERROR(IF(D31+1=submission_year,submission_year, IF(D31=submission_year,"",D31+1)),"") -> 2006 | F32: =IFERROR(LOOKUP(D32,Inventory!$E$20:$E$940,OFFSET(Inventory!$E$20:$E$940,43,6)),"") ->  | H32: =IFERROR(LOOKUP(D32,Inventory!$E$20:$E$940,OFFSET(Inventory!$E$20:$E$940,39,6)),"") -> 0 | I32: =IFERROR(($D$27/2204.6226)*H32,"") ->  | J32: =IFERROR(I32/Coefficients!$C$5,"") ->  | K32: =IF(ISBLANK(E32),"",IF(E32>J32,J32,E32)) -> 
D33: 2007 | F33: =IFERROR(LOOKUP(D33,Inventory!$E$20:$E$940,OFFSET(Inventory!$E$20:$E$940,43,6)),"") ->  | H33: =IFERROR(LOOKUP(D33,Inventory!$E$20:$E$940,OFFSET(Inventory!$E$20:$E$940,39,6)),"") -> 0 | J33: =IFERROR(I33/Coefficients!$C$5,"") -> 
D34: 2008 | F34: =IFERROR(LOOKUP(D34,Inventory!$E$20:$E$940,OFFSET(Inventory!$E$20:$E$940,43,6)),"") ->  | H34: =IFERROR(LOOKUP(D34,Inventory!$E$20:$E$940,OFFSET(Inventory!$E$20:$E$940,39,6)),"") -> 0 | J34: =IFERROR(I34/Coefficients!$C$5,"") -> 
D35: 2009 | F35: =IFERROR(LOOKUP(D35,Inventory!$E$20:$E$940,OFFSET(Inventory!$E$20:$E$940,43,6)),"") ->  | H35: =IFERROR(LOOKUP(D35,Inventory!$E$20:$E$940,OFFSET(Inventory!$E$20:$E$940,39,6)),"") -> 0 | J35: =IFERROR(I35/Coefficients!$C$5,"") -> 
D36: 2010 | F36: =IFERROR(LOOKUP(D36,Inventory!$E$20:$E$940,OFFSET(Inventory!$E$20:$E$940,43,6)),"") ->  | H36: =IFERROR(LOOKUP(D36,Inventory!$E$20:$E$940,OFFSET(Inventory!$E$20:$E$940,39,6)),"") -> 0 | J36: =IFERROR(I36/Coefficients!$C$5,"") -> 
D37: 2011 | F37: =IFERROR(LOOKUP(D37,Inventory!$E$20:$E$940,OFFSET(Inventory!$E$20:$E$940,43,6)),"") ->  | H37: =IFERROR(LOOKUP(D37,Inventory!$E$20:$E$940,OFFSET(Inventory!$E$20:$E$940,39,6)),"") -> 0 | J37: =IFERROR(I37/Coefficients!$C$5,"") -> 
D38: 2012 | F38: =IFERROR(LOOKUP(D38,Inventory!$E$20:$E$940,OFFSET(Inventory!$E$20:$E$940,43,6)),"") ->  | H38: =IFERROR(LOOKUP(D38,Inventory!$E$20:$E$940,OFFSET(Inventory!$E$20:$E$940,39,6)),"") -> 0 | J38: =IFERROR(I38/Coefficients!$C$5,"") -> 
D39: 2013 | F39: =IFERROR(LOOKUP(D39,Inventory!$E$20:$E$940,OFFSET(Inventory!$E$20:$E$940,43,6)),"") ->  | H39: =IFERROR(LOOKUP(D39,Inventory!$E$20:$E$940,OFFSET(Inventory!$E$20:$E$940,39,6)),"") -> 0 | J39: =IFERROR(I39/Coefficients!$C$5,"") -> 
D40: 2014 | F40: =IFERROR(LOOKUP(D40,Inventory!$E$20:$E$940,OFFSET(Inventory!$E$20:$E$940,43,6)),"") ->  | G40: =IFERROR((F40-$O$11)/$O$11,"") ->  | H40: =IFERROR(LOOKUP(D40,Inventory!$E$20:$E$940,OFFSET(Inventory!$E$20:$E$940,39,6)),"") -> 0 | I40: =IFERROR(($D$27/2204.6226)*H40,"") ->  | J40: =IFERROR(I40/Coefficients!$C$5,"") ->  | K40: =IF(ISBLANK(E40),"",IF(E40>J40,J40,E40)) -> 

Sheet Campus
C3: NYC Carbon Challenge - Hospitals | U3: Name of Hospital | V3: =Inventory!K3 -> Hospital
C4: Carbon Emissions Inventory
U5: Submission Year | V5: =Inventory!K5 -> 2014
U7: Base Year | V7: =Inventory!K7 -> 2005
U9: Submission Year - Carbon Intensity | V9: =Summary!U93 -> 
U11: Base Year - Carbon Intensity | V11: =Summary!U91 -> 
U13: Business as Usual - Carbon Intensity (By 2017-18) | V13: =Inventory!K15 -> 
U15: 30% Reduction Goal (By 2017-18) | V15: =IFERROR($J$11*0.7,"") -> 0
C18: 2000 | D18: =IF(Inventory!$K$7=2000,"Base Year", "") ->  | AB18: =IF(D208="Base Year",Campus!C208,"") -> 2005
D19: Campus Level Energy and Emissions Inventory By Fuel Type
E20: Electricity (kWh) | F20: NG (Therms) | G20: #2 Oil (USG) | H20: #4 Oil (USG) | I20: #6 Oil (USG) | J20: Biodiesel (Select Type) | K20: Diesel (USG) | L20: Steam (Mlbs) | O20: Fuel (Select Type) | P20: Square Feet | Q20: Total MMBTU | R20: Total Mtons CO2e | S20: Total MMBTU per sq. ft. | T20: Total CO2e per sq.ft. | U20: Total lbs CO2e/sq.ft. | V20: MMBtu %Δ from base year | W20: CO2e %Δ from base year | AC20: Electricity (kWh) | AD20: NG (Therms) | AE20: #2 Oil (USG) | AF20: #4 Oil (USG) | AG20: #6 Oil (USG) | AH20: Propane (USG) | AI20: Steam (Mlbs) | AJ20: Square Feet | AK20: Total MMBTU | AL20: Total Mtons CO2e | AM20: Total MMBTU per sq.ft. | AN20: Total CO2e per sq.ft. | AO20: MMBtu %Δ from base year | AP20: CO2e %Δ from base year
D21: Campus | J21: Biodiesel Blend (USG) | M21: On-site Renewable Electricity | N21: Waste (Tons) | O21: Fleets (USG) | AB21: Campus
Q24: =(E24*Coefficients!$B$10)+(Campus!F24*Coefficients!$D$10)+(Campus!G24*Coefficients!$F$10)+(Campus!H24*Coefficients!$H$10)+(Campus!I24*Coefficients!$J$10)+(Campus!J24*VLOOKUP($J$20,'Biodiesel Coefficients'!$J$13:$M$20,4,FALSE))+(Campus!K24*Coefficients!$L$10)+(Campus!L24*Coefficients!$N$10)+(M24*Inventory!$I$31) -> 0 | R24: =(E24*Coefficients!$C$10)+(Campus!F24*Coefficients!$E$10)+(Campus!G24*Coefficients!$G$10)+(Campus!H24*Coefficients!$I$10)+(Campus!I24*Coefficients!$K$10)+(Campus!J24*VLOOKUP($J$20,'Biodiesel Coefficients'!$J$13:$M$20,3,FALSE))+(Campus!K24*Coefficients!$M$10)+(Campus!L24*Coefficients!$O$10)+(N24*'Waste Coeff.'!$D$9)+(Campus!O24*VLOOKUP(Campus!$O$20,'Fleets Coeff.'!$A$3:$D$10,4,FALSE)) -> 0 | S24: =IF(ISERR(Q24/P24),"", (Q24/P24)) ->  | T24: =IF(ISERR(R24/P24),"", (R24/P24)) ->  | U24: =IF(ISERR(T24*2205),"",(T24*2205)) ->  | V24: =IFERROR((S24-AM24)/AM24,"") ->  | W24: =IFERROR((T24-AN24)/AN24,"") ->  | AB24: =IF($D$132="Base Year",Campus!D138,IF($D$170="Base Year",Campus!D176,IF($D$208="Base Year",Campus!D214,IF($D$246="Base Year",Campus!D252,IF($D$284="Base Year",Campus!D290,IF($D$322="Base Year",Campus!D328)))))) -> 0 | AC24: =IF($D$132="Base Year",Campus!E138,IF($D$170="Base Year",Campus!E176,IF($D$208="Base Year",Campus!E214,IF($D$246="Base Year",Campus!E252,IF($D$284="Base Year",Campus!E290,IF($D$322="Base Year",Campus!E328)))))) -> 0 | AD24: =IF($D$132="Base Year",Campus!F138,IF($D$170="Base Year",Campus!F176,IF($D$208="Base Year",Campus!F214,IF($D$246="Base Year",Campus!F252,IF($D$284="Base Year",Campus!F290,IF($D$322="Base Year",Campus!F328)))))) -> 0 | AE24: =IF($D$132="Base Year",Campus!G138,IF($D$170="Base Year",Campus!G176,IF($D$208="Base Year",Campus!G214,IF($D$246="Base Year",Campus!G252,IF($D$284="Base Year",Campus!G290,IF($D$322="Base Year",Campus!G328)))))) -> 0 | AF24: =IF($D$132="Base Year",Campus!H138,IF($D$170="Base Year",Campus!H176,IF($D$208="Base Year",Campus!H214,IF($D$246="Base Year",Campus!H252,IF($D$284="Base Year",Campus!H290,IF($D$322="Base Year",Campus!H328)))))) -> 0 | AG24: =IF($D$132="Base Year",Campus!I138,IF($D$170="Base Year",Campus!I176,IF($D$208="Base Year",Campus!I214,IF($D$246="Base Year",Campus!I252,IF($D$284="Base Year",Campus!I290,IF($D$322="Base Year",Campus!I328)))))) -> 0 | AH24: =IF($D$132="Base Year",Campus!K138,IF($D$170="Base Year",Campus!K176,IF($D$208="Base Year",Campus!K214,IF($D$246="Base Year",Campus!K252,IF($D$284="Base Year",Campus!K290,IF($D$322="Base Year",Campus!K328)))))) -> 0 | AI24: =IF($D$132="Base Year",Campus!L138,IF($D$170="Base Year",Campus!L176,IF($D$208="Base Year",Campus!L214,IF($D$246="Base Year",Campus!L252,IF($D$284="Base Year",Campus!L290,IF($D$322="Base Year",Campus!L328)))))) -> 0 | AJ24: =IF($D$132="Base Year",Campus!P138,IF($D$170="Base Year",Campus!P176,IF($D$208="Base Year",Campus!P214,IF($D$246="Base Year",Campus!P252,IF($D$284="Base Year",Campus!P290,IF($D$322="Base Year",Campus!P328)))))) -> 0 | AK24: =IF($D$132="Base Year",Campus!Q138,IF($D$170="Base Year",Campus!Q176,IF($D$208="Base Year",Campus!Q214,IF($D$246="Base Year",Campus!Q252,IF($D$284="Base Year",Campus!Q290,IF($D$322="Base Year",Campus!Q328)))))) -> 0 | AL24: =IF($D$132="Base Year",Campus!R138,IF($D$170="Base Year",Campus!R176,IF($D$208="Base Year",Campus!R214,IF($D$246="Base Year",Campus!R252,IF($D$284="Base Year",Campus!R290,IF($D$322="Base Year",Campus!R328)))))) -> 0 | AM24: =IF($D$132="Base Year",Campus!S138,IF($D$170="Base Year",Campus!S176,IF($D$208="Base Year",Campus!S214,IF($D$246="Base Year",Campus!S252,IF($D$284="Base Year",Campus!S290,IF($D$322="Base Year",Campus!S328)))))) ->  | AN24: =IF($D$132="Base Year",Campus!T138,IF($D$170="Base Year",Campus!T176,IF($D$208="Base Year",Campus!T214,IF($D$246="Base Year",Campus!T252,IF($D$284="Base Year",Campus!T290,IF($D$322="Base Year",Campus!T328)))))) ->  | AO24: =IF($D$132="Base Year",Campus!V138,IF($D$170="Base Year",Campus!V176,IF($D$208="Base Year",Campus!V214,IF($D$246="Base Year",Campus!V252,IF($D$284="Base Year",Campus!V290,IF($D$322="Base Year",Campus!V328)))))) ->  | AP24: =IF($D$132="Base Year",Campus!W138,IF($D$170="Base Year",Campus!W176,IF($D$208="Base Year",Campus!W214,IF($D$246="Base Year",Campus!W252,IF($D$284="Base Year",Campus!W290,IF($D$322="Base Year",Campus!W328)))))) -> 
Q25: =(E25*Coefficients!$B$10)+(Campus!F25*Coefficients!$D$10)+(Campus!G25*Coefficients!$F$10)+(Campus!H25*Coefficients!$H$10)+(Campus!I25*Coefficients!$J$10)+(Campus!J25*VLOOKUP($J$20,'Biodiesel Coefficients'!$J$13:$M$20,4,FALSE))+(Campus!K25*Coefficients!$L$10)+(Campus!L25*Coefficients!$N$10)+(M25*Inventory!$I$31) -> 0 | R25: =(E25*Coefficients!$C$10)+(Campus!F25*Coefficients!$E$10)+(Campus!G25*Coefficients!$G$10)+(Campus!H25*Coefficients!$I$10)+(Campus!I25*Coefficients!$K$10)+(Campus!J25*VLOOKUP($J$20,'Biodiesel Coefficients'!$J$13:$M$20,3,FALSE))+(Campus!K25*Coefficients!$M$10)+(Campus!L25*Coefficients!$O$10)+(M25*'Waste Coeff.'!$D$9)+(N25*'Waste Coeff.'!$D$9)+(Campus!O25*VLOOKUP(Campus!$O$20,'Fleets Coeff.'!$A$3:$D$10,4,FALSE)) -> 0 | AB25: =IF($D$132="Base Year",Campus!D139,IF($D$170="Base Year",Campus!D177,IF($D$208="Base Year",Campus!D215,IF($D$246="Base Year",Campus!D253,IF($D$284="Base Year",Campus!D291,IF($D$322="Base Year",Campus!D329)))))) -> 0 | AC25: =IF($D$132="Base Year",Campus!E139,IF($D$170="Base Year",Campus!E177,IF($D$208="Base Year",Campus!E215,IF($D$246="Base Year",Campus!E253,IF($D$284="Base Year",Campus!E291,IF($D$322="Base Year",Campus!E329)))))) -> 0 | AD25: =IF($D$132="Base Year",Campus!F139,IF($D$170="Base Year",Campus!F177,IF($D$208="Base Year",Campus!F215,IF($D$246="Base Year",Campus!F253,IF($D$284="Base Year",Campus!F291,IF($D$322="Base Year",Campus!F329)))))) -> 0 | AE25: =IF($D$132="Base Year",Campus!G139,IF($D$170="Base Year",Campus!G177,IF($D$208="Base Year",Campus!G215,IF($D$246="Base Year",Campus!G253,IF($D$284="Base Year",Campus!G291,IF($D$322="Base Year",Campus!G329)))))) -> 0 | AF25: =IF($D$132="Base Year",Campus!H139,IF($D$170="Base Year",Campus!H177,IF($D$208="Base Year",Campus!H215,IF($D$246="Base Year",Campus!H253,IF($D$284="Base Year",Campus!H291,IF($D$322="Base Year",Campus!H329)))))) -> 0 | AG25: =IF($D$132="Base Year",Campus!I139,IF($D$170="Base Year",Campus!I177,IF($D$208="Base Year",Campus!I215,IF($D$246="Base Year",Campus!I253,IF($D$284="Base Year",Campus!I291,IF($D$322="Base Year",Campus!I329)))))) -> 0 | AH25: =IF($D$132="Base Year",Campus!K139,IF($D$170="Base Year",Campus!K177,IF($D$208="Base Year",Campus!K215,IF($D$246="Base Year",Campus!K253,IF($D$284="Base Year",Campus!K291,IF($D$322="Base Year",Campus!K329)))))) -> 0 | AI25: =IF($D$132="Base Year",Campus!L139,IF($D$170="Base Year",Campus!L177,IF($D$208="Base Year",Campus!L215,IF($D$246="Base Year",Campus!L253,IF($D$284="Base Year",Campus!L291,IF($D$322="Base Year",Campus!L329)))))) -> 0 | AJ25: =IF($D$132="Base Year",Campus!P139,IF($D$170="Base Year",Campus!P177,IF($D$208="Base Year",Campus!P215,IF($D$246="Base Year",Campus!P253,IF($D$284="Base Year",Campus!P291,IF($D$322="Base Year",Campus!P329)))))) -> 0 | AK25: =IF($D$132="Base Year",Campus!Q139,IF($D$170="Base Year",Campus!Q177,IF($D$208="Base Year",Campus!Q215,IF($D$246="Base Year",Campus!Q253,IF($D$284="Base Year",Campus!Q291,IF($D$322="Base Year",Campus!Q329)))))) -> 0 | AL25: =IF($D$132="Base Year",Campus!R139,IF($D$170="Base Year",Campus!R177,IF($D$208="Base Year",Campus!R215,IF($D$246="Base Year",Campus!R253,IF($D$284="Base Year",Campus!R291,IF($D$322="Base Year",Campus!R329)))))) -> 0 | AM25: =IF($D$132="Base Year",Campus!S139,IF($D$170="Base Year",Campus!S177,IF($D$208="Base Year",Campus!S215,IF($D$246="Base Year",Campus!S253,IF($D$284="Base Year",Campus!S291,IF($D$322="Base Year",Campus!S329)))))) ->  | AN25: =IF($D$132="Base Year",Campus!T139,IF($D$170="Base Year",Campus!T177,IF($D$208="Base Year",Campus!T215,IF($D$246="Base Year",Campus!T253,IF($D$284="Base Year",Campus!T291,IF($D$322="Base Year",Campus!T329)))))) ->  | AO25: =IF($D$132="Base Year",Campus!V139,IF($D$170="Base Year",Campus!V177,IF($D$208="Base Year",Campus!V215,IF($D$246="Base Year",Campus!V253,IF($D$284="Base Year",Campus!V291,IF($D$322="Base Year",Campus!V329)))))) ->  | AP25: =IF($D$132="Base Year",Campus!W139,IF($D$170="Base Year",Campus!W177,IF($D$208="Base Year",Campus!W215,IF($D$246="Base Year",Campus!W253,IF($D$284="Base Year",Campus!W291,IF($D$322="Base Year",Campus!W329)))))) -> 
Q26: =(E26*Coefficients!$B$10)+(Campus!F26*Coefficients!$D$10)+(Campus!G26*Coefficients!$F$10)+(Campus!H26*Coefficients!$H$10)+(Campus!I26*Coefficients!$J$10)+(Campus!J26*VLOOKUP($J$20,'Biodiesel Coefficients'!$J$13:$M$20,4,FALSE))+(Campus!K26*Coefficients!$L$10)+(Campus!L26*Coefficients!$N$10)+(M26*Inventory!$I$31) -> 0 | R26: =(E26*Coefficients!$C$10)+(Campus!F26*Coefficients!$E$10)+(Campus!G26*Coefficients!$G$10)+(Campus!H26*Coefficients!$I$10)+(Campus!I26*Coefficients!$K$10)+(Campus!J26*VLOOKUP($J$20,'Biodiesel Coefficients'!$J$13:$M$20,3,FALSE))+(Campus!K26*Coefficients!$M$10)+(Campus!L26*Coefficients!$O$10)+(M26*'Waste Coeff.'!$D$9)+(N26*'Waste Coeff.'!$D$9)+(Campus!O26*VLOOKUP(Campus!$O$20,'Fleets Coeff.'!$A$3:$D$10,4,FALSE)) -> 0 | AB26: =IF($D$132="Base Year",Campus!D140,IF($D$170="Base Year",Campus!D178,IF($D$208="Base Year",Campus!D216,IF($D$246="Base Year",Campus!D254,IF($D$284="Base Year",Campus!D292,IF($D$322="Base Year",Campus!D330)))))) -> 0 | AC26: =IF($D$132="Base Year",Campus!E140,IF($D$170="Base Year",Campus!E178,IF($D$208="Base Year",Campus!E216,IF($D$246="Base Year",Campus!E254,IF($D$284="Base Year",Campus!E292,IF($D$322="Base Year",Campus!E330)))))) -> 0 | AD26: =IF($D$132="Base Year",Campus!F140,IF($D$170="Base Year",Campus!F178,IF($D$208="Base Year",Campus!F216,IF($D$246="Base Year",Campus!F254,IF($D$284="Base Year",Campus!F292,IF($D$322="Base Year",Campus!F330)))))) -> 0 | AE26: =IF($D$132="Base Year",Campus!G140,IF($D$170="Base Year",Campus!G178,IF($D$208="Base Year",Campus!G216,IF($D$246="Base Year",Campus!G254,IF($D$284="Base Year",Campus!G292,IF($D$322="Base Year",Campus!G330)))))) -> 0 | AF26: =IF($D$132="Base Year",Campus!H140,IF($D$170="Base Year",Campus!H178,IF($D$208="Base Year",Campus!H216,IF($D$246="Base Year",Campus!H254,IF($D$284="Base Year",Campus!H292,IF($D$322="Base Year",Campus!H330)))))) -> 0 | AG26: =IF($D$132="Base Year",Campus!I140,IF($D$170="Base Year",Campus!I178,IF($D$208="Base Year",Campus!I216,IF($D$246="Base Year",Campus!I254,IF($D$284="Base Year",Campus!I292,IF($D$322="Base Year",Campus!I330)))))) -> 0 | AH26: =IF($D$132="Base Year",Campus!K140,IF($D$170="Base Year",Campus!K178,IF($D$208="Base Year",Campus!K216,IF($D$246="Base Year",Campus!K254,IF($D$284="Base Year",Campus!K292,IF($D$322="Base Year",Campus!K330)))))) -> 0 | AI26: =IF($D$132="Base Year",Campus!L140,IF($D$170="Base Year",Campus!L178,IF($D$208="Base Year",Campus!L216,IF($D$246="Base Year",Campus!L254,IF($D$284="Base Year",Campus!L292,IF($D$322="Base Year",Campus!L330)))))) -> 0 | AJ26: =IF($D$132="Base Year",Campus!P140,IF($D$170="Base Year",Campus!P178,IF($D$208="Base Year",Campus!P216,IF($D$246="Base Year",Campus!P254,IF($D$284="Base Year",Campus!P292,IF($D$322="Base Year",Campus!P330)))))) -> 0 | AK26: =IF($D$132="Base Year",Campus!Q140,IF($D$170="Base Year",Campus!Q178,IF($D$208="Base Year",Campus!Q216,IF($D$246="Base Year",Campus!Q254,IF($D$284="Base Year",Campus!Q292,IF($D$322="Base Year",Campus!Q330)))))) -> 0 | AL26: =IF($D$132="Base Year",Campus!R140,IF($D$170="Base Year",Campus!R178,IF($D$208="Base Year",Campus!R216,IF($D$246="Base Year",Campus!R254,IF($D$284="Base Year",Campus!R292,IF($D$322="Base Year",Campus!R330)))))) -> 0 | AM26: =IF($D$132="Base Year",Campus!S140,IF($D$170="Base Year",Campus!S178,IF($D$208="Base Year",Campus!S216,IF($D$246="Base Year",Campus!S254,IF($D$284="Base Year",Campus!S292,IF($D$322="Base Year",Campus!S330)))))) ->  | AN26: =IF($D$132="Base Year",Campus!T140,IF($D$170="Base Year",Campus!T178,IF($D$208="Base Year",Campus!T216,IF($D$246="Base Year",Campus!T254,IF($D$284="Base Year",Campus!T292,IF($D$322="Base Year",Campus!T330)))))) ->  | AO26: =IF($D$132="Base Year",Campus!V140,IF($D$170="Base Year",Campus!V178,IF($D$208="Base Year",Campus!V216,IF($D$246="Base Year",Campus!V254,IF($D$284="Base Year",Campus!V292,IF($D$322="Base Year",Campus!V330)))))) ->  | AP26: =IF($D$132="Base Year",Campus!W140,IF($D$170="Base Year",Campus!W178,IF($D$208="Base Year",Campus!W216,IF($D$246="Base Year",Campus!W254,IF($D$284="Base Year",Campus!W292,IF($D$322="Base Year",Campus!W330)))))) -> 
Q27: =(E27*Coefficients!$B$10)+(Campus!F27*Coefficients!$D$10)+(Campus!G27*Coefficients!$F$10)+(Campus!H27*Coefficients!$H$10)+(Campus!I27*Coefficients!$J$10)+(Campus!J27*VLOOKUP($J$20,'Biodiesel Coefficients'!$J$13:$M$20,4,FALSE))+(Campus!K27*Coefficients!$L$10)+(Campus!L27*Coefficients!$N$10)+(M27*Inventory!$I$31) -> 0 | R27: =(E27*Coefficients!$C$10)+(Campus!F27*Coefficients!$E$10)+(Campus!G27*Coefficients!$G$10)+(Campus!H27*Coefficients!$I$10)+(Campus!I27*Coefficients!$K$10)+(Campus!J27*VLOOKUP($J$20,'Biodiesel Coefficients'!$J$13:$M$20,3,FALSE))+(Campus!K27*Coefficients!$M$10)+(Campus!L27*Coefficients!$O$10)+(M27*'Waste Coeff.'!$D$9)+(N27*'Waste Coeff.'!$D$9)+(Campus!O27*VLOOKUP(Campus!$O$20,'Fleets Coeff.'!$A$3:$D$10,4,FALSE)) -> 0 | AB27: =IF($D$132="Base Year",Campus!D141,IF($D$170="Base Year",Campus!D179,IF($D$208="Base Year",Campus!D217,IF($D$246="Base Year",Campus!D255,IF($D$284="Base Year",Campus!D293,IF($D$322="Base Year",Campus!D331)))))) -> 0 | AC27: =IF($D$132="Base Year",Campus!E141,IF($D$170="Base Year",Campus!E179,IF($D$208="Base Year",Campus!E217,IF($D$246="Base Year",Campus!E255,IF($D$284="Base Year",Campus!E293,IF($D$322="Base Year",Campus!E331)))))) -> 0 | AD27: =IF($D$132="Base Year",Campus!F141,IF($D$170="Base Year",Campus!F179,IF($D$208="Base Year",Campus!F217,IF($D$246="Base Year",Campus!F255,IF($D$284="Base Year",Campus!F293,IF($D$322="Base Year",Campus!F331)))))) -> 0 | AE27: =IF($D$132="Base Year",Campus!G141,IF($D$170="Base Year",Campus!G179,IF($D$208="Base Year",Campus!G217,IF($D$246="Base Year",Campus!G255,IF($D$284="Base Year",Campus!G293,IF($D$322="Base Year",Campus!G331)))))) -> 0 | AF27: =IF($D$132="Base Year",Campus!H141,IF($D$170="Base Year",Campus!H179,IF($D$208="Base Year",Campus!H217,IF($D$246="Base Year",Campus!H255,IF($D$284="Base Year",Campus!H293,IF($D$322="Base Year",Campus!H331)))))) -> 0 | AG27: =IF($D$132="Base Year",Campus!I141,IF($D$170="Base Year",Campus!I179,IF($D$208="Base Year",Campus!I217,IF($D$246="Base Year",Campus!I255,IF($D$284="Base Year",Campus!I293,IF($D$322="Base Year",Campus!I331)))))) -> 0 | AH27: =IF($D$132="Base Year",Campus!K141,IF($D$170="Base Year",Campus!K179,IF($D$208="Base Year",Campus!K217,IF($D$246="Base Year",Campus!K255,IF($D$284="Base Year",Campus!K293,IF($D$322="Base Year",Campus!K331)))))) -> 0 | AI27: =IF($D$132="Base Year",Campus!L141,IF($D$170="Base Year",Campus!L179,IF($D$208="Base Year",Campus!L217,IF($D$246="Base Year",Campus!L255,IF($D$284="Base Year",Campus!L293,IF($D$322="Base Year",Campus!L331)))))) -> 0 | AJ27: =IF($D$132="Base Year",Campus!P141,IF($D$170="Base Year",Campus!P179,IF($D$208="Base Year",Campus!P217,IF($D$246="Base Year",Campus!P255,IF($D$284="Base Year",Campus!P293,IF($D$322="Base Year",Campus!P331)))))) -> 0 | AK27: =IF($D$132="Base Year",Campus!Q141,IF($D$170="Base Year",Campus!Q179,IF($D$208="Base Year",Campus!Q217,IF($D$246="Base Year",Campus!Q255,IF($D$284="Base Year",Campus!Q293,IF($D$322="Base Year",Campus!Q331)))))) -> 0 | AL27: =IF($D$132="Base Year",Campus!R141,IF($D$170="Base Year",Campus!R179,IF($D$208="Base Year",Campus!R217,IF($D$246="Base Year",Campus!R255,IF($D$284="Base Year",Campus!R293,IF($D$322="Base Year",Campus!R331)))))) -> 0 | AM27: =IF($D$132="Base Year",Campus!S141,IF($D$170="Base Year",Campus!S179,IF($D$208="Base Year",Campus!S217,IF($D$246="Base Year",Campus!S255,IF($D$284="Base Year",Campus!S293,IF($D$322="Base Year",Campus!S331)))))) ->  | AN27: =IF($D$132="Base Year",Campus!T141,IF($D$170="Base Year",Campus!T179,IF($D$208="Base Year",Campus!T217,IF($D$246="Base Year",Campus!T255,IF($D$284="Base Year",Campus!T293,IF($D$322="Base Year",Campus!T331)))))) ->  | AO27: =IF($D$132="Base Year",Campus!V141,IF($D$170="Base Year",Campus!V179,IF($D$208="Base Year",Campus!V217,IF($D$246="Base Year",Campus!V255,IF($D$284="Base Year",Campus!V293,IF($D$322="Base Year",Campus!V331)))))) ->  | AP27: =IF($D$132="Base Year",Campus!W141,IF($D$170="Base Year",Campus!W179,IF($D$208="Base Year",Campus!W217,IF($D$246="Base Year",Campus!W255,IF($D$284="Base Year",Campus!W293,IF($D$322="Base Year",Campus!W331)))))) -> 
Q28: =(E28*Coefficients!$B$10)+(Campus!F28*Coefficients!$D$10)+(Campus!G28*Coefficients!$F$10)+(Campus!H28*Coefficients!$H$10)+(Campus!I28*Coefficients!$J$10)+(Campus!J28*VLOOKUP($J$20,'Biodiesel Coefficients'!$J$13:$M$20,4,FALSE))+(Campus!K28*Coefficients!$L$10)+(Campus!L28*Coefficients!$N$10)+(M28*Inventory!$I$31) -> 0 | R28: =(E28*Coefficients!$C$10)+(Campus!F28*Coefficients!$E$10)+(Campus!G28*Coefficients!$G$10)+(Campus!H28*Coefficients!$I$10)+(Campus!I28*Coefficients!$K$10)+(Campus!J28*VLOOKUP($J$20,'Biodiesel Coefficients'!$J$13:$M$20,3,FALSE))+(Campus!K28*Coefficients!$M$10)+(Campus!L28*Coefficients!$O$10)+(M28*'Waste Coeff.'!$D$9)+(N28*'Waste Coeff.'!$D$9)+(Campus!O28*VLOOKUP(Campus!$O$20,'Fleets Coeff.'!$A$3:$D$10,4,FALSE)) -> 0 | AB28: =IF($D$132="Base Year",Campus!D142,IF($D$170="Base Year",Campus!D180,IF($D$208="Base Year",Campus!D218,IF($D$246="Base Year",Campus!D256,IF($D$284="Base Year",Campus!D294,IF($D$322="Base Year",Campus!D332)))))) -> 0 | AC28: =IF($D$132="Base Year",Campus!E142,IF($D$170="Base Year",Campus!E180,IF($D$208="Base Year",Campus!E218,IF($D$246="Base Year",Campus!E256,IF($D$284="Base Year",Campus!E294,IF($D$322="Base Year",Campus!E332)))))) -> 0 | AD28: =IF($D$132="Base Year",Campus!F142,IF($D$170="Base Year",Campus!F180,IF($D$208="Base Year",Campus!F218,IF($D$246="Base Year",Campus!F256,IF($D$284="Base Year",Campus!F294,IF($D$322="Base Year",Campus!F332)))))) -> 0 | AE28: =IF($D$132="Base Year",Campus!G142,IF($D$170="Base Year",Campus!G180,IF($D$208="Base Year",Campus!G218,IF($D$246="Base Year",Campus!G256,IF($D$284="Base Year",Campus!G294,IF($D$322="Base Year",Campus!G332)))))) -> 0 | AF28: =IF($D$132="Base Year",Campus!H142,IF($D$170="Base Year",Campus!H180,IF($D$208="Base Year",Campus!H218,IF($D$246="Base Year",Campus!H256,IF($D$284="Base Year",Campus!H294,IF($D$322="Base Year",Campus!H332)))))) -> 0 | AG28: =IF($D$132="Base Year",Campus!I142,IF($D$170="Base Year",Campus!I180,IF($D$208="Base Year",Campus!I218,IF($D$246="Base Year",Campus!I256,IF($D$284="Base Year",Campus!I294,IF($D$322="Base Year",Campus!I332)))))) -> 0 | AH28: =IF($D$132="Base Year",Campus!K142,IF($D$170="Base Year",Campus!K180,IF($D$208="Base Year",Campus!K218,IF($D$246="Base Year",Campus!K256,IF($D$284="Base Year",Campus!K294,IF($D$322="Base Year",Campus!K332)))))) -> 0 | AI28: =IF($D$132="Base Year",Campus!L142,IF($D$170="Base Year",Campus!L180,IF($D$208="Base Year",Campus!L218,IF($D$246="Base Year",Campus!L256,IF($D$284="Base Year",Campus!L294,IF($D$322="Base Year",Campus!L332)))))) -> 0 | AJ28: =IF($D$132="Base Year",Campus!P142,IF($D$170="Base Year",Campus!P180,IF($D$208="Base Year",Campus!P218,IF($D$246="Base Year",Campus!P256,IF($D$284="Base Year",Campus!P294,IF($D$322="Base Year",Campus!P332)))))) -> 0 | AK28: =IF($D$132="Base Year",Campus!Q142,IF($D$170="Base Year",Campus!Q180,IF($D$208="Base Year",Campus!Q218,IF($D$246="Base Year",Campus!Q256,IF($D$284="Base Year",Campus!Q294,IF($D$322="Base Year",Campus!Q332)))))) -> 0 | AL28: =IF($D$132="Base Year",Campus!R142,IF($D$170="Base Year",Campus!R180,IF($D$208="Base Year",Campus!R218,IF($D$246="Base Year",Campus!R256,IF($D$284="Base Year",Campus!R294,IF($D$322="Base Year",Campus!R332)))))) -> 0 | AM28: =IF($D$132="Base Year",Campus!S142,IF($D$170="Base Year",Campus!S180,IF($D$208="Base Year",Campus!S218,IF($D$246="Base Year",Campus!S256,IF($D$284="Base Year",Campus!S294,IF($D$322="Base Year",Campus!S332)))))) ->  | AN28: =IF($D$132="Base Year",Campus!T142,IF($D$170="Base Year",Campus!T180,IF($D$208="Base Year",Campus!T218,IF($D$246="Base Year",Campus!T256,IF($D$284="Base Year",Campus!T294,IF($D$322="Base Year",Campus!T332)))))) ->  | AO28: =IF($D$132="Base Year",Campus!V142,IF($D$170="Base Year",Campus!V180,IF($D$208="Base Year",Campus!V218,IF($D$246="Base Year",Campus!V256,IF($D$284="Base Year",Campus!V294,IF($D$322="Base Year",Campus!V332)))))) ->  | AP28: =IF($D$132="Base Year",Campus!W142,IF($D$170="Base Year",Campus!W180,IF($D$208="Base Year",Campus!W218,IF($D$246="Base Year",Campus!W256,IF($D$284="Base Year",Campus!W294,IF($D$322="Base Year",Campus!W332)))))) -> 
Q29: =(E29*Coefficients!$B$10)+(Campus!F29*Coefficients!$D$10)+(Campus!G29*Coefficients!$F$10)+(Campus!H29*Coefficients!$H$10)+(Campus!I29*Coefficients!$J$10)+(Campus!J29*VLOOKUP($J$20,'Biodiesel Coefficients'!$J$13:$M$20,4,FALSE))+(Campus!K29*Coefficients!$L$10)+(Campus!L29*Coefficients!$N$10)+(M29*Inventory!$I$31) -> 0 | R29: =(E29*Coefficients!$C$10)+(Campus!F29*Coefficients!$E$10)+(Campus!G29*Coefficients!$G$10)+(Campus!H29*Coefficients!$I$10)+(Campus!I29*Coefficients!$K$10)+(Campus!J29*VLOOKUP($J$20,'Biodiesel Coefficients'!$J$13:$M$20,3,FALSE))+(Campus!K29*Coefficients!$M$10)+(Campus!L29*Coefficients!$O$10)+(M29*'Waste Coeff.'!$D$9)+(N29*'Waste Coeff.'!$D$9)+(Campus!O29*VLOOKUP(Campus!$O$20,'Fleets Coeff.'!$A$3:$D$10,4,FALSE)) -> 0 | AB29: =IF($D$132="Base Year",Campus!D143,IF($D$170="Base Year",Campus!D181,IF($D$208="Base Year",Campus!D219,IF($D$246="Base Year",Campus!D257,IF($D$284="Base Year",Campus!D295,IF($D$322="Base Year",Campus!D333)))))) -> 0 | AC29: =IF($D$132="Base Year",Campus!E143,IF($D$170="Base Year",Campus!E181,IF($D$208="Base Year",Campus!E219,IF($D$246="Base Year",Campus!E257,IF($D$284="Base Year",Campus!E295,IF($D$322="Base Year",Campus!E333)))))) -> 0 | AD29: =IF($D$132="Base Year",Campus!F143,IF($D$170="Base Year",Campus!F181,IF($D$208="Base Year",Campus!F219,IF($D$246="Base Year",Campus!F257,IF($D$284="Base Year",Campus!F295,IF($D$322="Base Year",Campus!F333)))))) -> 0 | AE29: =IF($D$132="Base Year",Campus!G143,IF($D$170="Base Year",Campus!G181,IF($D$208="Base Year",Campus!G219,IF($D$246="Base Year",Campus!G257,IF($D$284="Base Year",Campus!G295,IF($D$322="Base Year",Campus!G333)))))) -> 0 | AF29: =IF($D$132="Base Year",Campus!H143,IF($D$170="Base Year",Campus!H181,IF($D$208="Base Year",Campus!H219,IF($D$246="Base Year",Campus!H257,IF($D$284="Base Year",Campus!H295,IF($D$322="Base Year",Campus!H333)))))) -> 0 | AG29: =IF($D$132="Base Year",Campus!I143,IF($D$170="Base Year",Campus!I181,IF($D$208="Base Year",Campus!I219,IF($D$246="Base Year",Campus!I257,IF($D$284="Base Year",Campus!I295,IF($D$322="Base Year",Campus!I333)))))) -> 0 | AH29: =IF($D$132="Base Year",Campus!K143,IF($D$170="Base Year",Campus!K181,IF($D$208="Base Year",Campus!K219,IF($D$246="Base Year",Campus!K257,IF($D$284="Base Year",Campus!K295,IF($D$322="Base Year",Campus!K333)))))) -> 0 | AI29: =IF($D$132="Base Year",Campus!L143,IF($D$170="Base Year",Campus!L181,IF($D$208="Base Year",Campus!L219,IF($D$246="Base Year",Campus!L257,IF($D$284="Base Year",Campus!L295,IF($D$322="Base Year",Campus!L333)))))) -> 0 | AJ29: =IF($D$132="Base Year",Campus!P143,IF($D$170="Base Year",Campus!P181,IF($D$208="Base Year",Campus!P219,IF($D$246="Base Year",Campus!P257,IF($D$284="Base Year",Campus!P295,IF($D$322="Base Year",Campus!P333)))))) -> 0 | AK29: =IF($D$132="Base Year",Campus!Q143,IF($D$170="Base Year",Campus!Q181,IF($D$208="Base Year",Campus!Q219,IF($D$246="Base Year",Campus!Q257,IF($D$284="Base Year",Campus!Q295,IF($D$322="Base Year",Campus!Q333)))))) -> 0 | AL29: =IF($D$132="Base Year",Campus!R143,IF($D$170="Base Year",Campus!R181,IF($D$208="Base Year",Campus!R219,IF($D$246="Base Year",Campus!R257,IF($D$284="Base Year",Campus!R295,IF($D$322="Base Year",Campus!R333)))))) -> 0 | AM29: =IF($D$132="Base Year",Campus!S143,IF($D$170="Base Year",Campus!S181,IF($D$208="Base Year",Campus!S219,IF($D$246="Base Year",Campus!S257,IF($D$284="Base Year",Campus!S295,IF($D$322="Base Year",Campus!S333)))))) ->  | AN29: =IF($D$132="Base Year",Campus!T143,IF($D$170="Base Year",Campus!T181,IF($D$208="Base Year",Campus!T219,IF($D$246="Base Year",Campus!T257,IF($D$284="Base Year",Campus!T295,IF($D$322="Base Year",Campus!T333)))))) ->  | AO29: =IF($D$132="Base Year",Campus!V143,IF($D$170="Base Year",Campus!V181,IF($D$208="Base Year",Campus!V219,IF($D$246="Base Year",Campus!V257,IF($D$284="Base Year",Campus!V295,IF($D$322="Base Year",Campus!V333)))))) ->  | AP29: =IF($D$132="Base Year",Campus!W143,IF($D$170="Base Year",Campus!W181,IF($D$208="Base Year",Campus!W219,IF($D$246="Base Year",Campus!W257,IF($D$284="Base Year",Campus!W295,IF($D$322="Base Year",Campus!W333)))))) -> 
Q30: =(E30*Coefficients!$B$10)+(Campus!F30*Coefficients!$D$10)+(Campus!G30*Coefficients!$F$10)+(Campus!H30*Coefficients!$H$10)+(Campus!I30*Coefficients!$J$10)+(Campus!J30*VLOOKUP($J$20,'Biodiesel Coefficients'!$J$13:$M$20,4,FALSE))+(Campus!K30*Coefficients!$L$10)+(Campus!L30*Coefficients!$N$10)+(M30*Inventory!$I$31) -> 0 | R30: =(E30*Coefficients!$C$10)+(Campus!F30*Coefficients!$E$10)+(Campus!G30*Coefficients!$G$10)+(Campus!H30*Coefficients!$I$10)+(Campus!I30*Coefficients!$K$10)+(Campus!J30*VLOOKUP($J$20,'Biodiesel Coefficients'!$J$13:$M$20,3,FALSE))+(Campus!K30*Coefficients!$M$10)+(Campus!L30*Coefficients!$O$10)+(M30*'Waste Coeff.'!$D$9)+(N30*'Waste Coeff.'!$D$9)+(Campus!O30*VLOOKUP(Campus!$O$20,'Fleets Coeff.'!$A$3:$D$10,4,FALSE)) -> 0 | AB30: =IF($D$132="Base Year",Campus!D144,IF($D$170="Base Year",Campus!D182,IF($D$208="Base Year",Campus!D220,IF($D$246="Base Year",Campus!D258,IF($D$284="Base Year",Campus!D296,IF($D$322="Base Year",Campus!D334)))))) -> 0 | AC30: =IF($D$132="Base Year",Campus!E144,IF($D$170="Base Year",Campus!E182,IF($D$208="Base Year",Campus!E220,IF($D$246="Base Year",Campus!E258,IF($D$284="Base Year",Campus!E296,IF($D$322="Base Year",Campus!E334)))))) -> 0 | AD30: =IF($D$132="Base Year",Campus!F144,IF($D$170="Base Year",Campus!F182,IF($D$208="Base Year",Campus!F220,IF($D$246="Base Year",Campus!F258,IF($D$284="Base Year",Campus!F296,IF($D$322="Base Year",Campus!F334)))))) -> 0 | AE30: =IF($D$132="Base Year",Campus!G144,IF($D$170="Base Year",Campus!G182,IF($D$208="Base Year",Campus!G220,IF($D$246="Base Year",Campus!G258,IF($D$284="Base Year",Campus!G296,IF($D$322="Base Year",Campus!G334)))))) -> 0 | AF30: =IF($D$132="Base Year",Campus!H144,IF($D$170="Base Year",Campus!H182,IF($D$208="Base Year",Campus!H220,IF($D$246="Base Year",Campus!H258,IF($D$284="Base Year",Campus!H296,IF($D$322="Base Year",Campus!H334)))))) -> 0 | AG30: =IF($D$132="Base Year",Campus!I144,IF($D$170="Base Year",Campus!I182,IF($D$208="Base Year",Campus!I220,IF($D$246="Base Year",Campus!I258,IF($D$284="Base Year",Campus!I296,IF($D$322="Base Year",Campus!I334)))))) -> 0 | AH30: =IF($D$132="Base Year",Campus!K144,IF($D$170="Base Year",Campus!K182,IF($D$208="Base Year",Campus!K220,IF($D$246="Base Year",Campus!K258,IF($D$284="Base Year",Campus!K296,IF($D$322="Base Year",Campus!K334)))))) -> 0 | AI30: =IF($D$132="Base Year",Campus!L144,IF($D$170="Base Year",Campus!L182,IF($D$208="Base Year",Campus!L220,IF($D$246="Base Year",Campus!L258,IF($D$284="Base Year",Campus!L296,IF($D$322="Base Year",Campus!L334)))))) -> 0 | AJ30: =IF($D$132="Base Year",Campus!P144,IF($D$170="Base Year",Campus!P182,IF($D$208="Base Year",Campus!P220,IF($D$246="Base Year",Campus!P258,IF($D$284="Base Year",Campus!P296,IF($D$322="Base Year",Campus!P334)))))) -> 0 | AK30: =IF($D$132="Base Year",Campus!Q144,IF($D$170="Base Year",Campus!Q182,IF($D$208="Base Year",Campus!Q220,IF($D$246="Base Year",Campus!Q258,IF($D$284="Base Year",Campus!Q296,IF($D$322="Base Year",Campus!Q334)))))) -> 0 | AL30: =IF($D$132="Base Year",Campus!R144,IF($D$170="Base Year",Campus!R182,IF($D$208="Base Year",Campus!R220,IF($D$246="Base Year",Campus!R258,IF($D$284="Base Year",Campus!R296,IF($D$322="Base Year",Campus!R334)))))) -> 0 | AM30: =IF($D$132="Base Year",Campus!S144,IF($D$170="Base Year",Campus!S182,IF($D$208="Base Year",Campus!S220,IF($D$246="Base Year",Campus!S258,IF($D$284="Base Year",Campus!S296,IF($D$322="Base Year",Campus!S334)))))) ->  | AN30: =IF($D$132="Base Year",Campus!T144,IF($D$170="Base Year",Campus!T182,IF($D$208="Base Year",Campus!T220,IF($D$246="Base Year",Campus!T258,IF($D$284="Base Year",Campus!T296,IF($D$322="Base Year",Campus!T334)))))) ->  | AO30: =IF($D$132="Base Year",Campus!V144,IF($D$170="Base Year",Campus!V182,IF($D$208="Base Year",Campus!V220,IF($D$246="Base Year",Campus!V258,IF($D$284="Base Year",Campus!V296,IF($D$322="Base Year",Campus!V334)))))) ->  | AP30: =IF($D$132="Base Year",Campus!W144,IF($D$170="Base Year",Campus!W182,IF($D$208="Base Year",Campus!W220,IF($D$246="Base Year",Campus!W258,IF($D$284="Base Year",Campus!W296,IF($D$322="Base Year",Campus!W334)))))) -> 
Q31: =(E31*Coefficients!$B$10)+(Campus!F31*Coefficients!$D$10)+(Campus!G31*Coefficients!$F$10)+(Campus!H31*Coefficients!$H$10)+(Campus!I31*Coefficients!$J$10)+(Campus!J31*VLOOKUP($J$20,'Biodiesel Coefficients'!$J$13:$M$20,4,FALSE))+(Campus!K31*Coefficients!$L$10)+(Campus!L31*Coefficients!$N$10)+(M31*Inventory!$I$31) -> 0 | R31: =(E31*Coefficients!$C$10)+(Campus!F31*Coefficients!$E$10)+(Campus!G31*Coefficients!$G$10)+(Campus!H31*Coefficients!$I$10)+(Campus!I31*Coefficients!$K$10)+(Campus!J31*VLOOKUP($J$20,'Biodiesel Coefficients'!$J$13:$M$20,3,FALSE))+(Campus!K31*Coefficients!$M$10)+(Campus!L31*Coefficients!$O$10)+(M31*'Waste Coeff.'!$D$9)+(N31*'Waste Coeff.'!$D$9)+(Campus!O31*VLOOKUP(Campus!$O$20,'Fleets Coeff.'!$A$3:$D$10,4,FALSE)) -> 0 | AB31: =IF($D$132="Base Year",Campus!D145,IF($D$170="Base Year",Campus!D183,IF($D$208="Base Year",Campus!D221,IF($D$246="Base Year",Campus!D259,IF($D$284="Base Year",Campus!D297,IF($D$322="Base Year",Campus!D335)))))) -> 0 | AC31: =IF($D$132="Base Year",Campus!E145,IF($D$170="Base Year",Campus!E183,IF($D$208="Base Year",Campus!E221,IF($D$246="Base Year",Campus!E259,IF($D$284="Base Year",Campus!E297,IF($D$322="Base Year",Campus!E335)))))) -> 0 | AD31: =IF($D$132="Base Year",Campus!F145,IF($D$170="Base Year",Campus!F183,IF($D$208="Base Year",Campus!F221,IF($D$246="Base Year",Campus!F259,IF($D$284="Base Year",Campus!F297,IF($D$322="Base Year",Campus!F335)))))) -> 0 | AE31: =IF($D$132="Base Year",Campus!G145,IF($D$170="Base Year",Campus!G183,IF($D$208="Base Year",Campus!G221,IF($D$246="Base Year",Campus!G259,IF($D$284="Base Year",Campus!G297,IF($D$322="Base Year",Campus!G335)))))) -> 0 | AF31: =IF($D$132="Base Year",Campus!H145,IF($D$170="Base Year",Campus!H183,IF($D$208="Base Year",Campus!H221,IF($D$246="Base Year",Campus!H259,IF($D$284="Base Year",Campus!H297,IF($D$322="Base Year",Campus!H335)))))) -> 0 | AG31: =IF($D$132="Base Year",Campus!I145,IF($D$170="Base Year",Campus!I183,IF($D$208="Base Year",Campus!I221,IF($D$246="Base Year",Campus!I259,IF($D$284="Base Year",Campus!I297,IF($D$322="Base Year",Campus!I335)))))) -> 0 | AH31: =IF($D$132="Base Year",Campus!K145,IF($D$170="Base Year",Campus!K183,IF($D$208="Base Year",Campus!K221,IF($D$246="Base Year",Campus!K259,IF($D$284="Base Year",Campus!K297,IF($D$322="Base Year",Campus!K335)))))) -> 0 | AI31: =IF($D$132="Base Year",Campus!L145,IF($D$170="Base Year",Campus!L183,IF($D$208="Base Year",Campus!L221,IF($D$246="Base Year",Campus!L259,IF($D$284="Base Year",Campus!L297,IF($D$322="Base Year",Campus!L335)))))) -> 0 | AJ31: =IF($D$132="Base Year",Campus!P145,IF($D$170="Base Year",Campus!P183,IF($D$208="Base Year",Campus!P221,IF($D$246="Base Year",Campus!P259,IF($D$284="Base Year",Campus!P297,IF($D$322="Base Year",Campus!P335)))))) -> 0 | AK31: =IF($D$132="Base Year",Campus!Q145,IF($D$170="Base Year",Campus!Q183,IF($D$208="Base Year",Campus!Q221,IF($D$246="Base Year",Campus!Q259,IF($D$284="Base Year",Campus!Q297,IF($D$322="Base Year",Campus!Q335)))))) -> 0 | AL31: =IF($D$132="Base Year",Campus!R145,IF($D$170="Base Year",Campus!R183,IF($D$208="Base Year",Campus!R221,IF($D$246="Base Year",Campus!R259,IF($D$284="Base Year",Campus!R297,IF($D$322="Base Year",Campus!R335)))))) -> 0 | AM31: =IF($D$132="Base Year",Campus!S145,IF($D$170="Base Year",Campus!S183,IF($D$208="Base Year",Campus!S221,IF($D$246="Base Year",Campus!S259,IF($D$284="Base Year",Campus!S297,IF($D$322="Base Year",Campus!S335)))))) ->  | AN31: =IF($D$132="Base Year",Campus!T145,IF($D$170="Base Year",Campus!T183,IF($D$208="Base Year",Campus!T221,IF($D$246="Base Year",Campus!T259,IF($D$284="Base Year",Campus!T297,IF($D$322="Base Year",Campus!T335)))))) ->  | AO31: =IF($D$132="Base Year",Campus!V145,IF($D$170="Base Year",Campus!V183,IF($D$208="Base Year",Campus!V221,IF($D$246="Base Year",Campus!V259,IF($D$284="Base Year",Campus!V297,IF($D$322="Base Year",Campus!V335)))))) ->  | AP31: =IF($D$132="Base Year",Campus!W145,IF($D$170="Base Year",Campus!W183,IF($D$208="Base Year",Campus!W221,IF($D$246="Base Year",Campus!W259,IF($D$284="Base Year",Campus!W297,IF($D$322="Base Year",Campus!W335)))))) -> 
Q32: =(E32*Coefficients!$B$10)+(Campus!F32*Coefficients!$D$10)+(Campus!G32*Coefficients!$F$10)+(Campus!H32*Coefficients!$H$10)+(Campus!I32*Coefficients!$J$10)+(Campus!J32*VLOOKUP($J$20,'Biodiesel Coefficients'!$J$13:$M$20,4,FALSE))+(Campus!K32*Coefficients!$L$10)+(Campus!L32*Coefficients!$N$10)+(M32*Inventory!$I$31) -> 0 | R32: =(E32*Coefficients!$C$10)+(Campus!F32*Coefficients!$E$10)+(Campus!G32*Coefficients!$G$10)+(Campus!H32*Coefficients!$I$10)+(Campus!I32*Coefficients!$K$10)+(Campus!J32*VLOOKUP($J$20,'Biodiesel Coefficients'!$J$13:$M$20,3,FALSE))+(Campus!K32*Coefficients!$M$10)+(Campus!L32*Coefficients!$O$10)+(M32*'Waste Coeff.'!$D$9)+(N32*'Waste Coeff.'!$D$9)+(Campus!O32*VLOOKUP(Campus!$O$20,'Fleets Coeff.'!$A$3:$D$10,4,FALSE)) -> 0 | AB32: =IF($D$132="Base Year",Campus!D146,IF($D$170="Base Year",Campus!D184,IF($D$208="Base Year",Campus!D222,IF($D$246="Base Year",Campus!D260,IF($D$284="Base Year",Campus!D298,IF($D$322="Base Year",Campus!D336)))))) -> 0 | AC32: =IF($D$132="Base Year",Campus!E146,IF($D$170="Base Year",Campus!E184,IF($D$208="Base Year",Campus!E222,IF($D$246="Base Year",Campus!E260,IF($D$284="Base Year",Campus!E298,IF($D$322="Base Year",Campus!E336)))))) -> 0 | AD32: =IF($D$132="Base Year",Campus!F146,IF($D$170="Base Year",Campus!F184,IF($D$208="Base Year",Campus!F222,IF($D$246="Base Year",Campus!F260,IF($D$284="Base Year",Campus!F298,IF($D$322="Base Year",Campus!F336)))))) -> 0 | AE32: =IF($D$132="Base Year",Campus!G146,IF($D$170="Base Year",Campus!G184,IF($D$208="Base Year",Campus!G222,IF($D$246="Base Year",Campus!G260,IF($D$284="Base Year",Campus!G298,IF($D$322="Base Year",Campus!G336)))))) -> 0 | AF32: =IF($D$132="Base Year",Campus!H146,IF($D$170="Base Year",Campus!H184,IF($D$208="Base Year",Campus!H222,IF($D$246="Base Year",Campus!H260,IF($D$284="Base Year",Campus!H298,IF($D$322="Base Year",Campus!H336)))))) -> 0 | AG32: =IF($D$132="Base Year",Campus!I146,IF($D$170="Base Year",Campus!I184,IF($D$208="Base Year",Campus!I222,IF($D$246="Base Year",Campus!I260,IF($D$284="Base Year",Campus!I298,IF($D$322="Base Year",Campus!I336)))))) -> 0 | AH32: =IF($D$132="Base Year",Campus!K146,IF($D$170="Base Year",Campus!K184,IF($D$208="Base Year",Campus!K222,IF($D$246="Base Year",Campus!K260,IF($D$284="Base Year",Campus!K298,IF($D$322="Base Year",Campus!K336)))))) -> 0 | AI32: =IF($D$132="Base Year",Campus!L146,IF($D$170="Base Year",Campus!L184,IF($D$208="Base Year",Campus!L222,IF($D$246="Base Year",Campus!L260,IF($D$284="Base Year",Campus!L298,IF($D$322="Base Year",Campus!L336)))))) -> 0 | AJ32: =IF($D$132="Base Year",Campus!P146,IF($D$170="Base Year",Campus!P184,IF($D$208="Base Year",Campus!P222,IF($D$246="Base Year",Campus!P260,IF($D$284="Base Year",Campus!P298,IF($D$322="Base Year",Campus!P336)))))) -> 0 | AK32: =IF($D$132="Base Year",Campus!Q146,IF($D$170="Base Year",Campus!Q184,IF($D$208="Base Year",Campus!Q222,IF($D$246="Base Year",Campus!Q260,IF($D$284="Base Year",Campus!Q298,IF($D$322="Base Year",Campus!Q336)))))) -> 0 | AL32: =IF($D$132="Base Year",Campus!R146,IF($D$170="Base Year",Campus!R184,IF($D$208="Base Year",Campus!R222,IF($D$246="Base Year",Campus!R260,IF($D$284="Base Year",Campus!R298,IF($D$322="Base Year",Campus!R336)))))) -> 0 | AM32: =IF($D$132="Base Year",Campus!S146,IF($D$170="Base Year",Campus!S184,IF($D$208="Base Year",Campus!S222,IF($D$246="Base Year",Campus!S260,IF($D$284="Base Year",Campus!S298,IF($D$322="Base Year",Campus!S336)))))) ->  | AN32: =IF($D$132="Base Year",Campus!T146,IF($D$170="Base Year",Campus!T184,IF($D$208="Base Year",Campus!T222,IF($D$246="Base Year",Campus!T260,IF($D$284="Base Year",Campus!T298,IF($D$322="Base Year",Campus!T336)))))) ->  | AO32: =IF($D$132="Base Year",Campus!V146,IF($D$170="Base Year",Campus!V184,IF($D$208="Base Year",Campus!V222,IF($D$246="Base Year",Campus!V260,IF($D$284="Base Year",Campus!V298,IF($D$322="Base Year",Campus!V336)))))) ->  | AP32: =IF($D$132="Base Year",Campus!W146,IF($D$170="Base Year",Campus!W184,IF($D$208="Base Year",Campus!W222,IF($D$246="Base Year",Campus!W260,IF($D$284="Base Year",Campus!W298,IF($D$322="Base Year",Campus!W336)))))) -> 
Q33: =(E33*Coefficients!$B$10)+(Campus!F33*Coefficients!$D$10)+(Campus!G33*Coefficients!$F$10)+(Campus!H33*Coefficients!$H$10)+(Campus!I33*Coefficients!$J$10)+(Campus!J33*VLOOKUP($J$20,'Biodiesel Coefficients'!$J$13:$M$20,4,FALSE))+(Campus!K33*Coefficients!$L$10)+(Campus!L33*Coefficients!$N$10)+(M33*Inventory!$I$31) -> 0 | R33: =(E33*Coefficients!$C$10)+(Campus!F33*Coefficients!$E$10)+(Campus!G33*Coefficients!$G$10)+(Campus!H33*Coefficients!$I$10)+(Campus!I33*Coefficients!$K$10)+(Campus!J33*VLOOKUP($J$20,'Biodiesel Coefficients'!$J$13:$M$20,3,FALSE))+(Campus!K33*Coefficients!$M$10)+(Campus!L33*Coefficients!$O$10)+(M33*'Waste Coeff.'!$D$9)+(N33*'Waste Coeff.'!$D$9)+(Campus!O33*VLOOKUP(Campus!$O$20,'Fleets Coeff.'!$A$3:$D$10,4,FALSE)) -> 0 | AB33: =IF($D$132="Base Year",Campus!D147,IF($D$170="Base Year",Campus!D185,IF($D$208="Base Year",Campus!D223,IF($D$246="Base Year",Campus!D261,IF($D$284="Base Year",Campus!D299,IF($D$322="Base Year",Campus!D337)))))) -> 0 | AC33: =IF($D$132="Base Year",Campus!E147,IF($D$170="Base Year",Campus!E185,IF($D$208="Base Year",Campus!E223,IF($D$246="Base Year",Campus!E261,IF($D$284="Base Year",Campus!E299,IF($D$322="Base Year",Campus!E337)))))) -> 0 | AD33: =IF($D$132="Base Year",Campus!F147,IF($D$170="Base Year",Campus!F185,IF($D$208="Base Year",Campus!F223,IF($D$246="Base Year",Campus!F261,IF($D$284="Base Year",Campus!F299,IF($D$322="Base Year",Campus!F337)))))) -> 0 | AE33: =IF($D$132="Base Year",Campus!G147,IF($D$170="Base Year",Campus!G185,IF($D$208="Base Year",Campus!G223,IF($D$246="Base Year",Campus!G261,IF($D$284="Base Year",Campus!G299,IF($D$322="Base Year",Campus!G337)))))) -> 0 | AF33: =IF($D$132="Base Year",Campus!H147,IF($D$170="Base Year",Campus!H185,IF($D$208="Base Year",Campus!H223,IF($D$246="Base Year",Campus!H261,IF($D$284="Base Year",Campus!H299,IF($D$322="Base Year",Campus!H337)))))) -> 0 | AG33: =IF($D$132="Base Year",Campus!I147,IF($D$170="Base Year",Campus!I185,IF($D$208="Base Year",Campus!I223,IF($D$246="Base Year",Campus!I261,IF($D$284="Base Year",Campus!I299,IF($D$322="Base Year",Campus!I337)))))) -> 0 | AH33: =IF($D$132="Base Year",Campus!K147,IF($D$170="Base Year",Campus!K185,IF($D$208="Base Year",Campus!K223,IF($D$246="Base Year",Campus!K261,IF($D$284="Base Year",Campus!K299,IF($D$322="Base Year",Campus!K337)))))) -> 0 | AI33: =IF($D$132="Base Year",Campus!L147,IF($D$170="Base Year",Campus!L185,IF($D$208="Base Year",Campus!L223,IF($D$246="Base Year",Campus!L261,IF($D$284="Base Year",Campus!L299,IF($D$322="Base Year",Campus!L337)))))) -> 0 | AJ33: =IF($D$132="Base Year",Campus!P147,IF($D$170="Base Year",Campus!P185,IF($D$208="Base Year",Campus!P223,IF($D$246="Base Year",Campus!P261,IF($D$284="Base Year",Campus!P299,IF($D$322="Base Year",Campus!P337)))))) -> 0 | AK33: =IF($D$132="Base Year",Campus!Q147,IF($D$170="Base Year",Campus!Q185,IF($D$208="Base Year",Campus!Q223,IF($D$246="Base Year",Campus!Q261,IF($D$284="Base Year",Campus!Q299,IF($D$322="Base Year",Campus!Q337)))))) -> 0 | AL33: =IF($D$132="Base Year",Campus!R147,IF($D$170="Base Year",Campus!R185,IF($D$208="Base Year",Campus!R223,IF($D$246="Base Year",Campus!R261,IF($D$284="Base Year",Campus!R299,IF($D$322="Base Year",Campus!R337)))))) -> 0 | AM33: =IF($D$132="Base Year",Campus!S147,IF($D$170="Base Year",Campus!S185,IF($D$208="Base Year",Campus!S223,IF($D$246="Base Year",Campus!S261,IF($D$284="Base Year",Campus!S299,IF($D$322="Base Year",Campus!S337)))))) ->  | AN33: =IF($D$132="Base Year",Campus!T147,IF($D$170="Base Year",Campus!T185,IF($D$208="Base Year",Campus!T223,IF($D$246="Base Year",Campus!T261,IF($D$284="Base Year",Campus!T299,IF($D$322="Base Year",Campus!T337)))))) ->  | AO33: =IF($D$132="Base Year",Campus!V147,IF($D$170="Base Year",Campus!V185,IF($D$208="Base Year",Campus!V223,IF($D$246="Base Year",Campus!V261,IF($D$284="Base Year",Campus!V299,IF($D$322="Base Year",Campus!V337)))))) ->  | AP33: =IF($D$132="Base Year",Campus!W147,IF($D$170="Base Year",Campus!W185,IF($D$208="Base Year",Campus!W223,IF($D$246="Base Year",Campus!W261,IF($D$284="Base Year",Campus!W299,IF($D$322="Base Year",Campus!W337)))))) -> 
Q34: =(E34*Coefficients!$B$10)+(Campus!F34*Coefficients!$D$10)+(Campus!G34*Coefficients!$F$10)+(Campus!H34*Coefficients!$H$10)+(Campus!I34*Coefficients!$J$10)+(Campus!J34*VLOOKUP($J$20,'Biodiesel Coefficients'!$J$13:$M$20,4,FALSE))+(Campus!K34*Coefficients!$L$10)+(Campus!L34*Coefficients!$N$10)+(M34*Inventory!$I$31) -> 0 | R34: =(E34*Coefficients!$C$10)+(Campus!F34*Coefficients!$E$10)+(Campus!G34*Coefficients!$G$10)+(Campus!H34*Coefficients!$I$10)+(Campus!I34*Coefficients!$K$10)+(Campus!J34*VLOOKUP($J$20,'Biodiesel Coefficients'!$J$13:$M$20,3,FALSE))+(Campus!K34*Coefficients!$M$10)+(Campus!L34*Coefficients!$O$10)+(M34*'Waste Coeff.'!$D$9)+(N34*'Waste Coeff.'!$D$9)+(Campus!O34*VLOOKUP(Campus!$O$20,'Fleets Coeff.'!$A$3:$D$10,4,FALSE)) -> 0 | AB34: =IF($D$132="Base Year",Campus!D148,IF($D$170="Base Year",Campus!D186,IF($D$208="Base Year",Campus!D224,IF($D$246="Base Year",Campus!D262,IF($D$284="Base Year",Campus!D300,IF($D$322="Base Year",Campus!D338)))))) -> 0 | AC34: =IF($D$132="Base Year",Campus!E148,IF($D$170="Base Year",Campus!E186,IF($D$208="Base Year",Campus!E224,IF($D$246="Base Year",Campus!E262,IF($D$284="Base Year",Campus!E300,IF($D$322="Base Year",Campus!E338)))))) -> 0 | AD34: =IF($D$132="Base Year",Campus!F148,IF($D$170="Base Year",Campus!F186,IF($D$208="Base Year",Campus!F224,IF($D$246="Base Year",Campus!F262,IF($D$284="Base Year",Campus!F300,IF($D$322="Base Year",Campus!F338)))))) -> 0 | AE34: =IF($D$132="Base Year",Campus!G148,IF($D$170="Base Year",Campus!G186,IF($D$208="Base Year",Campus!G224,IF($D$246="Base Year",Campus!G262,IF($D$284="Base Year",Campus!G300,IF($D$322="Base Year",Campus!G338)))))) -> 0 | AF34: =IF($D$132="Base Year",Campus!H148,IF($D$170="Base Year",Campus!H186,IF($D$208="Base Year",Campus!H224,IF($D$246="Base Year",Campus!H262,IF($D$284="Base Year",Campus!H300,IF($D$322="Base Year",Campus!H338)))))) -> 0 | AG34: =IF($D$132="Base Year",Campus!I148,IF($D$170="Base Year",Campus!I186,IF($D$208="Base Year",Campus!I224,IF($D$246="Base Year",Campus!I262,IF($D$284="Base Year",Campus!I300,IF($D$322="Base Year",Campus!I338)))))) -> 0 | AH34: =IF($D$132="Base Year",Campus!K148,IF($D$170="Base Year",Campus!K186,IF($D$208="Base Year",Campus!K224,IF($D$246="Base Year",Campus!K262,IF($D$284="Base Year",Campus!K300,IF($D$322="Base Year",Campus!K338)))))) -> 0 | AI34: =IF($D$132="Base Year",Campus!L148,IF($D$170="Base Year",Campus!L186,IF($D$208="Base Year",Campus!L224,IF($D$246="Base Year",Campus!L262,IF($D$284="Base Year",Campus!L300,IF($D$322="Base Year",Campus!L338)))))) -> 0 | AJ34: =IF($D$132="Base Year",Campus!P148,IF($D$170="Base Year",Campus!P186,IF($D$208="Base Year",Campus!P224,IF($D$246="Base Year",Campus!P262,IF($D$284="Base Year",Campus!P300,IF($D$322="Base Year",Campus!P338)))))) -> 0 | AK34: =IF($D$132="Base Year",Campus!Q148,IF($D$170="Base Year",Campus!Q186,IF($D$208="Base Year",Campus!Q224,IF($D$246="Base Year",Campus!Q262,IF($D$284="Base Year",Campus!Q300,IF($D$322="Base Year",Campus!Q338)))))) -> 0 | AL34: =IF($D$132="Base Year",Campus!R148,IF($D$170="Base Year",Campus!R186,IF($D$208="Base Year",Campus!R224,IF($D$246="Base Year",Campus!R262,IF($D$284="Base Year",Campus!R300,IF($D$322="Base Year",Campus!R338)))))) -> 0 | AM34: =IF($D$132="Base Year",Campus!S148,IF($D$170="Base Year",Campus!S186,IF($D$208="Base Year",Campus!S224,IF($D$246="Base Year",Campus!S262,IF($D$284="Base Year",Campus!S300,IF($D$322="Base Year",Campus!S338)))))) ->  | AN34: =IF($D$132="Base Year",Campus!T148,IF($D$170="Base Year",Campus!T186,IF($D$208="Base Year",Campus!T224,IF($D$246="Base Year",Campus!T262,IF($D$284="Base Year",Campus!T300,IF($D$322="Base Year",Campus!T338)))))) ->  | AO34: =IF($D$132="Base Year",Campus!V148,IF($D$170="Base Year",Campus!V186,IF($D$208="Base Year",Campus!V224,IF($D$246="Base Year",Campus!V262,IF($D$284="Base Year",Campus!V300,IF($D$322="Base Year",Campus!V338)))))) ->  | AP34: =IF($D$132="Base Year",Campus!W148,IF($D$170="Base Year",Campus!W186,IF($D$208="Base Year",Campus!W224,IF($D$246="Base Year",Campus!W262,IF($D$284="Base Year",Campus!W300,IF($D$322="Base Year",Campus!W338)))))) -> 
Q35: =(E35*Coefficients!$B$10)+(Campus!F35*Coefficients!$D$10)+(Campus!G35*Coefficients!$F$10)+(Campus!H35*Coefficients!$H$10)+(Campus!I35*Coefficients!$J$10)+(Campus!J35*VLOOKUP($J$20,'Biodiesel Coefficients'!$J$13:$M$20,4,FALSE))+(Campus!K35*Coefficients!$L$10)+(Campus!L35*Coefficients!$N$10)+(M35*Inventory!$I$31) -> 0 | R35: =(E35*Coefficients!$C$10)+(Campus!F35*Coefficients!$E$10)+(Campus!G35*Coefficients!$G$10)+(Campus!H35*Coefficients!$I$10)+(Campus!I35*Coefficients!$K$10)+(Campus!J35*VLOOKUP($J$20,'Biodiesel Coefficients'!$J$13:$M$20,3,FALSE))+(Campus!K35*Coefficients!$M$10)+(Campus!L35*Coefficients!$O$10)+(M35*'Waste Coeff.'!$D$9)+(N35*'Waste Coeff.'!$D$9)+(Campus!O35*VLOOKUP(Campus!$O$20,'Fleets Coeff.'!$A$3:$D$10,4,FALSE)) -> 0 | AB35: =IF($D$132="Base Year",Campus!D149,IF($D$170="Base Year",Campus!D187,IF($D$208="Base Year",Campus!D225,IF($D$246="Base Year",Campus!D263,IF($D$284="Base Year",Campus!D301,IF($D$322="Base Year",Campus!D339)))))) -> 0 | AC35: =IF($D$132="Base Year",Campus!E149,IF($D$170="Base Year",Campus!E187,IF($D$208="Base Year",Campus!E225,IF($D$246="Base Year",Campus!E263,IF($D$284="Base Year",Campus!E301,IF($D$322="Base Year",Campus!E339)))))) -> 0 | AD35: =IF($D$132="Base Year",Campus!F149,IF($D$170="Base Year",Campus!F187,IF($D$208="Base Year",Campus!F225,IF($D$246="Base Year",Campus!F263,IF($D$284="Base Year",Campus!F301,IF($D$322="Base Year",Campus!F339)))))) -> 0 | AE35: =IF($D$132="Base Year",Campus!G149,IF($D$170="Base Year",Campus!G187,IF($D$208="Base Year",Campus!G225,IF($D$246="Base Year",Campus!G263,IF($D$284="Base Year",Campus!G301,IF($D$322="Base Year",Campus!G339)))))) -> 0 | AF35: =IF($D$132="Base Year",Campus!H149,IF($D$170="Base Year",Campus!H187,IF($D$208="Base Year",Campus!H225,IF($D$246="Base Year",Campus!H263,IF($D$284="Base Year",Campus!H301,IF($D$322="Base Year",Campus!H339)))))) -> 0 | AG35: =IF($D$132="Base Year",Campus!I149,IF($D$170="Base Year",Campus!I187,IF($D$208="Base Year",Campus!I225,IF($D$246="Base Year",Campus!I263,IF($D$284="Base Year",Campus!I301,IF($D$322="Base Year",Campus!I339)))))) -> 0 | AH35: =IF($D$132="Base Year",Campus!K149,IF($D$170="Base Year",Campus!K187,IF($D$208="Base Year",Campus!K225,IF($D$246="Base Year",Campus!K263,IF($D$284="Base Year",Campus!K301,IF($D$322="Base Year",Campus!K339)))))) -> 0 | AI35: =IF($D$132="Base Year",Campus!L149,IF($D$170="Base Year",Campus!L187,IF($D$208="Base Year",Campus!L225,IF($D$246="Base Year",Campus!L263,IF($D$284="Base Year",Campus!L301,IF($D$322="Base Year",Campus!L339)))))) -> 0 | AJ35: =IF($D$132="Base Year",Campus!P149,IF($D$170="Base Year",Campus!P187,IF($D$208="Base Year",Campus!P225,IF($D$246="Base Year",Campus!P263,IF($D$284="Base Year",Campus!P301,IF($D$322="Base Year",Campus!P339)))))) -> 0 | AK35: =IF($D$132="Base Year",Campus!Q149,IF($D$170="Base Year",Campus!Q187,IF($D$208="Base Year",Campus!Q225,IF($D$246="Base Year",Campus!Q263,IF($D$284="Base Year",Campus!Q301,IF($D$322="Base Year",Campus!Q339)))))) -> 0 | AL35: =IF($D$132="Base Year",Campus!R149,IF($D$170="Base Year",Campus!R187,IF($D$208="Base Year",Campus!R225,IF($D$246="Base Year",Campus!R263,IF($D$284="Base Year",Campus!R301,IF($D$322="Base Year",Campus!R339)))))) -> 0 | AM35: =IF($D$132="Base Year",Campus!S149,IF($D$170="Base Year",Campus!S187,IF($D$208="Base Year",Campus!S225,IF($D$246="Base Year",Campus!S263,IF($D$284="Base Year",Campus!S301,IF($D$322="Base Year",Campus!S339)))))) ->  | AN35: =IF($D$132="Base Year",Campus!T149,IF($D$170="Base Year",Campus!T187,IF($D$208="Base Year",Campus!T225,IF($D$246="Base Year",Campus!T263,IF($D$284="Base Year",Campus!T301,IF($D$322="Base Year",Campus!T339)))))) ->  | AO35: =IF($D$132="Base Year",Campus!V149,IF($D$170="Base Year",Campus!V187,IF($D$208="Base Year",Campus!V225,IF($D$246="Base Year",Campus!V263,IF($D$284="Base Year",Campus!V301,IF($D$322="Base Year",Campus!V339)))))) ->  | AP35: =IF($D$132="Base Year",Campus!W149,IF($D$170="Base Year",Campus!W187,IF($D$208="Base Year",Campus!W225,IF($D$246="Base Year",Campus!W263,IF($D$284="Base Year",Campus!W301,IF($D$322="Base Year",Campus!W339)))))) -> 
Q36: =(E36*Coefficients!$B$10)+(Campus!F36*Coefficients!$D$10)+(Campus!G36*Coefficients!$F$10)+(Campus!H36*Coefficients!$H$10)+(Campus!I36*Coefficients!$J$10)+(Campus!J36*VLOOKUP($J$20,'Biodiesel Coefficients'!$J$13:$M$20,4,FALSE))+(Campus!K36*Coefficients!$L$10)+(Campus!L36*Coefficients!$N$10)+(M36*Inventory!$I$31) -> 0 | R36: =(E36*Coefficients!$C$10)+(Campus!F36*Coefficients!$E$10)+(Campus!G36*Coefficients!$G$10)+(Campus!H36*Coefficients!$I$10)+(Campus!I36*Coefficients!$K$10)+(Campus!J36*VLOOKUP($J$20,'Biodiesel Coefficients'!$J$13:$M$20,3,FALSE))+(Campus!K36*Coefficients!$M$10)+(Campus!L36*Coefficients!$O$10)+(M36*'Waste Coeff.'!$D$9)+(N36*'Waste Coeff.'!$D$9)+(Campus!O36*VLOOKUP(Campus!$O$20,'Fleets Coeff.'!$A$3:$D$10,4,FALSE)) -> 0 | AB36: =IF($D$132="Base Year",Campus!D150,IF($D$170="Base Year",Campus!D188,IF($D$208="Base Year",Campus!D226,IF($D$246="Base Year",Campus!D264,IF($D$284="Base Year",Campus!D302,IF($D$322="Base Year",Campus!D340)))))) -> 0 | AC36: =IF($D$132="Base Year",Campus!E150,IF($D$170="Base Year",Campus!E188,IF($D$208="Base Year",Campus!E226,IF($D$246="Base Year",Campus!E264,IF($D$284="Base Year",Campus!E302,IF($D$322="Base Year",Campus!E340)))))) -> 0 | AD36: =IF($D$132="Base Year",Campus!F150,IF($D$170="Base Year",Campus!F188,IF($D$208="Base Year",Campus!F226,IF($D$246="Base Year",Campus!F264,IF($D$284="Base Year",Campus!F302,IF($D$322="Base Year",Campus!F340)))))) -> 0 | AE36: =IF($D$132="Base Year",Campus!G150,IF($D$170="Base Year",Campus!G188,IF($D$208="Base Year",Campus!G226,IF($D$246="Base Year",Campus!G264,IF($D$284="Base Year",Campus!G302,IF($D$322="Base Year",Campus!G340)))))) -> 0 | AF36: =IF($D$132="Base Year",Campus!H150,IF($D$170="Base Year",Campus!H188,IF($D$208="Base Year",Campus!H226,IF($D$246="Base Year",Campus!H264,IF($D$284="Base Year",Campus!H302,IF($D$322="Base Year",Campus!H340)))))) -> 0 | AG36: =IF($D$132="Base Year",Campus!I150,IF($D$170="Base Year",Campus!I188,IF($D$208="Base Year",Campus!I226,IF($D$246="Base Year",Campus!I264,IF($D$284="Base Year",Campus!I302,IF($D$322="Base Year",Campus!I340)))))) -> 0 | AH36: =IF($D$132="Base Year",Campus!K150,IF($D$170="Base Year",Campus!K188,IF($D$208="Base Year",Campus!K226,IF($D$246="Base Year",Campus!K264,IF($D$284="Base Year",Campus!K302,IF($D$322="Base Year",Campus!K340)))))) -> 0 | AI36: =IF($D$132="Base Year",Campus!L150,IF($D$170="Base Year",Campus!L188,IF($D$208="Base Year",Campus!L226,IF($D$246="Base Year",Campus!L264,IF($D$284="Base Year",Campus!L302,IF($D$322="Base Year",Campus!L340)))))) -> 0 | AJ36: =IF($D$132="Base Year",Campus!P150,IF($D$170="Base Year",Campus!P188,IF($D$208="Base Year",Campus!P226,IF($D$246="Base Year",Campus!P264,IF($D$284="Base Year",Campus!P302,IF($D$322="Base Year",Campus!P340)))))) -> 0 | AK36: =IF($D$132="Base Year",Campus!Q150,IF($D$170="Base Year",Campus!Q188,IF($D$208="Base Year",Campus!Q226,IF($D$246="Base Year",Campus!Q264,IF($D$284="Base Year",Campus!Q302,IF($D$322="Base Year",Campus!Q340)))))) -> 0 | AL36: =IF($D$132="Base Year",Campus!R150,IF($D$170="Base Year",Campus!R188,IF($D$208="Base Year",Campus!R226,IF($D$246="Base Year",Campus!R264,IF($D$284="Base Year",Campus!R302,IF($D$322="Base Year",Campus!R340)))))) -> 0 | AM36: =IF($D$132="Base Year",Campus!S150,IF($D$170="Base Year",Campus!S188,IF($D$208="Base Year",Campus!S226,IF($D$246="Base Year",Campus!S264,IF($D$284="Base Year",Campus!S302,IF($D$322="Base Year",Campus!S340)))))) ->  | AN36: =IF($D$132="Base Year",Campus!T150,IF($D$170="Base Year",Campus!T188,IF($D$208="Base Year",Campus!T226,IF($D$246="Base Year",Campus!T264,IF($D$284="Base Year",Campus!T302,IF($D$322="Base Year",Campus!T340)))))) ->  | AO36: =IF($D$132="Base Year",Campus!V150,IF($D$170="Base Year",Campus!V188,IF($D$208="Base Year",Campus!V226,IF($D$246="Base Year",Campus!V264,IF($D$284="Base Year",Campus!V302,IF($D$322="Base Year",Campus!V340)))))) ->  | AP36: =IF($D$132="Base Year",Campus!W150,IF($D$170="Base Year",Campus!W188,IF($D$208="Base Year",Campus!W226,IF($D$246="Base Year",Campus!W264,IF($D$284="Base Year",Campus!W302,IF($D$322="Base Year",Campus!W340)))))) -> 
Q37: =(E37*Coefficients!$B$10)+(Campus!F37*Coefficients!$D$10)+(Campus!G37*Coefficients!$F$10)+(Campus!H37*Coefficients!$H$10)+(Campus!I37*Coefficients!$J$10)+(Campus!J37*VLOOKUP($J$20,'Biodiesel Coefficients'!$J$13:$M$20,4,FALSE))+(Campus!K37*Coefficients!$L$10)+(Campus!L37*Coefficients!$N$10)+(M37*Inventory!$I$31) -> 0 | R37: =(E37*Coefficients!$C$10)+(Campus!F37*Coefficients!$E$10)+(Campus!G37*Coefficients!$G$10)+(Campus!H37*Coefficients!$I$10)+(Campus!I37*Coefficients!$K$10)+(Campus!J37*VLOOKUP($J$20,'Biodiesel Coefficients'!$J$13:$M$20,3,FALSE))+(Campus!K37*Coefficients!$M$10)+(Campus!L37*Coefficients!$O$10)+(M37*'Waste Coeff.'!$D$9)+(N37*'Waste Coeff.'!$D$9)+(Campus!O37*VLOOKUP(Campus!$O$20,'Fleets Coeff.'!$A$3:$D$10,4,FALSE)) -> 0 | AB37: =IF($D$132="Base Year",Campus!D151,IF($D$170="Base Year",Campus!D189,IF($D$208="Base Year",Campus!D227,IF($D$246="Base Year",Campus!D265,IF($D$284="Base Year",Campus!D303,IF($D$322="Base Year",Campus!D341)))))) -> 0 | AC37: =IF($D$132="Base Year",Campus!E151,IF($D$170="Base Year",Campus!E189,IF($D$208="Base Year",Campus!E227,IF($D$246="Base Year",Campus!E265,IF($D$284="Base Year",Campus!E303,IF($D$322="Base Year",Campus!E341)))))) -> 0 | AD37: =IF($D$132="Base Year",Campus!F151,IF($D$170="Base Year",Campus!F189,IF($D$208="Base Year",Campus!F227,IF($D$246="Base Year",Campus!F265,IF($D$284="Base Year",Campus!F303,IF($D$322="Base Year",Campus!F341)))))) -> 0 | AE37: =IF($D$132="Base Year",Campus!G151,IF($D$170="Base Year",Campus!G189,IF($D$208="Base Year",Campus!G227,IF($D$246="Base Year",Campus!G265,IF($D$284="Base Year",Campus!G303,IF($D$322="Base Year",Campus!G341)))))) -> 0 | AF37: =IF($D$132="Base Year",Campus!H151,IF($D$170="Base Year",Campus!H189,IF($D$208="Base Year",Campus!H227,IF($D$246="Base Year",Campus!H265,IF($D$284="Base Year",Campus!H303,IF($D$322="Base Year",Campus!H341)))))) -> 0 | AG37: =IF($D$132="Base Year",Campus!I151,IF($D$170="Base Year",Campus!I189,IF($D$208="Base Year",Campus!I227,IF($D$246="Base Year",Campus!I265,IF($D$284="Base Year",Campus!I303,IF($D$322="Base Year",Campus!I341)))))) -> 0 | AH37: =IF($D$132="Base Year",Campus!K151,IF($D$170="Base Year",Campus!K189,IF($D$208="Base Year",Campus!K227,IF($D$246="Base Year",Campus!K265,IF($D$284="Base Year",Campus!K303,IF($D$322="Base Year",Campus!K341)))))) -> 0 | AI37: =IF($D$132="Base Year",Campus!L151,IF($D$170="Base Year",Campus!L189,IF($D$208="Base Year",Campus!L227,IF($D$246="Base Year",Campus!L265,IF($D$284="Base Year",Campus!L303,IF($D$322="Base Year",Campus!L341)))))) -> 0 | AJ37: =IF($D$132="Base Year",Campus!P151,IF($D$170="Base Year",Campus!P189,IF($D$208="Base Year",Campus!P227,IF($D$246="Base Year",Campus!P265,IF($D$284="Base Year",Campus!P303,IF($D$322="Base Year",Campus!P341)))))) -> 0 | AK37: =IF($D$132="Base Year",Campus!Q151,IF($D$170="Base Year",Campus!Q189,IF($D$208="Base Year",Campus!Q227,IF($D$246="Base Year",Campus!Q265,IF($D$284="Base Year",Campus!Q303,IF($D$322="Base Year",Campus!Q341)))))) -> 0 | AL37: =IF($D$132="Base Year",Campus!R151,IF($D$170="Base Year",Campus!R189,IF($D$208="Base Year",Campus!R227,IF($D$246="Base Year",Campus!R265,IF($D$284="Base Year",Campus!R303,IF($D$322="Base Year",Campus!R341)))))) -> 0 | AM37: =IF($D$132="Base Year",Campus!S151,IF($D$170="Base Year",Campus!S189,IF($D$208="Base Year",Campus!S227,IF($D$246="Base Year",Campus!S265,IF($D$284="Base Year",Campus!S303,IF($D$322="Base Year",Campus!S341)))))) ->  | AN37: =IF($D$132="Base Year",Campus!T151,IF($D$170="Base Year",Campus!T189,IF($D$208="Base Year",Campus!T227,IF($D$246="Base Year",Campus!T265,IF($D$284="Base Year",Campus!T303,IF($D$322="Base Year",Campus!T341)))))) ->  | AO37: =IF($D$132="Base Year",Campus!V151,IF($D$170="Base Year",Campus!V189,IF($D$208="Base Year",Campus!V227,IF($D$246="Base Year",Campus!V265,IF($D$284="Base Year",Campus!V303,IF($D$322="Base Year",Campus!V341)))))) ->  | AP37: =IF($D$132="Base Year",Campus!W151,IF($D$170="Base Year",Campus!W189,IF($D$208="Base Year",Campus!W227,IF($D$246="Base Year",Campus!W265,IF($D$284="Base Year",Campus!W303,IF($D$322="Base Year",Campus!W341)))))) -> 
Q38: =(E38*Coefficients!$B$10)+(Campus!F38*Coefficients!$D$10)+(Campus!G38*Coefficients!$F$10)+(Campus!H38*Coefficients!$H$10)+(Campus!I38*Coefficients!$J$10)+(Campus!J38*VLOOKUP($J$20,'Biodiesel Coefficients'!$J$13:$M$20,4,FALSE))+(Campus!K38*Coefficients!$L$10)+(Campus!L38*Coefficients!$N$10)+(M38*Inventory!$I$31) -> 0 | R38: =(E38*Coefficients!$C$10)+(Campus!F38*Coefficients!$E$10)+(Campus!G38*Coefficients!$G$10)+(Campus!H38*Coefficients!$I$10)+(Campus!I38*Coefficients!$K$10)+(Campus!J38*VLOOKUP($J$20,'Biodiesel Coefficients'!$J$13:$M$20,3,FALSE))+(Campus!K38*Coefficients!$M$10)+(Campus!L38*Coefficients!$O$10)+(M38*'Waste Coeff.'!$D$9)+(N38*'Waste Coeff.'!$D$9)+(Campus!O38*VLOOKUP(Campus!$O$20,'Fleets Coeff.'!$A$3:$D$10,4,FALSE)) -> 0 | AB38: =IF($D$132="Base Year",Campus!D152,IF($D$170="Base Year",Campus!D190,IF($D$208="Base Year",Campus!D228,IF($D$246="Base Year",Campus!D266,IF($D$284="Base Year",Campus!D304,IF($D$322="Base Year",Campus!D342)))))) -> 0 | AC38: =IF($D$132="Base Year",Campus!E152,IF($D$170="Base Year",Campus!E190,IF($D$208="Base Year",Campus!E228,IF($D$246="Base Year",Campus!E266,IF($D$284="Base Year",Campus!E304,IF($D$322="Base Year",Campus!E342)))))) -> 0 | AD38: =IF($D$132="Base Year",Campus!F152,IF($D$170="Base Year",Campus!F190,IF($D$208="Base Year",Campus!F228,IF($D$246="Base Year",Campus!F266,IF($D$284="Base Year",Campus!F304,IF($D$322="Base Year",Campus!F342)))))) -> 0 | AE38: =IF($D$132="Base Year",Campus!G152,IF($D$170="Base Year",Campus!G190,IF($D$208="Base Year",Campus!G228,IF($D$246="Base Year",Campus!G266,IF($D$284="Base Year",Campus!G304,IF($D$322="Base Year",Campus!G342)))))) -> 0 | AF38: =IF($D$132="Base Year",Campus!H152,IF($D$170="Base Year",Campus!H190,IF($D$208="Base Year",Campus!H228,IF($D$246="Base Year",Campus!H266,IF($D$284="Base Year",Campus!H304,IF($D$322="Base Year",Campus!H342)))))) -> 0 | AG38: =IF($D$132="Base Year",Campus!I152,IF($D$170="Base Year",Campus!I190,IF($D$208="Base Year",Campus!I228,IF($D$246="Base Year",Campus!I266,IF($D$284="Base Year",Campus!I304,IF($D$322="Base Year",Campus!I342)))))) -> 0 | AH38: =IF($D$132="Base Year",Campus!K152,IF($D$170="Base Year",Campus!K190,IF($D$208="Base Year",Campus!K228,IF($D$246="Base Year",Campus!K266,IF($D$284="Base Year",Campus!K304,IF($D$322="Base Year",Campus!K342)))))) -> 0 | AI38: =IF($D$132="Base Year",Campus!L152,IF($D$170="Base Year",Campus!L190,IF($D$208="Base Year",Campus!L228,IF($D$246="Base Year",Campus!L266,IF($D$284="Base Year",Campus!L304,IF($D$322="Base Year",Campus!L342)))))) -> 0 | AJ38: =IF($D$132="Base Year",Campus!P152,IF($D$170="Base Year",Campus!P190,IF($D$208="Base Year",Campus!P228,IF($D$246="Base Year",Campus!P266,IF($D$284="Base Year",Campus!P304,IF($D$322="Base Year",Campus!P342)))))) -> 0 | AK38: =IF($D$132="Base Year",Campus!Q152,IF($D$170="Base Year",Campus!Q190,IF($D$208="Base Year",Campus!Q228,IF($D$246="Base Year",Campus!Q266,IF($D$284="Base Year",Campus!Q304,IF($D$322="Base Year",Campus!Q342)))))) -> 0 | AL38: =IF($D$132="Base Year",Campus!R152,IF($D$170="Base Year",Campus!R190,IF($D$208="Base Year",Campus!R228,IF($D$246="Base Year",Campus!R266,IF($D$284="Base Year",Campus!R304,IF($D$322="Base Year",Campus!R342)))))) -> 0 | AM38: =IF($D$132="Base Year",Campus!S152,IF($D$170="Base Year",Campus!S190,IF($D$208="Base Year",Campus!S228,IF($D$246="Base Year",Campus!S266,IF($D$284="Base Year",Campus!S304,IF($D$322="Base Year",Campus!S342)))))) ->  | AN38: =IF($D$132="Base Year",Campus!T152,IF($D$170="Base Year",Campus!T190,IF($D$208="Base Year",Campus!T228,IF($D$246="Base Year",Campus!T266,IF($D$284="Base Year",Campus!T304,IF($D$322="Base Year",Campus!T342)))))) ->  | AO38: =IF($D$132="Base Year",Campus!V152,IF($D$170="Base Year",Campus!V190,IF($D$208="Base Year",Campus!V228,IF($D$246="Base Year",Campus!V266,IF($D$284="Base Year",Campus!V304,IF($D$322="Base Year",Campus!V342)))))) ->  | AP38: =IF($D$132="Base Year",Campus!W152,IF($D$170="Base Year",Campus!W190,IF($D$208="Base Year",Campus!W228,IF($D$246="Base Year",Campus!W266,IF($D$284="Base Year",Campus!W304,IF($D$322="Base Year",Campus!W342)))))) -> 
Q39: =(E39*Coefficients!$B$10)+(Campus!F39*Coefficients!$D$10)+(Campus!G39*Coefficients!$F$10)+(Campus!H39*Coefficients!$H$10)+(Campus!I39*Coefficients!$J$10)+(Campus!J39*VLOOKUP($J$20,'Biodiesel Coefficients'!$J$13:$M$20,4,FALSE))+(Campus!K39*Coefficients!$L$10)+(Campus!L39*Coefficients!$N$10)+(M39*Inventory!$I$31) -> 0 | R39: =(E39*Coefficients!$C$10)+(Campus!F39*Coefficients!$E$10)+(Campus!G39*Coefficients!$G$10)+(Campus!H39*Coefficients!$I$10)+(Campus!I39*Coefficients!$K$10)+(Campus!J39*VLOOKUP($J$20,'Biodiesel Coefficients'!$J$13:$M$20,3,FALSE))+(Campus!K39*Coefficients!$M$10)+(Campus!L39*Coefficients!$O$10)+(M39*'Waste Coeff.'!$D$9)+(N39*'Waste Coeff.'!$D$9)+(Campus!O39*VLOOKUP(Campus!$O$20,'Fleets Coeff.'!$A$3:$D$10,4,FALSE)) -> 0 | AB39: =IF($D$132="Base Year",Campus!D153,IF($D$170="Base Year",Campus!D191,IF($D$208="Base Year",Campus!D229,IF($D$246="Base Year",Campus!D267,IF($D$284="Base Year",Campus!D305,IF($D$322="Base Year",Campus!D343)))))) -> 0 | AC39: =IF($D$132="Base Year",Campus!E153,IF($D$170="Base Year",Campus!E191,IF($D$208="Base Year",Campus!E229,IF($D$246="Base Year",Campus!E267,IF($D$284="Base Year",Campus!E305,IF($D$322="Base Year",Campus!E343)))))) -> 0 | AD39: =IF($D$132="Base Year",Campus!F153,IF($D$170="Base Year",Campus!F191,IF($D$208="Base Year",Campus!F229,IF($D$246="Base Year",Campus!F267,IF($D$284="Base Year",Campus!F305,IF($D$322="Base Year",Campus!F343)))))) -> 0 | AE39: =IF($D$132="Base Year",Campus!G153,IF($D$170="Base Year",Campus!G191,IF($D$208="Base Year",Campus!G229,IF($D$246="Base Year",Campus!G267,IF($D$284="Base Year",Campus!G305,IF($D$322="Base Year",Campus!G343)))))) -> 0 | AF39: =IF($D$132="Base Year",Campus!H153,IF($D$170="Base Year",Campus!H191,IF($D$208="Base Year",Campus!H229,IF($D$246="Base Year",Campus!H267,IF($D$284="Base Year",Campus!H305,IF($D$322="Base Year",Campus!H343)))))) -> 0 | AG39: =IF($D$132="Base Year",Campus!I153,IF($D$170="Base Year",Campus!I191,IF($D$208="Base Year",Campus!I229,IF($D$246="Base Year",Campus!I267,IF($D$284="Base Year",Campus!I305,IF($D$322="Base Year",Campus!I343)))))) -> 0 | AH39: =IF($D$132="Base Year",Campus!K153,IF($D$170="Base Year",Campus!K191,IF($D$208="Base Year",Campus!K229,IF($D$246="Base Year",Campus!K267,IF($D$284="Base Year",Campus!K305,IF($D$322="Base Year",Campus!K343)))))) -> 0 | AI39: =IF($D$132="Base Year",Campus!L153,IF($D$170="Base Year",Campus!L191,IF($D$208="Base Year",Campus!L229,IF($D$246="Base Year",Campus!L267,IF($D$284="Base Year",Campus!L305,IF($D$322="Base Year",Campus!L343)))))) -> 0 | AJ39: =IF($D$132="Base Year",Campus!P153,IF($D$170="Base Year",Campus!P191,IF($D$208="Base Year",Campus!P229,IF($D$246="Base Year",Campus!P267,IF($D$284="Base Year",Campus!P305,IF($D$322="Base Year",Campus!P343)))))) -> 0 | AK39: =IF($D$132="Base Year",Campus!Q153,IF($D$170="Base Year",Campus!Q191,IF($D$208="Base Year",Campus!Q229,IF($D$246="Base Year",Campus!Q267,IF($D$284="Base Year",Campus!Q305,IF($D$322="Base Year",Campus!Q343)))))) -> 0 | AL39: =IF($D$132="Base Year",Campus!R153,IF($D$170="Base Year",Campus!R191,IF($D$208="Base Year",Campus!R229,IF($D$246="Base Year",Campus!R267,IF($D$284="Base Year",Campus!R305,IF($D$322="Base Year",Campus!R343)))))) -> 0 | AM39: =IF($D$132="Base Year",Campus!S153,IF($D$170="Base Year",Campus!S191,IF($D$208="Base Year",Campus!S229,IF($D$246="Base Year",Campus!S267,IF($D$284="Base Year",Campus!S305,IF($D$322="Base Year",Campus!S343)))))) ->  | AN39: =IF($D$132="Base Year",Campus!T153,IF($D$170="Base Year",Campus!T191,IF($D$208="Base Year",Campus!T229,IF($D$246="Base Year",Campus!T267,IF($D$284="Base Year",Campus!T305,IF($D$322="Base Year",Campus!T343)))))) ->  | AO39: =IF($D$132="Base Year",Campus!V153,IF($D$170="Base Year",Campus!V191,IF($D$208="Base Year",Campus!V229,IF($D$246="Base Year",Campus!V267,IF($D$284="Base Year",Campus!V305,IF($D$322="Base Year",Campus!V343)))))) ->  | AP39: =IF($D$132="Base Year",Campus!W153,IF($D$170="Base Year",Campus!W191,IF($D$208="Base Year",Campus!W229,IF($D$246="Base Year",Campus!W267,IF($D$284="Base Year",Campus!W305,IF($D$322="Base Year",Campus!W343)))))) -> 
Q40: =(E40*Coefficients!$B$10)+(Campus!F40*Coefficients!$D$10)+(Campus!G40*Coefficients!$F$10)+(Campus!H40*Coefficients!$H$10)+(Campus!I40*Coefficients!$J$10)+(Campus!J40*VLOOKUP($J$20,'Biodiesel Coefficients'!$J$13:$M$20,4,FALSE))+(Campus!K40*Coefficients!$L$10)+(Campus!L40*Coefficients!$N$10)+(M40*Inventory!$I$31) -> 0 | R40: =(E40*Coefficients!$C$10)+(Campus!F40*Coefficients!$E$10)+(Campus!G40*Coefficients!$G$10)+(Campus!H40*Coefficients!$I$10)+(Campus!I40*Coefficients!$K$10)+(Campus!J40*VLOOKUP($J$20,'Biodiesel Coefficients'!$J$13:$M$20,3,FALSE))+(Campus!K40*Coefficients!$M$10)+(Campus!L40*Coefficients!$O$10)+(M40*'Waste Coeff.'!$D$9)+(N40*'Waste Coeff.'!$D$9)+(Campus!O40*VLOOKUP(Campus!$O$20,'Fleets Coeff.'!$A$3:$D$10,4,FALSE)) -> 0 | AB40: =IF($D$132="Base Year",Campus!D154,IF($D$170="Base Year",Campus!D192,IF($D$208="Base Year",Campus!D230,IF($D$246="Base Year",Campus!D268,IF($D$284="Base Year",Campus!D306,IF($D$322="Base Year",Campus!D344)))))) -> 0 | AC40: =IF($D$132="Base Year",Campus!E154,IF($D$170="Base Year",Campus!E192,IF($D$208="Base Year",Campus!E230,IF($D$246="Base Year",Campus!E268,IF($D$284="Base Year",Campus!E306,IF($D$322="Base Year",Campus!E344)))))) -> 0 | AD40: =IF($D$132="Base Year",Campus!F154,IF($D$170="Base Year",Campus!F192,IF($D$208="Base Year",Campus!F230,IF($D$246="Base Year",Campus!F268,IF($D$284="Base Year",Campus!F306,IF($D$322="Base Year",Campus!F344)))))) -> 0 | AE40: =IF($D$132="Base Year",Campus!G154,IF($D$170="Base Year",Campus!G192,IF($D$208="Base Year",Campus!G230,IF($D$246="Base Year",Campus!G268,IF($D$284="Base Year",Campus!G306,IF($D$322="Base Year",Campus!G344)))))) -> 0 | AF40: =IF($D$132="Base Year",Campus!H154,IF($D$170="Base Year",Campus!H192,IF($D$208="Base Year",Campus!H230,IF($D$246="Base Year",Campus!H268,IF($D$284="Base Year",Campus!H306,IF($D$322="Base Year",Campus!H344)))))) -> 0 | AG40: =IF($D$132="Base Year",Campus!I154,IF($D$170="Base Year",Campus!I192,IF($D$208="Base Year",Campus!I230,IF($D$246="Base Year",Campus!I268,IF($D$284="Base Year",Campus!I306,IF($D$322="Base Year",Campus!I344)))))) -> 0 | AH40: =IF($D$132="Base Year",Campus!K154,IF($D$170="Base Year",Campus!K192,IF($D$208="Base Year",Campus!K230,IF($D$246="Base Year",Campus!K268,IF($D$284="Base Year",Campus!K306,IF($D$322="Base Year",Campus!K344)))))) -> 0 | AI40: =IF($D$132="Base Year",Campus!L154,IF($D$170="Base Year",Campus!L192,IF($D$208="Base Year",Campus!L230,IF($D$246="Base Year",Campus!L268,IF($D$284="Base Year",Campus!L306,IF($D$322="Base Year",Campus!L344)))))) -> 0 | AJ40: =IF($D$132="Base Year",Campus!P154,IF($D$170="Base Year",Campus!P192,IF($D$208="Base Year",Campus!P230,IF($D$246="Base Year",Campus!P268,IF($D$284="Base Year",Campus!P306,IF($D$322="Base Year",Campus!P344)))))) -> 0 | AK40: =IF($D$132="Base Year",Campus!Q154,IF($D$170="Base Year",Campus!Q192,IF($D$208="Base Year",Campus!Q230,IF($D$246="Base Year",Campus!Q268,IF($D$284="Base Year",Campus!Q306,IF($D$322="Base Year",Campus!Q344)))))) -> 0 | AL40: =IF($D$132="Base Year",Campus!R154,IF($D$170="Base Year",Campus!R192,IF($D$208="Base Year",Campus!R230,IF($D$246="Base Year",Campus!R268,IF($D$284="Base Year",Campus!R306,IF($D$322="Base Year",Campus!R344)))))) -> 0 | AM40: =IF($D$132="Base Year",Campus!S154,IF($D$170="Base Year",Campus!S192,IF($D$208="Base Year",Campus!S230,IF($D$246="Base Year",Campus!S268,IF($D$284="Base Year",Campus!S306,IF($D$322="Base Year",Campus!S344)))))) ->  | AN40: =IF($D$132="Base Year",Campus!T154,IF($D$170="Base Year",Campus!T192,IF($D$208="Base Year",Campus!T230,IF($D$246="Base Year",Campus!T268,IF($D$284="Base Year",Campus!T306,IF($D$322="Base Year",Campus!T344)))))) ->  | AO40: =IF($D$132="Base Year",Campus!V154,IF($D$170="Base Year",Campus!V192,IF($D$208="Base Year",Campus!V230,IF($D$246="Base Year",Campus!V268,IF($D$284="Base Year",Campus!V306,IF($D$322="Base Year",Campus!V344)))))) ->  | AP40: =IF($D$132="Base Year",Campus!W154,IF($D$170="Base Year",Campus!W192,IF($D$208="Base Year",Campus!W230,IF($D$246="Base Year",Campus!W268,IF($D$284="Base Year",Campus!W306,IF($D$322="Base Year",Campus!W344)))))) -> 
Q41: =(E41*Coefficients!$B$10)+(Campus!F41*Coefficients!$D$10)+(Campus!G41*Coefficients!$F$10)+(Campus!H41*Coefficients!$H$10)+(Campus!I41*Coefficients!$J$10)+(Campus!J41*VLOOKUP($J$20,'Biodiesel Coefficients'!$J$13:$M$20,4,FALSE))+(Campus!K41*Coefficients!$L$10)+(Campus!L41*Coefficients!$N$10)+(M41*Inventory!$I$31) -> 0 | R41: =(E41*Coefficients!$C$10)+(Campus!F41*Coefficients!$E$10)+(Campus!G41*Coefficients!$G$10)+(Campus!H41*Coefficients!$I$10)+(Campus!I41*Coefficients!$K$10)+(Campus!J41*VLOOKUP($J$20,'Biodiesel Coefficients'!$J$13:$M$20,3,FALSE))+(Campus!K41*Coefficients!$M$10)+(Campus!L41*Coefficients!$O$10)+(M41*'Waste Coeff.'!$D$9)+(N41*'Waste Coeff.'!$D$9)+(Campus!O41*VLOOKUP(Campus!$O$20,'Fleets Coeff.'!$A$3:$D$10,4,FALSE)) -> 0 | AB41: =IF($D$132="Base Year",Campus!D155,IF($D$170="Base Year",Campus!D193,IF($D$208="Base Year",Campus!D231,IF($D$246="Base Year",Campus!D269,IF($D$284="Base Year",Campus!D307,IF($D$322="Base Year",Campus!D345)))))) -> 0 | AC41: =IF($D$132="Base Year",Campus!E155,IF($D$170="Base Year",Campus!E193,IF($D$208="Base Year",Campus!E231,IF($D$246="Base Year",Campus!E269,IF($D$284="Base Year",Campus!E307,IF($D$322="Base Year",Campus!E345)))))) -> 0 | AD41: =IF($D$132="Base Year",Campus!F155,IF($D$170="Base Year",Campus!F193,IF($D$208="Base Year",Campus!F231,IF($D$246="Base Year",Campus!F269,IF($D$284="Base Year",Campus!F307,IF($D$322="Base Year",Campus!F345)))))) -> 0 | AE41: =IF($D$132="Base Year",Campus!G155,IF($D$170="Base Year",Campus!G193,IF($D$208="Base Year",Campus!G231,IF($D$246="Base Year",Campus!G269,IF($D$284="Base Year",Campus!G307,IF($D$322="Base Year",Campus!G345)))))) -> 0 | AF41: =IF($D$132="Base Year",Campus!H155,IF($D$170="Base Year",Campus!H193,IF($D$208="Base Year",Campus!H231,IF($D$246="Base Year",Campus!H269,IF($D$284="Base Year",Campus!H307,IF($D$322="Base Year",Campus!H345)))))) -> 0 | AG41: =IF($D$132="Base Year",Campus!I155,IF($D$170="Base Year",Campus!I193,IF($D$208="Base Year",Campus!I231,IF($D$246="Base Year",Campus!I269,IF($D$284="Base Year",Campus!I307,IF($D$322="Base Year",Campus!I345)))))) -> 0 | AH41: =IF($D$132="Base Year",Campus!K155,IF($D$170="Base Year",Campus!K193,IF($D$208="Base Year",Campus!K231,IF($D$246="Base Year",Campus!K269,IF($D$284="Base Year",Campus!K307,IF($D$322="Base Year",Campus!K345)))))) -> 0 | AI41: =IF($D$132="Base Year",Campus!L155,IF($D$170="Base Year",Campus!L193,IF($D$208="Base Year",Campus!L231,IF($D$246="Base Year",Campus!L269,IF($D$284="Base Year",Campus!L307,IF($D$322="Base Year",Campus!L345)))))) -> 0 | AJ41: =IF($D$132="Base Year",Campus!P155,IF($D$170="Base Year",Campus!P193,IF($D$208="Base Year",Campus!P231,IF($D$246="Base Year",Campus!P269,IF($D$284="Base Year",Campus!P307,IF($D$322="Base Year",Campus!P345)))))) -> 0 | AK41: =IF($D$132="Base Year",Campus!Q155,IF($D$170="Base Year",Campus!Q193,IF($D$208="Base Year",Campus!Q231,IF($D$246="Base Year",Campus!Q269,IF($D$284="Base Year",Campus!Q307,IF($D$322="Base Year",Campus!Q345)))))) -> 0 | AL41: =IF($D$132="Base Year",Campus!R155,IF($D$170="Base Year",Campus!R193,IF($D$208="Base Year",Campus!R231,IF($D$246="Base Year",Campus!R269,IF($D$284="Base Year",Campus!R307,IF($D$322="Base Year",Campus!R345)))))) -> 0 | AM41: =IF($D$132="Base Year",Campus!S155,IF($D$170="Base Year",Campus!S193,IF($D$208="Base Year",Campus!S231,IF($D$246="Base Year",Campus!S269,IF($D$284="Base Year",Campus!S307,IF($D$322="Base Year",Campus!S345)))))) ->  | AN41: =IF($D$132="Base Year",Campus!T155,IF($D$170="Base Year",Campus!T193,IF($D$208="Base Year",Campus!T231,IF($D$246="Base Year",Campus!T269,IF($D$284="Base Year",Campus!T307,IF($D$322="Base Year",Campus!T345)))))) ->  | AO41: =IF($D$132="Base Year",Campus!V155,IF($D$170="Base Year",Campus!V193,IF($D$208="Base Year",Campus!V231,IF($D$246="Base Year",Campus!V269,IF($D$284="Base Year",Campus!V307,IF($D$322="Base Year",Campus!V345)))))) ->  | AP41: =IF($D$132="Base Year",Campus!W155,IF($D$170="Base Year",Campus!W193,IF($D$208="Base Year",Campus!W231,IF($D$246="Base Year",Campus!W269,IF($D$284="Base Year",Campus!W307,IF($D$322="Base Year",Campus!W345)))))) -> 
Q42: =(E42*Coefficients!$B$10)+(Campus!F42*Coefficients!$D$10)+(Campus!G42*Coefficients!$F$10)+(Campus!H42*Coefficients!$H$10)+(Campus!I42*Coefficients!$J$10)+(Campus!J42*VLOOKUP($J$20,'Biodiesel Coefficients'!$J$13:$M$20,4,FALSE))+(Campus!K42*Coefficients!$L$10)+(Campus!L42*Coefficients!$N$10)+(M42*Inventory!$I$31) -> 0 | R42: =(E42*Coefficients!$C$10)+(Campus!F42*Coefficients!$E$10)+(Campus!G42*Coefficients!$G$10)+(Campus!H42*Coefficients!$I$10)+(Campus!I42*Coefficients!$K$10)+(Campus!J42*VLOOKUP($J$20,'Biodiesel Coefficients'!$J$13:$M$20,3,FALSE))+(Campus!K42*Coefficients!$M$10)+(Campus!L42*Coefficients!$O$10)+(M42*'Waste Coeff.'!$D$9)+(N42*'Waste Coeff.'!$D$9)+(Campus!O42*VLOOKUP(Campus!$O$20,'Fleets Coeff.'!$A$3:$D$10,4,FALSE)) -> 0 | AB42: =IF($D$132="Base Year",Campus!D156,IF($D$170="Base Year",Campus!D194,IF($D$208="Base Year",Campus!D232,IF($D$246="Base Year",Campus!D270,IF($D$284="Base Year",Campus!D308,IF($D$322="Base Year",Campus!D346)))))) -> 0 | AC42: =IF($D$132="Base Year",Campus!E156,IF($D$170="Base Year",Campus!E194,IF($D$208="Base Year",Campus!E232,IF($D$246="Base Year",Campus!E270,IF($D$284="Base Year",Campus!E308,IF($D$322="Base Year",Campus!E346)))))) -> 0 | AD42: =IF($D$132="Base Year",Campus!F156,IF($D$170="Base Year",Campus!F194,IF($D$208="Base Year",Campus!F232,IF($D$246="Base Year",Campus!F270,IF($D$284="Base Year",Campus!F308,IF($D$322="Base Year",Campus!F346)))))) -> 0 | AE42: =IF($D$132="Base Year",Campus!G156,IF($D$170="Base Year",Campus!G194,IF($D$208="Base Year",Campus!G232,IF($D$246="Base Year",Campus!G270,IF($D$284="Base Year",Campus!G308,IF($D$322="Base Year",Campus!G346)))))) -> 0 | AF42: =IF($D$132="Base Year",Campus!H156,IF($D$170="Base Year",Campus!H194,IF($D$208="Base Year",Campus!H232,IF($D$246="Base Year",Campus!H270,IF($D$284="Base Year",Campus!H308,IF($D$322="Base Year",Campus!H346)))))) -> 0 | AG42: =IF($D$132="Base Year",Campus!I156,IF($D$170="Base Year",Campus!I194,IF($D$208="Base Year",Campus!I232,IF($D$246="Base Year",Campus!I270,IF($D$284="Base Year",Campus!I308,IF($D$322="Base Year",Campus!I346)))))) -> 0 | AH42: =IF($D$132="Base Year",Campus!K156,IF($D$170="Base Year",Campus!K194,IF($D$208="Base Year",Campus!K232,IF($D$246="Base Year",Campus!K270,IF($D$284="Base Year",Campus!K308,IF($D$322="Base Year",Campus!K346)))))) -> 0 | AI42: =IF($D$132="Base Year",Campus!L156,IF($D$170="Base Year",Campus!L194,IF($D$208="Base Year",Campus!L232,IF($D$246="Base Year",Campus!L270,IF($D$284="Base Year",Campus!L308,IF($D$322="Base Year",Campus!L346)))))) -> 0 | AJ42: =IF($D$132="Base Year",Campus!P156,IF($D$170="Base Year",Campus!P194,IF($D$208="Base Year",Campus!P232,IF($D$246="Base Year",Campus!P270,IF($D$284="Base Year",Campus!P308,IF($D$322="Base Year",Campus!P346)))))) -> 0 | AK42: =IF($D$132="Base Year",Campus!Q156,IF($D$170="Base Year",Campus!Q194,IF($D$208="Base Year",Campus!Q232,IF($D$246="Base Year",Campus!Q270,IF($D$284="Base Year",Campus!Q308,IF($D$322="Base Year",Campus!Q346)))))) -> 0 | AL42: =IF($D$132="Base Year",Campus!R156,IF($D$170="Base Year",Campus!R194,IF($D$208="Base Year",Campus!R232,IF($D$246="Base Year",Campus!R270,IF($D$284="Base Year",Campus!R308,IF($D$322="Base Year",Campus!R346)))))) -> 0 | AM42: =IF($D$132="Base Year",Campus!S156,IF($D$170="Base Year",Campus!S194,IF($D$208="Base Year",Campus!S232,IF($D$246="Base Year",Campus!S270,IF($D$284="Base Year",Campus!S308,IF($D$322="Base Year",Campus!S346)))))) ->  | AN42: =IF($D$132="Base Year",Campus!T156,IF($D$170="Base Year",Campus!T194,IF($D$208="Base Year",Campus!T232,IF($D$246="Base Year",Campus!T270,IF($D$284="Base Year",Campus!T308,IF($D$322="Base Year",Campus!T346)))))) ->  | AO42: =IF($D$132="Base Year",Campus!V156,IF($D$170="Base Year",Campus!V194,IF($D$208="Base Year",Campus!V232,IF($D$246="Base Year",Campus!V270,IF($D$284="Base Year",Campus!V308,IF($D$322="Base Year",Campus!V346)))))) ->  | AP42: =IF($D$132="Base Year",Campus!W156,IF($D$170="Base Year",Campus!W194,IF($D$208="Base Year",Campus!W232,IF($D$246="Base Year",Campus!W270,IF($D$284="Base Year",Campus!W308,IF($D$322="Base Year",Campus!W346)))))) -> 
Q43: =(E43*Coefficients!$B$10)+(Campus!F43*Coefficients!$D$10)+(Campus!G43*Coefficients!$F$10)+(Campus!H43*Coefficients!$H$10)+(Campus!I43*Coefficients!$J$10)+(Campus!J43*VLOOKUP($J$20,'Biodiesel Coefficients'!$J$13:$M$20,4,FALSE))+(Campus!K43*Coefficients!$L$10)+(Campus!L43*Coefficients!$N$10)+(M43*Inventory!$I$31) -> 0 | R43: =(E43*Coefficients!$C$10)+(Campus!F43*Coefficients!$E$10)+(Campus!G43*Coefficients!$G$10)+(Campus!H43*Coefficients!$I$10)+(Campus!I43*Coefficients!$K$10)+(Campus!J43*VLOOKUP($J$20,'Biodiesel Coefficients'!$J$13:$M$20,3,FALSE))+(Campus!K43*Coefficients!$M$10)+(Campus!L43*Coefficients!$O$10)+(M43*'Waste Coeff.'!$D$9)+(N43*'Waste Coeff.'!$D$9)+(Campus!O43*VLOOKUP(Campus!$O$20,'Fleets Coeff.'!$A$3:$D$10,4,FALSE)) -> 0 | AB43: =IF($D$132="Base Year",Campus!D157,IF($D$170="Base Year",Campus!D195,IF($D$208="Base Year",Campus!D233,IF($D$246="Base Year",Campus!D271,IF($D$284="Base Year",Campus!D309,IF($D$322="Base Year",Campus!D347)))))) -> 0 | AC43: =IF($D$132="Base Year",Campus!E157,IF($D$170="Base Year",Campus!E195,IF($D$208="Base Year",Campus!E233,IF($D$246="Base Year",Campus!E271,IF($D$284="Base Year",Campus!E309,IF($D$322="Base Year",Campus!E347)))))) -> 0 | AD43: =IF($D$132="Base Year",Campus!F157,IF($D$170="Base Year",Campus!F195,IF($D$208="Base Year",Campus!F233,IF($D$246="Base Year",Campus!F271,IF($D$284="Base Year",Campus!F309,IF($D$322="Base Year",Campus!F347)))))) -> 0 | AE43: =IF($D$132="Base Year",Campus!G157,IF($D$170="Base Year",Campus!G195,IF($D$208="Base Year",Campus!G233,IF($D$246="Base Year",Campus!G271,IF($D$284="Base Year",Campus!G309,IF($D$322="Base Year",Campus!G347)))))) -> 0 | AF43: =IF($D$132="Base Year",Campus!H157,IF($D$170="Base Year",Campus!H195,IF($D$208="Base Year",Campus!H233,IF($D$246="Base Year",Campus!H271,IF($D$284="Base Year",Campus!H309,IF($D$322="Base Year",Campus!H347)))))) -> 0 | AG43: =IF($D$132="Base Year",Campus!I157,IF($D$170="Base Year",Campus!I195,IF($D$208="Base Year",Campus!I233,IF($D$246="Base Year",Campus!I271,IF($D$284="Base Year",Campus!I309,IF($D$322="Base Year",Campus!I347)))))) -> 0 | AH43: =IF($D$132="Base Year",Campus!K157,IF($D$170="Base Year",Campus!K195,IF($D$208="Base Year",Campus!K233,IF($D$246="Base Year",Campus!K271,IF($D$284="Base Year",Campus!K309,IF($D$322="Base Year",Campus!K347)))))) -> 0 | AI43: =IF($D$132="Base Year",Campus!L157,IF($D$170="Base Year",Campus!L195,IF($D$208="Base Year",Campus!L233,IF($D$246="Base Year",Campus!L271,IF($D$284="Base Year",Campus!L309,IF($D$322="Base Year",Campus!L347)))))) -> 0 | AJ43: =IF($D$132="Base Year",Campus!P157,IF($D$170="Base Year",Campus!P195,IF($D$208="Base Year",Campus!P233,IF($D$246="Base Year",Campus!P271,IF($D$284="Base Year",Campus!P309,IF($D$322="Base Year",Campus!P347)))))) -> 0 | AK43: =IF($D$132="Base Year",Campus!Q157,IF($D$170="Base Year",Campus!Q195,IF($D$208="Base Year",Campus!Q233,IF($D$246="Base Year",Campus!Q271,IF($D$284="Base Year",Campus!Q309,IF($D$322="Base Year",Campus!Q347)))))) -> 0 | AL43: =IF($D$132="Base Year",Campus!R157,IF($D$170="Base Year",Campus!R195,IF($D$208="Base Year",Campus!R233,IF($D$246="Base Year",Campus!R271,IF($D$284="Base Year",Campus!R309,IF($D$322="Base Year",Campus!R347)))))) -> 0 | AM43: =IF($D$132="Base Year",Campus!S157,IF($D$170="Base Year",Campus!S195,IF($D$208="Base Year",Campus!S233,IF($D$246="Base Year",Campus!S271,IF($D$284="Base Year",Campus!S309,IF($D$322="Base Year",Campus!S347)))))) ->  | AN43: =IF($D$132="Base Year",Campus!T157,IF($D$170="Base Year",Campus!T195,IF($D$208="Base Year",Campus!T233,IF($D$246="Base Year",Campus!T271,IF($D$284="Base Year",Campus!T309,IF($D$322="Base Year",Campus!T347)))))) ->  | AO43: =IF($D$132="Base Year",Campus!V157,IF($D$170="Base Year",Campus!V195,IF($D$208="Base Year",Campus!V233,IF($D$246="Base Year",Campus!V271,IF($D$284="Base Year",Campus!V309,IF($D$322="Base Year",Campus!V347)))))) ->  | AP43: =IF($D$132="Base Year",Campus!W157,IF($D$170="Base Year",Campus!W195,IF($D$208="Base Year",Campus!W233,IF($D$246="Base Year",Campus!W271,IF($D$284="Base Year",Campus!W309,IF($D$322="Base Year",Campus!W347)))))) -> 
Q44: =(E44*Coefficients!$B$10)+(Campus!F44*Coefficients!$D$10)+(Campus!G44*Coefficients!$F$10)+(Campus!H44*Coefficients!$H$10)+(Campus!I44*Coefficients!$J$10)+(Campus!J44*VLOOKUP($J$20,'Biodiesel Coefficients'!$J$13:$M$20,4,FALSE))+(Campus!K44*Coefficients!$L$10)+(Campus!L44*Coefficients!$N$10)+(M44*Inventory!$I$31) -> 0 | R44: =(E44*Coefficients!$C$10)+(Campus!F44*Coefficients!$E$10)+(Campus!G44*Coefficients!$G$10)+(Campus!H44*Coefficients!$I$10)+(Campus!I44*Coefficients!$K$10)+(Campus!J44*VLOOKUP($J$20,'Biodiesel Coefficients'!$J$13:$M$20,3,FALSE))+(Campus!K44*Coefficients!$M$10)+(Campus!L44*Coefficients!$O$10)+(M44*'Waste Coeff.'!$D$9)+(N44*'Waste Coeff.'!$D$9)+(Campus!O44*VLOOKUP(Campus!$O$20,'Fleets Coeff.'!$A$3:$D$10,4,FALSE)) -> 0 | AB44: =IF($D$132="Base Year",Campus!D158,IF($D$170="Base Year",Campus!D196,IF($D$208="Base Year",Campus!D234,IF($D$246="Base Year",Campus!D272,IF($D$284="Base Year",Campus!D310,IF($D$322="Base Year",Campus!D348)))))) -> 0 | AC44: =IF($D$132="Base Year",Campus!E158,IF($D$170="Base Year",Campus!E196,IF($D$208="Base Year",Campus!E234,IF($D$246="Base Year",Campus!E272,IF($D$284="Base Year",Campus!E310,IF($D$322="Base Year",Campus!E348)))))) -> 0 | AD44: =IF($D$132="Base Year",Campus!F158,IF($D$170="Base Year",Campus!F196,IF($D$208="Base Year",Campus!F234,IF($D$246="Base Year",Campus!F272,IF($D$284="Base Year",Campus!F310,IF($D$322="Base Year",Campus!F348)))))) -> 0 | AE44: =IF($D$132="Base Year",Campus!G158,IF($D$170="Base Year",Campus!G196,IF($D$208="Base Year",Campus!G234,IF($D$246="Base Year",Campus!G272,IF($D$284="Base Year",Campus!G310,IF($D$322="Base Year",Campus!G348)))))) -> 0 | AF44: =IF($D$132="Base Year",Campus!H158,IF($D$170="Base Year",Campus!H196,IF($D$208="Base Year",Campus!H234,IF($D$246="Base Year",Campus!H272,IF($D$284="Base Year",Campus!H310,IF($D$322="Base Year",Campus!H348)))))) -> 0 | AG44: =IF($D$132="Base Year",Campus!I158,IF($D$170="Base Year",Campus!I196,IF($D$208="Base Year",Campus!I234,IF($D$246="Base Year",Campus!I272,IF($D$284="Base Year",Campus!I310,IF($D$322="Base Year",Campus!I348)))))) -> 0 | AH44: =IF($D$132="Base Year",Campus!K158,IF($D$170="Base Year",Campus!K196,IF($D$208="Base Year",Campus!K234,IF($D$246="Base Year",Campus!K272,IF($D$284="Base Year",Campus!K310,IF($D$322="Base Year",Campus!K348)))))) -> 0 | AI44: =IF($D$132="Base Year",Campus!L158,IF($D$170="Base Year",Campus!L196,IF($D$208="Base Year",Campus!L234,IF($D$246="Base Year",Campus!L272,IF($D$284="Base Year",Campus!L310,IF($D$322="Base Year",Campus!L348)))))) -> 0 | AJ44: =IF($D$132="Base Year",Campus!P158,IF($D$170="Base Year",Campus!P196,IF($D$208="Base Year",Campus!P234,IF($D$246="Base Year",Campus!P272,IF($D$284="Base Year",Campus!P310,IF($D$322="Base Year",Campus!P348)))))) -> 0 | AK44: =IF($D$132="Base Year",Campus!Q158,IF($D$170="Base Year",Campus!Q196,IF($D$208="Base Year",Campus!Q234,IF($D$246="Base Year",Campus!Q272,IF($D$284="Base Year",Campus!Q310,IF($D$322="Base Year",Campus!Q348)))))) -> 0 | AL44: =IF($D$132="Base Year",Campus!R158,IF($D$170="Base Year",Campus!R196,IF($D$208="Base Year",Campus!R234,IF($D$246="Base Year",Campus!R272,IF($D$284="Base Year",Campus!R310,IF($D$322="Base Year",Campus!R348)))))) -> 0 | AM44: =IF($D$132="Base Year",Campus!S158,IF($D$170="Base Year",Campus!S196,IF($D$208="Base Year",Campus!S234,IF($D$246="Base Year",Campus!S272,IF($D$284="Base Year",Campus!S310,IF($D$322="Base Year",Campus!S348)))))) ->  | AN44: =IF($D$132="Base Year",Campus!T158,IF($D$170="Base Year",Campus!T196,IF($D$208="Base Year",Campus!T234,IF($D$246="Base Year",Campus!T272,IF($D$284="Base Year",Campus!T310,IF($D$322="Base Year",Campus!T348)))))) ->  | AO44: =IF($D$132="Base Year",Campus!V158,IF($D$170="Base Year",Campus!V196,IF($D$208="Base Year",Campus!V234,IF($D$246="Base Year",Campus!V272,IF($D$284="Base Year",Campus!V310,IF($D$322="Base Year",Campus!V348)))))) ->  | AP44: =IF($D$132="Base Year",Campus!W158,IF($D$170="Base Year",Campus!W196,IF($D$208="Base Year",Campus!W234,IF($D$246="Base Year",Campus!W272,IF($D$284="Base Year",Campus!W310,IF($D$322="Base Year",Campus!W348)))))) -> 
Q45: =(E45*Coefficients!$B$10)+(Campus!F45*Coefficients!$D$10)+(Campus!G45*Coefficients!$F$10)+(Campus!H45*Coefficients!$H$10)+(Campus!I45*Coefficients!$J$10)+(Campus!J45*VLOOKUP($J$20,'Biodiesel Coefficients'!$J$13:$M$20,4,FALSE))+(Campus!K45*Coefficients!$L$10)+(Campus!L45*Coefficients!$N$10)+(M45*Inventory!$I$31) -> 0 | R45: =(E45*Coefficients!$C$10)+(Campus!F45*Coefficients!$E$10)+(Campus!G45*Coefficients!$G$10)+(Campus!H45*Coefficients!$I$10)+(Campus!I45*Coefficients!$K$10)+(Campus!J45*VLOOKUP($J$20,'Biodiesel Coefficients'!$J$13:$M$20,3,FALSE))+(Campus!K45*Coefficients!$M$10)+(Campus!L45*Coefficients!$O$10)+(M45*'Waste Coeff.'!$D$9)+(N45*'Waste Coeff.'!$D$9)+(Campus!O45*VLOOKUP(Campus!$O$20,'Fleets Coeff.'!$A$3:$D$10,4,FALSE)) -> 0 | AB45: =IF($D$132="Base Year",Campus!D159,IF($D$170="Base Year",Campus!D197,IF($D$208="Base Year",Campus!D235,IF($D$246="Base Year",Campus!D273,IF($D$284="Base Year",Campus!D311,IF($D$322="Base Year",Campus!D349)))))) -> 0 | AC45: =IF($D$132="Base Year",Campus!E159,IF($D$170="Base Year",Campus!E197,IF($D$208="Base Year",Campus!E235,IF($D$246="Base Year",Campus!E273,IF($D$284="Base Year",Campus!E311,IF($D$322="Base Year",Campus!E349)))))) -> 0 | AD45: =IF($D$132="Base Year",Campus!F159,IF($D$170="Base Year",Campus!F197,IF($D$208="Base Year",Campus!F235,IF($D$246="Base Year",Campus!F273,IF($D$284="Base Year",Campus!F311,IF($D$322="Base Year",Campus!F349)))))) -> 0 | AE45: =IF($D$132="Base Year",Campus!G159,IF($D$170="Base Year",Campus!G197,IF($D$208="Base Year",Campus!G235,IF($D$246="Base Year",Campus!G273,IF($D$284="Base Year",Campus!G311,IF($D$322="Base Year",Campus!G349)))))) -> 0 | AF45: =IF($D$132="Base Year",Campus!H159,IF($D$170="Base Year",Campus!H197,IF($D$208="Base Year",Campus!H235,IF($D$246="Base Year",Campus!H273,IF($D$284="Base Year",Campus!H311,IF($D$322="Base Year",Campus!H349)))))) -> 0 | AG45: =IF($D$132="Base Year",Campus!I159,IF($D$170="Base Year",Campus!I197,IF($D$208="Base Year",Campus!I235,IF($D$246="Base Year",Campus!I273,IF($D$284="Base Year",Campus!I311,IF($D$322="Base Year",Campus!I349)))))) -> 0 | AH45: =IF($D$132="Base Year",Campus!K159,IF($D$170="Base Year",Campus!K197,IF($D$208="Base Year",Campus!K235,IF($D$246="Base Year",Campus!K273,IF($D$284="Base Year",Campus!K311,IF($D$322="Base Year",Campus!K349)))))) -> 0 | AI45: =IF($D$132="Base Year",Campus!L159,IF($D$170="Base Year",Campus!L197,IF($D$208="Base Year",Campus!L235,IF($D$246="Base Year",Campus!L273,IF($D$284="Base Year",Campus!L311,IF($D$322="Base Year",Campus!L349)))))) -> 0 | AJ45: =IF($D$132="Base Year",Campus!P159,IF($D$170="Base Year",Campus!P197,IF($D$208="Base Year",Campus!P235,IF($D$246="Base Year",Campus!P273,IF($D$284="Base Year",Campus!P311,IF($D$322="Base Year",Campus!P349)))))) -> 0 | AK45: =IF($D$132="Base Year",Campus!Q159,IF($D$170="Base Year",Campus!Q197,IF($D$208="Base Year",Campus!Q235,IF($D$246="Base Year",Campus!Q273,IF($D$284="Base Year",Campus!Q311,IF($D$322="Base Year",Campus!Q349)))))) -> 0 | AL45: =IF($D$132="Base Year",Campus!R159,IF($D$170="Base Year",Campus!R197,IF($D$208="Base Year",Campus!R235,IF($D$246="Base Year",Campus!R273,IF($D$284="Base Year",Campus!R311,IF($D$322="Base Year",Campus!R349)))))) -> 0 | AM45: =IF($D$132="Base Year",Campus!S159,IF($D$170="Base Year",Campus!S197,IF($D$208="Base Year",Campus!S235,IF($D$246="Base Year",Campus!S273,IF($D$284="Base Year",Campus!S311,IF($D$322="Base Year",Campus!S349)))))) ->  | AN45: =IF($D$132="Base Year",Campus!T159,IF($D$170="Base Year",Campus!T197,IF($D$208="Base Year",Campus!T235,IF($D$246="Base Year",Campus!T273,IF($D$284="Base Year",Campus!T311,IF($D$322="Base Year",Campus!T349)))))) ->  | AO45: =IF($D$132="Base Year",Campus!V159,IF($D$170="Base Year",Campus!V197,IF($D$208="Base Year",Campus!V235,IF($D$246="Base Year",Campus!V273,IF($D$284="Base Year",Campus!V311,IF($D$322="Base Year",Campus!V349)))))) ->  | AP45: =IF($D$132="Base Year",Campus!W159,IF($D$170="Base Year",Campus!W197,IF($D$208="Base Year",Campus!W235,IF($D$246="Base Year",Campus!W273,IF($D$284="Base Year",Campus!W311,IF($D$322="Base Year",Campus!W349)))))) -> 
Q46: =(E46*Coefficients!$B$10)+(Campus!F46*Coefficients!$D$10)+(Campus!G46*Coefficients!$F$10)+(Campus!H46*Coefficients!$H$10)+(Campus!I46*Coefficients!$J$10)+(Campus!J46*VLOOKUP($J$20,'Biodiesel Coefficients'!$J$13:$M$20,4,FALSE))+(Campus!K46*Coefficients!$L$10)+(Campus!L46*Coefficients!$N$10)+(M46*Inventory!$I$31) -> 0 | R46: =(E46*Coefficients!$C$10)+(Campus!F46*Coefficients!$E$10)+(Campus!G46*Coefficients!$G$10)+(Campus!H46*Coefficients!$I$10)+(Campus!I46*Coefficients!$K$10)+(Campus!J46*VLOOKUP($J$20,'Biodiesel Coefficients'!$J$13:$M$20,3,FALSE))+(Campus!K46*Coefficients!$M$10)+(Campus!L46*Coefficients!$O$10)+(M46*'Waste Coeff.'!$D$9)+(N46*'Waste Coeff.'!$D$9)+(Campus!O46*VLOOKUP(Campus!$O$20,'Fleets Coeff.'!$A$3:$D$10,4,FALSE)) -> 0 | AB46: =IF($D$132="Base Year",Campus!D160,IF($D$170="Base Year",Campus!D198,IF($D$208="Base Year",Campus!D236,IF($D$246="Base Year",Campus!D274,IF($D$284="Base Year",Campus!D312,IF($D$322="Base Year",Campus!D350)))))) -> 0 | AC46: =IF($D$132="Base Year",Campus!E160,IF($D$170="Base Year",Campus!E198,IF($D$208="Base Year",Campus!E236,IF($D$246="Base Year",Campus!E274,IF($D$284="Base Year",Campus!E312,IF($D$322="Base Year",Campus!E350)))))) -> 0 | AD46: =IF($D$132="Base Year",Campus!F160,IF($D$170="Base Year",Campus!F198,IF($D$208="Base Year",Campus!F236,IF($D$246="Base Year",Campus!F274,IF($D$284="Base Year",Campus!F312,IF($D$322="Base Year",Campus!F350)))))) -> 0 | AE46: =IF($D$132="Base Year",Campus!G160,IF($D$170="Base Year",Campus!G198,IF($D$208="Base Year",Campus!G236,IF($D$246="Base Year",Campus!G274,IF($D$284="Base Year",Campus!G312,IF($D$322="Base Year",Campus!G350)))))) -> 0 | AF46: =IF($D$132="Base Year",Campus!H160,IF($D$170="Base Year",Campus!H198,IF($D$208="Base Year",Campus!H236,IF($D$246="Base Year",Campus!H274,IF($D$284="Base Year",Campus!H312,IF($D$322="Base Year",Campus!H350)))))) -> 0 | AG46: =IF($D$132="Base Year",Campus!I160,IF($D$170="Base Year",Campus!I198,IF($D$208="Base Year",Campus!I236,IF($D$246="Base Year",Campus!I274,IF($D$284="Base Year",Campus!I312,IF($D$322="Base Year",Campus!I350)))))) -> 0 | AH46: =IF($D$132="Base Year",Campus!K160,IF($D$170="Base Year",Campus!K198,IF($D$208="Base Year",Campus!K236,IF($D$246="Base Year",Campus!K274,IF($D$284="Base Year",Campus!K312,IF($D$322="Base Year",Campus!K350)))))) -> 0 | AI46: =IF($D$132="Base Year",Campus!L160,IF($D$170="Base Year",Campus!L198,IF($D$208="Base Year",Campus!L236,IF($D$246="Base Year",Campus!L274,IF($D$284="Base Year",Campus!L312,IF($D$322="Base Year",Campus!L350)))))) -> 0 | AJ46: =IF($D$132="Base Year",Campus!P160,IF($D$170="Base Year",Campus!P198,IF($D$208="Base Year",Campus!P236,IF($D$246="Base Year",Campus!P274,IF($D$284="Base Year",Campus!P312,IF($D$322="Base Year",Campus!P350)))))) -> 0 | AK46: =IF($D$132="Base Year",Campus!Q160,IF($D$170="Base Year",Campus!Q198,IF($D$208="Base Year",Campus!Q236,IF($D$246="Base Year",Campus!Q274,IF($D$284="Base Year",Campus!Q312,IF($D$322="Base Year",Campus!Q350)))))) -> 0 | AL46: =IF($D$132="Base Year",Campus!R160,IF($D$170="Base Year",Campus!R198,IF($D$208="Base Year",Campus!R236,IF($D$246="Base Year",Campus!R274,IF($D$284="Base Year",Campus!R312,IF($D$322="Base Year",Campus!R350)))))) -> 0 | AM46: =IF($D$132="Base Year",Campus!S160,IF($D$170="Base Year",Campus!S198,IF($D$208="Base Year",Campus!S236,IF($D$246="Base Year",Campus!S274,IF($D$284="Base Year",Campus!S312,IF($D$322="Base Year",Campus!S350)))))) ->  | AN46: =IF($D$132="Base Year",Campus!T160,IF($D$170="Base Year",Campus!T198,IF($D$208="Base Year",Campus!T236,IF($D$246="Base Year",Campus!T274,IF($D$284="Base Year",Campus!T312,IF($D$322="Base Year",Campus!T350)))))) ->  | AO46: =IF($D$132="Base Year",Campus!V160,IF($D$170="Base Year",Campus!V198,IF($D$208="Base Year",Campus!V236,IF($D$246="Base Year",Campus!V274,IF($D$284="Base Year",Campus!V312,IF($D$322="Base Year",Campus!V350)))))) ->  | AP46: =IF($D$132="Base Year",Campus!W160,IF($D$170="Base Year",Campus!W198,IF($D$208="Base Year",Campus!W236,IF($D$246="Base Year",Campus!W274,IF($D$284="Base Year",Campus!W312,IF($D$322="Base Year",Campus!W350)))))) -> 
Q47: =(E47*Coefficients!$B$10)+(Campus!F47*Coefficients!$D$10)+(Campus!G47*Coefficients!$F$10)+(Campus!H47*Coefficients!$H$10)+(Campus!I47*Coefficients!$J$10)+(Campus!J47*VLOOKUP($J$20,'Biodiesel Coefficients'!$J$13:$M$20,4,FALSE))+(Campus!K47*Coefficients!$L$10)+(Campus!L47*Coefficients!$N$10)+(M47*Inventory!$I$31) -> 0 | R47: =(E47*Coefficients!$C$10)+(Campus!F47*Coefficients!$E$10)+(Campus!G47*Coefficients!$G$10)+(Campus!H47*Coefficients!$I$10)+(Campus!I47*Coefficients!$K$10)+(Campus!J47*VLOOKUP($J$20,'Biodiesel Coefficients'!$J$13:$M$20,3,FALSE))+(Campus!K47*Coefficients!$M$10)+(Campus!L47*Coefficients!$O$10)+(M47*'Waste Coeff.'!$D$9)+(N47*'Waste Coeff.'!$D$9)+(Campus!O47*VLOOKUP(Campus!$O$20,'Fleets Coeff.'!$A$3:$D$10,4,FALSE)) -> 0 | AB47: =IF($D$132="Base Year",Campus!D161,IF($D$170="Base Year",Campus!D199,IF($D$208="Base Year",Campus!D237,IF($D$246="Base Year",Campus!D275,IF($D$284="Base Year",Campus!D313,IF($D$322="Base Year",Campus!D351)))))) -> 0 | AC47: =IF($D$132="Base Year",Campus!E161,IF($D$170="Base Year",Campus!E199,IF($D$208="Base Year",Campus!E237,IF($D$246="Base Year",Campus!E275,IF($D$284="Base Year",Campus!E313,IF($D$322="Base Year",Campus!E351)))))) -> 0 | AD47: =IF($D$132="Base Year",Campus!F161,IF($D$170="Base Year",Campus!F199,IF($D$208="Base Year",Campus!F237,IF($D$246="Base Year",Campus!F275,IF($D$284="Base Year",Campus!F313,IF($D$322="Base Year",Campus!F351)))))) -> 0 | AE47: =IF($D$132="Base Year",Campus!G161,IF($D$170="Base Year",Campus!G199,IF($D$208="Base Year",Campus!G237,IF($D$246="Base Year",Campus!G275,IF($D$284="Base Year",Campus!G313,IF($D$322="Base Year",Campus!G351)))))) -> 0 | AF47: =IF($D$132="Base Year",Campus!H161,IF($D$170="Base Year",Campus!H199,IF($D$208="Base Year",Campus!H237,IF($D$246="Base Year",Campus!H275,IF($D$284="Base Year",Campus!H313,IF($D$322="Base Year",Campus!H351)))))) -> 0 | AG47: =IF($D$132="Base Year",Campus!I161,IF($D$170="Base Year",Campus!I199,IF($D$208="Base Year",Campus!I237,IF($D$246="Base Year",Campus!I275,IF($D$284="Base Year",Campus!I313,IF($D$322="Base Year",Campus!I351)))))) -> 0 | AH47: =IF($D$132="Base Year",Campus!K161,IF($D$170="Base Year",Campus!K199,IF($D$208="Base Year",Campus!K237,IF($D$246="Base Year",Campus!K275,IF($D$284="Base Year",Campus!K313,IF($D$322="Base Year",Campus!K351)))))) -> 0 | AI47: =IF($D$132="Base Year",Campus!L161,IF($D$170="Base Year",Campus!L199,IF($D$208="Base Year",Campus!L237,IF($D$246="Base Year",Campus!L275,IF($D$284="Base Year",Campus!L313,IF($D$322="Base Year",Campus!L351)))))) -> 0 | AJ47: =IF($D$132="Base Year",Campus!P161,IF($D$170="Base Year",Campus!P199,IF($D$208="Base Year",Campus!P237,IF($D$246="Base Year",Campus!P275,IF($D$284="Base Year",Campus!P313,IF($D$322="Base Year",Campus!P351)))))) -> 0 | AK47: =IF($D$132="Base Year",Campus!Q161,IF($D$170="Base Year",Campus!Q199,IF($D$208="Base Year",Campus!Q237,IF($D$246="Base Year",Campus!Q275,IF($D$284="Base Year",Campus!Q313,IF($D$322="Base Year",Campus!Q351)))))) -> 0 | AL47: =IF($D$132="Base Year",Campus!R161,IF($D$170="Base Year",Campus!R199,IF($D$208="Base Year",Campus!R237,IF($D$246="Base Year",Campus!R275,IF($D$284="Base Year",Campus!R313,IF($D$322="Base Year",Campus!R351)))))) -> 0 | AM47: =IF($D$132="Base Year",Campus!S161,IF($D$170="Base Year",Campus!S199,IF($D$208="Base Year",Campus!S237,IF($D$246="Base Year",Campus!S275,IF($D$284="Base Year",Campus!S313,IF($D$322="Base Year",Campus!S351)))))) ->  | AN47: =IF($D$132="Base Year",Campus!T161,IF($D$170="Base Year",Campus!T199,IF($D$208="Base Year",Campus!T237,IF($D$246="Base Year",Campus!T275,IF($D$284="Base Year",Campus!T313,IF($D$322="Base Year",Campus!T351)))))) ->  | AO47: =IF($D$132="Base Year",Campus!V161,IF($D$170="Base Year",Campus!V199,IF($D$208="Base Year",Campus!V237,IF($D$246="Base Year",Campus!V275,IF($D$284="Base Year",Campus!V313,IF($D$322="Base Year",Campus!V351)))))) ->  | AP47: =IF($D$132="Base Year",Campus!W161,IF($D$170="Base Year",Campus!W199,IF($D$208="Base Year",Campus!W237,IF($D$246="Base Year",Campus!W275,IF($D$284="Base Year",Campus!W313,IF($D$322="Base Year",Campus!W351)))))) -> 
Q48: =(E48*Coefficients!$B$10)+(Campus!F48*Coefficients!$D$10)+(Campus!G48*Coefficients!$F$10)+(Campus!H48*Coefficients!$H$10)+(Campus!I48*Coefficients!$J$10)+(Campus!J48*VLOOKUP($J$20,'Biodiesel Coefficients'!$J$13:$M$20,4,FALSE))+(Campus!K48*Coefficients!$L$10)+(Campus!L48*Coefficients!$N$10)+(M48*Inventory!$I$31) -> 0 | R48: =(E48*Coefficients!$C$10)+(Campus!F48*Coefficients!$E$10)+(Campus!G48*Coefficients!$G$10)+(Campus!H48*Coefficients!$I$10)+(Campus!I48*Coefficients!$K$10)+(Campus!J48*VLOOKUP($J$20,'Biodiesel Coefficients'!$J$13:$M$20,3,FALSE))+(Campus!K48*Coefficients!$M$10)+(Campus!L48*Coefficients!$O$10)+(M48*'Waste Coeff.'!$D$9)+(N48*'Waste Coeff.'!$D$9)+(Campus!O48*VLOOKUP(Campus!$O$20,'Fleets Coeff.'!$A$3:$D$10,4,FALSE)) -> 0 | AB48: =IF($D$132="Base Year",Campus!D162,IF($D$170="Base Year",Campus!D200,IF($D$208="Base Year",Campus!D238,IF($D$246="Base Year",Campus!D276,IF($D$284="Base Year",Campus!D314,IF($D$322="Base Year",Campus!D352)))))) -> 0 | AC48: =IF($D$132="Base Year",Campus!E162,IF($D$170="Base Year",Campus!E200,IF($D$208="Base Year",Campus!E238,IF($D$246="Base Year",Campus!E276,IF($D$284="Base Year",Campus!E314,IF($D$322="Base Year",Campus!E352)))))) -> 0 | AD48: =IF($D$132="Base Year",Campus!F162,IF($D$170="Base Year",Campus!F200,IF($D$208="Base Year",Campus!F238,IF($D$246="Base Year",Campus!F276,IF($D$284="Base Year",Campus!F314,IF($D$322="Base Year",Campus!F352)))))) -> 0 | AE48: =IF($D$132="Base Year",Campus!G162,IF($D$170="Base Year",Campus!G200,IF($D$208="Base Year",Campus!G238,IF($D$246="Base Year",Campus!G276,IF($D$284="Base Year",Campus!G314,IF($D$322="Base Year",Campus!G352)))))) -> 0 | AF48: =IF($D$132="Base Year",Campus!H162,IF($D$170="Base Year",Campus!H200,IF($D$208="Base Year",Campus!H238,IF($D$246="Base Year",Campus!H276,IF($D$284="Base Year",Campus!H314,IF($D$322="Base Year",Campus!H352)))))) -> 0 | AG48: =IF($D$132="Base Year",Campus!I162,IF($D$170="Base Year",Campus!I200,IF($D$208="Base Year",Campus!I238,IF($D$246="Base Year",Campus!I276,IF($D$284="Base Year",Campus!I314,IF($D$322="Base Year",Campus!I352)))))) -> 0 | AH48: =IF($D$132="Base Year",Campus!K162,IF($D$170="Base Year",Campus!K200,IF($D$208="Base Year",Campus!K238,IF($D$246="Base Year",Campus!K276,IF($D$284="Base Year",Campus!K314,IF($D$322="Base Year",Campus!K352)))))) -> 0 | AI48: =IF($D$132="Base Year",Campus!L162,IF($D$170="Base Year",Campus!L200,IF($D$208="Base Year",Campus!L238,IF($D$246="Base Year",Campus!L276,IF($D$284="Base Year",Campus!L314,IF($D$322="Base Year",Campus!L352)))))) -> 0 | AJ48: =IF($D$132="Base Year",Campus!P162,IF($D$170="Base Year",Campus!P200,IF($D$208="Base Year",Campus!P238,IF($D$246="Base Year",Campus!P276,IF($D$284="Base Year",Campus!P314,IF($D$322="Base Year",Campus!P352)))))) -> 0 | AK48: =IF($D$132="Base Year",Campus!Q162,IF($D$170="Base Year",Campus!Q200,IF($D$208="Base Year",Campus!Q238,IF($D$246="Base Year",Campus!Q276,IF($D$284="Base Year",Campus!Q314,IF($D$322="Base Year",Campus!Q352)))))) -> 0 | AL48: =IF($D$132="Base Year",Campus!R162,IF($D$170="Base Year",Campus!R200,IF($D$208="Base Year",Campus!R238,IF($D$246="Base Year",Campus!R276,IF($D$284="Base Year",Campus!R314,IF($D$322="Base Year",Campus!R352)))))) -> 0 | AM48: =IF($D$132="Base Year",Campus!S162,IF($D$170="Base Year",Campus!S200,IF($D$208="Base Year",Campus!S238,IF($D$246="Base Year",Campus!S276,IF($D$284="Base Year",Campus!S314,IF($D$322="Base Year",Campus!S352)))))) ->  | AN48: =IF($D$132="Base Year",Campus!T162,IF($D$170="Base Year",Campus!T200,IF($D$208="Base Year",Campus!T238,IF($D$246="Base Year",Campus!T276,IF($D$284="Base Year",Campus!T314,IF($D$322="Base Year",Campus!T352)))))) ->  | AO48: =IF($D$132="Base Year",Campus!V162,IF($D$170="Base Year",Campus!V200,IF($D$208="Base Year",Campus!V238,IF($D$246="Base Year",Campus!V276,IF($D$284="Base Year",Campus!V314,IF($D$322="Base Year",Campus!V352)))))) ->  | AP48: =IF($D$132="Base Year",Campus!W162,IF($D$170="Base Year",Campus!W200,IF($D$208="Base Year",Campus!W238,IF($D$246="Base Year",Campus!W276,IF($D$284="Base Year",Campus!W314,IF($D$322="Base Year",Campus!W352)))))) -> 
D49: Total | E49: =SUM(E24:E48) -> 0 | F49: =SUM(F24:F48) -> 0 | G49: =SUM(G24:G48) -> 0 | H49: =SUM(H24:H48) -> 0 | I49: =SUM(I24:I48) -> 0 | K49: =SUM(K24:K48) -> 0 | L49: =SUM(L24:L48) -> 0 | P49: =SUM(P24:P48) -> 0 | Q49: =SUM(Q24:Q48) -> 0 | R49: =SUM(R24:R48) -> 0 | S49: =IFERROR(Q49/P49,"") ->  | T49: =IFERROR(R49/P49,"") ->  | U49: =IFERROR((T49*2205),"") ->  | AB49: =IF($D$132="Base Year",Campus!D163,IF($D$170="Base Year",Campus!D201,IF($D$208="Base Year",Campus!D239,IF($D$246="Base Year",Campus!D277,IF($D$284="Base Year",Campus!D315,IF($D$322="Base Year",Campus!D353)))))) -> Total | AC49: =IF($D$132="Base Year",Campus!E163,IF($D$170="Base Year",Campus!E201,IF($D$208="Base Year",Campus!E239,IF($D$246="Base Year",Campus!E277,IF($D$284="Base Year",Campus!E315,IF($D$322="Base Year",Campus!E353)))))) -> 0 | AD49: =IF($D$132="Base Year",Campus!F163,IF($D$170="Base Year",Campus!F201,IF($D$208="Base Year",Campus!F239,IF($D$246="Base Year",Campus!F277,IF($D$284="Base Year",Campus!F315,IF($D$322="Base Year",Campus!F353)))))) -> 0 | AE49: =IF($D$132="Base Year",Campus!G163,IF($D$170="Base Year",Campus!G201,IF($D$208="Base Year",Campus!G239,IF($D$246="Base Year",Campus!G277,IF($D$284="Base Year",Campus!G315,IF($D$322="Base Year",Campus!G353)))))) -> 0 | AF49: =IF($D$132="Base Year",Campus!H163,IF($D$170="Base Year",Campus!H201,IF($D$208="Base Year",Campus!H239,IF($D$246="Base Year",Campus!H277,IF($D$284="Base Year",Campus!H315,IF($D$322="Base Year",Campus!H353)))))) -> 0 | AG49: =IF($D$132="Base Year",Campus!I163,IF($D$170="Base Year",Campus!I201,IF($D$208="Base Year",Campus!I239,IF($D$246="Base Year",Campus!I277,IF($D$284="Base Year",Campus!I315,IF($D$322="Base Year",Campus!I353)))))) -> 0 | AH49: =IF($D$132="Base Year",Campus!K163,IF($D$170="Base Year",Campus!K201,IF($D$208="Base Year",Campus!K239,IF($D$246="Base Year",Campus!K277,IF($D$284="Base Year",Campus!K315,IF($D$322="Base Year",Campus!K353)))))) -> 0 | AI49: =IF($D$132="Base Year",Campus!L163,IF($D$170="Base Year",Campus!L201,IF($D$208="Base Year",Campus!L239,IF($D$246="Base Year",Campus!L277,IF($D$284="Base Year",Campus!L315,IF($D$322="Base Year",Campus!L353)))))) -> 0 | AJ49: =IF($D$132="Base Year",Campus!P163,IF($D$170="Base Year",Campus!P201,IF($D$208="Base Year",Campus!P239,IF($D$246="Base Year",Campus!P277,IF($D$284="Base Year",Campus!P315,IF($D$322="Base Year",Campus!P353)))))) -> 0 | AK49: =IF($D$132="Base Year",Campus!Q163,IF($D$170="Base Year",Campus!Q201,IF($D$208="Base Year",Campus!Q239,IF($D$246="Base Year",Campus!Q277,IF($D$284="Base Year",Campus!Q315,IF($D$322="Base Year",Campus!Q353)))))) -> 0 | AL49: =IF($D$132="Base Year",Campus!R163,IF($D$170="Base Year",Campus!R201,IF($D$208="Base Year",Campus!R239,IF($D$246="Base Year",Campus!R277,IF($D$284="Base Year",Campus!R315,IF($D$322="Base Year",Campus!R353)))))) -> 0 | AM49: =IF($D$132="Base Year",Campus!S163,IF($D$170="Base Year",Campus!S201,IF($D$208="Base Year",Campus!S239,IF($D$246="Base Year",Campus!S277,IF($D$284="Base Year",Campus!S315,IF($D$322="Base Year",Campus!S353)))))) ->  | AN49: =IF($D$132="Base Year",Campus!T163,IF($D$170="Base Year",Campus!T201,IF($D$208="Base Year",Campus!T239,IF($D$246="Base Year",Campus!T277,IF($D$284="Base Year",Campus!T315,IF($D$322="Base Year",Campus!T353)))))) ->  | AO49: =IF($D$132="Base Year",Campus!V163,IF($D$170="Base Year",Campus!V201,IF($D$208="Base Year",Campus!V239,IF($D$246="Base Year",Campus!V277,IF($D$284="Base Year",Campus!V315,IF($D$322="Base Year",Campus!V353)))))) ->  | AP49: =IF($D$132="Base Year",Campus!W163,IF($D$170="Base Year",Campus!W201,IF($D$208="Base Year",Campus!W239,IF($D$246="Base Year",Campus!W277,IF($D$284="Base Year",Campus!W315,IF($D$322="Base Year",Campus!W353)))))) -> 
C56: 2001 | D56: =IF(Inventory!$K$7=2001,"Base Year", "") -> 
D57: Campus Level Energy and Emissions Inventory By Fuel Type
E58: Electricity (kWh) | F58: NG (Therms) | G58: #2 Oil (USG) | H58: #4 Oil (USG) | I58: #6 Oil (USG) | J58: Biodiesel (Select Type) | K58: Diesel (USG) | L58: Steam (Mlbs) | O58: Fuel (Select Type) | P58: Square Feet | Q58: Total MMBTU | R58: Total Mtons CO2e | S58: Total MMBTU per sq. ft. | T58: Total CO2e per sq.ft. | U58: Total lbs CO2e/sq.ft. | V58: MMBtu %Δ from base year | W58: CO2e %Δ from base year
D59: Campus | J59: Biodiesel Blend (USG) | M59: On-site Renewable Electricity | N59: Waste (Tons) | O59: Fleets (USG)
Q62: =(E62*Coefficients!$B$10)+(Campus!F62*Coefficients!$D$10)+(Campus!G62*Coefficients!$F$10)+(Campus!H62*Coefficients!$H$10)+(Campus!I62*Coefficients!$J$10)+(Campus!J62*VLOOKUP($J$58,'Biodiesel Coefficients'!$J$13:$M$20,4,FALSE))+(Campus!K62*Coefficients!$L$10)+(Campus!L62*Coefficients!$N$10)+(M62*Inventory!$I$31) -> 0 | R62: =(E62*Coefficients!$C$10)+(Campus!F62*Coefficients!$E$10)+(Campus!G62*Coefficients!$G$10)+(Campus!H62*Coefficients!$I$10)+(Campus!I62*Coefficients!$K$10)+(Campus!J62*VLOOKUP($J$58,'Biodiesel Coefficients'!$J$13:$M$20,3,FALSE))+(Campus!K62*Coefficients!$M$10)+(Campus!L62*Coefficients!$O$10)+(N62*'Waste Coeff.'!$D$9)+(Campus!O62*VLOOKUP($O$58,'Fleets Coeff.'!$A$3:$D$10,4,FALSE)) -> 0 | S62: =IF(ISERR(Q62/P62),"", (Q62/P62)) ->  | T62: =IF(ISERR(R62/P62),"", (R62/P62)) ->  | U62: =IF(ISERR(T62*2205),"",(T62*2205)) ->  | V62: =IFERROR((S62-AM24)/AM24,"") ->  | W62: =IFERROR((T62-AN24)/AN24,"") -> 
Q63: =(E63*Coefficients!$B$10)+(Campus!F63*Coefficients!$D$10)+(Campus!G63*Coefficients!$F$10)+(Campus!H63*Coefficients!$H$10)+(Campus!I63*Coefficients!$J$10)+(Campus!J63*VLOOKUP($J$58,'Biodiesel Coefficients'!$J$13:$M$20,4,FALSE))+(Campus!K63*Coefficients!$L$10)+(Campus!L63*Coefficients!$N$10)+(M63*Inventory!$I$31) -> 0 | R63: =(E63*Coefficients!$C$10)+(Campus!F63*Coefficients!$E$10)+(Campus!G63*Coefficients!$G$10)+(Campus!H63*Coefficients!$I$10)+(Campus!I63*Coefficients!$K$10)+(Campus!J63*VLOOKUP($J$58,'Biodiesel Coefficients'!$J$13:$M$20,3,FALSE))+(Campus!K63*Coefficients!$M$10)+(Campus!L63*Coefficients!$O$10)+(N63*'Waste Coeff.'!$D$9)+(Campus!O63*VLOOKUP($O$58,'Fleets Coeff.'!$A$3:$D$10,4,FALSE)) -> 0
Q64: =(E64*Coefficients!$B$10)+(Campus!F64*Coefficients!$D$10)+(Campus!G64*Coefficients!$F$10)+(Campus!H64*Coefficients!$H$10)+(Campus!I64*Coefficients!$J$10)+(Campus!J64*VLOOKUP($J$58,'Biodiesel Coefficients'!$J$13:$M$20,4,FALSE))+(Campus!K64*Coefficients!$L$10)+(Campus!L64*Coefficients!$N$10)+(M64*Inventory!$I$31) -> 0 | R64: =(E64*Coefficients!$C$10)+(Campus!F64*Coefficients!$E$10)+(Campus!G64*Coefficients!$G$10)+(Campus!H64*Coefficients!$I$10)+(Campus!I64*Coefficients!$K$10)+(Campus!J64*VLOOKUP($J$58,'Biodiesel Coefficients'!$J$13:$M$20,3,FALSE))+(Campus!K64*Coefficients!$M$10)+(Campus!L64*Coefficients!$O$10)+(N64*'Waste Coeff.'!$D$9)+(Campus!O64*VLOOKUP($O$58,'Fleets Coeff.'!$A$3:$D$10,4,FALSE)) -> 0
Q65: =(E65*Coefficients!$B$10)+(Campus!F65*Coefficients!$D$10)+(Campus!G65*Coefficients!$F$10)+(Campus!H65*Coefficients!$H$10)+(Campus!I65*Coefficients!$J$10)+(Campus!J65*VLOOKUP($J$58,'Biodiesel Coefficients'!$J$13:$M$20,4,FALSE))+(Campus!K65*Coefficients!$L$10)+(Campus!L65*Coefficients!$N$10)+(M65*Inventory!$I$31) -> 0 | R65: =(E65*Coefficients!$C$10)+(Campus!F65*Coefficients!$E$10)+(Campus!G65*Coefficients!$G$10)+(Campus!H65*Coefficients!$I$10)+(Campus!I65*Coefficients!$K$10)+(Campus!J65*VLOOKUP($J$58,'Biodiesel Coefficients'!$J$13:$M$20,3,FALSE))+(Campus!K65*Coefficients!$M$10)+(Campus!L65*Coefficients!$O$10)+(N65*'Waste Coeff.'!$D$9)+(Campus!O65*VLOOKUP($O$58,'Fleets Coeff.'!$A$3:$D$10,4,FALSE)) -> 0
Q66: =(E66*Coefficients!$B$10)+(Campus!F66*Coefficients!$D$10)+(Campus!G66*Coefficients!$F$10)+(Campus!H66*Coefficients!$H$10)+(Campus!I66*Coefficients!$J$10)+(Campus!J66*VLOOKUP($J$58,'Biodiesel Coefficients'!$J$13:$M$20,4,FALSE))+(Campus!K66*Coefficients!$L$10)+(Campus!L66*Coefficients!$N$10)+(M66*Inventory!$I$31) -> 0 | R66: =(E66*Coefficients!$C$10)+(Campus!F66*Coefficients!$E$10)+(Campus!G66*Coefficients!$G$10)+(Campus!H66*Coefficients!$I$10)+(Campus!I66*Coefficients!$K$10)+(Campus!J66*VLOOKUP($J$58,'Biodiesel Coefficients'!$J$13:$M$20,3,FALSE))+(Campus!K66*Coefficients!$M$10)+(Campus!L66*Coefficients!$O$10)+(N66*'Waste Coeff.'!$D$9)+(Campus!O66*VLOOKUP($O$58,'Fleets Coeff.'!$A$3:$D$10,4,FALSE)) -> 0
Q67: =(E67*Coefficients!$B$10)+(Campus!F67*Coefficients!$D$10)+(Campus!G67*Coefficients!$F$10)+(Campus!H67*Coefficients!$H$10)+(Campus!I67*Coefficients!$J$10)+(Campus!J67*VLOOKUP($J$58,'Biodiesel Coefficients'!$J$13:$M$20,4,FALSE))+(Campus!K67*Coefficients!$L$10)+(Campus!L67*Coefficients!$N$10)+(M67*Inventory!$I$31) -> 0 | R67: =(E67*Coefficients!$C$10)+(Campus!F67*Coefficients!$E$10)+(Campus!G67*Coefficients!$G$10)+(Campus!H67*Coefficients!$I$10)+(Campus!I67*Coefficients!$K$10)+(Campus!J67*VLOOKUP($J$58,'Biodiesel Coefficients'!$J$13:$M$20,3,FALSE))+(Campus!K67*Coefficients!$M$10)+(Campus!L67*Coefficients!$O$10)+(N67*'Waste Coeff.'!$D$9)+(Campus!O67*VLOOKUP($O$58,'Fleets Coeff.'!$A$3:$D$10,4,FALSE)) -> 0
Q68: =(E68*Coefficients!$B$10)+(Campus!F68*Coefficients!$D$10)+(Campus!G68*Coefficients!$F$10)+(Campus!H68*Coefficients!$H$10)+(Campus!I68*Coefficients!$J$10)+(Campus!J68*VLOOKUP($J$58,'Biodiesel Coefficients'!$J$13:$M$20,4,FALSE))+(Campus!K68*Coefficients!$L$10)+(Campus!L68*Coefficients!$N$10)+(M68*Inventory!$I$31) -> 0 | R68: =(E68*Coefficients!$C$10)+(Campus!F68*Coefficients!$E$10)+(Campus!G68*Coefficients!$G$10)+(Campus!H68*Coefficients!$I$10)+(Campus!I68*Coefficients!$K$10)+(Campus!J68*VLOOKUP($J$58,'Biodiesel Coefficients'!$J$13:$M$20,3,FALSE))+(Campus!K68*Coefficients!$M$10)+(Campus!L68*Coefficients!$O$10)+(N68*'Waste Coeff.'!$D$9)+(Campus!O68*VLOOKUP($O$58,'Fleets Coeff.'!$A$3:$D$10,4,FALSE)) -> 0
Q69: =(E69*Coefficients!$B$10)+(Campus!F69*Coefficients!$D$10)+(Campus!G69*Coefficients!$F$10)+(Campus!H69*Coefficients!$H$10)+(Campus!I69*Coefficients!$J$10)+(Campus!J69*VLOOKUP($J$58,'Biodiesel Coefficients'!$J$13:$M$20,4,FALSE))+(Campus!K69*Coefficients!$L$10)+(Campus!L69*Coefficients!$N$10)+(M69*Inventory!$I$31) -> 0 | R69: =(E69*Coefficients!$C$10)+(Campus!F69*Coefficients!$E$10)+(Campus!G69*Coefficients!$G$10)+(Campus!H69*Coefficients!$I$10)+(Campus!I69*Coefficients!$K$10)+(Campus!J69*VLOOKUP($J$58,'Biodiesel Coefficients'!$J$13:$M$20,3,FALSE))+(Campus!K69*Coefficients!$M$10)+(Campus!L69*Coefficients!$O$10)+(N69*'Waste Coeff.'!$D$9)+(Campus!O69*VLOOKUP($O$58,'Fleets Coeff.'!$A$3:$D$10,4,FALSE)) -> 0
Q70: =(E70*Coefficients!$B$10)+(Campus!F70*Coefficients!$D$10)+(Campus!G70*Coefficients!$F$10)+(Campus!H70*Coefficients!$H$10)+(Campus!I70*Coefficients!$J$10)+(Campus!J70*VLOOKUP($J$58,'Biodiesel Coefficients'!$J$13:$M$20,4,FALSE))+(Campus!K70*Coefficients!$L$10)+(Campus!L70*Coefficients!$N$10)+(M70*Inventory!$I$31) -> 0 | R70: =(E70*Coefficients!$C$10)+(Campus!F70*Coefficients!$E$10)+(Campus!G70*Coefficients!$G$10)+(Campus!H70*Coefficients!$I$10)+(Campus!I70*Coefficients!$K$10)+(Campus!J70*VLOOKUP($J$58,'Biodiesel Coefficients'!$J$13:$M$20,3,FALSE))+(Campus!K70*Coefficients!$M$10)+(Campus!L70*Coefficients!$O$10)+(N70*'Waste Coeff.'!$D$9)+(Campus!O70*VLOOKUP($O$58,'Fleets Coeff.'!$A$3:$D$10,4,FALSE)) -> 0
Q71: =(E71*Coefficients!$B$10)+(Campus!F71*Coefficients!$D$10)+(Campus!G71*Coefficients!$F$10)+(Campus!H71*Coefficients!$H$10)+(Campus!I71*Coefficients!$J$10)+(Campus!J71*VLOOKUP($J$58,'Biodiesel Coefficients'!$J$13:$M$20,4,FALSE))+(Campus!K71*Coefficients!$L$10)+(Campus!L71*Coefficients!$N$10)+(M71*Inventory!$I$31) -> 0 | R71: =(E71*Coefficients!$C$10)+(Campus!F71*Coefficients!$E$10)+(Campus!G71*Coefficients!$G$10)+(Campus!H71*Coefficients!$I$10)+(Campus!I71*Coefficients!$K$10)+(Campus!J71*VLOOKUP($J$58,'Biodiesel Coefficients'!$J$13:$M$20,3,FALSE))+(Campus!K71*Coefficients!$M$10)+(Campus!L71*Coefficients!$O$10)+(N71*'Waste Coeff.'!$D$9)+(Campus!O71*VLOOKUP($O$58,'Fleets Coeff.'!$A$3:$D$10,4,FALSE)) -> 0
Q72: =(E72*Coefficients!$B$10)+(Campus!F72*Coefficients!$D$10)+(Campus!G72*Coefficients!$F$10)+(Campus!H72*Coefficients!$H$10)+(Campus!I72*Coefficients!$J$10)+(Campus!J72*VLOOKUP($J$58,'Biodiesel Coefficients'!$J$13:$M$20,4,FALSE))+(Campus!K72*Coefficients!$L$10)+(Campus!L72*Coefficients!$N$10)+(M72*Inventory!$I$31) -> 0 | R72: =(E72*Coefficients!$C$10)+(Campus!F72*Coefficients!$E$10)+(Campus!G72*Coefficients!$G$10)+(Campus!H72*Coefficients!$I$10)+(Campus!I72*Coefficients!$K$10)+(Campus!J72*VLOOKUP($J$58,'Biodiesel Coefficients'!$J$13:$M$20,3,FALSE))+(Campus!K72*Coefficients!$M$10)+(Campus!L72*Coefficients!$O$10)+(N72*'Waste Coeff.'!$D$9)+(Campus!O72*VLOOKUP($O$58,'Fleets Coeff.'!$A$3:$D$10,4,FALSE)) -> 0
Q73: =(E73*Coefficients!$B$10)+(Campus!F73*Coefficients!$D$10)+(Campus!G73*Coefficients!$F$10)+(Campus!H73*Coefficients!$H$10)+(Campus!I73*Coefficients!$J$10)+(Campus!J73*VLOOKUP($J$58,'Biodiesel Coefficients'!$J$13:$M$20,4,FALSE))+(Campus!K73*Coefficients!$L$10)+(Campus!L73*Coefficients!$N$10)+(M73*Inventory!$I$31) -> 0 | R73: =(E73*Coefficients!$C$10)+(Campus!F73*Coefficients!$E$10)+(Campus!G73*Coefficients!$G$10)+(Campus!H73*Coefficients!$I$10)+(Campus!I73*Coefficients!$K$10)+(Campus!J73*VLOOKUP($J$58,'Biodiesel Coefficients'!$J$13:$M$20,3,FALSE))+(Campus!K73*Coefficients!$M$10)+(Campus!L73*Coefficients!$O$10)+(N73*'Waste Coeff.'!$D$9)+(Campus!O73*VLOOKUP($O$58,'Fleets Coeff.'!$A$3:$D$10,4,FALSE)) -> 0
Q74: =(E74*Coefficients!$B$10)+(Campus!F74*Coefficients!$D$10)+(Campus!G74*Coefficients!$F$10)+(Campus!H74*Coefficients!$H$10)+(Campus!I74*Coefficients!$J$10)+(Campus!J74*VLOOKUP($J$58,'Biodiesel Coefficients'!$J$13:$M$20,4,FALSE))+(Campus!K74*Coefficients!$L$10)+(Campus!L74*Coefficients!$N$10)+(M74*Inventory!$I$31) -> 0 | R74: =(E74*Coefficients!$C$10)+(Campus!F74*Coefficients!$E$10)+(Campus!G74*Coefficients!$G$10)+(Campus!H74*Coefficients!$I$10)+(Campus!I74*Coefficients!$K$10)+(Campus!J74*VLOOKUP($J$58,'Biodiesel Coefficients'!$J$13:$M$20,3,FALSE))+(Campus!K74*Coefficients!$M$10)+(Campus!L74*Coefficients!$O$10)+(N74*'Waste Coeff.'!$D$9)+(Campus!O74*VLOOKUP($O$58,'Fleets Coeff.'!$A$3:$D$10,4,FALSE)) -> 0
Q75: =(E75*Coefficients!$B$10)+(Campus!F75*Coefficients!$D$10)+(Campus!G75*Coefficients!$F$10)+(Campus!H75*Coefficients!$H$10)+(Campus!I75*Coefficients!$J$10)+(Campus!J75*VLOOKUP($J$58,'Biodiesel Coefficients'!$J$13:$M$20,4,FALSE))+(Campus!K75*Coefficients!$L$10)+(Campus!L75*Coefficients!$N$10)+(M75*Inventory!$I$31) -> 0 | R75: =(E75*Coefficients!$C$10)+(Campus!F75*Coefficients!$E$10)+(Campus!G75*Coefficients!$G$10)+(Campus!H75*Coefficients!$I$10)+(Campus!I75*Coefficients!$K$10)+(Campus!J75*VLOOKUP($J$58,'Biodiesel Coefficients'!$J$13:$M$20,3,FALSE))+(Campus!K75*Coefficients!$M$10)+(Campus!L75*Coefficients!$O$10)+(N75*'Waste Coeff.'!$D$9)+(Campus!O75*VLOOKUP($O$58,'Fleets Coeff.'!$A$3:$D$10,4,FALSE)) -> 0
Q76: =(E76*Coefficients!$B$10)+(Campus!F76*Coefficients!$D$10)+(Campus!G76*Coefficients!$F$10)+(Campus!H76*Coefficients!$H$10)+(Campus!I76*Coefficients!$J$10)+(Campus!J76*VLOOKUP($J$58,'Biodiesel Coefficients'!$J$13:$M$20,4,FALSE))+(Campus!K76*Coefficients!$L$10)+(Campus!L76*Coefficients!$N$10)+(M76*Inventory!$I$31) -> 0 | R76: =(E76*Coefficients!$C$10)+(Campus!F76*Coefficients!$E$10)+(Campus!G76*Coefficients!$G$10)+(Campus!H76*Coefficients!$I$10)+(Campus!I76*Coefficients!$K$10)+(Campus!J76*VLOOKUP($J$58,'Biodiesel Coefficients'!$J$13:$M$20,3,FALSE))+(Campus!K76*Coefficients!$M$10)+(Campus!L76*Coefficients!$O$10)+(N76*'Waste Coeff.'!$D$9)+(Campus!O76*VLOOKUP($O$58,'Fleets Coeff.'!$A$3:$D$10,4,FALSE)) -> 0
Q77: =(E77*Coefficients!$B$10)+(Campus!F77*Coefficients!$D$10)+(Campus!G77*Coefficients!$F$10)+(Campus!H77*Coefficients!$H$10)+(Campus!I77*Coefficients!$J$10)+(Campus!J77*VLOOKUP($J$58,'Biodiesel Coefficients'!$J$13:$M$20,4,FALSE))+(Campus!K77*Coefficients!$L$10)+(Campus!L77*Coefficients!$N$10)+(M77*Inventory!$I$31) -> 0 | R77: =(E77*Coefficients!$C$10)+(Campus!F77*Coefficients!$E$10)+(Campus!G77*Coefficients!$G$10)+(Campus!H77*Coefficients!$I$10)+(Campus!I77*Coefficients!$K$10)+(Campus!J77*VLOOKUP($J$58,'Biodiesel Coefficients'!$J$13:$M$20,3,FALSE))+(Campus!K77*Coefficients!$M$10)+(Campus!L77*Coefficients!$O$10)+(N77*'Waste Coeff.'!$D$9)+(Campus!O77*VLOOKUP($O$58,'Fleets Coeff.'!$A$3:$D$10,4,FALSE)) -> 0
Q78: =(E78*Coefficients!$B$10)+(Campus!F78*Coefficients!$D$10)+(Campus!G78*Coefficients!$F$10)+(Campus!H78*Coefficients!$H$10)+(Campus!I78*Coefficients!$J$10)+(Campus!J78*VLOOKUP($J$58,'Biodiesel Coefficients'!$J$13:$M$20,4,FALSE))+(Campus!K78*Coefficients!$L$10)+(Campus!L78*Coefficients!$N$10)+(M78*Inventory!$I$31) -> 0 | R78: =(E78*Coefficients!$C$10)+(Campus!F78*Coefficients!$E$10)+(Campus!G78*Coefficients!$G$10)+(Campus!H78*Coefficients!$I$10)+(Campus!I78*Coefficients!$K$10)+(Campus!J78*VLOOKUP($J$58,'Biodiesel Coefficients'!$J$13:$M$20,3,FALSE))+(Campus!K78*Coefficients!$M$10)+(Campus!L78*Coefficients!$O$10)+(N78*'Waste Coeff.'!$D$9)+(Campus!O78*VLOOKUP($O$58,'Fleets Coeff.'!$A$3:$D$10,4,FALSE)) -> 0
Q79: =(E79*Coefficients!$B$10)+(Campus!F79*Coefficients!$D$10)+(Campus!G79*Coefficients!$F$10)+(Campus!H79*Coefficients!$H$10)+(Campus!I79*Coefficients!$J$10)+(Campus!J79*VLOOKUP($J$58,'Biodiesel Coefficients'!$J$13:$M$20,4,FALSE))+(Campus!K79*Coefficients!$L$10)+(Campus!L79*Coefficients!$N$10)+(M79*Inventory!$I$31) -> 0 | R79: =(E79*Coefficients!$C$10)+(Campus!F79*Coefficients!$E$10)+(Campus!G79*Coefficients!$G$10)+(Campus!H79*Coefficients!$I$10)+(Campus!I79*Coefficients!$K$10)+(Campus!J79*VLOOKUP($J$58,'Biodiesel Coefficients'!$J$13:$M$20,3,FALSE))+(Campus!K79*Coefficients!$M$10)+(Campus!L79*Coefficients!$O$10)+(N79*'Waste Coeff.'!$D$9)+(Campus!O79*VLOOKUP($O$58,'Fleets Coeff.'!$A$3:$D$10,4,FALSE)) -> 0
Q80: =(E80*Coefficients!$B$10)+(Campus!F80*Coefficients!$D$10)+(Campus!G80*Coefficients!$F$10)+(Campus!H80*Coefficients!$H$10)+(Campus!I80*Coefficients!$J$10)+(Campus!J80*VLOOKUP($J$58,'Biodiesel Coefficients'!$J$13:$M$20,4,FALSE))+(Campus!K80*Coefficients!$L$10)+(Campus!L80*Coefficients!$N$10)+(M80*Inventory!$I$31) -> 0 | R80: =(E80*Coefficients!$C$10)+(Campus!F80*Coefficients!$E$10)+(Campus!G80*Coefficients!$G$10)+(Campus!H80*Coefficients!$I$10)+(Campus!I80*Coefficients!$K$10)+(Campus!J80*VLOOKUP($J$58,'Biodiesel Coefficients'!$J$13:$M$20,3,FALSE))+(Campus!K80*Coefficients!$M$10)+(Campus!L80*Coefficients!$O$10)+(N80*'Waste Coeff.'!$D$9)+(Campus!O80*VLOOKUP($O$58,'Fleets Coeff.'!$A$3:$D$10,4,FALSE)) -> 0
Q81: =(E81*Coefficients!$B$10)+(Campus!F81*Coefficients!$D$10)+(Campus!G81*Coefficients!$F$10)+(Campus!H81*Coefficients!$H$10)+(Campus!I81*Coefficients!$J$10)+(Campus!J81*VLOOKUP($J$58,'Biodiesel Coefficients'!$J$13:$M$20,4,FALSE))+(Campus!K81*Coefficients!$L$10)+(Campus!L81*Coefficients!$N$10)+(M81*Inventory!$I$31) -> 0 | R81: =(E81*Coefficients!$C$10)+(Campus!F81*Coefficients!$E$10)+(Campus!G81*Coefficients!$G$10)+(Campus!H81*Coefficients!$I$10)+(Campus!I81*Coefficients!$K$10)+(Campus!J81*VLOOKUP($J$58,'Biodiesel Coefficients'!$J$13:$M$20,3,FALSE))+(Campus!K81*Coefficients!$M$10)+(Campus!L81*Coefficients!$O$10)+(N81*'Waste Coeff.'!$D$9)+(Campus!O81*VLOOKUP($O$58,'Fleets Coeff.'!$A$3:$D$10,4,FALSE)) -> 0
Q82: =(E82*Coefficients!$B$10)+(Campus!F82*Coefficients!$D$10)+(Campus!G82*Coefficients!$F$10)+(Campus!H82*Coefficients!$H$10)+(Campus!I82*Coefficients!$J$10)+(Campus!J82*VLOOKUP($J$58,'Biodiesel Coefficients'!$J$13:$M$20,4,FALSE))+(Campus!K82*Coefficients!$L$10)+(Campus!L82*Coefficients!$N$10)+(M82*Inventory!$I$31) -> 0 | R82: =(E82*Coefficients!$C$10)+(Campus!F82*Coefficients!$E$10)+(Campus!G82*Coefficients!$G$10)+(Campus!H82*Coefficients!$I$10)+(Campus!I82*Coefficients!$K$10)+(Campus!J82*VLOOKUP($J$58,'Biodiesel Coefficients'!$J$13:$M$20,3,FALSE))+(Campus!K82*Coefficients!$M$10)+(Campus!L82*Coefficients!$O$10)+(N82*'Waste Coeff.'!$D$9)+(Campus!O82*VLOOKUP($O$58,'Fleets Coeff.'!$A$3:$D$10,4,FALSE)) -> 0
Q83: =(E83*Coefficients!$B$10)+(Campus!F83*Coefficients!$D$10)+(Campus!G83*Coefficients!$F$10)+(Campus!H83*Coefficients!$H$10)+(Campus!I83*Coefficients!$J$10)+(Campus!J83*VLOOKUP($J$58,'Biodiesel Coefficients'!$J$13:$M$20,4,FALSE))+(Campus!K83*Coefficients!$L$10)+(Campus!L83*Coefficients!$N$10)+(M83*Inventory!$I$31) -> 0 | R83: =(E83*Coefficients!$C$10)+(Campus!F83*Coefficients!$E$10)+(Campus!G83*Coefficients!$G$10)+(Campus!H83*Coefficients!$I$10)+(Campus!I83*Coefficients!$K$10)+(Campus!J83*VLOOKUP($J$58,'Biodiesel Coefficients'!$J$13:$M$20,3,FALSE))+(Campus!K83*Coefficients!$M$10)+(Campus!L83*Coefficients!$O$10)+(N83*'Waste Coeff.'!$D$9)+(Campus!O83*VLOOKUP($O$58,'Fleets Coeff.'!$A$3:$D$10,4,FALSE)) -> 0
Q84: =(E84*Coefficients!$B$10)+(Campus!F84*Coefficients!$D$10)+(Campus!G84*Coefficients!$F$10)+(Campus!H84*Coefficients!$H$10)+(Campus!I84*Coefficients!$J$10)+(Campus!J84*VLOOKUP($J$58,'Biodiesel Coefficients'!$J$13:$M$20,4,FALSE))+(Campus!K84*Coefficients!$L$10)+(Campus!L84*Coefficients!$N$10)+(M84*Inventory!$I$31) -> 0 | R84: =(E84*Coefficients!$C$10)+(Campus!F84*Coefficients!$E$10)+(Campus!G84*Coefficients!$G$10)+(Campus!H84*Coefficients!$I$10)+(Campus!I84*Coefficients!$K$10)+(Campus!J84*VLOOKUP($J$58,'Biodiesel Coefficients'!$J$13:$M$20,3,FALSE))+(Campus!K84*Coefficients!$M$10)+(Campus!L84*Coefficients!$O$10)+(N84*'Waste Coeff.'!$D$9)+(Campus!O84*VLOOKUP($O$58,'Fleets Coeff.'!$A$3:$D$10,4,FALSE)) -> 0
Q85: =(E85*Coefficients!$B$10)+(Campus!F85*Coefficients!$D$10)+(Campus!G85*Coefficients!$F$10)+(Campus!H85*Coefficients!$H$10)+(Campus!I85*Coefficients!$J$10)+(Campus!J85*VLOOKUP($J$58,'Biodiesel Coefficients'!$J$13:$M$20,4,FALSE))+(Campus!K85*Coefficients!$L$10)+(Campus!L85*Coefficients!$N$10)+(M85*Inventory!$I$31) -> 0 | R85: =(E85*Coefficients!$C$10)+(Campus!F85*Coefficients!$E$10)+(Campus!G85*Coefficients!$G$10)+(Campus!H85*Coefficients!$I$10)+(Campus!I85*Coefficients!$K$10)+(Campus!J85*VLOOKUP($J$58,'Biodiesel Coefficients'!$J$13:$M$20,3,FALSE))+(Campus!K85*Coefficients!$M$10)+(Campus!L85*Coefficients!$O$10)+(N85*'Waste Coeff.'!$D$9)+(Campus!O85*VLOOKUP($O$58,'Fleets Coeff.'!$A$3:$D$10,4,FALSE)) -> 0
Q86: =(E86*Coefficients!$B$10)+(Campus!F86*Coefficients!$D$10)+(Campus!G86*Coefficients!$F$10)+(Campus!H86*Coefficients!$H$10)+(Campus!I86*Coefficients!$J$10)+(Campus!J86*VLOOKUP($J$58,'Biodiesel Coefficients'!$J$13:$M$20,4,FALSE))+(Campus!K86*Coefficients!$L$10)+(Campus!L86*Coefficients!$N$10)+(M86*Inventory!$I$31) -> 0 | R86: =(E86*Coefficients!$C$10)+(Campus!F86*Coefficients!$E$10)+(Campus!G86*Coefficients!$G$10)+(Campus!H86*Coefficients!$I$10)+(Campus!I86*Coefficients!$K$10)+(Campus!J86*VLOOKUP($J$58,'Biodiesel Coefficients'!$J$13:$M$20,3,FALSE))+(Campus!K86*Coefficients!$M$10)+(Campus!L86*Coefficients!$O$10)+(N86*'Waste Coeff.'!$D$9)+(Campus!O86*VLOOKUP($O$58,'Fleets Coeff.'!$A$3:$D$10,4,FALSE)) -> 0
D87: Total | E87: =SUM(E62:E86) -> 0 | F87: =SUM(F62:F86) -> 0 | G87: =SUM(G62:G86) -> 0 | H87: =SUM(H62:H86) -> 0 | I87: =SUM(I62:I86) -> 0 | K87: =SUM(K62:K86) -> 0 | L87: =SUM(L62:L86) -> 0 | P87: =SUM(P62:P86) -> 0 | Q87: =SUM(Q62:Q86) -> 0 | R87: =SUM(R62:R86) -> 0 | S87: =IFERROR(Q87/P87,"") ->  | T87: =IFERROR(R87/P87,"") ->  | U87: =IFERROR((T87*2205),"") -> 
C94: 2002 | D94: =IF(Inventory!$K$7=2002,"Base Year", "") -> 
D95: Campus Level Energy and Emissions Inventory By Fuel Type
E96: Electricity (kWh) | F96: NG (Therms) | G96: #2 Oil (USG) | H96: #4 Oil (USG) | I96: #6 Oil (USG) | J96: Biodiesel (Select Type) | K96: Diesel (USG) | L96: Steam (Mlbs) | O96: Fuel (Select Type) | P96: Square Feet | Q96: Total MMBTU | R96: Total Mtons CO2e | S96: Total MMBTU per sq. ft. | T96: Total CO2e per sq.ft. | U96: Total lbs CO2e/sq.ft. | V96: MMBtu %Δ from base year | W96: CO2e %Δ from base year
D97: Campus | J97: Biodiesel Blend (USG) | M97: On-site Renewable Electricity | N97: Waste (Tons) | O97: Fleets (USG)
Q100: =(E100*Coefficients!$B$10)+(Campus!F100*Coefficients!$D$10)+(Campus!G100*Coefficients!$F$10)+(Campus!H100*Coefficients!$H$10)+(Campus!I100*Coefficients!$J$10)+(Campus!J100*VLOOKUP($J$96,'Biodiesel Coefficients'!$J$13:$M$20,4,FALSE))+(Campus!K100*Coefficients!$L$10)+(Campus!L100*Coefficients!$N$10)+(M100*Inventory!$I$31) -> 0 | R100: =(E100*Coefficients!$C$10)+(Campus!F100*Coefficients!$E$10)+(Campus!G100*Coefficients!$G$10)+(Campus!H100*Coefficients!$I$10)+(Campus!I100*Coefficients!$K$10)+(Campus!J100*VLOOKUP($J$96,'Biodiesel Coefficients'!$J$13:$M$20,3,FALSE))+(Campus!K100*Coefficients!$M$10)+(Campus!L100*Coefficients!$O$10)+(N100*'Waste Coeff.'!$D$9)+(O100*VLOOKUP($O$96,'Fleets Coeff.'!$A$3:$D$10,4,FALSE)) -> 0 | S100: =IF(ISERR(Q100/P100),"", (Q100/P100)) ->  | T100: =IF(ISERR(R100/P100),"", (R100/P100)) ->  | U100: =IF(ISERR(T100*2205),"",(T100*2205)) ->  | V100: =IFERROR((S100-AM24)/AM24,"") ->  | W100: =IFERROR((T100-AN24)/AN24,"") -> 
Q101: =(E101*Coefficients!$B$10)+(Campus!F101*Coefficients!$D$10)+(Campus!G101*Coefficients!$F$10)+(Campus!H101*Coefficients!$H$10)+(Campus!I101*Coefficients!$J$10)+(Campus!J101*VLOOKUP($J$96,'Biodiesel Coefficients'!$J$13:$M$20,4,FALSE))+(Campus!K101*Coefficients!$L$10)+(Campus!L101*Coefficients!$N$10)+(M101*Inventory!$I$31) -> 0 | R101: =(E101*Coefficients!$C$10)+(Campus!F101*Coefficients!$E$10)+(Campus!G101*Coefficients!$G$10)+(Campus!H101*Coefficients!$I$10)+(Campus!I101*Coefficients!$K$10)+(Campus!J101*VLOOKUP($J$96,'Biodiesel Coefficients'!$J$13:$M$20,3,FALSE))+(Campus!K101*Coefficients!$M$10)+(Campus!L101*Coefficients!$O$10)+(N101*'Waste Coeff.'!$D$9)+(O101*VLOOKUP($O$96,'Fleets Coeff.'!$A$3:$D$10,4,FALSE)) -> 0
Q102: =(E102*Coefficients!$B$10)+(Campus!F102*Coefficients!$D$10)+(Campus!G102*Coefficients!$F$10)+(Campus!H102*Coefficients!$H$10)+(Campus!I102*Coefficients!$J$10)+(Campus!J102*VLOOKUP($J$96,'Biodiesel Coefficients'!$J$13:$M$20,4,FALSE))+(Campus!K102*Coefficients!$L$10)+(Campus!L102*Coefficients!$N$10)+(M102*Inventory!$I$31) -> 0 | R102: =(E102*Coefficients!$C$10)+(Campus!F102*Coefficients!$E$10)+(Campus!G102*Coefficients!$G$10)+(Campus!H102*Coefficients!$I$10)+(Campus!I102*Coefficients!$K$10)+(Campus!J102*VLOOKUP($J$96,'Biodiesel Coefficients'!$J$13:$M$20,3,FALSE))+(Campus!K102*Coefficients!$M$10)+(Campus!L102*Coefficients!$O$10)+(N102*'Waste Coeff.'!$D$9)+(O102*VLOOKUP($O$96,'Fleets Coeff.'!$A$3:$D$10,4,FALSE)) -> 0
Q103: =(E103*Coefficients!$B$10)+(Campus!F103*Coefficients!$D$10)+(Campus!G103*Coefficients!$F$10)+(Campus!H103*Coefficients!$H$10)+(Campus!I103*Coefficients!$J$10)+(Campus!J103*VLOOKUP($J$96,'Biodiesel Coefficients'!$J$13:$M$20,4,FALSE))+(Campus!K103*Coefficients!$L$10)+(Campus!L103*Coefficients!$N$10)+(M103*Inventory!$I$31) -> 0 | R103: =(E103*Coefficients!$C$10)+(Campus!F103*Coefficients!$E$10)+(Campus!G103*Coefficients!$G$10)+(Campus!H103*Coefficients!$I$10)+(Campus!I103*Coefficients!$K$10)+(Campus!J103*VLOOKUP($J$96,'Biodiesel Coefficients'!$J$13:$M$20,3,FALSE))+(Campus!K103*Coefficients!$M$10)+(Campus!L103*Coefficients!$O$10)+(N103*'Waste Coeff.'!$D$9)+(O103*VLOOKUP($O$96,'Fleets Coeff.'!$A$3:$D$10,4,FALSE)) -> 0
Q104: =(E104*Coefficients!$B$10)+(Campus!F104*Coefficients!$D$10)+(Campus!G104*Coefficients!$F$10)+(Campus!H104*Coefficients!$H$10)+(Campus!I104*Coefficients!$J$10)+(Campus!J104*VLOOKUP($J$96,'Biodiesel Coefficients'!$J$13:$M$20,4,FALSE))+(Campus!K104*Coefficients!$L$10)+(Campus!L104*Coefficients!$N$10)+(M104*Inventory!$I$31) -> 0 | R104: =(E104*Coefficients!$C$10)+(Campus!F104*Coefficients!$E$10)+(Campus!G104*Coefficients!$G$10)+(Campus!H104*Coefficients!$I$10)+(Campus!I104*Coefficients!$K$10)+(Campus!J104*VLOOKUP($J$96,'Biodiesel Coefficients'!$J$13:$M$20,3,FALSE))+(Campus!K104*Coefficients!$M$10)+(Campus!L104*Coefficients!$O$10)+(N104*'Waste Coeff.'!$D$9)+(O104*VLOOKUP($O$96,'Fleets Coeff.'!$A$3:$D$10,4,FALSE)) -> 0
Q105: =(E105*Coefficients!$B$10)+(Campus!F105*Coefficients!$D$10)+(Campus!G105*Coefficients!$F$10)+(Campus!H105*Coefficients!$H$10)+(Campus!I105*Coefficients!$J$10)+(Campus!J105*VLOOKUP($J$96,'Biodiesel Coefficients'!$J$13:$M$20,4,FALSE))+(Campus!K105*Coefficients!$L$10)+(Campus!L105*Coefficients!$N$10)+(M105*Inventory!$I$31) -> 0 | R105: =(E105*Coefficients!$C$10)+(Campus!F105*Coefficients!$E$10)+(Campus!G105*Coefficients!$G$10)+(Campus!H105*Coefficients!$I$10)+(Campus!I105*Coefficients!$K$10)+(Campus!J105*VLOOKUP($J$96,'Biodiesel Coefficients'!$J$13:$M$20,3,FALSE))+(Campus!K105*Coefficients!$M$10)+(Campus!L105*Coefficients!$O$10)+(N105*'Waste Coeff.'!$D$9)+(O105*VLOOKUP($O$96,'Fleets Coeff.'!$A$3:$D$10,4,FALSE)) -> 0
Q106: =(E106*Coefficients!$B$10)+(Campus!F106*Coefficients!$D$10)+(Campus!G106*Coefficients!$F$10)+(Campus!H106*Coefficients!$H$10)+(Campus!I106*Coefficients!$J$10)+(Campus!J106*VLOOKUP($J$96,'Biodiesel Coefficients'!$J$13:$M$20,4,FALSE))+(Campus!K106*Coefficients!$L$10)+(Campus!L106*Coefficients!$N$10)+(M106*Inventory!$I$31) -> 0 | R106: =(E106*Coefficients!$C$10)+(Campus!F106*Coefficients!$E$10)+(Campus!G106*Coefficients!$G$10)+(Campus!H106*Coefficients!$I$10)+(Campus!I106*Coefficients!$K$10)+(Campus!J106*VLOOKUP($J$96,'Biodiesel Coefficients'!$J$13:$M$20,3,FALSE))+(Campus!K106*Coefficients!$M$10)+(Campus!L106*Coefficients!$O$10)+(N106*'Waste Coeff.'!$D$9)+(O106*VLOOKUP($O$96,'Fleets Coeff.'!$A$3:$D$10,4,FALSE)) -> 0
Q107: =(E107*Coefficients!$B$10)+(Campus!F107*Coefficients!$D$10)+(Campus!G107*Coefficients!$F$10)+(Campus!H107*Coefficients!$H$10)+(Campus!I107*Coefficients!$J$10)+(Campus!J107*VLOOKUP($J$96,'Biodiesel Coefficients'!$J$13:$M$20,4,FALSE))+(Campus!K107*Coefficients!$L$10)+(Campus!L107*Coefficients!$N$10)+(M107*Inventory!$I$31) -> 0 | R107: =(E107*Coefficients!$C$10)+(Campus!F107*Coefficients!$E$10)+(Campus!G107*Coefficients!$G$10)+(Campus!H107*Coefficients!$I$10)+(Campus!I107*Coefficients!$K$10)+(Campus!J107*VLOOKUP($J$96,'Biodiesel Coefficients'!$J$13:$M$20,3,FALSE))+(Campus!K107*Coefficients!$M$10)+(Campus!L107*Coefficients!$O$10)+(N107*'Waste Coeff.'!$D$9)+(O107*VLOOKUP($O$96,'Fleets Coeff.'!$A$3:$D$10,4,FALSE)) -> 0
Q108: =(E108*Coefficients!$B$10)+(Campus!F108*Coefficients!$D$10)+(Campus!G108*Coefficients!$F$10)+(Campus!H108*Coefficients!$H$10)+(Campus!I108*Coefficients!$J$10)+(Campus!J108*VLOOKUP($J$96,'Biodiesel Coefficients'!$J$13:$M$20,4,FALSE))+(Campus!K108*Coefficients!$L$10)+(Campus!L108*Coefficients!$N$10)+(M108*Inventory!$I$31) -> 0 | R108: =(E108*Coefficients!$C$10)+(Campus!F108*Coefficients!$E$10)+(Campus!G108*Coefficients!$G$10)+(Campus!H108*Coefficients!$I$10)+(Campus!I108*Coefficients!$K$10)+(Campus!J108*VLOOKUP($J$96,'Biodiesel Coefficients'!$J$13:$M$20,3,FALSE))+(Campus!K108*Coefficients!$M$10)+(Campus!L108*Coefficients!$O$10)+(N108*'Waste Coeff.'!$D$9)+(O108*VLOOKUP($O$96,'Fleets Coeff.'!$A$3:$D$10,4,FALSE)) -> 0
Q109: =(E109*Coefficients!$B$10)+(Campus!F109*Coefficients!$D$10)+(Campus!G109*Coefficients!$F$10)+(Campus!H109*Coefficients!$H$10)+(Campus!I109*Coefficients!$J$10)+(Campus!J109*VLOOKUP($J$96,'Biodiesel Coefficients'!$J$13:$M$20,4,FALSE))+(Campus!K109*Coefficients!$L$10)+(Campus!L109*Coefficients!$N$10)+(M109*Inventory!$I$31) -> 0 | R109: =(E109*Coefficients!$C$10)+(Campus!F109*Coefficients!$E$10)+(Campus!G109*Coefficients!$G$10)+(Campus!H109*Coefficients!$I$10)+(Campus!I109*Coefficients!$K$10)+(Campus!J109*VLOOKUP($J$96,'Biodiesel Coefficients'!$J$13:$M$20,3,FALSE))+(Campus!K109*Coefficients!$M$10)+(Campus!L109*Coefficients!$O$10)+(N109*'Waste Coeff.'!$D$9)+(O109*VLOOKUP($O$96,'Fleets Coeff.'!$A$3:$D$10,4,FALSE)) -> 0
Q110: =(E110*Coefficients!$B$10)+(Campus!F110*Coefficients!$D$10)+(Campus!G110*Coefficients!$F$10)+(Campus!H110*Coefficients!$H$10)+(Campus!I110*Coefficients!$J$10)+(Campus!J110*VLOOKUP($J$96,'Biodiesel Coefficients'!$J$13:$M$20,4,FALSE))+(Campus!K110*Coefficients!$L$10)+(Campus!L110*Coefficients!$N$10)+(M110*Inventory!$I$31) -> 0 | R110: =(E110*Coefficients!$C$10)+(Campus!F110*Coefficients!$E$10)+(Campus!G110*Coefficients!$G$10)+(Campus!H110*Coefficients!$I$10)+(Campus!I110*Coefficients!$K$10)+(Campus!J110*VLOOKUP($J$96,'Biodiesel Coefficients'!$J$13:$M$20,3,FALSE))+(Campus!K110*Coefficients!$M$10)+(Campus!L110*Coefficients!$O$10)+(N110*'Waste Coeff.'!$D$9)+(O110*VLOOKUP($O$96,'Fleets Coeff.'!$A$3:$D$10,4,FALSE)) -> 0
Q111: =(E111*Coefficients!$B$10)+(Campus!F111*Coefficients!$D$10)+(Campus!G111*Coefficients!$F$10)+(Campus!H111*Coefficients!$H$10)+(Campus!I111*Coefficients!$J$10)+(Campus!J111*VLOOKUP($J$96,'Biodiesel Coefficients'!$J$13:$M$20,4,FALSE))+(Campus!K111*Coefficients!$L$10)+(Campus!L111*Coefficients!$N$10)+(M111*Inventory!$I$31) -> 0 | R111: =(E111*Coefficients!$C$10)+(Campus!F111*Coefficients!$E$10)+(Campus!G111*Coefficients!$G$10)+(Campus!H111*Coefficients!$I$10)+(Campus!I111*Coefficients!$K$10)+(Campus!J111*VLOOKUP($J$96,'Biodiesel Coefficients'!$J$13:$M$20,3,FALSE))+(Campus!K111*Coefficients!$M$10)+(Campus!L111*Coefficients!$O$10)+(N111*'Waste Coeff.'!$D$9)+(O111*VLOOKUP($O$96,'Fleets Coeff.'!$A$3:$D$10,4,FALSE)) -> 0
Q112: =(E112*Coefficients!$B$10)+(Campus!F112*Coefficients!$D$10)+(Campus!G112*Coefficients!$F$10)+(Campus!H112*Coefficients!$H$10)+(Campus!I112*Coefficients!$J$10)+(Campus!J112*VLOOKUP($J$96,'Biodiesel Coefficients'!$J$13:$M$20,4,FALSE))+(Campus!K112*Coefficients!$L$10)+(Campus!L112*Coefficients!$N$10)+(M112*Inventory!$I$31) -> 0 | R112: =(E112*Coefficients!$C$10)+(Campus!F112*Coefficients!$E$10)+(Campus!G112*Coefficients!$G$10)+(Campus!H112*Coefficients!$I$10)+(Campus!I112*Coefficients!$K$10)+(Campus!J112*VLOOKUP($J$96,'Biodiesel Coefficients'!$J$13:$M$20,3,FALSE))+(Campus!K112*Coefficients!$M$10)+(Campus!L112*Coefficients!$O$10)+(N112*'Waste Coeff.'!$D$9)+(O112*VLOOKUP($O$96,'Fleets Coeff.'!$A$3:$D$10,4,FALSE)) -> 0
Q113: =(E113*Coefficients!$B$10)+(Campus!F113*Coefficients!$D$10)+(Campus!G113*Coefficients!$F$10)+(Campus!H113*Coefficients!$H$10)+(Campus!I113*Coefficients!$J$10)+(Campus!J113*VLOOKUP($J$96,'Biodiesel Coefficients'!$J$13:$M$20,4,FALSE))+(Campus!K113*Coefficients!$L$10)+(Campus!L113*Coefficients!$N$10)+(M113*Inventory!$I$31) -> 0 | R113: =(E113*Coefficients!$C$10)+(Campus!F113*Coefficients!$E$10)+(Campus!G113*Coefficients!$G$10)+(Campus!H113*Coefficients!$I$10)+(Campus!I113*Coefficients!$K$10)+(Campus!J113*VLOOKUP($J$96,'Biodiesel Coefficients'!$J$13:$M$20,3,FALSE))+(Campus!K113*Coefficients!$M$10)+(Campus!L113*Coefficients!$O$10)+(N113*'Waste Coeff.'!$D$9)+(O113*VLOOKUP($O$96,'Fleets Coeff.'!$A$3:$D$10,4,FALSE)) -> 0
Q114: =(E114*Coefficients!$B$10)+(Campus!F114*Coefficients!$D$10)+(Campus!G114*Coefficients!$F$10)+(Campus!H114*Coefficients!$H$10)+(Campus!I114*Coefficients!$J$10)+(Campus!J114*VLOOKUP($J$96,'Biodiesel Coefficients'!$J$13:$M$20,4,FALSE))+(Campus!K114*Coefficients!$L$10)+(Campus!L114*Coefficients!$N$10)+(M114*Inventory!$I$31) -> 0 | R114: =(E114*Coefficients!$C$10)+(Campus!F114*Coefficients!$E$10)+(Campus!G114*Coefficients!$G$10)+(Campus!H114*Coefficients!$I$10)+(Campus!I114*Coefficients!$K$10)+(Campus!J114*VLOOKUP($J$96,'Biodiesel Coefficients'!$J$13:$M$20,3,FALSE))+(Campus!K114*Coefficients!$M$10)+(Campus!L114*Coefficients!$O$10)+(N114*'Waste Coeff.'!$D$9)+(O114*VLOOKUP($O$96,'Fleets Coeff.'!$A$3:$D$10,4,FALSE)) -> 0
Q115: =(E115*Coefficients!$B$10)+(Campus!F115*Coefficients!$D$10)+(Campus!G115*Coefficients!$F$10)+(Campus!H115*Coefficients!$H$10)+(Campus!I115*Coefficients!$J$10)+(Campus!J115*VLOOKUP($J$96,'Biodiesel Coefficients'!$J$13:$M$20,4,FALSE))+(Campus!K115*Coefficients!$L$10)+(Campus!L115*Coefficients!$N$10)+(M115*Inventory!$I$31) -> 0 | R115: =(E115*Coefficients!$C$10)+(Campus!F115*Coefficients!$E$10)+(Campus!G115*Coefficients!$G$10)+(Campus!H115*Coefficients!$I$10)+(Campus!I115*Coefficients!$K$10)+(Campus!J115*VLOOKUP($J$96,'Biodiesel Coefficients'!$J$13:$M$20,3,FALSE))+(Campus!K115*Coefficients!$M$10)+(Campus!L115*Coefficients!$O$10)+(N115*'Waste Coeff.'!$D$9)+(O115*VLOOKUP($O$96,'Fleets Coeff.'!$A$3:$D$10,4,FALSE)) -> 0
Q116: =(E116*Coefficients!$B$10)+(Campus!F116*Coefficients!$D$10)+(Campus!G116*Coefficients!$F$10)+(Campus!H116*Coefficients!$H$10)+(Campus!I116*Coefficients!$J$10)+(Campus!J116*VLOOKUP($J$96,'Biodiesel Coefficients'!$J$13:$M$20,4,FALSE))+(Campus!K116*Coefficients!$L$10)+(Campus!L116*Coefficients!$N$10)+(M116*Inventory!$I$31) -> 0 | R116: =(E116*Coefficients!$C$10)+(Campus!F116*Coefficients!$E$10)+(Campus!G116*Coefficients!$G$10)+(Campus!H116*Coefficients!$I$10)+(Campus!I116*Coefficients!$K$10)+(Campus!J116*VLOOKUP($J$96,'Biodiesel Coefficients'!$J$13:$M$20,3,FALSE))+(Campus!K116*Coefficients!$M$10)+(Campus!L116*Coefficients!$O$10)+(N116*'Waste Coeff.'!$D$9)+(O116*VLOOKUP($O$96,'Fleets Coeff.'!$A$3:$D$10,4,FALSE)) -> 0
Q117: =(E117*Coefficients!$B$10)+(Campus!F117*Coefficients!$D$10)+(Campus!G117*Coefficients!$F$10)+(Campus!H117*Coefficients!$H$10)+(Campus!I117*Coefficients!$J$10)+(Campus!J117*VLOOKUP($J$96,'Biodiesel Coefficients'!$J$13:$M$20,4,FALSE))+(Campus!K117*Coefficients!$L$10)+(Campus!L117*Coefficients!$N$10)+(M117*Inventory!$I$31) -> 0 | R117: =(E117*Coefficients!$C$10)+(Campus!F117*Coefficients!$E$10)+(Campus!G117*Coefficients!$G$10)+(Campus!H117*Coefficients!$I$10)+(Campus!I117*Coefficients!$K$10)+(Campus!J117*VLOOKUP($J$96,'Biodiesel Coefficients'!$J$13:$M$20,3,FALSE))+(Campus!K117*Coefficients!$M$10)+(Campus!L117*Coefficients!$O$10)+(N117*'Waste Coeff.'!$D$9)+(O117*VLOOKUP($O$96,'Fleets Coeff.'!$A$3:$D$10,4,FALSE)) -> 0
Q118: =(E118*Coefficients!$B$10)+(Campus!F118*Coefficients!$D$10)+(Campus!G118*Coefficients!$F$10)+(Campus!H118*Coefficients!$H$10)+(Campus!I118*Coefficients!$J$10)+(Campus!J118*VLOOKUP($J$96,'Biodiesel Coefficients'!$J$13:$M$20,4,FALSE))+(Campus!K118*Coefficients!$L$10)+(Campus!L118*Coefficients!$N$10)+(M118*Inventory!$I$31) -> 0 | R118: =(E118*Coefficients!$C$10)+(Campus!F118*Coefficients!$E$10)+(Campus!G118*Coefficients!$G$10)+(Campus!H118*Coefficients!$I$10)+(Campus!I118*Coefficients!$K$10)+(Campus!J118*VLOOKUP($J$96,'Biodiesel Coefficients'!$J$13:$M$20,3,FALSE))+(Campus!K118*Coefficients!$M$10)+(Campus!L118*Coefficients!$O$10)+(N118*'Waste Coeff.'!$D$9)+(O118*VLOOKUP($O$96,'Fleets Coeff.'!$A$3:$D$10,4,FALSE)) -> 0
Q119: =(E119*Coefficients!$B$10)+(Campus!F119*Coefficients!$D$10)+(Campus!G119*Coefficients!$F$10)+(Campus!H119*Coefficients!$H$10)+(Campus!I119*Coefficients!$J$10)+(Campus!J119*VLOOKUP($J$96,'Biodiesel Coefficients'!$J$13:$M$20,4,FALSE))+(Campus!K119*Coefficients!$L$10)+(Campus!L119*Coefficients!$N$10)+(M119*Inventory!$I$31) -> 0 | R119: =(E119*Coefficients!$C$10)+(Campus!F119*Coefficients!$E$10)+(Campus!G119*Coefficients!$G$10)+(Campus!H119*Coefficients!$I$10)+(Campus!I119*Coefficients!$K$10)+(Campus!J119*VLOOKUP($J$96,'Biodiesel Coefficients'!$J$13:$M$20,3,FALSE))+(Campus!K119*Coefficients!$M$10)+(Campus!L119*Coefficients!$O$10)+(N119*'Waste Coeff.'!$D$9)+(O119*VLOOKUP($O$96,'Fleets Coeff.'!$A$3:$D$10,4,FALSE)) -> 0
Q120: =(E120*Coefficients!$B$10)+(Campus!F120*Coefficients!$D$10)+(Campus!G120*Coefficients!$F$10)+(Campus!H120*Coefficients!$H$10)+(Campus!I120*Coefficients!$J$10)+(Campus!J120*VLOOKUP($J$96,'Biodiesel Coefficients'!$J$13:$M$20,4,FALSE))+(Campus!K120*Coefficients!$L$10)+(Campus!L120*Coefficients!$N$10)+(M120*Inventory!$I$31) -> 0 | R120: =(E120*Coefficients!$C$10)+(Campus!F120*Coefficients!$E$10)+(Campus!G120*Coefficients!$G$10)+(Campus!H120*Coefficients!$I$10)+(Campus!I120*Coefficients!$K$10)+(Campus!J120*VLOOKUP($J$96,'Biodiesel Coefficients'!$J$13:$M$20,3,FALSE))+(Campus!K120*Coefficients!$M$10)+(Campus!L120*Coefficients!$O$10)+(N120*'Waste Coeff.'!$D$9)+(O120*VLOOKUP($O$96,'Fleets Coeff.'!$A$3:$D$10,4,FALSE)) -> 0
Q121: =(E121*Coefficients!$B$10)+(Campus!F121*Coefficients!$D$10)+(Campus!G121*Coefficients!$F$10)+(Campus!H121*Coefficients!$H$10)+(Campus!I121*Coefficients!$J$10)+(Campus!J121*VLOOKUP($J$96,'Biodiesel Coefficients'!$J$13:$M$20,4,FALSE))+(Campus!K121*Coefficients!$L$10)+(Campus!L121*Coefficients!$N$10)+(M121*Inventory!$I$31) -> 0 | R121: =(E121*Coefficients!$C$10)+(Campus!F121*Coefficients!$E$10)+(Campus!G121*Coefficients!$G$10)+(Campus!H121*Coefficients!$I$10)+(Campus!I121*Coefficients!$K$10)+(Campus!J121*VLOOKUP($J$96,'Biodiesel Coefficients'!$J$13:$M$20,3,FALSE))+(Campus!K121*Coefficients!$M$10)+(Campus!L121*Coefficients!$O$10)+(N121*'Waste Coeff.'!$D$9)+(O121*VLOOKUP($O$96,'Fleets Coeff.'!$A$3:$D$10,4,FALSE)) -> 0
Q122: =(E122*Coefficients!$B$10)+(Campus!F122*Coefficients!$D$10)+(Campus!G122*Coefficients!$F$10)+(Campus!H122*Coefficients!$H$10)+(Campus!I122*Coefficients!$J$10)+(Campus!J122*VLOOKUP($J$96,'Biodiesel Coefficients'!$J$13:$M$20,4,FALSE))+(Campus!K122*Coefficients!$L$10)+(Campus!L122*Coefficients!$N$10)+(M122*Inventory!$I$31) -> 0 | R122: =(E122*Coefficients!$C$10)+(Campus!F122*Coefficients!$E$10)+(Campus!G122*Coefficients!$G$10)+(Campus!H122*Coefficients!$I$10)+(Campus!I122*Coefficients!$K$10)+(Campus!J122*VLOOKUP($J$96,'Biodiesel Coefficients'!$J$13:$M$20,3,FALSE))+(Campus!K122*Coefficients!$M$10)+(Campus!L122*Coefficients!$O$10)+(N122*'Waste Coeff.'!$D$9)+(O122*VLOOKUP($O$96,'Fleets Coeff.'!$A$3:$D$10,4,FALSE)) -> 0
Q123: =(E123*Coefficients!$B$10)+(Campus!F123*Coefficients!$D$10)+(Campus!G123*Coefficients!$F$10)+(Campus!H123*Coefficients!$H$10)+(Campus!I123*Coefficients!$J$10)+(Campus!J123*VLOOKUP($J$96,'Biodiesel Coefficients'!$J$13:$M$20,4,FALSE))+(Campus!K123*Coefficients!$L$10)+(Campus!L123*Coefficients!$N$10)+(M123*Inventory!$I$31) -> 0 | R123: =(E123*Coefficients!$C$10)+(Campus!F123*Coefficients!$E$10)+(Campus!G123*Coefficients!$G$10)+(Campus!H123*Coefficients!$I$10)+(Campus!I123*Coefficients!$K$10)+(Campus!J123*VLOOKUP($J$96,'Biodiesel Coefficients'!$J$13:$M$20,3,FALSE))+(Campus!K123*Coefficients!$M$10)+(Campus!L123*Coefficients!$O$10)+(N123*'Waste Coeff.'!$D$9)+(O123*VLOOKUP($O$96,'Fleets Coeff.'!$A$3:$D$10,4,FALSE)) -> 0
Q124: =(E124*Coefficients!$B$10)+(Campus!F124*Coefficients!$D$10)+(Campus!G124*Coefficients!$F$10)+(Campus!H124*Coefficients!$H$10)+(Campus!I124*Coefficients!$J$10)+(Campus!J124*VLOOKUP($J$96,'Biodiesel Coefficients'!$J$13:$M$20,4,FALSE))+(Campus!K124*Coefficients!$L$10)+(Campus!L124*Coefficients!$N$10)+(M124*Inventory!$I$31) -> 0 | R124: =(E124*Coefficients!$C$10)+(Campus!F124*Coefficients!$E$10)+(Campus!G124*Coefficients!$G$10)+(Campus!H124*Coefficients!$I$10)+(Campus!I124*Coefficients!$K$10)+(Campus!J124*VLOOKUP($J$96,'Biodiesel Coefficients'!$J$13:$M$20,3,FALSE))+(Campus!K124*Coefficients!$M$10)+(Campus!L124*Coefficients!$O$10)+(N124*'Waste Coeff.'!$D$9)+(O124*VLOOKUP($O$96,'Fleets Coeff.'!$A$3:$D$10,4,FALSE)) -> 0
D125: Total | E125: =SUM(E100:E124) -> 0 | F125: =SUM(F100:F124) -> 0 | G125: =SUM(G100:G124) -> 0 | H125: =SUM(H100:H124) -> 0 | I125: =SUM(I100:I124) -> 0 | K125: =SUM(K100:K124) -> 0 | L125: =SUM(L100:L124) -> 0 | P125: =SUM(P100:P124) -> 0 | Q125: =SUM(Q100:Q124) -> 0 | R125: =SUM(R100:R124) -> 0 | S125: =IFERROR(Q125/P125,"") ->  | T125: =IFERROR(R125/P125,"") ->  | U125: =IFERROR((T125*2205),"") -> 
C132: 2003 | D132: =IF(Inventory!$K$7=2003,"Base Year", "") -> 
D133: Campus Level Energy and Emissions Inventory By Fuel Type
E134: Electricity (kWh) | F134: NG (Therms) | G134: #2 Oil (USG) | H134: #4 Oil (USG) | I134: #6 Oil (USG) | J134: Biodiesel (Select Type) | K134: Diesel (USG) | L134: Steam (Mlbs) | O134: Fuel (Select Type) | P134: Square Feet | Q134: Total MMBTU | R134: Total Mtons CO2e | S134: Total MMBTU per sq. ft. | T134: Total CO2e per sq.ft. | U134: Total lbs CO2e/sq.ft. | V134: MMBtu %Δ from base year | W134: CO2e %Δ from base year
D135: Campus | J135: Biodiesel Blend (USG) | M135: On-site Renewable Electricity | N135: Waste (Tons) | O135: Fleets (USG)
Q138: =(E138*Coefficients!$B$10)+(Campus!F138*Coefficients!$D$10)+(Campus!G138*Coefficients!$F$10)+(Campus!H138*Coefficients!$H$10)+(Campus!I138*Coefficients!$J$10)+(Campus!J138*VLOOKUP($J$134,'Biodiesel Coefficients'!$J$13:$M$20,4,FALSE))+(Campus!K138*Coefficients!$L$10)+(Campus!L138*Coefficients!$N$10)+(M138*Campus!$H$31) -> 0 | R138: =(E138*Coefficients!$C$10)+(Campus!F138*Coefficients!$E$10)+(Campus!G138*Coefficients!$G$10)+(Campus!H138*Coefficients!$I$10)+(Campus!I138*Coefficients!$K$10)+(Campus!J138*VLOOKUP($J$134,'Biodiesel Coefficients'!$J$13:$M$20,3,FALSE))+(Campus!K138*Coefficients!$M$10)+(Campus!L138*Coefficients!$O$10)+(N138*'Waste Coeff.'!$D$9)+(O138*VLOOKUP($O$134,'Fleets Coeff.'!$A$3:$D$10,4,FALSE)) -> 0 | S138: =IF(ISERR(Q138/P138),"", (Q138/P138)) ->  | T138: =IF(ISERR(R138/P138),"", (R138/P138)) ->  | U138: =IF(ISERR(T138*2205),"",(T138*2205)) ->  | V138: =IFERROR((S138-AM24)/AM24,"") ->  | W138: =IFERROR((T138-AN24)/AN24,"") -> 
Q139: =(E139*Coefficients!$B$10)+(Campus!F139*Coefficients!$D$10)+(Campus!G139*Coefficients!$F$10)+(Campus!H139*Coefficients!$H$10)+(Campus!I139*Coefficients!$J$10)+(Campus!J139*VLOOKUP($J$134,'Biodiesel Coefficients'!$J$13:$M$20,4,FALSE))+(Campus!K139*Coefficients!$L$10)+(Campus!L139*Coefficients!$N$10)+(M139*Campus!$H$31) -> 0 | R139: =(E139*Coefficients!$C$10)+(Campus!F139*Coefficients!$E$10)+(Campus!G139*Coefficients!$G$10)+(Campus!H139*Coefficients!$I$10)+(Campus!I139*Coefficients!$K$10)+(Campus!J139*VLOOKUP($J$134,'Biodiesel Coefficients'!$J$13:$M$20,3,FALSE))+(Campus!K139*Coefficients!$M$10)+(Campus!L139*Coefficients!$O$10)+(N139*'Waste Coeff.'!$D$9)+(O139*VLOOKUP($O$134,'Fleets Coeff.'!$A$3:$D$10,4,FALSE)) -> 0
Q140: =(E140*Coefficients!$B$10)+(Campus!F140*Coefficients!$D$10)+(Campus!G140*Coefficients!$F$10)+(Campus!H140*Coefficients!$H$10)+(Campus!I140*Coefficients!$J$10)+(Campus!J140*VLOOKUP($J$134,'Biodiesel Coefficients'!$J$13:$M$20,4,FALSE))+(Campus!K140*Coefficients!$L$10)+(Campus!L140*Coefficients!$N$10)+(M140*Campus!$H$31) -> 0 | R140: =(E140*Coefficients!$C$10)+(Campus!F140*Coefficients!$E$10)+(Campus!G140*Coefficients!$G$10)+(Campus!H140*Coefficients!$I$10)+(Campus!I140*Coefficients!$K$10)+(Campus!J140*VLOOKUP($J$134,'Biodiesel Coefficients'!$J$13:$M$20,3,FALSE))+(Campus!K140*Coefficients!$M$10)+(Campus!L140*Coefficients!$O$10)+(N140*'Waste Coeff.'!$D$9)+(O140*VLOOKUP($O$134,'Fleets Coeff.'!$A$3:$D$10,4,FALSE)) -> 0
Q141: =(E141*Coefficients!$B$10)+(Campus!F141*Coefficients!$D$10)+(Campus!G141*Coefficients!$F$10)+(Campus!H141*Coefficients!$H$10)+(Campus!I141*Coefficients!$J$10)+(Campus!J141*VLOOKUP($J$134,'Biodiesel Coefficients'!$J$13:$M$20,4,FALSE))+(Campus!K141*Coefficients!$L$10)+(Campus!L141*Coefficients!$N$10)+(M141*Campus!$H$31) -> 0 | R141: =(E141*Coefficients!$C$10)+(Campus!F141*Coefficients!$E$10)+(Campus!G141*Coefficients!$G$10)+(Campus!H141*Coefficients!$I$10)+(Campus!I141*Coefficients!$K$10)+(Campus!J141*VLOOKUP($J$134,'Biodiesel Coefficients'!$J$13:$M$20,3,FALSE))+(Campus!K141*Coefficients!$M$10)+(Campus!L141*Coefficients!$O$10)+(N141*'Waste Coeff.'!$D$9)+(O141*VLOOKUP($O$134,'Fleets Coeff.'!$A$3:$D$10,4,FALSE)) -> 0
Q142: =(E142*Coefficients!$B$10)+(Campus!F142*Coefficients!$D$10)+(Campus!G142*Coefficients!$F$10)+(Campus!H142*Coefficients!$H$10)+(Campus!I142*Coefficients!$J$10)+(Campus!J142*VLOOKUP($J$134,'Biodiesel Coefficients'!$J$13:$M$20,4,FALSE))+(Campus!K142*Coefficients!$L$10)+(Campus!L142*Coefficients!$N$10)+(M142*Campus!$H$31) -> 0 | R142: =(E142*Coefficients!$C$10)+(Campus!F142*Coefficients!$E$10)+(Campus!G142*Coefficients!$G$10)+(Campus!H142*Coefficients!$I$10)+(Campus!I142*Coefficients!$K$10)+(Campus!J142*VLOOKUP($J$134,'Biodiesel Coefficients'!$J$13:$M$20,3,FALSE))+(Campus!K142*Coefficients!$M$10)+(Campus!L142*Coefficients!$O$10)+(N142*'Waste Coeff.'!$D$9)+(O142*VLOOKUP($O$134,'Fleets Coeff.'!$A$3:$D$10,4,FALSE)) -> 0
Q143: =(E143*Coefficients!$B$10)+(Campus!F143*Coefficients!$D$10)+(Campus!G143*Coefficients!$F$10)+(Campus!H143*Coefficients!$H$10)+(Campus!I143*Coefficients!$J$10)+(Campus!J143*VLOOKUP($J$134,'Biodiesel Coefficients'!$J$13:$M$20,4,FALSE))+(Campus!K143*Coefficients!$L$10)+(Campus!L143*Coefficients!$N$10)+(M143*Campus!$H$31) -> 0 | R143: =(E143*Coefficients!$C$10)+(Campus!F143*Coefficients!$E$10)+(Campus!G143*Coefficients!$G$10)+(Campus!H143*Coefficients!$I$10)+(Campus!I143*Coefficients!$K$10)+(Campus!J143*VLOOKUP($J$134,'Biodiesel Coefficients'!$J$13:$M$20,3,FALSE))+(Campus!K143*Coefficients!$M$10)+(Campus!L143*Coefficients!$O$10)+(N143*'Waste Coeff.'!$D$9)+(O143*VLOOKUP($O$134,'Fleets Coeff.'!$A$3:$D$10,4,FALSE)) -> 0
Q144: =(E144*Coefficients!$B$10)+(Campus!F144*Coefficients!$D$10)+(Campus!G144*Coefficients!$F$10)+(Campus!H144*Coefficients!$H$10)+(Campus!I144*Coefficients!$J$10)+(Campus!J144*VLOOKUP($J$134,'Biodiesel Coefficients'!$J$13:$M$20,4,FALSE))+(Campus!K144*Coefficients!$L$10)+(Campus!L144*Coefficients!$N$10)+(M144*Campus!$H$31) -> 0 | R144: =(E144*Coefficients!$C$10)+(Campus!F144*Coefficients!$E$10)+(Campus!G144*Coefficients!$G$10)+(Campus!H144*Coefficients!$I$10)+(Campus!I144*Coefficients!$K$10)+(Campus!J144*VLOOKUP($J$134,'Biodiesel Coefficients'!$J$13:$M$20,3,FALSE))+(Campus!K144*Coefficients!$M$10)+(Campus!L144*Coefficients!$O$10)+(N144*'Waste Coeff.'!$D$9)+(O144*VLOOKUP($O$134,'Fleets Coeff.'!$A$3:$D$10,4,FALSE)) -> 0
Q145: =(E145*Coefficients!$B$10)+(Campus!F145*Coefficients!$D$10)+(Campus!G145*Coefficients!$F$10)+(Campus!H145*Coefficients!$H$10)+(Campus!I145*Coefficients!$J$10)+(Campus!J145*VLOOKUP($J$134,'Biodiesel Coefficients'!$J$13:$M$20,4,FALSE))+(Campus!K145*Coefficients!$L$10)+(Campus!L145*Coefficients!$N$10)+(M145*Campus!$H$31) -> 0 | R145: =(E145*Coefficients!$C$10)+(Campus!F145*Coefficients!$E$10)+(Campus!G145*Coefficients!$G$10)+(Campus!H145*Coefficients!$I$10)+(Campus!I145*Coefficients!$K$10)+(Campus!J145*VLOOKUP($J$134,'Biodiesel Coefficients'!$J$13:$M$20,3,FALSE))+(Campus!K145*Coefficients!$M$10)+(Campus!L145*Coefficients!$O$10)+(N145*'Waste Coeff.'!$D$9)+(O145*VLOOKUP($O$134,'Fleets Coeff.'!$A$3:$D$10,4,FALSE)) -> 0
Q146: =(E146*Coefficients!$B$10)+(Campus!F146*Coefficients!$D$10)+(Campus!G146*Coefficients!$F$10)+(Campus!H146*Coefficients!$H$10)+(Campus!I146*Coefficients!$J$10)+(Campus!J146*VLOOKUP($J$134,'Biodiesel Coefficients'!$J$13:$M$20,4,FALSE))+(Campus!K146*Coefficients!$L$10)+(Campus!L146*Coefficients!$N$10)+(M146*Campus!$H$31) -> 0 | R146: =(E146*Coefficients!$C$10)+(Campus!F146*Coefficients!$E$10)+(Campus!G146*Coefficients!$G$10)+(Campus!H146*Coefficients!$I$10)+(Campus!I146*Coefficients!$K$10)+(Campus!J146*VLOOKUP($J$134,'Biodiesel Coefficients'!$J$13:$M$20,3,FALSE))+(Campus!K146*Coefficients!$M$10)+(Campus!L146*Coefficients!$O$10)+(N146*'Waste Coeff.'!$D$9)+(O146*VLOOKUP($O$134,'Fleets Coeff.'!$A$3:$D$10,4,FALSE)) -> 0
Q147: =(E147*Coefficients!$B$10)+(Campus!F147*Coefficients!$D$10)+(Campus!G147*Coefficients!$F$10)+(Campus!H147*Coefficients!$H$10)+(Campus!I147*Coefficients!$J$10)+(Campus!J147*VLOOKUP($J$134,'Biodiesel Coefficients'!$J$13:$M$20,4,FALSE))+(Campus!K147*Coefficients!$L$10)+(Campus!L147*Coefficients!$N$10)+(M147*Campus!$H$31) -> 0 | R147: =(E147*Coefficients!$C$10)+(Campus!F147*Coefficients!$E$10)+(Campus!G147*Coefficients!$G$10)+(Campus!H147*Coefficients!$I$10)+(Campus!I147*Coefficients!$K$10)+(Campus!J147*VLOOKUP($J$134,'Biodiesel Coefficients'!$J$13:$M$20,3,FALSE))+(Campus!K147*Coefficients!$M$10)+(Campus!L147*Coefficients!$O$10)+(N147*'Waste Coeff.'!$D$9)+(O147*VLOOKUP($O$134,'Fleets Coeff.'!$A$3:$D$10,4,FALSE)) -> 0
Q148: =(E148*Coefficients!$B$10)+(Campus!F148*Coefficients!$D$10)+(Campus!G148*Coefficients!$F$10)+(Campus!H148*Coefficients!$H$10)+(Campus!I148*Coefficients!$J$10)+(Campus!J148*VLOOKUP($J$134,'Biodiesel Coefficients'!$J$13:$M$20,4,FALSE))+(Campus!K148*Coefficients!$L$10)+(Campus!L148*Coefficients!$N$10)+(M148*Campus!$H$31) -> 0 | R148: =(E148*Coefficients!$C$10)+(Campus!F148*Coefficients!$E$10)+(Campus!G148*Coefficients!$G$10)+(Campus!H148*Coefficients!$I$10)+(Campus!I148*Coefficients!$K$10)+(Campus!J148*VLOOKUP($J$134,'Biodiesel Coefficients'!$J$13:$M$20,3,FALSE))+(Campus!K148*Coefficients!$M$10)+(Campus!L148*Coefficients!$O$10)+(N148*'Waste Coeff.'!$D$9)+(O148*VLOOKUP($O$134,'Fleets Coeff.'!$A$3:$D$10,4,FALSE)) -> 0
Q149: =(E149*Coefficients!$B$10)+(Campus!F149*Coefficients!$D$10)+(Campus!G149*Coefficients!$F$10)+(Campus!H149*Coefficients!$H$10)+(Campus!I149*Coefficients!$J$10)+(Campus!J149*VLOOKUP($J$134,'Biodiesel Coefficients'!$J$13:$M$20,4,FALSE))+(Campus!K149*Coefficients!$L$10)+(Campus!L149*Coefficients!$N$10)+(M149*Campus!$H$31) -> 0 | R149: =(E149*Coefficients!$C$10)+(Campus!F149*Coefficients!$E$10)+(Campus!G149*Coefficients!$G$10)+(Campus!H149*Coefficients!$I$10)+(Campus!I149*Coefficients!$K$10)+(Campus!J149*VLOOKUP($J$134,'Biodiesel Coefficients'!$J$13:$M$20,3,FALSE))+(Campus!K149*Coefficients!$M$10)+(Campus!L149*Coefficients!$O$10)+(N149*'Waste Coeff.'!$D$9)+(O149*VLOOKUP($O$134,'Fleets Coeff.'!$A$3:$D$10,4,FALSE)) -> 0
Q150: =(E150*Coefficients!$B$10)+(Campus!F150*Coefficients!$D$10)+(Campus!G150*Coefficients!$F$10)+(Campus!H150*Coefficients!$H$10)+(Campus!I150*Coefficients!$J$10)+(Campus!J150*VLOOKUP($J$134,'Biodiesel Coefficients'!$J$13:$M$20,4,FALSE))+(Campus!K150*Coefficients!$L$10)+(Campus!L150*Coefficients!$N$10)+(M150*Campus!$H$31) -> 0 | R150: =(E150*Coefficients!$C$10)+(Campus!F150*Coefficients!$E$10)+(Campus!G150*Coefficients!$G$10)+(Campus!H150*Coefficients!$I$10)+(Campus!I150*Coefficients!$K$10)+(Campus!J150*VLOOKUP($J$134,'Biodiesel Coefficients'!$J$13:$M$20,3,FALSE))+(Campus!K150*Coefficients!$M$10)+(Campus!L150*Coefficients!$O$10)+(N150*'Waste Coeff.'!$D$9)+(O150*VLOOKUP($O$134,'Fleets Coeff.'!$A$3:$D$10,4,FALSE)) -> 0
Q151: =(E151*Coefficients!$B$10)+(Campus!F151*Coefficients!$D$10)+(Campus!G151*Coefficients!$F$10)+(Campus!H151*Coefficients!$H$10)+(Campus!I151*Coefficients!$J$10)+(Campus!J151*VLOOKUP($J$134,'Biodiesel Coefficients'!$J$13:$M$20,4,FALSE))+(Campus!K151*Coefficients!$L$10)+(Campus!L151*Coefficients!$N$10)+(M151*Campus!$H$31) -> 0 | R151: =(E151*Coefficients!$C$10)+(Campus!F151*Coefficients!$E$10)+(Campus!G151*Coefficients!$G$10)+(Campus!H151*Coefficients!$I$10)+(Campus!I151*Coefficients!$K$10)+(Campus!J151*VLOOKUP($J$134,'Biodiesel Coefficients'!$J$13:$M$20,3,FALSE))+(Campus!K151*Coefficients!$M$10)+(Campus!L151*Coefficients!$O$10)+(N151*'Waste Coeff.'!$D$9)+(O151*VLOOKUP($O$134,'Fleets Coeff.'!$A$3:$D$10,4,FALSE)) -> 0
Q152: =(E152*Coefficients!$B$10)+(Campus!F152*Coefficients!$D$10)+(Campus!G152*Coefficients!$F$10)+(Campus!H152*Coefficients!$H$10)+(Campus!I152*Coefficients!$J$10)+(Campus!J152*VLOOKUP($J$134,'Biodiesel Coefficients'!$J$13:$M$20,4,FALSE))+(Campus!K152*Coefficients!$L$10)+(Campus!L152*Coefficients!$N$10)+(M152*Campus!$H$31) -> 0 | R152: =(E152*Coefficients!$C$10)+(Campus!F152*Coefficients!$E$10)+(Campus!G152*Coefficients!$G$10)+(Campus!H152*Coefficients!$I$10)+(Campus!I152*Coefficients!$K$10)+(Campus!J152*VLOOKUP($J$134,'Biodiesel Coefficients'!$J$13:$M$20,3,FALSE))+(Campus!K152*Coefficients!$M$10)+(Campus!L152*Coefficients!$O$10)+(N152*'Waste Coeff.'!$D$9)+(O152*VLOOKUP($O$134,'Fleets Coeff.'!$A$3:$D$10,4,FALSE)) -> 0
Q153: =(E153*Coefficients!$B$10)+(Campus!F153*Coefficients!$D$10)+(Campus!G153*Coefficients!$F$10)+(Campus!H153*Coefficients!$H$10)+(Campus!I153*Coefficients!$J$10)+(Campus!J153*VLOOKUP($J$134,'Biodiesel Coefficients'!$J$13:$M$20,4,FALSE))+(Campus!K153*Coefficients!$L$10)+(Campus!L153*Coefficients!$N$10)+(M153*Campus!$H$31) -> 0 | R153: =(E153*Coefficients!$C$10)+(Campus!F153*Coefficients!$E$10)+(Campus!G153*Coefficients!$G$10)+(Campus!H153*Coefficients!$I$10)+(Campus!I153*Coefficients!$K$10)+(Campus!J153*VLOOKUP($J$134,'Biodiesel Coefficients'!$J$13:$M$20,3,FALSE))+(Campus!K153*Coefficients!$M$10)+(Campus!L153*Coefficients!$O$10)+(N153*'Waste Coeff.'!$D$9)+(O153*VLOOKUP($O$134,'Fleets Coeff.'!$A$3:$D$10,4,FALSE)) -> 0
Q154: =(E154*Coefficients!$B$10)+(Campus!F154*Coefficients!$D$10)+(Campus!G154*Coefficients!$F$10)+(Campus!H154*Coefficients!$H$10)+(Campus!I154*Coefficients!$J$10)+(Campus!J154*VLOOKUP($J$134,'Biodiesel Coefficients'!$J$13:$M$20,4,FALSE))+(Campus!K154*Coefficients!$L$10)+(Campus!L154*Coefficients!$N$10)+(M154*Campus!$H$31) -> 0 | R154: =(E154*Coefficients!$C$10)+(Campus!F154*Coefficients!$E$10)+(Campus!G154*Coefficients!$G$10)+(Campus!H154*Coefficients!$I$10)+(Campus!I154*Coefficients!$K$10)+(Campus!J154*VLOOKUP($J$134,'Biodiesel Coefficients'!$J$13:$M$20,3,FALSE))+(Campus!K154*Coefficients!$M$10)+(Campus!L154*Coefficients!$O$10)+(N154*'Waste Coeff.'!$D$9)+(O154*VLOOKUP($O$134,'Fleets Coeff.'!$A$3:$D$10,4,FALSE)) -> 0
Q155: =(E155*Coefficients!$B$10)+(Campus!F155*Coefficients!$D$10)+(Campus!G155*Coefficients!$F$10)+(Campus!H155*Coefficients!$H$10)+(Campus!I155*Coefficients!$J$10)+(Campus!J155*VLOOKUP($J$134,'Biodiesel Coefficients'!$J$13:$M$20,4,FALSE))+(Campus!K155*Coefficients!$L$10)+(Campus!L155*Coefficients!$N$10)+(M155*Campus!$H$31) -> 0 | R155: =(E155*Coefficients!$C$10)+(Campus!F155*Coefficients!$E$10)+(Campus!G155*Coefficients!$G$10)+(Campus!H155*Coefficients!$I$10)+(Campus!I155*Coefficients!$K$10)+(Campus!J155*VLOOKUP($J$134,'Biodiesel Coefficients'!$J$13:$M$20,3,FALSE))+(Campus!K155*Coefficients!$M$10)+(Campus!L155*Coefficients!$O$10)+(N155*'Waste Coeff.'!$D$9)+(O155*VLOOKUP($O$134,'Fleets Coeff.'!$A$3:$D$10,4,FALSE)) -> 0
Q156: =(E156*Coefficients!$B$10)+(Campus!F156*Coefficients!$D$10)+(Campus!G156*Coefficients!$F$10)+(Campus!H156*Coefficients!$H$10)+(Campus!I156*Coefficients!$J$10)+(Campus!J156*VLOOKUP($J$134,'Biodiesel Coefficients'!$J$13:$M$20,4,FALSE))+(Campus!K156*Coefficients!$L$10)+(Campus!L156*Coefficients!$N$10)+(M156*Campus!$H$31) -> 0 | R156: =(E156*Coefficients!$C$10)+(Campus!F156*Coefficients!$E$10)+(Campus!G156*Coefficients!$G$10)+(Campus!H156*Coefficients!$I$10)+(Campus!I156*Coefficients!$K$10)+(Campus!J156*VLOOKUP($J$134,'Biodiesel Coefficients'!$J$13:$M$20,3,FALSE))+(Campus!K156*Coefficients!$M$10)+(Campus!L156*Coefficients!$O$10)+(N156*'Waste Coeff.'!$D$9)+(O156*VLOOKUP($O$134,'Fleets Coeff.'!$A$3:$D$10,4,FALSE)) -> 0
Q157: =(E157*Coefficients!$B$10)+(Campus!F157*Coefficients!$D$10)+(Campus!G157*Coefficients!$F$10)+(Campus!H157*Coefficients!$H$10)+(Campus!I157*Coefficients!$J$10)+(Campus!J157*VLOOKUP($J$134,'Biodiesel Coefficients'!$J$13:$M$20,4,FALSE))+(Campus!K157*Coefficients!$L$10)+(Campus!L157*Coefficients!$N$10)+(M157*Campus!$H$31) -> 0 | R157: =(E157*Coefficients!$C$10)+(Campus!F157*Coefficients!$E$10)+(Campus!G157*Coefficients!$G$10)+(Campus!H157*Coefficients!$I$10)+(Campus!I157*Coefficients!$K$10)+(Campus!J157*VLOOKUP($J$134,'Biodiesel Coefficients'!$J$13:$M$20,3,FALSE))+(Campus!K157*Coefficients!$M$10)+(Campus!L157*Coefficients!$O$10)+(N157*'Waste Coeff.'!$D$9)+(O157*VLOOKUP($O$134,'Fleets Coeff.'!$A$3:$D$10,4,FALSE)) -> 0
Q158: =(E158*Coefficients!$B$10)+(Campus!F158*Coefficients!$D$10)+(Campus!G158*Coefficients!$F$10)+(Campus!H158*Coefficients!$H$10)+(Campus!I158*Coefficients!$J$10)+(Campus!J158*VLOOKUP($J$134,'Biodiesel Coefficients'!$J$13:$M$20,4,FALSE))+(Campus!K158*Coefficients!$L$10)+(Campus!L158*Coefficients!$N$10)+(M158*Campus!$H$31) -> 0 | R158: =(E158*Coefficients!$C$10)+(Campus!F158*Coefficients!$E$10)+(Campus!G158*Coefficients!$G$10)+(Campus!H158*Coefficients!$I$10)+(Campus!I158*Coefficients!$K$10)+(Campus!J158*VLOOKUP($J$134,'Biodiesel Coefficients'!$J$13:$M$20,3,FALSE))+(Campus!K158*Coefficients!$M$10)+(Campus!L158*Coefficients!$O$10)+(N158*'Waste Coeff.'!$D$9)+(O158*VLOOKUP($O$134,'Fleets Coeff.'!$A$3:$D$10,4,FALSE)) -> 0
Q159: =(E159*Coefficients!$B$10)+(Campus!F159*Coefficients!$D$10)+(Campus!G159*Coefficients!$F$10)+(Campus!H159*Coefficients!$H$10)+(Campus!I159*Coefficients!$J$10)+(Campus!J159*VLOOKUP($J$134,'Biodiesel Coefficients'!$J$13:$M$20,4,FALSE))+(Campus!K159*Coefficients!$L$10)+(Campus!L159*Coefficients!$N$10)+(M159*Campus!$H$31) -> 0 | R159: =(E159*Coefficients!$C$10)+(Campus!F159*Coefficients!$E$10)+(Campus!G159*Coefficients!$G$10)+(Campus!H159*Coefficients!$I$10)+(Campus!I159*Coefficients!$K$10)+(Campus!J159*VLOOKUP($J$134,'Biodiesel Coefficients'!$J$13:$M$20,3,FALSE))+(Campus!K159*Coefficients!$M$10)+(Campus!L159*Coefficients!$O$10)+(N159*'Waste Coeff.'!$D$9)+(O159*VLOOKUP($O$134,'Fleets Coeff.'!$A$3:$D$10,4,FALSE)) -> 0
Q160: =(E160*Coefficients!$B$10)+(Campus!F160*Coefficients!$D$10)+(Campus!G160*Coefficients!$F$10)+(Campus!H160*Coefficients!$H$10)+(Campus!I160*Coefficients!$J$10)+(Campus!J160*VLOOKUP($J$134,'Biodiesel Coefficients'!$J$13:$M$20,4,FALSE))+(Campus!K160*Coefficients!$L$10)+(Campus!L160*Coefficients!$N$10)+(M160*Campus!$H$31) -> 0 | R160: =(E160*Coefficients!$C$10)+(Campus!F160*Coefficients!$E$10)+(Campus!G160*Coefficients!$G$10)+(Campus!H160*Coefficients!$I$10)+(Campus!I160*Coefficients!$K$10)+(Campus!J160*VLOOKUP($J$134,'Biodiesel Coefficients'!$J$13:$M$20,3,FALSE))+(Campus!K160*Coefficients!$M$10)+(Campus!L160*Coefficients!$O$10)+(N160*'Waste Coeff.'!$D$9)+(O160*VLOOKUP($O$134,'Fleets Coeff.'!$A$3:$D$10,4,FALSE)) -> 0
Q161: =(E161*Coefficients!$B$10)+(Campus!F161*Coefficients!$D$10)+(Campus!G161*Coefficients!$F$10)+(Campus!H161*Coefficients!$H$10)+(Campus!I161*Coefficients!$J$10)+(Campus!J161*VLOOKUP($J$134,'Biodiesel Coefficients'!$J$13:$M$20,4,FALSE))+(Campus!K161*Coefficients!$L$10)+(Campus!L161*Coefficients!$N$10)+(M161*Campus!$H$31) -> 0 | R161: =(E161*Coefficients!$C$10)+(Campus!F161*Coefficients!$E$10)+(Campus!G161*Coefficients!$G$10)+(Campus!H161*Coefficients!$I$10)+(Campus!I161*Coefficients!$K$10)+(Campus!J161*VLOOKUP($J$134,'Biodiesel Coefficients'!$J$13:$M$20,3,FALSE))+(Campus!K161*Coefficients!$M$10)+(Campus!L161*Coefficients!$O$10)+(N161*'Waste Coeff.'!$D$9)+(O161*VLOOKUP($O$134,'Fleets Coeff.'!$A$3:$D$10,4,FALSE)) -> 0
Q162: =(E162*Coefficients!$B$10)+(Campus!F162*Coefficients!$D$10)+(Campus!G162*Coefficients!$F$10)+(Campus!H162*Coefficients!$H$10)+(Campus!I162*Coefficients!$J$10)+(Campus!J162*VLOOKUP($J$134,'Biodiesel Coefficients'!$J$13:$M$20,4,FALSE))+(Campus!K162*Coefficients!$L$10)+(Campus!L162*Coefficients!$N$10)+(M162*Campus!$H$31) -> 0 | R162: =(E162*Coefficients!$C$10)+(Campus!F162*Coefficients!$E$10)+(Campus!G162*Coefficients!$G$10)+(Campus!H162*Coefficients!$I$10)+(Campus!I162*Coefficients!$K$10)+(Campus!J162*VLOOKUP($J$134,'Biodiesel Coefficients'!$J$13:$M$20,3,FALSE))+(Campus!K162*Coefficients!$M$10)+(Campus!L162*Coefficients!$O$10)+(N162*'Waste Coeff.'!$D$9)+(O162*VLOOKUP($O$134,'Fleets Coeff.'!$A$3:$D$10,4,FALSE)) -> 0
D163: Total | E163: =SUM(E138:E162) -> 0 | F163: =SUM(F138:F162) -> 0 | G163: =SUM(G138:G162) -> 0 | H163: =SUM(H138:H162) -> 0 | I163: =SUM(I138:I162) -> 0 | K163: =SUM(K138:K162) -> 0 | L163: =SUM(L138:L162) -> 0 | P163: =SUM(P138:P162) -> 0 | Q163: =SUM(Q138:Q162) -> 0 | R163: =SUM(R138:R162) -> 0 | S163: =IFERROR(Q163/P163,"") ->  | T163: =IFERROR(R163/P163,"") ->  | U163: =IFERROR((T163*2205),"") -> 
C170: 2004 | D170: =IF(Inventory!$K$7=2004,"Base Year", "") -> 
D171: Campus Level Energy and Emissions Inventory By Fuel Type
E172: Electricity (kWh) | F172: NG (Therms) | G172: #2 Oil (USG) | H172: #4 Oil (USG) | I172: #6 Oil (USG) | J172: Biodiesel (Select Type) | K172: Diesel (USG) | L172: Steam (Mlbs) | O172: Fuel (Select Type) | P172: Square Feet | Q172: Total MMBTU | R172: Total Mtons CO2e | S172: Total MMBTU per sq. ft. | T172: Total CO2e per sq.ft. | U172: Total lbs CO2e/sq.ft. | V172: MMBtu %Δ from base year | W172: CO2e %Δ from base year
D173: Campus | J173: Biodiesel Blend (USG) | M173: On-site Renewable Electricity | N173: Waste (Tons) | O173: Fleets (USG)
Q176: =(E176*Coefficients!$B$10)+(Campus!F176*Coefficients!$D$10)+(Campus!G176*Coefficients!$F$10)+(Campus!H176*Coefficients!$H$10)+(Campus!I176*Coefficients!$J$10)+(Campus!J176*VLOOKUP($J$172,'Biodiesel Coefficients'!$J$13:$M$20,4,FALSE))+(Campus!K176*Coefficients!$L$10)+(Campus!L176*Coefficients!$N$10)+(M176*Campus!$H$31) -> 0 | R176: =(E176*Coefficients!$C$10)+(Campus!F176*Coefficients!$E$10)+(Campus!G176*Coefficients!$G$10)+(Campus!H176*Coefficients!$I$10)+(Campus!I176*Coefficients!$K$10)+(Campus!J176*VLOOKUP($J$172,'Biodiesel Coefficients'!$J$13:$M$20,3,FALSE))+(Campus!K176*Coefficients!$M$10)+(Campus!L176*Coefficients!$O$10)+(N176*'Waste Coeff.'!$D$9)+(O176*VLOOKUP($O$172,'Fleets Coeff.'!$A$3:$D$10,4,FALSE)) -> 0 | S176: =IF(ISERR(Q176/P176),"", (Q176/P176)) ->  | T176: =IF(ISERR(R176/P176),"", (R176/P176)) ->  | U176: =IF(ISERR(T176*2205),"",(T176*2205)) ->  | V176: =IFERROR((S176-AM24)/AM24,"") ->  | W176: =IFERROR((T176-AN24)/AN24,"") -> 
Q177: =(E177*Coefficients!$B$10)+(Campus!F177*Coefficients!$D$10)+(Campus!G177*Coefficients!$F$10)+(Campus!H177*Coefficients!$H$10)+(Campus!I177*Coefficients!$J$10)+(Campus!J177*VLOOKUP($J$172,'Biodiesel Coefficients'!$J$13:$M$20,4,FALSE))+(Campus!K177*Coefficients!$L$10)+(Campus!L177*Coefficients!$N$10)+(M177*Campus!$H$31) -> 0 | R177: =(E177*Coefficients!$C$10)+(Campus!F177*Coefficients!$E$10)+(Campus!G177*Coefficients!$G$10)+(Campus!H177*Coefficients!$I$10)+(Campus!I177*Coefficients!$K$10)+(Campus!J177*VLOOKUP($J$172,'Biodiesel Coefficients'!$J$13:$M$20,3,FALSE))+(Campus!K177*Coefficients!$M$10)+(Campus!L177*Coefficients!$O$10)+(N177*'Waste Coeff.'!$D$9)+(O177*VLOOKUP($O$172,'Fleets Coeff.'!$A$3:$D$10,4,FALSE)) -> 0
Q178: =(E178*Coefficients!$B$10)+(Campus!F178*Coefficients!$D$10)+(Campus!G178*Coefficients!$F$10)+(Campus!H178*Coefficients!$H$10)+(Campus!I178*Coefficients!$J$10)+(Campus!J178*VLOOKUP($J$172,'Biodiesel Coefficients'!$J$13:$M$20,4,FALSE))+(Campus!K178*Coefficients!$L$10)+(Campus!L178*Coefficients!$N$10)+(M178*Campus!$H$31) -> 0 | R178: =(E178*Coefficients!$C$10)+(Campus!F178*Coefficients!$E$10)+(Campus!G178*Coefficients!$G$10)+(Campus!H178*Coefficients!$I$10)+(Campus!I178*Coefficients!$K$10)+(Campus!J178*VLOOKUP($J$172,'Biodiesel Coefficients'!$J$13:$M$20,3,FALSE))+(Campus!K178*Coefficients!$M$10)+(Campus!L178*Coefficients!$O$10)+(N178*'Waste Coeff.'!$D$9)+(O178*VLOOKUP($O$172,'Fleets Coeff.'!$A$3:$D$10,4,FALSE)) -> 0
Q179: =(E179*Coefficients!$B$10)+(Campus!F179*Coefficients!$D$10)+(Campus!G179*Coefficients!$F$10)+(Campus!H179*Coefficients!$H$10)+(Campus!I179*Coefficients!$J$10)+(Campus!J179*VLOOKUP($J$172,'Biodiesel Coefficients'!$J$13:$M$20,4,FALSE))+(Campus!K179*Coefficients!$L$10)+(Campus!L179*Coefficients!$N$10)+(M179*Campus!$H$31) -> 0 | R179: =(E179*Coefficients!$C$10)+(Campus!F179*Coefficients!$E$10)+(Campus!G179*Coefficients!$G$10)+(Campus!H179*Coefficients!$I$10)+(Campus!I179*Coefficients!$K$10)+(Campus!J179*VLOOKUP($J$172,'Biodiesel Coefficients'!$J$13:$M$20,3,FALSE))+(Campus!K179*Coefficients!$M$10)+(Campus!L179*Coefficients!$O$10)+(N179*'Waste Coeff.'!$D$9)+(O179*VLOOKUP($O$172,'Fleets Coeff.'!$A$3:$D$10,4,FALSE)) -> 0
Q180: =(E180*Coefficients!$B$10)+(Campus!F180*Coefficients!$D$10)+(Campus!G180*Coefficients!$F$10)+(Campus!H180*Coefficients!$H$10)+(Campus!I180*Coefficients!$J$10)+(Campus!J180*VLOOKUP($J$172,'Biodiesel Coefficients'!$J$13:$M$20,4,FALSE))+(Campus!K180*Coefficients!$L$10)+(Campus!L180*Coefficients!$N$10)+(M180*Campus!$H$31) -> 0 | R180: =(E180*Coefficients!$C$10)+(Campus!F180*Coefficients!$E$10)+(Campus!G180*Coefficients!$G$10)+(Campus!H180*Coefficients!$I$10)+(Campus!I180*Coefficients!$K$10)+(Campus!J180*VLOOKUP($J$172,'Biodiesel Coefficients'!$J$13:$M$20,3,FALSE))+(Campus!K180*Coefficients!$M$10)+(Campus!L180*Coefficients!$O$10)+(N180*'Waste Coeff.'!$D$9)+(O180*VLOOKUP($O$172,'Fleets Coeff.'!$A$3:$D$10,4,FALSE)) -> 0
Q181: =(E181*Coefficients!$B$10)+(Campus!F181*Coefficients!$D$10)+(Campus!G181*Coefficients!$F$10)+(Campus!H181*Coefficients!$H$10)+(Campus!I181*Coefficients!$J$10)+(Campus!J181*VLOOKUP($J$172,'Biodiesel Coefficients'!$J$13:$M$20,4,FALSE))+(Campus!K181*Coefficients!$L$10)+(Campus!L181*Coefficients!$N$10)+(M181*Campus!$H$31) -> 0 | R181: =(E181*Coefficients!$C$10)+(Campus!F181*Coefficients!$E$10)+(Campus!G181*Coefficients!$G$10)+(Campus!H181*Coefficients!$I$10)+(Campus!I181*Coefficients!$K$10)+(Campus!J181*VLOOKUP($J$172,'Biodiesel Coefficients'!$J$13:$M$20,3,FALSE))+(Campus!K181*Coefficients!$M$10)+(Campus!L181*Coefficients!$O$10)+(N181*'Waste Coeff.'!$D$9)+(O181*VLOOKUP($O$172,'Fleets Coeff.'!$A$3:$D$10,4,FALSE)) -> 0
Q182: =(E182*Coefficients!$B$10)+(Campus!F182*Coefficients!$D$10)+(Campus!G182*Coefficients!$F$10)+(Campus!H182*Coefficients!$H$10)+(Campus!I182*Coefficients!$J$10)+(Campus!J182*VLOOKUP($J$172,'Biodiesel Coefficients'!$J$13:$M$20,4,FALSE))+(Campus!K182*Coefficients!$L$10)+(Campus!L182*Coefficients!$N$10)+(M182*Campus!$H$31) -> 0 | R182: =(E182*Coefficients!$C$10)+(Campus!F182*Coefficients!$E$10)+(Campus!G182*Coefficients!$G$10)+(Campus!H182*Coefficients!$I$10)+(Campus!I182*Coefficients!$K$10)+(Campus!J182*VLOOKUP($J$172,'Biodiesel Coefficients'!$J$13:$M$20,3,FALSE))+(Campus!K182*Coefficients!$M$10)+(Campus!L182*Coefficients!$O$10)+(N182*'Waste Coeff.'!$D$9)+(O182*VLOOKUP($O$172,'Fleets Coeff.'!$A$3:$D$10,4,FALSE)) -> 0
Q183: =(E183*Coefficients!$B$10)+(Campus!F183*Coefficients!$D$10)+(Campus!G183*Coefficients!$F$10)+(Campus!H183*Coefficients!$H$10)+(Campus!I183*Coefficients!$J$10)+(Campus!J183*VLOOKUP($J$172,'Biodiesel Coefficients'!$J$13:$M$20,4,FALSE))+(Campus!K183*Coefficients!$L$10)+(Campus!L183*Coefficients!$N$10)+(M183*Campus!$H$31) -> 0 | R183: =(E183*Coefficients!$C$10)+(Campus!F183*Coefficients!$E$10)+(Campus!G183*Coefficients!$G$10)+(Campus!H183*Coefficients!$I$10)+(Campus!I183*Coefficients!$K$10)+(Campus!J183*VLOOKUP($J$172,'Biodiesel Coefficients'!$J$13:$M$20,3,FALSE))+(Campus!K183*Coefficients!$M$10)+(Campus!L183*Coefficients!$O$10)+(N183*'Waste Coeff.'!$D$9)+(O183*VLOOKUP($O$172,'Fleets Coeff.'!$A$3:$D$10,4,FALSE)) -> 0
Q184: =(E184*Coefficients!$B$10)+(Campus!F184*Coefficients!$D$10)+(Campus!G184*Coefficients!$F$10)+(Campus!H184*Coefficients!$H$10)+(Campus!I184*Coefficients!$J$10)+(Campus!J184*VLOOKUP($J$172,'Biodiesel Coefficients'!$J$13:$M$20,4,FALSE))+(Campus!K184*Coefficients!$L$10)+(Campus!L184*Coefficients!$N$10)+(M184*Campus!$H$31) -> 0 | R184: =(E184*Coefficients!$C$10)+(Campus!F184*Coefficients!$E$10)+(Campus!G184*Coefficients!$G$10)+(Campus!H184*Coefficients!$I$10)+(Campus!I184*Coefficients!$K$10)+(Campus!J184*VLOOKUP($J$172,'Biodiesel Coefficients'!$J$13:$M$20,3,FALSE))+(Campus!K184*Coefficients!$M$10)+(Campus!L184*Coefficients!$O$10)+(N184*'Waste Coeff.'!$D$9)+(O184*VLOOKUP($O$172,'Fleets Coeff.'!$A$3:$D$10,4,FALSE)) -> 0
Q185: =(E185*Coefficients!$B$10)+(Campus!F185*Coefficients!$D$10)+(Campus!G185*Coefficients!$F$10)+(Campus!H185*Coefficients!$H$10)+(Campus!I185*Coefficients!$J$10)+(Campus!J185*VLOOKUP($J$172,'Biodiesel Coefficients'!$J$13:$M$20,4,FALSE))+(Campus!K185*Coefficients!$L$10)+(Campus!L185*Coefficients!$N$10)+(M185*Campus!$H$31) -> 0 | R185: =(E185*Coefficients!$C$10)+(Campus!F185*Coefficients!$E$10)+(Campus!G185*Coefficients!$G$10)+(Campus!H185*Coefficients!$I$10)+(Campus!I185*Coefficients!$K$10)+(Campus!J185*VLOOKUP($J$172,'Biodiesel Coefficients'!$J$13:$M$20,3,FALSE))+(Campus!K185*Coefficients!$M$10)+(Campus!L185*Coefficients!$O$10)+(N185*'Waste Coeff.'!$D$9)+(O185*VLOOKUP($O$172,'Fleets Coeff.'!$A$3:$D$10,4,FALSE)) -> 0
Q186: =(E186*Coefficients!$B$10)+(Campus!F186*Coefficients!$D$10)+(Campus!G186*Coefficients!$F$10)+(Campus!H186*Coefficients!$H$10)+(Campus!I186*Coefficients!$J$10)+(Campus!J186*VLOOKUP($J$172,'Biodiesel Coefficients'!$J$13:$M$20,4,FALSE))+(Campus!K186*Coefficients!$L$10)+(Campus!L186*Coefficients!$N$10)+(M186*Campus!$H$31) -> 0 | R186: =(E186*Coefficients!$C$10)+(Campus!F186*Coefficients!$E$10)+(Campus!G186*Coefficients!$G$10)+(Campus!H186*Coefficients!$I$10)+(Campus!I186*Coefficients!$K$10)+(Campus!J186*VLOOKUP($J$172,'Biodiesel Coefficients'!$J$13:$M$20,3,FALSE))+(Campus!K186*Coefficients!$M$10)+(Campus!L186*Coefficients!$O$10)+(N186*'Waste Coeff.'!$D$9)+(O186*VLOOKUP($O$172,'Fleets Coeff.'!$A$3:$D$10,4,FALSE)) -> 0
Q187: =(E187*Coefficients!$B$10)+(Campus!F187*Coefficients!$D$10)+(Campus!G187*Coefficients!$F$10)+(Campus!H187*Coefficients!$H$10)+(Campus!I187*Coefficients!$J$10)+(Campus!J187*VLOOKUP($J$172,'Biodiesel Coefficients'!$J$13:$M$20,4,FALSE))+(Campus!K187*Coefficients!$L$10)+(Campus!L187*Coefficients!$N$10)+(M187*Campus!$H$31) -> 0 | R187: =(E187*Coefficients!$C$10)+(Campus!F187*Coefficients!$E$10)+(Campus!G187*Coefficients!$G$10)+(Campus!H187*Coefficients!$I$10)+(Campus!I187*Coefficients!$K$10)+(Campus!J187*VLOOKUP($J$172,'Biodiesel Coefficients'!$J$13:$M$20,3,FALSE))+(Campus!K187*Coefficients!$M$10)+(Campus!L187*Coefficients!$O$10)+(N187*'Waste Coeff.'!$D$9)+(O187*VLOOKUP($O$172,'Fleets Coeff.'!$A$3:$D$10,4,FALSE)) -> 0
Q188: =(E188*Coefficients!$B$10)+(Campus!F188*Coefficients!$D$10)+(Campus!G188*Coefficients!$F$10)+(Campus!H188*Coefficients!$H$10)+(Campus!I188*Coefficients!$J$10)+(Campus!J188*VLOOKUP($J$172,'Biodiesel Coefficients'!$J$13:$M$20,4,FALSE))+(Campus!K188*Coefficients!$L$10)+(Campus!L188*Coefficients!$N$10)+(M188*Campus!$H$31) -> 0 | R188: =(E188*Coefficients!$C$10)+(Campus!F188*Coefficients!$E$10)+(Campus!G188*Coefficients!$G$10)+(Campus!H188*Coefficients!$I$10)+(Campus!I188*Coefficients!$K$10)+(Campus!J188*VLOOKUP($J$172,'Biodiesel Coefficients'!$J$13:$M$20,3,FALSE))+(Campus!K188*Coefficients!$M$10)+(Campus!L188*Coefficients!$O$10)+(N188*'Waste Coeff.'!$D$9)+(O188*VLOOKUP($O$172,'Fleets Coeff.'!$A$3:$D$10,4,FALSE)) -> 0
Q189: =(E189*Coefficients!$B$10)+(Campus!F189*Coefficients!$D$10)+(Campus!G189*Coefficients!$F$10)+(Campus!H189*Coefficients!$H$10)+(Campus!I189*Coefficients!$J$10)+(Campus!J189*VLOOKUP($J$172,'Biodiesel Coefficients'!$J$13:$M$20,4,FALSE))+(Campus!K189*Coefficients!$L$10)+(Campus!L189*Coefficients!$N$10)+(M189*Campus!$H$31) -> 0 | R189: =(E189*Coefficients!$C$10)+(Campus!F189*Coefficients!$E$10)+(Campus!G189*Coefficients!$G$10)+(Campus!H189*Coefficients!$I$10)+(Campus!I189*Coefficients!$K$10)+(Campus!J189*VLOOKUP($J$172,'Biodiesel Coefficients'!$J$13:$M$20,3,FALSE))+(Campus!K189*Coefficients!$M$10)+(Campus!L189*Coefficients!$O$10)+(N189*'Waste Coeff.'!$D$9)+(O189*VLOOKUP($O$172,'Fleets Coeff.'!$A$3:$D$10,4,FALSE)) -> 0
Q190: =(E190*Coefficients!$B$10)+(Campus!F190*Coefficients!$D$10)+(Campus!G190*Coefficients!$F$10)+(Campus!H190*Coefficients!$H$10)+(Campus!I190*Coefficients!$J$10)+(Campus!J190*VLOOKUP($J$172,'Biodiesel Coefficients'!$J$13:$M$20,4,FALSE))+(Campus!K190*Coefficients!$L$10)+(Campus!L190*Coefficients!$N$10)+(M190*Campus!$H$31) -> 0 | R190: =(E190*Coefficients!$C$10)+(Campus!F190*Coefficients!$E$10)+(Campus!G190*Coefficients!$G$10)+(Campus!H190*Coefficients!$I$10)+(Campus!I190*Coefficients!$K$10)+(Campus!J190*VLOOKUP($J$172,'Biodiesel Coefficients'!$J$13:$M$20,3,FALSE))+(Campus!K190*Coefficients!$M$10)+(Campus!L190*Coefficients!$O$10)+(N190*'Waste Coeff.'!$D$9)+(O190*VLOOKUP($O$172,'Fleets Coeff.'!$A$3:$D$10,4,FALSE)) -> 0
Q191: =(E191*Coefficients!$B$10)+(Campus!F191*Coefficients!$D$10)+(Campus!G191*Coefficients!$F$10)+(Campus!H191*Coefficients!$H$10)+(Campus!I191*Coefficients!$J$10)+(Campus!J191*VLOOKUP($J$172,'Biodiesel Coefficients'!$J$13:$M$20,4,FALSE))+(Campus!K191*Coefficients!$L$10)+(Campus!L191*Coefficients!$N$10)+(M191*Campus!$H$31) -> 0 | R191: =(E191*Coefficients!$C$10)+(Campus!F191*Coefficients!$E$10)+(Campus!G191*Coefficients!$G$10)+(Campus!H191*Coefficients!$I$10)+(Campus!I191*Coefficients!$K$10)+(Campus!J191*VLOOKUP($J$172,'Biodiesel Coefficients'!$J$13:$M$20,3,FALSE))+(Campus!K191*Coefficients!$M$10)+(Campus!L191*Coefficients!$O$10)+(N191*'Waste Coeff.'!$D$9)+(O191*VLOOKUP($O$172,'Fleets Coeff.'!$A$3:$D$10,4,FALSE)) -> 0
Q192: =(E192*Coefficients!$B$10)+(Campus!F192*Coefficients!$D$10)+(Campus!G192*Coefficients!$F$10)+(Campus!H192*Coefficients!$H$10)+(Campus!I192*Coefficients!$J$10)+(Campus!J192*VLOOKUP($J$172,'Biodiesel Coefficients'!$J$13:$M$20,4,FALSE))+(Campus!K192*Coefficients!$L$10)+(Campus!L192*Coefficients!$N$10)+(M192*Campus!$H$31) -> 0 | R192: =(E192*Coefficients!$C$10)+(Campus!F192*Coefficients!$E$10)+(Campus!G192*Coefficients!$G$10)+(Campus!H192*Coefficients!$I$10)+(Campus!I192*Coefficients!$K$10)+(Campus!J192*VLOOKUP($J$172,'Biodiesel Coefficients'!$J$13:$M$20,3,FALSE))+(Campus!K192*Coefficients!$M$10)+(Campus!L192*Coefficients!$O$10)+(N192*'Waste Coeff.'!$D$9)+(O192*VLOOKUP($O$172,'Fleets Coeff.'!$A$3:$D$10,4,FALSE)) -> 0
Q193: =(E193*Coefficients!$B$10)+(Campus!F193*Coefficients!$D$10)+(Campus!G193*Coefficients!$F$10)+(Campus!H193*Coefficients!$H$10)+(Campus!I193*Coefficients!$J$10)+(Campus!J193*VLOOKUP($J$172,'Biodiesel Coefficients'!$J$13:$M$20,4,FALSE))+(Campus!K193*Coefficients!$L$10)+(Campus!L193*Coefficients!$N$10)+(M193*Campus!$H$31) -> 0 | R193: =(E193*Coefficients!$C$10)+(Campus!F193*Coefficients!$E$10)+(Campus!G193*Coefficients!$G$10)+(Campus!H193*Coefficients!$I$10)+(Campus!I193*Coefficients!$K$10)+(Campus!J193*VLOOKUP($J$172,'Biodiesel Coefficients'!$J$13:$M$20,3,FALSE))+(Campus!K193*Coefficients!$M$10)+(Campus!L193*Coefficients!$O$10)+(N193*'Waste Coeff.'!$D$9)+(O193*VLOOKUP($O$172,'Fleets Coeff.'!$A$3:$D$10,4,FALSE)) -> 0
Q194: =(E194*Coefficients!$B$10)+(Campus!F194*Coefficients!$D$10)+(Campus!G194*Coefficients!$F$10)+(Campus!H194*Coefficients!$H$10)+(Campus!I194*Coefficients!$J$10)+(Campus!J194*VLOOKUP($J$172,'Biodiesel Coefficients'!$J$13:$M$20,4,FALSE))+(Campus!K194*Coefficients!$L$10)+(Campus!L194*Coefficients!$N$10)+(M194*Campus!$H$31) -> 0 | R194: =(E194*Coefficients!$C$10)+(Campus!F194*Coefficients!$E$10)+(Campus!G194*Coefficients!$G$10)+(Campus!H194*Coefficients!$I$10)+(Campus!I194*Coefficients!$K$10)+(Campus!J194*VLOOKUP($J$172,'Biodiesel Coefficients'!$J$13:$M$20,3,FALSE))+(Campus!K194*Coefficients!$M$10)+(Campus!L194*Coefficients!$O$10)+(N194*'Waste Coeff.'!$D$9)+(O194*VLOOKUP($O$172,'Fleets Coeff.'!$A$3:$D$10,4,FALSE)) -> 0
Q195: =(E195*Coefficients!$B$10)+(Campus!F195*Coefficients!$D$10)+(Campus!G195*Coefficients!$F$10)+(Campus!H195*Coefficients!$H$10)+(Campus!I195*Coefficients!$J$10)+(Campus!J195*VLOOKUP($J$172,'Biodiesel Coefficients'!$J$13:$M$20,4,FALSE))+(Campus!K195*Coefficients!$L$10)+(Campus!L195*Coefficients!$N$10)+(M195*Campus!$H$31) -> 0 | R195: =(E195*Coefficients!$C$10)+(Campus!F195*Coefficients!$E$10)+(Campus!G195*Coefficients!$G$10)+(Campus!H195*Coefficients!$I$10)+(Campus!I195*Coefficients!$K$10)+(Campus!J195*VLOOKUP($J$172,'Biodiesel Coefficients'!$J$13:$M$20,3,FALSE))+(Campus!K195*Coefficients!$M$10)+(Campus!L195*Coefficients!$O$10)+(N195*'Waste Coeff.'!$D$9)+(O195*VLOOKUP($O$172,'Fleets Coeff.'!$A$3:$D$10,4,FALSE)) -> 0
Q196: =(E196*Coefficients!$B$10)+(Campus!F196*Coefficients!$D$10)+(Campus!G196*Coefficients!$F$10)+(Campus!H196*Coefficients!$H$10)+(Campus!I196*Coefficients!$J$10)+(Campus!J196*VLOOKUP($J$172,'Biodiesel Coefficients'!$J$13:$M$20,4,FALSE))+(Campus!K196*Coefficients!$L$10)+(Campus!L196*Coefficients!$N$10)+(M196*Campus!$H$31) -> 0 | R196: =(E196*Coefficients!$C$10)+(Campus!F196*Coefficients!$E$10)+(Campus!G196*Coefficients!$G$10)+(Campus!H196*Coefficients!$I$10)+(Campus!I196*Coefficients!$K$10)+(Campus!J196*VLOOKUP($J$172,'Biodiesel Coefficients'!$J$13:$M$20,3,FALSE))+(Campus!K196*Coefficients!$M$10)+(Campus!L196*Coefficients!$O$10)+(N196*'Waste Coeff.'!$D$9)+(O196*VLOOKUP($O$172,'Fleets Coeff.'!$A$3:$D$10,4,FALSE)) -> 0
Q197: =(E197*Coefficients!$B$10)+(Campus!F197*Coefficients!$D$10)+(Campus!G197*Coefficients!$F$10)+(Campus!H197*Coefficients!$H$10)+(Campus!I197*Coefficients!$J$10)+(Campus!J197*VLOOKUP($J$172,'Biodiesel Coefficients'!$J$13:$M$20,4,FALSE))+(Campus!K197*Coefficients!$L$10)+(Campus!L197*Coefficients!$N$10)+(M197*Campus!$H$31) -> 0 | R197: =(E197*Coefficients!$C$10)+(Campus!F197*Coefficients!$E$10)+(Campus!G197*Coefficients!$G$10)+(Campus!H197*Coefficients!$I$10)+(Campus!I197*Coefficients!$K$10)+(Campus!J197*VLOOKUP($J$172,'Biodiesel Coefficients'!$J$13:$M$20,3,FALSE))+(Campus!K197*Coefficients!$M$10)+(Campus!L197*Coefficients!$O$10)+(N197*'Waste Coeff.'!$D$9)+(O197*VLOOKUP($O$172,'Fleets Coeff.'!$A$3:$D$10,4,FALSE)) -> 0
Q198: =(E198*Coefficients!$B$10)+(Campus!F198*Coefficients!$D$10)+(Campus!G198*Coefficients!$F$10)+(Campus!H198*Coefficients!$H$10)+(Campus!I198*Coefficients!$J$10)+(Campus!J198*VLOOKUP($J$172,'Biodiesel Coefficients'!$J$13:$M$20,4,FALSE))+(Campus!K198*Coefficients!$L$10)+(Campus!L198*Coefficients!$N$10)+(M198*Campus!$H$31) -> 0 | R198: =(E198*Coefficients!$C$10)+(Campus!F198*Coefficients!$E$10)+(Campus!G198*Coefficients!$G$10)+(Campus!H198*Coefficients!$I$10)+(Campus!I198*Coefficients!$K$10)+(Campus!J198*VLOOKUP($J$172,'Biodiesel Coefficients'!$J$13:$M$20,3,FALSE))+(Campus!K198*Coefficients!$M$10)+(Campus!L198*Coefficients!$O$10)+(N198*'Waste Coeff.'!$D$9)+(O198*VLOOKUP($O$172,'Fleets Coeff.'!$A$3:$D$10,4,FALSE)) -> 0
Q199: =(E199*Coefficients!$B$10)+(Campus!F199*Coefficients!$D$10)+(Campus!G199*Coefficients!$F$10)+(Campus!H199*Coefficients!$H$10)+(Campus!I199*Coefficients!$J$10)+(Campus!J199*VLOOKUP($J$172,'Biodiesel Coefficients'!$J$13:$M$20,4,FALSE))+(Campus!K199*Coefficients!$L$10)+(Campus!L199*Coefficients!$N$10)+(M199*Campus!$H$31) -> 0 | R199: =(E199*Coefficients!$C$10)+(Campus!F199*Coefficients!$E$10)+(Campus!G199*Coefficients!$G$10)+(Campus!H199*Coefficients!$I$10)+(Campus!I199*Coefficients!$K$10)+(Campus!J199*VLOOKUP($J$172,'Biodiesel Coefficients'!$J$13:$M$20,3,FALSE))+(Campus!K199*Coefficients!$M$10)+(Campus!L199*Coefficients!$O$10)+(N199*'Waste Coeff.'!$D$9)+(O199*VLOOKUP($O$172,'Fleets Coeff.'!$A$3:$D$10,4,FALSE)) -> 0
Q200: =(E200*Coefficients!$B$10)+(Campus!F200*Coefficients!$D$10)+(Campus!G200*Coefficients!$F$10)+(Campus!H200*Coefficients!$H$10)+(Campus!I200*Coefficients!$J$10)+(Campus!J200*VLOOKUP($J$172,'Biodiesel Coefficients'!$J$13:$M$20,4,FALSE))+(Campus!K200*Coefficients!$L$10)+(Campus!L200*Coefficients!$N$10)+(M200*Campus!$H$31) -> 0 | R200: =(E200*Coefficients!$C$10)+(Campus!F200*Coefficients!$E$10)+(Campus!G200*Coefficients!$G$10)+(Campus!H200*Coefficients!$I$10)+(Campus!I200*Coefficients!$K$10)+(Campus!J200*VLOOKUP($J$172,'Biodiesel Coefficients'!$J$13:$M$20,3,FALSE))+(Campus!K200*Coefficients!$M$10)+(Campus!L200*Coefficients!$O$10)+(N200*'Waste Coeff.'!$D$9)+(O200*VLOOKUP($O$172,'Fleets Coeff.'!$A$3:$D$10,4,FALSE)) -> 0
D201: Total | E201: =SUM(E176:E200) -> 0 | F201: =SUM(F176:F200) -> 0 | G201: =SUM(G176:G200) -> 0 | H201: =SUM(H176:H200) -> 0 | I201: =SUM(I176:I200) -> 0 | K201: =SUM(K176:K200) -> 0 | L201: =SUM(L176:L200) -> 0 | P201: =SUM(P176:P200) -> 0 | Q201: =SUM(Q176:Q200) -> 0 | R201: =SUM(R176:R200) -> 0 | S201: =IFERROR(Q201/P201,"") ->  | T201: =IFERROR(R201/P201,"") ->  | U201: =IFERROR((T201*2205),"") -> 
C208: 2005 | D208: =IF(Inventory!$K$7=2005,"Base Year", "") -> Base Year
D209: Campus Level Energy and Emissions Inventory By Fuel Type
E210: Electricity (kWh) | F210: NG (Therms) | G210: #2 Oil (USG) | H210: #4 Oil (USG) | I210: #6 Oil (USG) | J210: Biodiesel (Select Type) | K210: Diesel (USG) | L210: Steam (Mlbs) | O210: Fuel (Select Type) | P210: Square Feet | Q210: Total MMBTU | R210: Total Mtons CO2e | S210: Total MMBTU per sq. ft. | T210: Total CO2e per sq.ft. | U210: Total lbs CO2e/sq.ft. | V210: MMBtu %Δ from base year | W210: CO2e %Δ from base year
D211: Campus | J211: Biodiesel Blend (USG) | M211: On-site Renewable Electricity | N211: Waste (Tons) | O211: Fleets (USG)
Q214: =(E214*Coefficients!$B$10)+(Campus!F214*Coefficients!$D$10)+(Campus!G214*Coefficients!$F$10)+(Campus!H214*Coefficients!$H$10)+(Campus!I214*Coefficients!$J$10)+(Campus!J214*VLOOKUP($J$210,'Biodiesel Coefficients'!$J$13:$M$20,4,FALSE))+(Campus!K214*Coefficients!$L$10)+(Campus!L214*Coefficients!$N$10)+(M214*Campus!$H$31) -> 0 | R214: =(E214*Coefficients!$C$10)+(Campus!F214*Coefficients!$E$10)+(Campus!G214*Coefficients!$G$10)+(Campus!H214*Coefficients!$I$10)+(Campus!I214*Coefficients!$K$10)+(Campus!J214*VLOOKUP($J$210,'Biodiesel Coefficients'!$J$13:$M$20,3,FALSE))+(Campus!K214*Coefficients!$M$10)+(Campus!L214*Coefficients!$O$10)+(N214*'Waste Coeff.'!$D$9)+(O214*VLOOKUP($O$210,'Fleets Coeff.'!$A$3:$D$10,4,FALSE)) -> 0 | S214: =IF(ISERR(Q214/P214),"", (Q214/P214)) ->  | T214: =IF(ISERR(R214/P214),"", (R214/P214)) ->  | U214: =IF(ISERR(T214*2205),"",(T214*2205)) ->  | V214: =IFERROR((S214-AM24)/AM24,"") ->  | W214: =IFERROR((T214-AN24)/AN24,"") -> 
Q215: =(E215*Coefficients!$B$10)+(Campus!F215*Coefficients!$D$10)+(Campus!G215*Coefficients!$F$10)+(Campus!H215*Coefficients!$H$10)+(Campus!I215*Coefficients!$J$10)+(Campus!J215*VLOOKUP($J$210,'Biodiesel Coefficients'!$J$13:$M$20,4,FALSE))+(Campus!K215*Coefficients!$L$10)+(Campus!L215*Coefficients!$N$10)+(M215*Campus!$H$31) -> 0 | R215: =(E215*Coefficients!$C$10)+(Campus!F215*Coefficients!$E$10)+(Campus!G215*Coefficients!$G$10)+(Campus!H215*Coefficients!$I$10)+(Campus!I215*Coefficients!$K$10)+(Campus!J215*VLOOKUP($J$210,'Biodiesel Coefficients'!$J$13:$M$20,3,FALSE))+(Campus!K215*Coefficients!$M$10)+(Campus!L215*Coefficients!$O$10)+(N215*'Waste Coeff.'!$D$9)+(O215*VLOOKUP($O$210,'Fleets Coeff.'!$A$3:$D$10,4,FALSE)) -> 0
Q216: =(E216*Coefficients!$B$10)+(Campus!F216*Coefficients!$D$10)+(Campus!G216*Coefficients!$F$10)+(Campus!H216*Coefficients!$H$10)+(Campus!I216*Coefficients!$J$10)+(Campus!J216*VLOOKUP($J$210,'Biodiesel Coefficients'!$J$13:$M$20,4,FALSE))+(Campus!K216*Coefficients!$L$10)+(Campus!L216*Coefficients!$N$10)+(M216*Campus!$H$31) -> 0 | R216: =(E216*Coefficients!$C$10)+(Campus!F216*Coefficients!$E$10)+(Campus!G216*Coefficients!$G$10)+(Campus!H216*Coefficients!$I$10)+(Campus!I216*Coefficients!$K$10)+(Campus!J216*VLOOKUP($J$210,'Biodiesel Coefficients'!$J$13:$M$20,3,FALSE))+(Campus!K216*Coefficients!$M$10)+(Campus!L216*Coefficients!$O$10)+(N216*'Waste Coeff.'!$D$9)+(O216*VLOOKUP($O$210,'Fleets Coeff.'!$A$3:$D$10,4,FALSE)) -> 0
Q217: =(E217*Coefficients!$B$10)+(Campus!F217*Coefficients!$D$10)+(Campus!G217*Coefficients!$F$10)+(Campus!H217*Coefficients!$H$10)+(Campus!I217*Coefficients!$J$10)+(Campus!J217*VLOOKUP($J$210,'Biodiesel Coefficients'!$J$13:$M$20,4,FALSE))+(Campus!K217*Coefficients!$L$10)+(Campus!L217*Coefficients!$N$10)+(M217*Campus!$H$31) -> 0 | R217: =(E217*Coefficients!$C$10)+(Campus!F217*Coefficients!$E$10)+(Campus!G217*Coefficients!$G$10)+(Campus!H217*Coefficients!$I$10)+(Campus!I217*Coefficients!$K$10)+(Campus!J217*VLOOKUP($J$210,'Biodiesel Coefficients'!$J$13:$M$20,3,FALSE))+(Campus!K217*Coefficients!$M$10)+(Campus!L217*Coefficients!$O$10)+(N217*'Waste Coeff.'!$D$9)+(O217*VLOOKUP($O$210,'Fleets Coeff.'!$A$3:$D$10,4,FALSE)) -> 0
Q218: =(E218*Coefficients!$B$10)+(Campus!F218*Coefficients!$D$10)+(Campus!G218*Coefficients!$F$10)+(Campus!H218*Coefficients!$H$10)+(Campus!I218*Coefficients!$J$10)+(Campus!J218*VLOOKUP($J$210,'Biodiesel Coefficients'!$J$13:$M$20,4,FALSE))+(Campus!K218*Coefficients!$L$10)+(Campus!L218*Coefficients!$N$10)+(M218*Campus!$H$31) -> 0 | R218: =(E218*Coefficients!$C$10)+(Campus!F218*Coefficients!$E$10)+(Campus!G218*Coefficients!$G$10)+(Campus!H218*Coefficients!$I$10)+(Campus!I218*Coefficients!$K$10)+(Campus!J218*VLOOKUP($J$210,'Biodiesel Coefficients'!$J$13:$M$20,3,FALSE))+(Campus!K218*Coefficients!$M$10)+(Campus!L218*Coefficients!$O$10)+(N218*'Waste Coeff.'!$D$9)+(O218*VLOOKUP($O$210,'Fleets Coeff.'!$A$3:$D$10,4,FALSE)) -> 0
Q219: =(E219*Coefficients!$B$10)+(Campus!F219*Coefficients!$D$10)+(Campus!G219*Coefficients!$F$10)+(Campus!H219*Coefficients!$H$10)+(Campus!I219*Coefficients!$J$10)+(Campus!J219*VLOOKUP($J$210,'Biodiesel Coefficients'!$J$13:$M$20,4,FALSE))+(Campus!K219*Coefficients!$L$10)+(Campus!L219*Coefficients!$N$10)+(M219*Campus!$H$31) -> 0 | R219: =(E219*Coefficients!$C$10)+(Campus!F219*Coefficients!$E$10)+(Campus!G219*Coefficients!$G$10)+(Campus!H219*Coefficients!$I$10)+(Campus!I219*Coefficients!$K$10)+(Campus!J219*VLOOKUP($J$210,'Biodiesel Coefficients'!$J$13:$M$20,3,FALSE))+(Campus!K219*Coefficients!$M$10)+(Campus!L219*Coefficients!$O$10)+(N219*'Waste Coeff.'!$D$9)+(O219*VLOOKUP($O$210,'Fleets Coeff.'!$A$3:$D$10,4,FALSE)) -> 0
Q220: =(E220*Coefficients!$B$10)+(Campus!F220*Coefficients!$D$10)+(Campus!G220*Coefficients!$F$10)+(Campus!H220*Coefficients!$H$10)+(Campus!I220*Coefficients!$J$10)+(Campus!J220*VLOOKUP($J$210,'Biodiesel Coefficients'!$J$13:$M$20,4,FALSE))+(Campus!K220*Coefficients!$L$10)+(Campus!L220*Coefficients!$N$10)+(M220*Campus!$H$31) -> 0 | R220: =(E220*Coefficients!$C$10)+(Campus!F220*Coefficients!$E$10)+(Campus!G220*Coefficients!$G$10)+(Campus!H220*Coefficients!$I$10)+(Campus!I220*Coefficients!$K$10)+(Campus!J220*VLOOKUP($J$210,'Biodiesel Coefficients'!$J$13:$M$20,3,FALSE))+(Campus!K220*Coefficients!$M$10)+(Campus!L220*Coefficients!$O$10)+(N220*'Waste Coeff.'!$D$9)+(O220*VLOOKUP($O$210,'Fleets Coeff.'!$A$3:$D$10,4,FALSE)) -> 0
Q221: =(E221*Coefficients!$B$10)+(Campus!F221*Coefficients!$D$10)+(Campus!G221*Coefficients!$F$10)+(Campus!H221*Coefficients!$H$10)+(Campus!I221*Coefficients!$J$10)+(Campus!J221*VLOOKUP($J$210,'Biodiesel Coefficients'!$J$13:$M$20,4,FALSE))+(Campus!K221*Coefficients!$L$10)+(Campus!L221*Coefficients!$N$10)+(M221*Campus!$H$31) -> 0 | R221: =(E221*Coefficients!$C$10)+(Campus!F221*Coefficients!$E$10)+(Campus!G221*Coefficients!$G$10)+(Campus!H221*Coefficients!$I$10)+(Campus!I221*Coefficients!$K$10)+(Campus!J221*VLOOKUP($J$210,'Biodiesel Coefficients'!$J$13:$M$20,3,FALSE))+(Campus!K221*Coefficients!$M$10)+(Campus!L221*Coefficients!$O$10)+(N221*'Waste Coeff.'!$D$9)+(O221*VLOOKUP($O$210,'Fleets Coeff.'!$A$3:$D$10,4,FALSE)) -> 0
Q222: =(E222*Coefficients!$B$10)+(Campus!F222*Coefficients!$D$10)+(Campus!G222*Coefficients!$F$10)+(Campus!H222*Coefficients!$H$10)+(Campus!I222*Coefficients!$J$10)+(Campus!J222*VLOOKUP($J$210,'Biodiesel Coefficients'!$J$13:$M$20,4,FALSE))+(Campus!K222*Coefficients!$L$10)+(Campus!L222*Coefficients!$N$10)+(M222*Campus!$H$31) -> 0 | R222: =(E222*Coefficients!$C$10)+(Campus!F222*Coefficients!$E$10)+(Campus!G222*Coefficients!$G$10)+(Campus!H222*Coefficients!$I$10)+(Campus!I222*Coefficients!$K$10)+(Campus!J222*VLOOKUP($J$210,'Biodiesel Coefficients'!$J$13:$M$20,3,FALSE))+(Campus!K222*Coefficients!$M$10)+(Campus!L222*Coefficients!$O$10)+(N222*'Waste Coeff.'!$D$9)+(O222*VLOOKUP($O$210,'Fleets Coeff.'!$A$3:$D$10,4,FALSE)) -> 0
Q223: =(E223*Coefficients!$B$10)+(Campus!F223*Coefficients!$D$10)+(Campus!G223*Coefficients!$F$10)+(Campus!H223*Coefficients!$H$10)+(Campus!I223*Coefficients!$J$10)+(Campus!J223*VLOOKUP($J$210,'Biodiesel Coefficients'!$J$13:$M$20,4,FALSE))+(Campus!K223*Coefficients!$L$10)+(Campus!L223*Coefficients!$N$10)+(M223*Campus!$H$31) -> 0 | R223: =(E223*Coefficients!$C$10)+(Campus!F223*Coefficients!$E$10)+(Campus!G223*Coefficients!$G$10)+(Campus!H223*Coefficients!$I$10)+(Campus!I223*Coefficients!$K$10)+(Campus!J223*VLOOKUP($J$210,'Biodiesel Coefficients'!$J$13:$M$20,3,FALSE))+(Campus!K223*Coefficients!$M$10)+(Campus!L223*Coefficients!$O$10)+(N223*'Waste Coeff.'!$D$9)+(O223*VLOOKUP($O$210,'Fleets Coeff.'!$A$3:$D$10,4,FALSE)) -> 0
Q224: =(E224*Coefficients!$B$10)+(Campus!F224*Coefficients!$D$10)+(Campus!G224*Coefficients!$F$10)+(Campus!H224*Coefficients!$H$10)+(Campus!I224*Coefficients!$J$10)+(Campus!J224*VLOOKUP($J$210,'Biodiesel Coefficients'!$J$13:$M$20,4,FALSE))+(Campus!K224*Coefficients!$L$10)+(Campus!L224*Coefficients!$N$10)+(M224*Campus!$H$31) -> 0 | R224: =(E224*Coefficients!$C$10)+(Campus!F224*Coefficients!$E$10)+(Campus!G224*Coefficients!$G$10)+(Campus!H224*Coefficients!$I$10)+(Campus!I224*Coefficients!$K$10)+(Campus!J224*VLOOKUP($J$210,'Biodiesel Coefficients'!$J$13:$M$20,3,FALSE))+(Campus!K224*Coefficients!$M$10)+(Campus!L224*Coefficients!$O$10)+(N224*'Waste Coeff.'!$D$9)+(O224*VLOOKUP($O$210,'Fleets Coeff.'!$A$3:$D$10,4,FALSE)) -> 0
Q225: =(E225*Coefficients!$B$10)+(Campus!F225*Coefficients!$D$10)+(Campus!G225*Coefficients!$F$10)+(Campus!H225*Coefficients!$H$10)+(Campus!I225*Coefficients!$J$10)+(Campus!J225*VLOOKUP($J$210,'Biodiesel Coefficients'!$J$13:$M$20,4,FALSE))+(Campus!K225*Coefficients!$L$10)+(Campus!L225*Coefficients!$N$10)+(M225*Campus!$H$31) -> 0 | R225: =(E225*Coefficients!$C$10)+(Campus!F225*Coefficients!$E$10)+(Campus!G225*Coefficients!$G$10)+(Campus!H225*Coefficients!$I$10)+(Campus!I225*Coefficients!$K$10)+(Campus!J225*VLOOKUP($J$210,'Biodiesel Coefficients'!$J$13:$M$20,3,FALSE))+(Campus!K225*Coefficients!$M$10)+(Campus!L225*Coefficients!$O$10)+(N225*'Waste Coeff.'!$D$9)+(O225*VLOOKUP($O$210,'Fleets Coeff.'!$A$3:$D$10,4,FALSE)) -> 0
Q226: =(E226*Coefficients!$B$10)+(Campus!F226*Coefficients!$D$10)+(Campus!G226*Coefficients!$F$10)+(Campus!H226*Coefficients!$H$10)+(Campus!I226*Coefficients!$J$10)+(Campus!J226*VLOOKUP($J$210,'Biodiesel Coefficients'!$J$13:$M$20,4,FALSE))+(Campus!K226*Coefficients!$L$10)+(Campus!L226*Coefficients!$N$10)+(M226*Campus!$H$31) -> 0 | R226: =(E226*Coefficients!$C$10)+(Campus!F226*Coefficients!$E$10)+(Campus!G226*Coefficients!$G$10)+(Campus!H226*Coefficients!$I$10)+(Campus!I226*Coefficients!$K$10)+(Campus!J226*VLOOKUP($J$210,'Biodiesel Coefficients'!$J$13:$M$20,3,FALSE))+(Campus!K226*Coefficients!$M$10)+(Campus!L226*Coefficients!$O$10)+(N226*'Waste Coeff.'!$D$9)+(O226*VLOOKUP($O$210,'Fleets Coeff.'!$A$3:$D$10,4,FALSE)) -> 0
Q227: =(E227*Coefficients!$B$10)+(Campus!F227*Coefficients!$D$10)+(Campus!G227*Coefficients!$F$10)+(Campus!H227*Coefficients!$H$10)+(Campus!I227*Coefficients!$J$10)+(Campus!J227*VLOOKUP($J$210,'Biodiesel Coefficients'!$J$13:$M$20,4,FALSE))+(Campus!K227*Coefficients!$L$10)+(Campus!L227*Coefficients!$N$10)+(M227*Campus!$H$31) -> 0 | R227: =(E227*Coefficients!$C$10)+(Campus!F227*Coefficients!$E$10)+(Campus!G227*Coefficients!$G$10)+(Campus!H227*Coefficients!$I$10)+(Campus!I227*Coefficients!$K$10)+(Campus!J227*VLOOKUP($J$210,'Biodiesel Coefficients'!$J$13:$M$20,3,FALSE))+(Campus!K227*Coefficients!$M$10)+(Campus!L227*Coefficients!$O$10)+(N227*'Waste Coeff.'!$D$9)+(O227*VLOOKUP($O$210,'Fleets Coeff.'!$A$3:$D$10,4,FALSE)) -> 0
Q228: =(E228*Coefficients!$B$10)+(Campus!F228*Coefficients!$D$10)+(Campus!G228*Coefficients!$F$10)+(Campus!H228*Coefficients!$H$10)+(Campus!I228*Coefficients!$J$10)+(Campus!J228*VLOOKUP($J$210,'Biodiesel Coefficients'!$J$13:$M$20,4,FALSE))+(Campus!K228*Coefficients!$L$10)+(Campus!L228*Coefficients!$N$10)+(M228*Campus!$H$31) -> 0 | R228: =(E228*Coefficients!$C$10)+(Campus!F228*Coefficients!$E$10)+(Campus!G228*Coefficients!$G$10)+(Campus!H228*Coefficients!$I$10)+(Campus!I228*Coefficients!$K$10)+(Campus!J228*VLOOKUP($J$210,'Biodiesel Coefficients'!$J$13:$M$20,3,FALSE))+(Campus!K228*Coefficients!$M$10)+(Campus!L228*Coefficients!$O$10)+(N228*'Waste Coeff.'!$D$9)+(O228*VLOOKUP($O$210,'Fleets Coeff.'!$A$3:$D$10,4,FALSE)) -> 0
Q229: =(E229*Coefficients!$B$10)+(Campus!F229*Coefficients!$D$10)+(Campus!G229*Coefficients!$F$10)+(Campus!H229*Coefficients!$H$10)+(Campus!I229*Coefficients!$J$10)+(Campus!J229*VLOOKUP($J$210,'Biodiesel Coefficients'!$J$13:$M$20,4,FALSE))+(Campus!K229*Coefficients!$L$10)+(Campus!L229*Coefficients!$N$10)+(M229*Campus!$H$31) -> 0 | R229: =(E229*Coefficients!$C$10)+(Campus!F229*Coefficients!$E$10)+(Campus!G229*Coefficients!$G$10)+(Campus!H229*Coefficients!$I$10)+(Campus!I229*Coefficients!$K$10)+(Campus!J229*VLOOKUP($J$210,'Biodiesel Coefficients'!$J$13:$M$20,3,FALSE))+(Campus!K229*Coefficients!$M$10)+(Campus!L229*Coefficients!$O$10)+(N229*'Waste Coeff.'!$D$9)+(O229*VLOOKUP($O$210,'Fleets Coeff.'!$A$3:$D$10,4,FALSE)) -> 0
Q230: =(E230*Coefficients!$B$10)+(Campus!F230*Coefficients!$D$10)+(Campus!G230*Coefficients!$F$10)+(Campus!H230*Coefficients!$H$10)+(Campus!I230*Coefficients!$J$10)+(Campus!J230*VLOOKUP($J$210,'Biodiesel Coefficients'!$J$13:$M$20,4,FALSE))+(Campus!K230*Coefficients!$L$10)+(Campus!L230*Coefficients!$N$10)+(M230*Campus!$H$31) -> 0 | R230: =(E230*Coefficients!$C$10)+(Campus!F230*Coefficients!$E$10)+(Campus!G230*Coefficients!$G$10)+(Campus!H230*Coefficients!$I$10)+(Campus!I230*Coefficients!$K$10)+(Campus!J230*VLOOKUP($J$210,'Biodiesel Coefficients'!$J$13:$M$20,3,FALSE))+(Campus!K230*Coefficients!$M$10)+(Campus!L230*Coefficients!$O$10)+(N230*'Waste Coeff.'!$D$9)+(O230*VLOOKUP($O$210,'Fleets Coeff.'!$A$3:$D$10,4,FALSE)) -> 0
Q231: =(E231*Coefficients!$B$10)+(Campus!F231*Coefficients!$D$10)+(Campus!G231*Coefficients!$F$10)+(Campus!H231*Coefficients!$H$10)+(Campus!I231*Coefficients!$J$10)+(Campus!J231*VLOOKUP($J$210,'Biodiesel Coefficients'!$J$13:$M$20,4,FALSE))+(Campus!K231*Coefficients!$L$10)+(Campus!L231*Coefficients!$N$10)+(M231*Campus!$H$31) -> 0 | R231: =(E231*Coefficients!$C$10)+(Campus!F231*Coefficients!$E$10)+(Campus!G231*Coefficients!$G$10)+(Campus!H231*Coefficients!$I$10)+(Campus!I231*Coefficients!$K$10)+(Campus!J231*VLOOKUP($J$210,'Biodiesel Coefficients'!$J$13:$M$20,3,FALSE))+(Campus!K231*Coefficients!$M$10)+(Campus!L231*Coefficients!$O$10)+(N231*'Waste Coeff.'!$D$9)+(O231*VLOOKUP($O$210,'Fleets Coeff.'!$A$3:$D$10,4,FALSE)) -> 0
Q232: =(E232*Coefficients!$B$10)+(Campus!F232*Coefficients!$D$10)+(Campus!G232*Coefficients!$F$10)+(Campus!H232*Coefficients!$H$10)+(Campus!I232*Coefficients!$J$10)+(Campus!J232*VLOOKUP($J$210,'Biodiesel Coefficients'!$J$13:$M$20,4,FALSE))+(Campus!K232*Coefficients!$L$10)+(Campus!L232*Coefficients!$N$10)+(M232*Campus!$H$31) -> 0 | R232: =(E232*Coefficients!$C$10)+(Campus!F232*Coefficients!$E$10)+(Campus!G232*Coefficients!$G$10)+(Campus!H232*Coefficients!$I$10)+(Campus!I232*Coefficients!$K$10)+(Campus!J232*VLOOKUP($J$210,'Biodiesel Coefficients'!$J$13:$M$20,3,FALSE))+(Campus!K232*Coefficients!$M$10)+(Campus!L232*Coefficients!$O$10)+(N232*'Waste Coeff.'!$D$9)+(O232*VLOOKUP($O$210,'Fleets Coeff.'!$A$3:$D$10,4,FALSE)) -> 0
Q233: =(E233*Coefficients!$B$10)+(Campus!F233*Coefficients!$D$10)+(Campus!G233*Coefficients!$F$10)+(Campus!H233*Coefficients!$H$10)+(Campus!I233*Coefficients!$J$10)+(Campus!J233*VLOOKUP($J$210,'Biodiesel Coefficients'!$J$13:$M$20,4,FALSE))+(Campus!K233*Coefficients!$L$10)+(Campus!L233*Coefficients!$N$10)+(M233*Campus!$H$31) -> 0 | R233: =(E233*Coefficients!$C$10)+(Campus!F233*Coefficients!$E$10)+(Campus!G233*Coefficients!$G$10)+(Campus!H233*Coefficients!$I$10)+(Campus!I233*Coefficients!$K$10)+(Campus!J233*VLOOKUP($J$210,'Biodiesel Coefficients'!$J$13:$M$20,3,FALSE))+(Campus!K233*Coefficients!$M$10)+(Campus!L233*Coefficients!$O$10)+(N233*'Waste Coeff.'!$D$9)+(O233*VLOOKUP($O$210,'Fleets Coeff.'!$A$3:$D$10,4,FALSE)) -> 0
Q234: =(E234*Coefficients!$B$10)+(Campus!F234*Coefficients!$D$10)+(Campus!G234*Coefficients!$F$10)+(Campus!H234*Coefficients!$H$10)+(Campus!I234*Coefficients!$J$10)+(Campus!J234*VLOOKUP($J$210,'Biodiesel Coefficients'!$J$13:$M$20,4,FALSE))+(Campus!K234*Coefficients!$L$10)+(Campus!L234*Coefficients!$N$10)+(M234*Campus!$H$31) -> 0 | R234: =(E234*Coefficients!$C$10)+(Campus!F234*Coefficients!$E$10)+(Campus!G234*Coefficients!$G$10)+(Campus!H234*Coefficients!$I$10)+(Campus!I234*Coefficients!$K$10)+(Campus!J234*VLOOKUP($J$210,'Biodiesel Coefficients'!$J$13:$M$20,3,FALSE))+(Campus!K234*Coefficients!$M$10)+(Campus!L234*Coefficients!$O$10)+(N234*'Waste Coeff.'!$D$9)+(O234*VLOOKUP($O$210,'Fleets Coeff.'!$A$3:$D$10,4,FALSE)) -> 0
Q235: =(E235*Coefficients!$B$10)+(Campus!F235*Coefficients!$D$10)+(Campus!G235*Coefficients!$F$10)+(Campus!H235*Coefficients!$H$10)+(Campus!I235*Coefficients!$J$10)+(Campus!J235*VLOOKUP($J$210,'Biodiesel Coefficients'!$J$13:$M$20,4,FALSE))+(Campus!K235*Coefficients!$L$10)+(Campus!L235*Coefficients!$N$10)+(M235*Campus!$H$31) -> 0 | R235: =(E235*Coefficients!$C$10)+(Campus!F235*Coefficients!$E$10)+(Campus!G235*Coefficients!$G$10)+(Campus!H235*Coefficients!$I$10)+(Campus!I235*Coefficients!$K$10)+(Campus!J235*VLOOKUP($J$210,'Biodiesel Coefficients'!$J$13:$M$20,3,FALSE))+(Campus!K235*Coefficients!$M$10)+(Campus!L235*Coefficients!$O$10)+(N235*'Waste Coeff.'!$D$9)+(O235*VLOOKUP($O$210,'Fleets Coeff.'!$A$3:$D$10,4,FALSE)) -> 0
Q236: =(E236*Coefficients!$B$10)+(Campus!F236*Coefficients!$D$10)+(Campus!G236*Coefficients!$F$10)+(Campus!H236*Coefficients!$H$10)+(Campus!I236*Coefficients!$J$10)+(Campus!J236*VLOOKUP($J$210,'Biodiesel Coefficients'!$J$13:$M$20,4,FALSE))+(Campus!K236*Coefficients!$L$10)+(Campus!L236*Coefficients!$N$10)+(M236*Campus!$H$31) -> 0 | R236: =(E236*Coefficients!$C$10)+(Campus!F236*Coefficients!$E$10)+(Campus!G236*Coefficients!$G$10)+(Campus!H236*Coefficients!$I$10)+(Campus!I236*Coefficients!$K$10)+(Campus!J236*VLOOKUP($J$210,'Biodiesel Coefficients'!$J$13:$M$20,3,FALSE))+(Campus!K236*Coefficients!$M$10)+(Campus!L236*Coefficients!$O$10)+(N236*'Waste Coeff.'!$D$9)+(O236*VLOOKUP($O$210,'Fleets Coeff.'!$A$3:$D$10,4,FALSE)) -> 0
Q237: =(E237*Coefficients!$B$10)+(Campus!F237*Coefficients!$D$10)+(Campus!G237*Coefficients!$F$10)+(Campus!H237*Coefficients!$H$10)+(Campus!I237*Coefficients!$J$10)+(Campus!J237*VLOOKUP($J$210,'Biodiesel Coefficients'!$J$13:$M$20,4,FALSE))+(Campus!K237*Coefficients!$L$10)+(Campus!L237*Coefficients!$N$10)+(M237*Campus!$H$31) -> 0 | R237: =(E237*Coefficients!$C$10)+(Campus!F237*Coefficients!$E$10)+(Campus!G237*Coefficients!$G$10)+(Campus!H237*Coefficients!$I$10)+(Campus!I237*Coefficients!$K$10)+(Campus!J237*VLOOKUP($J$210,'Biodiesel Coefficients'!$J$13:$M$20,3,FALSE))+(Campus!K237*Coefficients!$M$10)+(Campus!L237*Coefficients!$O$10)+(N237*'Waste Coeff.'!$D$9)+(O237*VLOOKUP($O$210,'Fleets Coeff.'!$A$3:$D$10,4,FALSE)) -> 0
Q238: =(E238*Coefficients!$B$10)+(Campus!F238*Coefficients!$D$10)+(Campus!G238*Coefficients!$F$10)+(Campus!H238*Coefficients!$H$10)+(Campus!I238*Coefficients!$J$10)+(Campus!J238*VLOOKUP($J$210,'Biodiesel Coefficients'!$J$13:$M$20,4,FALSE))+(Campus!K238*Coefficients!$L$10)+(Campus!L238*Coefficients!$N$10)+(M238*Campus!$H$31) -> 0 | R238: =(E238*Coefficients!$C$10)+(Campus!F238*Coefficients!$E$10)+(Campus!G238*Coefficients!$G$10)+(Campus!H238*Coefficients!$I$10)+(Campus!I238*Coefficients!$K$10)+(Campus!J238*VLOOKUP($J$210,'Biodiesel Coefficients'!$J$13:$M$20,3,FALSE))+(Campus!K238*Coefficients!$M$10)+(Campus!L238*Coefficients!$O$10)+(N238*'Waste Coeff.'!$D$9)+(O238*VLOOKUP($O$210,'Fleets Coeff.'!$A$3:$D$10,4,FALSE)) -> 0
D239: Total | E239: =SUM(E214:E238) -> 0 | F239: =SUM(F214:F238) -> 0 | G239: =SUM(G214:G238) -> 0 | H239: =SUM(H214:H238) -> 0 | I239: =SUM(I214:I238) -> 0 | K239: =SUM(K214:K238) -> 0 | L239: =SUM(L214:L238) -> 0 | P239: =SUM(P214:P238) -> 0 | Q239: =SUM(Q214:Q238) -> 0 | R239: =SUM(R214:R238) -> 0 | S239: =IFERROR(Q239/P239,"") ->  | T239: =IFERROR(R239/P239,"") ->  | U239: =IFERROR((T239*2205),"") -> 
C246: 2006 | D246: =IF(Inventory!$K$7=2006,"Base Year", "") -> 
D247: Campus Level Energy and Emissions Inventory By Fuel Type
E248: Electricity (kWh) | F248: NG (Therms) | G248: #2 Oil (USG) | H248: #4 Oil (USG) | I248: #6 Oil (USG) | J248: Biodiesel (Select Type) | K248: Diesel (USG) | L248: Steam (Mlbs) | O248: Fuel (Select Type) | P248: Square Feet | Q248: Total MMBTU | R248: Total Mtons CO2e | S248: Total MMBTU per sq. ft. | T248: Total CO2e per sq.ft. | U248: Total lbs CO2e/sq.ft. | V248: MMBtu %Δ from base year | W248: CO2e %Δ from base year
D249: Campus | J249: Biodiesel Blend (USG) | M249: On-site Renewable Electricity | N249: Waste (Tons) | O249: Fleets (USG)
Q252: =(E252*Coefficients!$B$10)+(Campus!F252*Coefficients!$D$10)+(Campus!G252*Coefficients!$F$10)+(Campus!H252*Coefficients!$H$10)+(Campus!I252*Coefficients!$J$10)+(Campus!J252*VLOOKUP($J$248,'Biodiesel Coefficients'!$J$13:$M$20,4,FALSE))+(Campus!K252*Coefficients!$L$10)+(Campus!L252*Coefficients!$N$10)+(M252*Campus!$H$31) -> 0 | R252: =(E252*Coefficients!$C$10)+(Campus!F252*Coefficients!$E$10)+(Campus!G252*Coefficients!$G$10)+(Campus!H252*Coefficients!$I$10)+(Campus!I252*Coefficients!$K$10)+(Campus!J252*VLOOKUP($J$248,'Biodiesel Coefficients'!$J$13:$M$20,3,FALSE))+(Campus!K252*Coefficients!$M$10)+(Campus!L252*Coefficients!$O$10)+(N252*'Waste Coeff.'!$D$9)+(O252*VLOOKUP($O$248,'Fleets Coeff.'!$A$3:$D$10,4,FALSE)) -> 0 | S252: =IF(ISERR(Q252/P252),"",(Q252/P252)) ->  | T252: =IF(ISERR(R252/P252),"", (R252/P252)) ->  | U252: =IF(ISERR(T252*2205),"",(T252*2205)) ->  | V252: =IFERROR((S252-AM24)/AM24,"") ->  | W252: =IFERROR((T252-AN24)/AN24,"") -> 
Q253: =(E253*Coefficients!$B$10)+(Campus!F253*Coefficients!$D$10)+(Campus!G253*Coefficients!$F$10)+(Campus!H253*Coefficients!$H$10)+(Campus!I253*Coefficients!$J$10)+(Campus!J253*VLOOKUP($J$248,'Biodiesel Coefficients'!$J$13:$M$20,4,FALSE))+(Campus!K253*Coefficients!$L$10)+(Campus!L253*Coefficients!$N$10)+(M253*Campus!$H$31) -> 0 | R253: =(E253*Coefficients!$C$10)+(Campus!F253*Coefficients!$E$10)+(Campus!G253*Coefficients!$G$10)+(Campus!H253*Coefficients!$I$10)+(Campus!I253*Coefficients!$K$10)+(Campus!J253*VLOOKUP($J$248,'Biodiesel Coefficients'!$J$13:$M$20,3,FALSE))+(Campus!K253*Coefficients!$M$10)+(Campus!L253*Coefficients!$O$10)+(N253*'Waste Coeff.'!$D$9)+(O253*VLOOKUP($O$248,'Fleets Coeff.'!$A$3:$D$10,4,FALSE)) -> 0
Q254: =(E254*Coefficients!$B$10)+(Campus!F254*Coefficients!$D$10)+(Campus!G254*Coefficients!$F$10)+(Campus!H254*Coefficients!$H$10)+(Campus!I254*Coefficients!$J$10)+(Campus!J254*VLOOKUP($J$248,'Biodiesel Coefficients'!$J$13:$M$20,4,FALSE))+(Campus!K254*Coefficients!$L$10)+(Campus!L254*Coefficients!$N$10)+(M254*Campus!$H$31) -> 0 | R254: =(E254*Coefficients!$C$10)+(Campus!F254*Coefficients!$E$10)+(Campus!G254*Coefficients!$G$10)+(Campus!H254*Coefficients!$I$10)+(Campus!I254*Coefficients!$K$10)+(Campus!J254*VLOOKUP($J$248,'Biodiesel Coefficients'!$J$13:$M$20,3,FALSE))+(Campus!K254*Coefficients!$M$10)+(Campus!L254*Coefficients!$O$10)+(N254*'Waste Coeff.'!$D$9)+(O254*VLOOKUP($O$248,'Fleets Coeff.'!$A$3:$D$10,4,FALSE)) -> 0
Q255: =(E255*Coefficients!$B$10)+(Campus!F255*Coefficients!$D$10)+(Campus!G255*Coefficients!$F$10)+(Campus!H255*Coefficients!$H$10)+(Campus!I255*Coefficients!$J$10)+(Campus!J255*VLOOKUP($J$248,'Biodiesel Coefficients'!$J$13:$M$20,4,FALSE))+(Campus!K255*Coefficients!$L$10)+(Campus!L255*Coefficients!$N$10)+(M255*Campus!$H$31) -> 0 | R255: =(E255*Coefficients!$C$10)+(Campus!F255*Coefficients!$E$10)+(Campus!G255*Coefficients!$G$10)+(Campus!H255*Coefficients!$I$10)+(Campus!I255*Coefficients!$K$10)+(Campus!J255*VLOOKUP($J$248,'Biodiesel Coefficients'!$J$13:$M$20,3,FALSE))+(Campus!K255*Coefficients!$M$10)+(Campus!L255*Coefficients!$O$10)+(N255*'Waste Coeff.'!$D$9)+(O255*VLOOKUP($O$248,'Fleets Coeff.'!$A$3:$D$10,4,FALSE)) -> 0
Q256: =(E256*Coefficients!$B$10)+(Campus!F256*Coefficients!$D$10)+(Campus!G256*Coefficients!$F$10)+(Campus!H256*Coefficients!$H$10)+(Campus!I256*Coefficients!$J$10)+(Campus!J256*VLOOKUP($J$248,'Biodiesel Coefficients'!$J$13:$M$20,4,FALSE))+(Campus!K256*Coefficients!$L$10)+(Campus!L256*Coefficients!$N$10)+(M256*Campus!$H$31) -> 0 | R256: =(E256*Coefficients!$C$10)+(Campus!F256*Coefficients!$E$10)+(Campus!G256*Coefficients!$G$10)+(Campus!H256*Coefficients!$I$10)+(Campus!I256*Coefficients!$K$10)+(Campus!J256*VLOOKUP($J$248,'Biodiesel Coefficients'!$J$13:$M$20,3,FALSE))+(Campus!K256*Coefficients!$M$10)+(Campus!L256*Coefficients!$O$10)+(N256*'Waste Coeff.'!$D$9)+(O256*VLOOKUP($O$248,'Fleets Coeff.'!$A$3:$D$10,4,FALSE)) -> 0
Q257: =(E257*Coefficients!$B$10)+(Campus!F257*Coefficients!$D$10)+(Campus!G257*Coefficients!$F$10)+(Campus!H257*Coefficients!$H$10)+(Campus!I257*Coefficients!$J$10)+(Campus!J257*VLOOKUP($J$248,'Biodiesel Coefficients'!$J$13:$M$20,4,FALSE))+(Campus!K257*Coefficients!$L$10)+(Campus!L257*Coefficients!$N$10)+(M257*Campus!$H$31) -> 0 | R257: =(E257*Coefficients!$C$10)+(Campus!F257*Coefficients!$E$10)+(Campus!G257*Coefficients!$G$10)+(Campus!H257*Coefficients!$I$10)+(Campus!I257*Coefficients!$K$10)+(Campus!J257*VLOOKUP($J$248,'Biodiesel Coefficients'!$J$13:$M$20,3,FALSE))+(Campus!K257*Coefficients!$M$10)+(Campus!L257*Coefficients!$O$10)+(N257*'Waste Coeff.'!$D$9)+(O257*VLOOKUP($O$248,'Fleets Coeff.'!$A$3:$D$10,4,FALSE)) -> 0
Q258: =(E258*Coefficients!$B$10)+(Campus!F258*Coefficients!$D$10)+(Campus!G258*Coefficients!$F$10)+(Campus!H258*Coefficients!$H$10)+(Campus!I258*Coefficients!$J$10)+(Campus!J258*VLOOKUP($J$248,'Biodiesel Coefficients'!$J$13:$M$20,4,FALSE))+(Campus!K258*Coefficients!$L$10)+(Campus!L258*Coefficients!$N$10)+(M258*Campus!$H$31) -> 0 | R258: =(E258*Coefficients!$C$10)+(Campus!F258*Coefficients!$E$10)+(Campus!G258*Coefficients!$G$10)+(Campus!H258*Coefficients!$I$10)+(Campus!I258*Coefficients!$K$10)+(Campus!J258*VLOOKUP($J$248,'Biodiesel Coefficients'!$J$13:$M$20,3,FALSE))+(Campus!K258*Coefficients!$M$10)+(Campus!L258*Coefficients!$O$10)+(N258*'Waste Coeff.'!$D$9)+(O258*VLOOKUP($O$248,'Fleets Coeff.'!$A$3:$D$10,4,FALSE)) -> 0
Q259: =(E259*Coefficients!$B$10)+(Campus!F259*Coefficients!$D$10)+(Campus!G259*Coefficients!$F$10)+(Campus!H259*Coefficients!$H$10)+(Campus!I259*Coefficients!$J$10)+(Campus!J259*VLOOKUP($J$248,'Biodiesel Coefficients'!$J$13:$M$20,4,FALSE))+(Campus!K259*Coefficients!$L$10)+(Campus!L259*Coefficients!$N$10)+(M259*Campus!$H$31) -> 0 | R259: =(E259*Coefficients!$C$10)+(Campus!F259*Coefficients!$E$10)+(Campus!G259*Coefficients!$G$10)+(Campus!H259*Coefficients!$I$10)+(Campus!I259*Coefficients!$K$10)+(Campus!J259*VLOOKUP($J$248,'Biodiesel Coefficients'!$J$13:$M$20,3,FALSE))+(Campus!K259*Coefficients!$M$10)+(Campus!L259*Coefficients!$O$10)+(N259*'Waste Coeff.'!$D$9)+(O259*VLOOKUP($O$248,'Fleets Coeff.'!$A$3:$D$10,4,FALSE)) -> 0
... 439 more rows

Sheet Summary
D3: NYC Carbon Challenge - Hospitals | T3: Name of Hospital | U3: =IF(ISBLANK(Inventory!$K$3),"",Inventory!$K$3) -> Hospital
D4: Carbon Emissions Inventory
T5: Submission Year | U5: =Inventory!$K$5 -> 2014
T7: Base Year | U7: =Inventory!$K$7 -> 2005
T9: Submission Year - Carbon Intensity | U9: =Inventory!K9 -> 1e-08
T11: Base Year - Carbon Intensity | U11: =Inventory!$K$11 -> 
T13: Business as Usual - Carbon Intensity (By 2017-18) | U13: =Inventory!K15 -> 
T15: 30% Reduction Goal (By 2017-18) | U15: =Inventory!$K$13 -> 
B18: Summary: MMBTU / sq. ft.
G20: MMBTU / sq. ft. - by Fuel Type | T20: Total MMBTU per sq.ft. | U20: % Change from prior year | V20: % Change from Base year
E21: Year | G21: Electricity | H21: Natural Gas | I21: #2 Oil | J21: #4 Oil | K21: #6 Oil | L21: Biodiesel Blend | M21: On-site Renewable Generation | N21: Diesel Fuel (Back-up Gen.) | O21: District Steam | P21: REC Offsets | AD21: MMBTUs
AT22: MMBTU Energy Intensity by Fuel Type
AD23: Electricity | AE23: NG | AF23: #2 | AG23: #4 | AH23: #6 | AI23: Biodiesel | AJ23: Renewable Generation | AK23: Diesel | AL23: Steam | AS23: Submission Year | AT23: Electricity | AU23: NG | AV23: #2 Oil | AW23: #4 Oil | AX23: #6 Oil | AY23: Biodiesel Blend | AZ23: Diesel (Back-up Gen.) | BA23: Steam | BB23: Renewable Generation | BF23: Total
B24: 2000 | F24: 2000 | G24: =IF(ISERR(AD$24/Inventory!$K$59),"",(AD$24/Inventory!$K$59)) ->  | H24: =IF(ISERR(AE$24/Inventory!$K$59),"",(AE$24/Inventory!$K$59)) ->  | I24: =IF(ISERR(AF$24/Inventory!$K$59),"",(AF$24/Inventory!$K$59)) ->  | J24: =IF(ISERR(AG$24/Inventory!$K$59),"",(AG$24/Inventory!$K$59)) ->  | K24: =IF(ISERR(AH$24/Inventory!$K$59),"",(AH$24/Inventory!$K$59)) ->  | L24: =IF(ISERR(AI$24/Inventory!$K$59),"",(AI$24/Inventory!$K$59)) ->  | M24: =IF(ISERR(AJ$24/Inventory!$K$59),"",(AJ$24/Inventory!$K$59)) ->  | N24: =IF(ISERR(AK$24/Inventory!$K$59),"",(AK$24/Inventory!$K$59)) ->  | O24: =IF(ISERR(AL$24/Inventory!$K$59),"",(AL$24/Inventory!$K$59)) ->  | P24: - | Q24: - | T24: =IF((Inventory!$K$61)=0,"",(Inventory!$K$61)) ->  | AC24: 2000 | AD24: =Inventory!$I25*Inventory!$F25 -> 0 | AE24: =Inventory!$I26*Inventory!$F26 -> 0 | AF24: =Inventory!$I27*Inventory!$F27 -> 0 | AG24: =Inventory!$I28*Inventory!$F28 -> 0 | AH24: =Inventory!$I29*Inventory!$F29 -> 0 | AI24: =IFERROR(Inventory!$I30*Inventory!$F30,0) -> 0 | AJ24: =IFERROR(Inventory!$I31*Inventory!$F31,0) -> 0 | AK24: =Inventory!$I32*Inventory!$F32 -> 0 | AL24: =Inventory!$I33*Inventory!$F33 -> 0 | AM24: - | AN24: - | AR24: Current | AS24: =Inventory!$K$5 -> 2014 | AT24: =IF(VLOOKUP(AS24, $F$24:$T$44,2,FALSE )=0,0.00000001,VLOOKUP(AS24, $F$24:$T$44,2,FALSE )) ->  | AU24: =IF(VLOOKUP(AS24, $F$24:$T$44,3,FALSE )=0,0.00000001,VLOOKUP(AS24, $F$24:$T$44,3,FALSE )) ->  | AV24: =IF(VLOOKUP(AS24, $F$24:$T$44,4,FALSE )=0,0.00001,VLOOKUP(AS24, $F$24:$T$44,4,FALSE )) ->  | AW24: =IF(VLOOKUP(AS24, $F$24:$T$44,5,FALSE )=0,0.00000001,VLOOKUP(AS24, $F$24:$T$44,5,FALSE )) ->  | AX24: =IF(VLOOKUP(AS24, $F$24:$T$44,6,FALSE )=0,0.00000001,VLOOKUP(AS24, $F$24:$T$44,6,FALSE )) ->  | AY24: =IF(VLOOKUP(AS24, $F$24:$T$44,7,FALSE )=0,0.00000001,VLOOKUP(AS24, $F$24:$T$44,7,FALSE )) ->  | AZ24: =IF(VLOOKUP(AS24, $F$24:$T$44,9,FALSE )=0,0.00000001,VLOOKUP(AS24, $F$24:$T$44,9,FALSE )) ->  | BA24: =IF(VLOOKUP(AS24, $F$24:$T$44,10,FALSE )=0,0.00000001,VLOOKUP(AS24, $F$24:$T$44,10,FALSE )) ->  | BB24: =IF(VLOOKUP(AS24, $F$24:$T$44,8,FALSE )=0,0.00000001,VLOOKUP(AS24, $F$24:$T$44,8,FALSE )) ->  | BF24: =SUM(AT24:BB24) -> 0
B25: 2001 | F25: 2001 | G25: =IF(ISERR(AD$25/Inventory!$K$105),"",(AD$25/Inventory!$K$105)) ->  | H25: =IF(ISERR(AE$25/Inventory!$K$105),"",(AE$25/Inventory!$K$105)) ->  | I25: =IF(ISERR(AF$25/Inventory!$K$105),"",(AF$25/Inventory!$K$105)) ->  | J25: =IF(ISERR(AG$25/Inventory!$K$105),"",(AG$25/Inventory!$K$105)) ->  | K25: =IF(ISERR(AH$25/Inventory!$K$105),"",(AH$25/Inventory!$K$105)) ->  | L25: =IF(ISERR(AI$25/Inventory!$K$105),"",(AI$25/Inventory!$K$105)) ->  | M25: =IF(ISERR(AJ$25/Inventory!$K$105),"",(AJ$25/Inventory!$K$105)) ->  | N25: =IF(ISERR(AK$25/Inventory!$K$105),"",(AK$25/Inventory!$K$105)) ->  | O25: =IF(ISERR(AL$25/Inventory!$K$105),"",(AL$25/Inventory!$K$105)) ->  | P25: - | Q25: - | T25: =IF((Inventory!$K$107)=0,"",(Inventory!$K$107)) ->  | U25: =IF(ISERR((T25-T24)/T24),"",(T25-T24)/T24) ->  | V25: =IF(ISERR(($T25-$U$51)/$U$51),"",($T25-$U$51)/$U$51) ->  | AC25: 2001 | AD25: =Inventory!$I71*Inventory!$F71 -> 0 | AE25: =Inventory!$I72*Inventory!$F72 -> 0 | AF25: =Inventory!$I73*Inventory!F$73 -> 0 | AG25: =Inventory!$I74*Inventory!$F74 -> 0 | AH25: =Inventory!$I75*Inventory!$F75 -> 0 | AI25: =IFERROR(Inventory!$I76*Inventory!$F76,0) -> 0 | AJ25: =IFERROR(Inventory!$I77*Inventory!$F77,0) -> 0 | AK25: =Inventory!$I78*Inventory!$F78 -> 0 | AL25: =Inventory!$I79*Inventory!$F79 -> 0 | AM25: - | AN25: - | AR25: Base | AS25: =Inventory!$K$7 -> 2005 | AT25: =IF(VLOOKUP(AS25, $F$24:$T$44,2,FALSE )=0,0.00000001,VLOOKUP(AS25, $F$24:$T$44,2,FALSE )) ->  | AU25: =IF(VLOOKUP(AS25, $F$24:$T$44,3,FALSE )=0,0.00000001,VLOOKUP(AS25, $F$24:$T$44,3,FALSE )) ->  | AV25: =IF(VLOOKUP(AS25, $F$24:$T$44,4,FALSE )=0,0.00001,VLOOKUP(AS25, $F$24:$T$44,4,FALSE )) ->  | AW25: =IF(VLOOKUP(AS25, $F$24:$T$44,5,FALSE )=0,0.00000001,VLOOKUP(AS25, $F$24:$T$44,5,FALSE )) ->  | AX25: =IF(VLOOKUP(AS25, $F$24:$T$44,6,FALSE )=0,0.00000001,VLOOKUP(AS25, $F$24:$T$44,6,FALSE )) ->  | AY25: =IF(VLOOKUP(AS25, $F$24:$T$44,7,FALSE )=0,0.00000001,VLOOKUP(AS25, $F$24:$T$44,7,FALSE )) ->  | AZ25: =IF(VLOOKUP(AS25, $F$24:$T$44,9,FALSE )=0,0.00000001,VLOOKUP(AS25, $F$24:$T$44,9,FALSE )) ->  | BA25: =IF(VLOOKUP(AS25, $F$24:$T$44,10,FALSE )=0,0.00000001,VLOOKUP(AS25, $F$24:$T$44,10,FALSE )) ->  | BB25: =IF(VLOOKUP(AS25, $F$24:$T$44,8,FALSE )=0,0.00000001,VLOOKUP(AS25, $F$24:$T$44,8,FALSE )) ->  | BF25: =SUM(AT25:BB25) -> 0
B26: 2002 | F26: 2002 | G26: =IF(ISERR(AD$26/Inventory!$K$151),"",(AD$26/Inventory!$K$151)) ->  | H26: =IF(ISERR(AE$26/Inventory!$K$151),"",(AE$26/Inventory!$K$151)) ->  | I26: =IF(ISERR(AF$26/Inventory!$K$151),"",(AF$26/Inventory!$K$151)) ->  | J26: =IF(ISERR(AG$26/Inventory!$K$151),"",(AG$26/Inventory!$K$151)) ->  | K26: =IF(ISERR(AH$26/Inventory!$K$151),"",(AH$26/Inventory!$K$151)) ->  | L26: =IF(ISERR(AI$26/Inventory!$K$151),"",(AI$26/Inventory!$K$151)) ->  | M26: =IF(ISERR(AJ$26/Inventory!$K$151),"",(AJ$26/Inventory!$K$151)) ->  | N26: =IF(ISERR(AK$26/Inventory!$K$151),"",(AK$26/Inventory!$K$151)) ->  | O26: =IF(ISERR(AL$26/Inventory!$K$151),"",(AL$26/Inventory!$K$151)) ->  | P26: - | Q26: - | T26: =IF((Inventory!$K$153)=0,"",(Inventory!$K$153)) ->  | U26: =IF(ISERR((T26-T25)/T25),"",(T26-T25)/T25) ->  | V26: =IF(ISERR(($T26-$U$51)/$U$51),"",($T26-$U$51)/$U$51) ->  | AC26: 2002 | AD26: =Inventory!$I117*Inventory!$F117 -> 0 | AE26: =Inventory!$I118*Inventory!$F118 -> 0 | AF26: =Inventory!$I119*Inventory!$F119 -> 0 | AG26: =Inventory!$I120*Inventory!$F120 -> 0 | AH26: =Inventory!$I121*Inventory!$F121 -> 0 | AI26: =IFERROR(Inventory!$I122*Inventory!$F122,0) -> 0 | AJ26: =IFERROR(Inventory!$I123*Inventory!$F123,0) -> 0 | AK26: =Inventory!$I124*Inventory!$F124 -> 0 | AL26: =Inventory!$I125*Inventory!$F125 -> 0 | AM26: - | AN26: - | AR26: Change | AT26: =AT$24-AT$25 ->  | BF26: =BF$24-BF$25 -> 0
B27: 2003 | E27: =IF(Inventory!$K$7=2003,"Base Year", "") ->  | F27: 2003 | G27: =IF(ISERR(AD$27/Inventory!$K$197),"",(AD$27/Inventory!$K$197)) ->  | H27: =IF(ISERR(AE$27/Inventory!$K$197),"",(AE$27/Inventory!$K$197)) ->  | I27: =IF(ISERR(AF$27/Inventory!$K$197),"",(AF$27/Inventory!$K$197)) ->  | J27: =IF(ISERR(AG$27/Inventory!$K$197),"",(AG$27/Inventory!$K$197)) ->  | K27: =IF(ISERR(AH$27/Inventory!$K$197),"",(AH$27/Inventory!$K$197)) ->  | L27: =IF(ISERR(AI$27/Inventory!$K$197),"",(AI$27/Inventory!$K$197)) ->  | M27: =IF(ISERR(AJ$27/Inventory!$K$197),"",(AJ$27/Inventory!$K$197)) ->  | N27: =IF(ISERR(AK$27/Inventory!$K$197),"",(AK$27/Inventory!$K$197)) ->  | O27: =IF(ISERR(AL$27/Inventory!$K$197),"",(AL$27/Inventory!$K$197)) ->  | P27: - | Q27: - | T27: =IF((Inventory!$K$199)=0,"",(Inventory!$K$199)) ->  | U27: =IF(ISERR((T27-T26)/T26),"",(T27-T26)/T26) ->  | AC27: 2003 | AD27: =Inventory!$I163*Inventory!$F163 -> 0 | AE27: =Inventory!$I164*Inventory!$F164 -> 0 | AF27: =Inventory!$I165*Inventory!$F165 -> 0 | AG27: =Inventory!$I166*Inventory!$F166 -> 0 | AH27: =Inventory!$I167*Inventory!$F167 -> 0 | AI27: =IFERROR(Inventory!$I168*Inventory!$F168,0) -> 0 | AJ27: =IFERROR(Inventory!$I169*Inventory!$F169,0) -> 0 | AK27: =Inventory!$I170*Inventory!$F170 -> 0 | AL27: =Inventory!$I171*Inventory!$F171 -> 0 | AM27: - | AN27: -
B28: 2004 | E28: =IF(Inventory!$K$7=2004,"Base Year", "") ->  | F28: 2004 | G28: =IF(ISERR(AD$28/Inventory!$K$243),"",(AD$28/Inventory!$K$243)) ->  | H28: =IF(ISERR(AE$28/Inventory!$K$243),"",(AE$28/Inventory!$K$243)) ->  | I28: =IF(ISERR(AF$28/Inventory!$K$243),"",(AF$28/Inventory!$K$243)) ->  | J28: =IF(ISERR(AG$28/Inventory!$K$243),"",(AG$28/Inventory!$K$243)) ->  | K28: =IF(ISERR(AH$28/Inventory!$K$243),"",(AH$28/Inventory!$K$243)) ->  | L28: =IF(ISERR(AI$28/Inventory!$K$243),"",(AI$28/Inventory!$K$243)) ->  | M28: =IF(ISERR(AJ$28/Inventory!$K$243),"",(AJ$28/Inventory!$K$243)) ->  | N28: =IF(ISERR(AK$28/Inventory!$K$243),"",(AK$28/Inventory!$K$243)) ->  | O28: =IF(ISERR(AL$28/Inventory!$K$243),"",(AL$28/Inventory!$K$243)) ->  | P28: - | Q28: - | T28: =IF((Inventory!$K$245)=0,"",(Inventory!$K$245)) ->  | AC28: 2004 | AD28: =Inventory!$I209*Inventory!$F209 -> 0 | AE28: =Inventory!$I210*Inventory!$F210 -> 0 | AF28: =Inventory!$I211*Inventory!$F211 -> 0 | AG28: =Inventory!$I212*Inventory!$F212 -> 0 | AH28: =Inventory!$I213*Inventory!$F213 -> 0 | AI28: =IFERROR(Inventory!$I214*Inventory!$F214,0) -> 0 | AJ28: =IFERROR(Inventory!$I215*Inventory!$F215,0) -> 0 | AK28: =Inventory!$I216*Inventory!$F216 -> 0 | AL28: =Inventory!$I217*Inventory!$F217 -> 0 | AM28: - | AN28: -
B29: 2005 | E29: =IF(Inventory!$K$7=2005,"Base Year", "") -> Base Year | F29: 2005 | G29: =IF(ISERR(AD$29/Inventory!$K$289),"",(AD$29/Inventory!$K$289)) ->  | H29: =IF(ISERR(AE$29/Inventory!$K$289),"",(AE$29/Inventory!$K$289)) ->  | I29: =IF(ISERR(AF$29/Inventory!$K$289),"",(AF$29/Inventory!$K$289)) ->  | J29: =IF(ISERR(AG$29/Inventory!$K$289),"",(AG$29/Inventory!$K$289)) ->  | K29: =IF(ISERR(AH$29/Inventory!$K$289),"",(AH$29/Inventory!$K$289)) ->  | L29: =IF(ISERR(AI$29/Inventory!$K$289),"",(AI$29/Inventory!$K$289)) ->  | M29: =IF(ISERR(AJ$29/Inventory!$K$289),"",(AJ$29/Inventory!$K$289)) ->  | N29: =IF(ISERR(AK$29/Inventory!$K$289),"",(AK$29/Inventory!$K$289)) ->  | O29: =IF(ISERR(AL$29/Inventory!$K$289),"",(AL$29/Inventory!$K$289)) ->  | P29: - | Q29: - | T29: =IF((Inventory!$K$291)=0,"",(Inventory!$K$291)) ->  | AC29: 2005 | AD29: =Inventory!$I255*Inventory!$F255 -> 0 | AE29: =Inventory!$I256*Inventory!$F256 -> 0 | AF29: =Inventory!$I257*Inventory!$F257 -> 0 | AG29: =Inventory!$I258*Inventory!$F258 -> 0 | AH29: =Inventory!$I259*Inventory!$F259 -> 0 | AI29: =IFERROR(Inventory!$I260*Inventory!$F260,0) -> 0 | AJ29: =IFERROR(Inventory!$I261*Inventory!$F261,0) -> 0 | AK29: =Inventory!$I262*Inventory!$F262 -> 0 | AL29: =Inventory!$I263*Inventory!$F263 -> 0 | AM29: - | AN29: - | AT29: For Chart
B30: 2006 | E30: =IF(Inventory!$K$7=2006,"Base Year", "") ->  | F30: 2006 | G30: =IF(ISERR(AD$30/Inventory!$K$335),"",(AD$30/Inventory!$K$335)) ->  | H30: =IF(ISERR(AE$30/Inventory!$K$335),"",(AE$30/Inventory!$K$335)) ->  | I30: =IF(ISERR(AF$30/Inventory!$K$335),"",(AF$30/Inventory!$K$335)) ->  | J30: =IF(ISERR(AG$30/Inventory!$K$335),"",(AG$30/Inventory!$K$335)) ->  | K30: =IF(ISERR(AH$30/Inventory!$K$335),"",(AH$30/Inventory!$K$335)) ->  | L30: =IF(ISERR(AI$30/Inventory!$K$335),"",(AI$30/Inventory!$K$335)) ->  | M30: =IF(ISERR(AJ$30/Inventory!$K$335),"",(AJ$30/Inventory!$K$335)) ->  | N30: =IF(ISERR(AK$30/Inventory!$K$335),"",(AK$30/Inventory!$K$335)) ->  | O30: =IF(ISERR(AL$30/Inventory!$K$335),"",(AL$30/Inventory!$K$335)) ->  | P30: - | Q30: - | T30: =IF((Inventory!$K$337)=0,"",(Inventory!$K$337)) ->  | AC30: 2006 | AD30: =Inventory!$I301*Inventory!$F301 -> 0 | AE30: =Inventory!$I302*Inventory!$F302 -> 0 | AF30: =Inventory!$I303*Inventory!$F303 -> 0 | AG30: =Inventory!$I304*Inventory!$F304 -> 0 | AH30: =Inventory!$I305*Inventory!$F305 -> 0 | AI30: =IFERROR(Inventory!$I306*Inventory!$F306,0) -> 0 | AJ30: =IFERROR(Inventory!$I307*Inventory!$F307,0) -> 0 | AK30: =Inventory!$I308*Inventory!$F308 -> 0 | AL30: =Inventory!$I309*Inventory!$F309 -> 0 | AM30: - | AN30: - | AS30: Chart Legend | AT30: #6 Oil | AU30: #4 Oil | AV30: #2 Oil | AW30: Steam | AX30: Diesel (Back-up Gen.) | AY30: Biodiesel Blend | AZ30: NG | BA30: Electricity | BB30: Renewables | BF30: Total
B31: 2007 | E31: =IF(Inventory!$K$7=2007,"Base Year", "") ->  | F31: 2007 | G31: =IF(ISERR(AD$31/Inventory!$K$381),"",(AD$31/Inventory!$K$381)) ->  | H31: =IF(ISERR(AE$31/Inventory!$K$381),"",(AE$31/Inventory!$K$381)) ->  | I31: =IF(ISERR(AF$31/Inventory!$K$381),"",(AF$31/Inventory!$K$381)) ->  | J31: =IF(ISERR(AG$31/Inventory!$K$381),"",(AG$31/Inventory!$K$381)) ->  | K31: =IF(ISERR(AH$31/Inventory!$K$381),"",(AH$31/Inventory!$K$381)) ->  | L31: =IF(ISERR(AI$31/Inventory!$K$381),"",(AI$31/Inventory!$K$381)) ->  | M31: =IF(ISERR(AJ$31/Inventory!$K$381),"",(AJ$31/Inventory!$K$381)) ->  | N31: =IF(ISERR(AK$31/Inventory!$K$381),"",(AK$31/Inventory!$K$381)) ->  | O31: =IF(ISERR(AL$31/Inventory!$K$381),"",(AL$31/Inventory!$K$381)) ->  | P31: - | Q31: - | T31: =IF((Inventory!$K$383)=0,"",(Inventory!$K$383)) ->  | AC31: 2007 | AD31: =Inventory!$I347*Inventory!$F347 -> 0 | AE31: =Inventory!$I348*Inventory!$F348 -> 0 | AF31: =Inventory!$I349*Inventory!$F349 -> 0 | AG31: =Inventory!$I350*Inventory!$F350 -> 0 | AH31: =Inventory!$I351*Inventory!$F351 -> 0 | AI31: =IFERROR(Inventory!$I352*Inventory!$F352,0) -> 0 | AJ31: =IFERROR(Inventory!$I353*Inventory!$F353,0) -> 0 | AK31: =Inventory!$I354*Inventory!$F354 -> 0 | AL31: =Inventory!$I355*Inventory!$F355 -> 0 | AM31: - | AN31: - | AR31: Current | AS31: =Inventory!$K$5 -> 2014 | AT31: =$AX24 ->  | AU31: =$AW$24 ->  | AV31: =$AV$24 ->  | AW31: =$BA$24 ->  | AX31: =$AZ$24 ->  | AY31: =$AY$24 ->  | AZ31: =$AU$24 ->  | BA31: =$AT$24 ->  | BB31: =$BB$24 ->  | BF31: =SUM(AT31:BB31) -> 0
B32: 2008 | E32: =IF(Inventory!$K$7=2008,"Base Year", "") ->  | F32: 2008 | G32: =IF(ISERR(AD$32/Inventory!$K$427),"",(AD$32/Inventory!$K$427)) ->  | H32: =IF(ISERR(AE$32/Inventory!$K$427),"",(AE$32/Inventory!$K$427)) ->  | I32: =IF(ISERR(AF$32/Inventory!$K$427),"",(AF$32/Inventory!$K$427)) ->  | J32: =IF(ISERR(AG$32/Inventory!$K$427),"",(AG$32/Inventory!$K$427)) ->  | K32: =IF(ISERR(AH$32/Inventory!$K$427),"",(AH$32/Inventory!$K$427)) ->  | L32: =IF(ISERR(AI$32/Inventory!$K$427),"",(AI$32/Inventory!$K$427)) ->  | M32: =IF(ISERR(AJ$32/Inventory!$K$427),"",(AJ$32/Inventory!$K$427)) ->  | N32: =IF(ISERR(AK$32/Inventory!$K$427),"",(AK$32/Inventory!$K$427)) ->  | O32: =IF(ISERR(AL$32/Inventory!$K$427),"",(AL$32/Inventory!$K$427)) ->  | P32: - | Q32: - | T32: =IF((Inventory!$K$429)=0,"",(Inventory!$K$429)) ->  | AC32: 2008 | AD32: =Inventory!$I393*Inventory!$F393 -> 0 | AE32: =Inventory!$I394*Inventory!$F394 -> 0 | AF32: =Inventory!$I395*Inventory!$F395 -> 0 | AG32: =Inventory!$I396*Inventory!$F396 -> 0 | AH32: =Inventory!$I397*Inventory!$F397 -> 0 | AI32: =IFERROR(Inventory!$I398*Inventory!$F398,0) -> 0 | AJ32: =IFERROR(Inventory!$I399*Inventory!$F399,0) -> 0 | AK32: =Inventory!$I400*Inventory!$F400 -> 0 | AL32: =Inventory!$I401*Inventory!$F401 -> 0 | AM32: - | AN32: - | AR32: Base | AS32: =Inventory!$K$7 -> 2005 | AT32: =$AX$25 ->  | AU32: =$AW$25 ->  | AV32: =$AV$25 ->  | AW32: =$BA$25 ->  | AX32: =$AZ$25 ->  | AY32: =$AY$25 ->  | AZ32: =$AU$25 ->  | BA32: =$AT$25 ->  | BB32: =$BB$25 ->  | BF32: =SUM(AT32:BB32) -> 0
B33: 2009 | F33: 2009 | G33: =IF(ISERR(AD$33/Inventory!$K$473),"",(AD$33/Inventory!$K$473)) ->  | H33: =IF(ISERR(AE$33/Inventory!$K$473),"",(AE$33/Inventory!$K$473)) ->  | I33: =IF(ISERR(AF$33/Inventory!$K$473),"",(AF$33/Inventory!$K$473)) ->  | J33: =IF(ISERR(AG$33/Inventory!$K$473),"",(AG$33/Inventory!$K$473)) ->  | K33: =IF(ISERR(AH$33/Inventory!$K$473),"",(AH$33/Inventory!$K$473)) ->  | L33: =IF(ISERR(AI$33/Inventory!$K$473),"",(AI$33/Inventory!$K$473)) ->  | M33: =IF(ISERR(AJ$33/Inventory!$K$473),"",(AJ$33/Inventory!$K$473)) ->  | N33: =IF(ISERR(AK$33/Inventory!$K$473),"",(AK$33/Inventory!$K$473)) ->  | O33: =IF(ISERR(AL$33/Inventory!$K$473),"",(AL$33/Inventory!$K$473)) ->  | P33: - | Q33: - | T33: =IF((Inventory!$K$475)=0,"",(Inventory!$K$475)) ->  | AC33: 2009 | AD33: =Inventory!$I439*Inventory!$F439 -> 0 | AE33: =Inventory!$I440*Inventory!$F440 -> 0 | AF33: =Inventory!$I441*Inventory!$F441 -> 0 | AG33: =Inventory!$I442*Inventory!$F442 -> 0 | AH33: =Inventory!$I443*Inventory!$F443 -> 0 | AI33: =IFERROR(Inventory!$I444*Inventory!$F444,0) -> 0 | AJ33: =IFERROR(Inventory!$I445*Inventory!$F445,0) -> 0 | AK33: =Inventory!$I446*Inventory!$F446 -> 0 | AL33: =Inventory!$I447*Inventory!$F447 -> 0 | AM33: - | AN33: - | AR33: Change | AT33: =AT$31-AT$32 ->  | AU33: =AU$31-AU$32 ->  | AY33: =AY$31-AY$32 ->  | BB33: =BB$24-BB$25 ->  | BF33: =BF$31-BF$32 -> 0
B34: 2010 | F34: 2010 | G34: =IF(ISERR(AD$34/Inventory!$K$519),"",(AD$34/Inventory!$K$519)) ->  | H34: =IF(ISERR(AE$34/Inventory!$K$519),"",(AE$34/Inventory!$K$519)) ->  | I34: =IF(ISERR(AF$34/Inventory!$K$519),"",(AF$34/Inventory!$K$519)) ->  | J34: =IF(ISERR(AG$34/Inventory!$K$519),"",(AG$34/Inventory!$K$519)) ->  | K34: =IF(ISERR(AH$34/Inventory!$K$519),"",(AH$34/Inventory!$K$519)) ->  | L34: =IF(ISERR(AI$34/Inventory!$K$519),"",(AI$34/Inventory!$K$519)) ->  | M34: =IF(ISERR(AJ$34/Inventory!$K$519),"",(AJ$34/Inventory!$K$519)) ->  | N34: =IF(ISERR(AK$34/Inventory!$K$519),"",(AK$34/Inventory!$K$519)) ->  | O34: =IF(ISERR(AL$34/Inventory!$K$519),"",(AL$34/Inventory!$K$519)) ->  | P34: - | Q34: - | T34: =IF((Inventory!$K$521)=0,"",(Inventory!$K$521)) ->  | AC34: 2010 | AD34: =Inventory!$I485*Inventory!$F485 -> 0 | AE34: =Inventory!$I486*Inventory!$F486 -> 0 | AF34: =Inventory!$I487*Inventory!$F487 -> 0 | AG34: =Inventory!$I488*Inventory!$F488 -> 0 | AH34: =Inventory!$I489*Inventory!$F489 -> 0 | AI34: =IFERROR(Inventory!$I490*Inventory!$F490,0) -> 0 | AJ34: =IFERROR(Inventory!$I491*Inventory!$F491,0) -> 0 | AK34: =Inventory!$I492*Inventory!$F492 -> 0 | AL34: =Inventory!$I493*Inventory!$F493 -> 0 | AM34: - | AN34: -
B35: 2011 | F35: 2011 | G35: =IF(ISERR(AD$35/Inventory!$K$565),"",(AD$35/Inventory!$K$565)) ->  | H35: =IF(ISERR(AE$35/Inventory!$K$565),"",(AE$35/Inventory!$K$565)) ->  | I35: =IF(ISERR(AF$35/Inventory!$K$565),"",(AF$35/Inventory!$K$565)) ->  | J35: =IF(ISERR(AG$35/Inventory!$K$565),"",(AG$35/Inventory!$K$565)) ->  | K35: =IF(ISERR(AH$35/Inventory!$K$565),"",(AH$35/Inventory!$K$565)) ->  | L35: =IF(ISERR(AI$35/Inventory!$K$565),"",(AI$35/Inventory!$K$565)) ->  | M35: =IF(ISERR(AJ$35/Inventory!$K$565),"",(AJ$35/Inventory!$K$565)) ->  | N35: =IF(ISERR(AK$35/Inventory!$K$565),"",(AK$35/Inventory!$K$565)) ->  | O35: =IF(ISERR(AL$35/Inventory!$K$565),"",(AL$35/Inventory!$K$565)) ->  | P35: - | Q35: - | T35: =IF((Inventory!$K$567)=0,"",(Inventory!$K$567)) ->  | V35: =IF(ISERR(($T35-$U$51)/$U$51),"",($T35-$U$51)/$U$51) ->  | AC35: 2011 | AD35: =Inventory!$I531*Inventory!$F531 -> 0 | AE35: =Inventory!$I532*Inventory!$F532 -> 0 | AF35: =Inventory!$I533*Inventory!$F533 -> 0 | AG35: =Inventory!$I534*Inventory!$F534 -> 0 | AH35: =Inventory!$I535*Inventory!$F535 -> 0 | AI35: =IFERROR(Inventory!$I536*Inventory!$F536,0) -> 0 | AJ35: =IFERROR(Inventory!$I537*Inventory!$F537,0) -> 0 | AK35: =Inventory!$I538*Inventory!$F538 -> 0 | AL35: =Inventory!$I539*Inventory!$F539 -> 0 | AM35: - | AN35: -
B36: 2012 | F36: 2012 | G36: =IF(ISERR(AD$36/Inventory!$K$611),"",(AD$36/Inventory!$K$611)) ->  | H36: =IF(ISERR(AE$36/Inventory!$K$611),"",(AE$36/Inventory!$K$611)) ->  | I36: =IF(ISERR(AF$36/Inventory!$K$611),"",(AF$36/Inventory!$K$611)) ->  | J36: =IF(ISERR(AG$36/Inventory!$K$611),"",(AG$36/Inventory!$K$611)) ->  | K36: =IF(ISERR(AH$36/Inventory!$K$611),"",(AH$36/Inventory!$K$611)) ->  | L36: =IF(ISERR(AI$36/Inventory!$K$611),"",(AI$36/Inventory!$K$611)) ->  | M36: =IF(ISERR(AJ$36/Inventory!$K$611),"",(AJ$36/Inventory!$K$611)) ->  | N36: =IF(ISERR(AK$36/Inventory!$K$611),"",(AK$36/Inventory!$K$611)) ->  | O36: =IF(ISERR(AL$36/Inventory!$K$611),"",(AL$36/Inventory!$K$611)) ->  | P36: - | Q36: - | T36: =IF((Inventory!$K$613)=0,"",(Inventory!$K$613)) ->  | AC36: 2012 | AD36: =Inventory!$I577*Inventory!$F577 -> 0 | AE36: =Inventory!$I578*Inventory!$F578 -> 0 | AF36: =Inventory!$I579*Inventory!$F579 -> 0 | AG36: =Inventory!$I580*Inventory!$F580 -> 0 | AH36: =Inventory!$I581*Inventory!$F581 -> 0 | AI36: =IFERROR(Inventory!$I582*Inventory!$F582,0) -> 0 | AJ36: =IFERROR(Inventory!$I583*Inventory!$F583,0) -> 0 | AK36: =Inventory!$I584*Inventory!$F584 -> 0 | AL36: =Inventory!$I585*Inventory!$F585 -> 0 | AM36: - | AN36: -
B37: 2013 | F37: 2013 | G37: =IF(ISERR(AD$37/Inventory!$K$657),"",(AD$37/Inventory!$K$657)) ->  | H37: =IF(ISERR(AE$37/Inventory!$K$657),"",(AE$37/Inventory!$K$657)) ->  | I37: =IF(ISERR(AF$37/Inventory!$K$657),"",(AF$37/Inventory!$K$657)) ->  | J37: =IF(ISERR(AG$37/Inventory!$K$657),"",(AG$37/Inventory!$K$657)) ->  | K37: =IF(ISERR(AH$37/Inventory!$K$657),"",(AH$37/Inventory!$K$657)) ->  | L37: =IF(ISERR(AI$37/Inventory!$K$657),"",(AI$37/Inventory!$K$657)) ->  | M37: =IF(ISERR(AJ$37/Inventory!$K$657),"",(AJ$37/Inventory!$K$657)) ->  | N37: =IF(ISERR(AK$37/Inventory!$K$657),"",(AK$37/Inventory!$K$657)) ->  | O37: =IF(ISERR(AL$37/Inventory!$K$657),"",(AL$37/Inventory!$K$657)) ->  | P37: - | Q37: - | T37: =IF((Inventory!$K$659)=0,"",(Inventory!$K$659)) ->  | AC37: 2013 | AD37: =Inventory!$I623*Inventory!$F623 -> 0 | AE37: =Inventory!$I624*Inventory!$F624 -> 0 | AF37: =Inventory!$I625*Inventory!$F625 -> 0 | AG37: =Inventory!$I626*Inventory!$F626 -> 0 | AH37: =Inventory!$I627*Inventory!$F627 -> 0 | AI37: =IFERROR(Inventory!$I628*Inventory!$F628,0) -> 0 | AJ37: =IFERROR(Inventory!$I629*Inventory!$F629,0) -> 0 | AK37: =Inventory!$I630*Inventory!$F630 -> 0 | AL37: =Inventory!$I631*Inventory!$F631 -> 0 | AM37: - | AN37: -
B38: 2014 | F38: 2014 | G38: =IF(ISERR(AD$38/Inventory!$K$703),"",(AD$38/Inventory!$K$703)) ->  | H38: =IF(ISERR(AE$38/Inventory!$K$703),"",(AE$38/Inventory!$K$703)) ->  | I38: =IF(ISERR(AF$38/Inventory!$K$703),"",(AF$38/Inventory!$K$703)) ->  | J38: =IF(ISERR(AG$38/Inventory!$K$703),"",(AG$38/Inventory!$K$703)) ->  | K38: =IF(ISERR(AH$38/Inventory!$K$703),"",(AH$38/Inventory!$K$703)) ->  | L38: =IF(ISERR(AI$38/Inventory!$K$703),"",(AI$38/Inventory!$K$703)) ->  | M38: =IF(ISERR(AJ$38/Inventory!$K$703),"",(AJ$38/Inventory!$K$703)) ->  | N38: =IF(ISERR(AK$38/Inventory!$K$703),"",(AK$38/Inventory!$K$703)) ->  | O38: =IF(ISERR(AL$38/Inventory!$K$703),"",(AL$38/Inventory!$K$703)) ->  | P38: - | Q38: - | T38: =IF((Inventory!$K$705)=0,"",(Inventory!$K$705)) ->  | AC38: 2014 | AD38: =Inventory!$I669*Inventory!$F669 -> 0 | AE38: =Inventory!$I670*Inventory!$F670 -> 0 | AF38: =Inventory!$I671*Inventory!$F671 -> 0 | AG38: =Inventory!$I672*Inventory!$F672 -> 0 | AH38: =Inventory!$I673*Inventory!$F673 -> 0 | AI38: =IFERROR(Inventory!$I674*Inventory!$F674,0) -> 0 | AJ38: =IFERROR(Inventory!$I675*Inventory!$F675,0) -> 0 | AK38: =Inventory!$I676*Inventory!$F676 -> 0 | AL38: =Inventory!$I677*Inventory!$F677 -> 0 | AM38: - | AN38: -
B39: 2015 | F39: 2015 | G39: =IF(ISERR(AD$39/Inventory!$K$749),"",(AD$39/Inventory!$K$749)) ->  | H39: =IF(ISERR(AE$39/Inventory!$K$749),"",(AE$39/Inventory!$K$749)) ->  | I39: =IF(ISERR(AF$39/Inventory!$K$749),"",(AF$39/Inventory!$K$749)) ->  | J39: =IF(ISERR(AG$39/Inventory!$K$749),"",(AG$39/Inventory!$K$749)) ->  | K39: =IF(ISERR(AH$39/Inventory!$K$749),"",(AH$39/Inventory!$K$749)) ->  | L39: =IF(ISERR(AI$39/Inventory!$K$749),"",(AI$39/Inventory!$K$749)) ->  | M39: =IF(ISERR(AJ$39/Inventory!$K$749),"",(AJ$39/Inventory!$K$749)) ->  | N39: =IF(ISERR(AK$39/Inventory!$K$749),"",(AK$39/Inventory!$K$749)) ->  | O39: =IF(ISERR(AL$39/Inventory!$K$749),"",(AL$39/Inventory!$K$749)) ->  | P39: - | Q39: - | T39: =IF((Inventory!$K$751)=0,"",(Inventory!$K$751)) ->  | AC39: 2015 | AD39: =Inventory!$I715*Inventory!$F715 -> 0 | AE39: =Inventory!$I716*Inventory!$F716 -> 0 | AF39: =Inventory!$I717*Inventory!$F717 -> 0 | AG39: =Inventory!$I718*Inventory!$F718 -> 0 | AH39: =Inventory!$I719*Inventory!$F719 -> 0 | AI39: =IFERROR(Inventory!$I720*Inventory!$F720,0) -> 0 | AJ39: =IFERROR(Inventory!$I721*Inventory!$F721,0) -> 0 | AK39: =Inventory!$I722*Inventory!$F722 -> 0 | AL39: =Inventory!$I723*Inventory!$F723 -> 0 | AM39: - | AN39: -
B40: 2016 | F40: 2016 | G40: =IF(ISERR(AD$40/Inventory!$K$795),"",(AD$40/Inventory!$K$795)) ->  | H40: =IF(ISERR(AE$40/Inventory!$K$795),"",(AE$40/Inventory!$K$795)) ->  | I40: =IF(ISERR(AF$40/Inventory!$K$795),"",(AF$40/Inventory!$K$795)) ->  | J40: =IF(ISERR(AG$40/Inventory!$K$795),"",(AG$40/Inventory!$K$795)) ->  | K40: =IF(ISERR(AH$40/Inventory!$K$795),"",(AH$40/Inventory!$K$795)) ->  | L40: =IF(ISERR(AI$40/Inventory!$K$795),"",(AI$40/Inventory!$K$795)) ->  | M40: =IF(ISERR(AJ$40/Inventory!$K$795),"",(AJ$40/Inventory!$K$795)) ->  | N40: =IF(ISERR(AK$40/Inventory!$K$795),"",(AK$40/Inventory!$K$795)) ->  | O40: =IF(ISERR(AL$40/Inventory!$K$795),"",(AL$40/Inventory!$K$795)) ->  | P40: - | Q40: - | T40: =IF((Inventory!$K$797)=0,"",(Inventory!$K$797)) ->  | AC40: 2016 | AD40: =Inventory!$I761*Inventory!$F761 -> 0 | AE40: =Inventory!$I762*Inventory!$F762 -> 0 | AF40: =Inventory!$I763*Inventory!$F763 -> 0 | AG40: =Inventory!$I764*Inventory!$F764 -> 0 | AH40: =Inventory!$I765*Inventory!$F765 -> 0 | AI40: =IFERROR(Inventory!$I766*Inventory!$F766,0) -> 0 | AJ40: =IFERROR(Inventory!$I767*Inventory!$F767,0) -> 0 | AK40: =Inventory!$I768*Inventory!$F768 -> 0 | AL40: =Inventory!$I769*Inventory!$F769 -> 0 | AM40: - | AN40: -
B41: 2017 | F41: 2017 | G41: =IF(ISERR(AD$41/Inventory!$K$841),"",(AD$41/Inventory!$K$841)) ->  | H41: =IF(ISERR(AE$41/Inventory!$K$841),"",(AE$41/Inventory!$K$841)) ->  | I41: =IF(ISERR(AF$41/Inventory!$K$841),"",(AF$41/Inventory!$K$841)) ->  | J41: =IF(ISERR(AG$41/Inventory!$K$841),"",(AG$41/Inventory!$K$841)) ->  | K41: =IF(ISERR(AH$41/Inventory!$K$841),"",(AH$41/Inventory!$K$841)) ->  | L41: =IF(ISERR(AI$41/Inventory!$K$841),"",(AI$41/Inventory!$K$841)) ->  | M41: =IF(ISERR(AJ$41/Inventory!$K$841),"",(AJ$41/Inventory!$K$841)) ->  | N41: =IF(ISERR(AK$41/Inventory!$K$841),"",(AK$41/Inventory!$K$841)) ->  | O41: =IF(ISERR(AL$41/Inventory!$K$841),"",(AL$41/Inventory!$K$841)) ->  | P41: - | Q41: - | T41: =IF((Inventory!$K$843)=0,"",(Inventory!$K$843)) ->  | AC41: 2017 | AD41: =Inventory!$I807*Inventory!$F807 -> 0 | AE41: =Inventory!$I808*Inventory!$F808 -> 0 | AF41: =Inventory!$I809*Inventory!$F809 -> 0 | AG41: =Inventory!$I810*Inventory!$F810 -> 0 | AH41: =Inventory!$I811*Inventory!$F811 -> 0 | AI41: =IFERROR(Inventory!$I812*Inventory!$F812,0) -> 0 | AJ41: =IFERROR(Inventory!$I813*Inventory!$F813,0) -> 0 | AK41: =Inventory!$I814*Inventory!$F814 -> 0 | AL41: =Inventory!$I815*Inventory!$F815 -> 0 | AM41: - | AN41: -
B42: 2018 | F42: 2018 | G42: =IF(ISERR(AD$42/Inventory!$K$887),"",(AD$42/Inventory!$K$887)) ->  | H42: =IF(ISERR(AE$42/Inventory!$K$887),"",(AE$42/Inventory!$K$887)) ->  | I42: =IF(ISERR(AF$42/Inventory!$K$887),"",(AF$42/Inventory!$K$887)) ->  | J42: =IF(ISERR(AG$42/Inventory!$K$887),"",(AG$42/Inventory!$K$887)) ->  | K42: =IF(ISERR(AH$42/Inventory!$K$887),"",(AH$42/Inventory!$K$887)) ->  | L42: =IF(ISERR(AI$42/Inventory!$K$887),"",(AI$42/Inventory!$K$887)) ->  | M42: =IF(ISERR(AJ$42/Inventory!$K$887),"",(AJ$42/Inventory!$K$887)) ->  | N42: =IF(ISERR(AK$42/Inventory!$K$887),"",(AK$42/Inventory!$K$887)) ->  | O42: =IF(ISERR(AL$42/Inventory!$K$887),"",(AL$42/Inventory!$K$887)) ->  | P42: - | Q42: - | T42: =IF((Inventory!$K$889)=0,"",(Inventory!$K$889)) ->  | AC42: 2018 | AD42: =Inventory!$I853*Inventory!$F853 -> 0 | AE42: =Inventory!$I854*Inventory!$F854 -> 0 | AF42: =Inventory!$I855*Inventory!$F855 -> 0 | AG42: =Inventory!$I856*Inventory!$F856 -> 0 | AH42: =Inventory!$I857*Inventory!$F857 -> 0 | AI42: =IFERROR(Inventory!$I858*Inventory!$F858,0) -> 0 | AJ42: =IFERROR(Inventory!$I859*Inventory!$F859,0) -> 0 | AK42: =Inventory!$I860*Inventory!$F860 -> 0 | AL42: =Inventory!$I861*Inventory!$F861 -> 0 | AM42: - | AN42: -
B43: 2019 | F43: 2019 | G43: =IF(ISERR(AD$43/Inventory!$K$933),"",(AD$43/Inventory!$K$933)) ->  | H43: =IF(ISERR(AE$43/Inventory!$K$933),"",(AE$43/Inventory!$K$933)) ->  | I43: =IF(ISERR(AF$43/Inventory!$K$933),"",(AF$43/Inventory!$K$933)) ->  | J43: =IF(ISERR(AG$43/Inventory!$K$933),"",(AG$43/Inventory!$K$933)) ->  | K43: =IF(ISERR(AH$43/Inventory!$K$933),"",(AH$43/Inventory!$K$933)) ->  | L43: =IF(ISERR(AI$43/Inventory!$K$933),"",(AI$43/Inventory!$K$933)) ->  | M43: =IF(ISERR(AJ$43/Inventory!$K$933),"",(AJ$43/Inventory!$K$933)) ->  | N43: =IF(ISERR(AK$43/Inventory!$K$933),"",(AK$43/Inventory!$K$933)) ->  | O43: =IF(ISERR(AL$43/Inventory!$K$933),"",(AL$43/Inventory!$K$933)) ->  | P43: - | Q43: - | T43: =IF((Inventory!$K$935)=0,"",(Inventory!$K$935)) ->  | AC43: 2019 | AD43: =Inventory!$I899*Inventory!$F899 -> 0 | AE43: =Inventory!$I900*Inventory!$F900 -> 0 | AF43: =Inventory!$I901*Inventory!$F901 -> 0 | AG43: =Inventory!$I902*Inventory!$F902 -> 0 | AH43: =Inventory!$I903*Inventory!$F903 -> 0 | AI43: =IFERROR(Inventory!$I904*Inventory!$F904,0) -> 0 | AJ43: =IFERROR(Inventory!$I905*Inventory!$F905,0) -> 0 | AK43: =Inventory!$I906*Inventory!$F906 -> 0 | AL43: =Inventory!$I907*Inventory!$F907 -> 0 | AM43: - | AN43: -
B44: 2020 | F44: 2020 | G44: =IF(ISERR(AD$44/Inventory!$K$979),"",(AD$44/Inventory!$K$979)) ->  | H44: =IF(ISERR(AE$44/Inventory!$K$979),"",(AE$44/Inventory!$K$979)) ->  | I44: =IF(ISERR(AF$44/Inventory!$K$979),"",(AF$44/Inventory!$K$979)) ->  | J44: =IF(ISERR(AG$44/Inventory!$K$979),"",(AG$44/Inventory!$K$979)) ->  | K44: =IF(ISERR(AH$44/Inventory!$K$979),"",(AH$44/Inventory!$K$979)) ->  | L44: =IF(ISERR(AI$44/Inventory!$K$979),"",(AI$44/Inventory!$K$979)) ->  | M44: =IF(ISERR(AJ$44/Inventory!$K$979),"",(AJ$44/Inventory!$K$979)) ->  | N44: =IF(ISERR(AK$44/Inventory!$K$979),"",(AK$44/Inventory!$K$979)) ->  | O44: =IF(ISERR(AL$44/Inventory!$K$979),"",(AL$44/Inventory!$K$979)) ->  | P44: - | Q44: - | T44: =IF((Inventory!$K$981)=0,"",(Inventory!$K$981)) ->  | AC44: 2020 | AD44: =Inventory!$I945*Inventory!$F945 -> 0 | AE44: =Inventory!$I946*Inventory!$F946 -> 0 | AF44: =Inventory!$I947*Inventory!$F947 -> 0 | AG44: =Inventory!$I948*Inventory!$F948 -> 0 | AH44: =Inventory!$I949*Inventory!$F949 -> 0 | AI44: =IFERROR(Inventory!$I950*Inventory!$F950,0) -> 0 | AJ44: =IFERROR(Inventory!$I951*Inventory!$F951,0) -> 0 | AK44: =Inventory!$I952*Inventory!$F952 -> 0 | AL44: =Inventory!$I953*Inventory!$F953 -> 0 | AM44: - | AN44: -
T47: Base Year | U47: =Inventory!$K$7 -> 2005
T49: Submission Year | U49: =Inventory!$K$5 -> 2014
T51: Base Year - MMBTU / sq.ft. | U51: =VLOOKUP($U$47, F24:T44,15,FALSE ) -> 
T53: Submission Year - MMBTU / sq.ft. | U53: =VLOOKUP($U$49, F24:T44,15,FALSE ) -> 
T55: % Change from Base Year | U55: =IFERROR(-(($U$51-$U$53)/$U$51),"") -> 
B58: Summary: Carbon Intensity (lbs CO2e / sq. ft.)
G60: Carbon Intensity By Fuel Type | R60: Pre Offset Carbon Intensity (lbs C02e / sq.ft.) | T60: Total Carbon Intensity (lbs C02e / sq.ft.) | U60: % Change from prior year | V60: % Change from Base year
F61: Year | G61: Electricity | H61: NG | I61: #2 Oil | J61: #4 Oil | K61: #6 Oil | L61: Biodiesel Blend | M61: On-site Renewable Generation | N61: Diesel Fuel (Back-up Gen.) | O61: District Steam | P61: Waste | Q61: Fleets | S61: REC Offsets | AD61: Carbon Emissions (MMTons)
Z63: Baseline | AA63: 0.3 | AD63: Electricity | AE63: NG | AF63: #2 | AG63: #4 | AH63: #6 | AI63: Biodiesel | AK63: Diesel | AL63: Steam | AM63: Waste | AN63: Fleets | AO63: RECs | AP63: TOTAL | AW63: Carbon Intensity Pie Chart
F64: 2000 | G64: =IF(ISERR(AD$64/Inventory!$K$59*2205),"",(AD$64/Inventory!$K$59*2205)) ->  | H64: =IF(ISERR(AE$64/Inventory!$K$59*2205),"",(AE$64/Inventory!$K$59*2205)) ->  | I64: =IF(ISERR(AF$64/Inventory!$K$59*2205),"",(AF$64/Inventory!$K$59*2205)) ->  | J64: =IF(ISERR(AG$64/Inventory!$K$59*2205),"",(AG$64/Inventory!$K$59*2205)) ->  | K64: =IF(ISERR(AH$64/Inventory!$K$59*2205),"",(AH$64/Inventory!$K$59*2205)) ->  | L64: =IF(ISERR(AI$64/Inventory!$K$59*2205),"",(AI$64/Inventory!$K$59*2205)) ->  | N64: =IF(ISERR(AK$64/Inventory!$K$59*2205),"",(AK$64/Inventory!$K$59*2205)) ->  | O64: =IF(ISERR(AL$64/Inventory!$K$59*2205),"",(AL$64/Inventory!$K$59*2205)) ->  | P64: =IF(ISERR(AM$64/Inventory!$K$59*2205),"",(AM$64/Inventory!$K$59*2205)) ->  | Q64: =IF(ISERR(AN$64/Inventory!$K$59*2205),"",(AN$64/Inventory!$K$59*2205)) ->  | R64: =IF((Inventory!$K$63)=0,"",(Inventory!$K$63)) ->  | S64: =IF(ISERR(AO64/Inventory!$K$59*2205),"",(AO64/Inventory!$K$59*2205)) ->  | T64: =IFERROR(R64+S64,"") ->  | Y64: 2000 | Z64: =$U$91 ->  | AA64: =0.7*($Z$64) ->  | AC64: 2000 | AD64: =Inventory!$H25*Inventory!$F25 -> 0 | AE64: =Inventory!$H26*Inventory!$F26 -> 0 | AF64: =Inventory!$H27*Inventory!$F27 -> 0 | AG64: =Inventory!$H28*Inventory!$F28 -> 0 | AH64: =Inventory!$H29*Inventory!$F29 -> 0 | AI64: =IFERROR(Inventory!$H30*Inventory!$F30,0) -> 0 | AK64: =Inventory!$H32*Inventory!$F32 -> 0 | AL64: =Inventory!$H33*Inventory!$F33 -> 0 | AM64: =Inventory!$K46 -> 0 | AN64: =Inventory!$K55 -> 0 | AO64: =IFERROR(IF(VLOOKUP(Summary!AC64, 'REC Offsets'!$D$31:$L$52,8,FALSE)="",0,VLOOKUP(Summary!AC64, 'REC Offsets'!$D$31:$L$52,8,FALSE)),0)*-Coefficients!$C$5 -> 0 | AP64: =SUM(AD64:AO64) -> 0 | AS64: Submission Year | AT64: Electricity | AU64: NG | AV64: #2 Oil | AW64: #4 Oil | AX64: #6 Oil | AY64: Biodiesel Blend | AZ64: Diesel Fuel (Back-up Gen.) | BA64: Steam | BB64: Renewables | BC64: RECs | BD64: Waste | BE64: Fleets | BF64: Total
F65: 2001 | G65: =IF(ISERR(AD$65/Inventory!$K$105*2205),"",(AD$65/Inventory!$K$105*2205)) ->  | H65: =IF(ISERR(AE$65/Inventory!$K$105*2205),"",(AE$65/Inventory!$K$105*2205)) ->  | I65: =IF(ISERR(AF$65/Inventory!$K$105*2205),"",(AF$65/Inventory!$K$105*2205)) ->  | J65: =IF(ISERR(AG$65/Inventory!$K$105*2205),"",(AG$65/Inventory!$K$105*2205)) ->  | K65: =IF(ISERR(AH$65/Inventory!$K$105*2205),"",(AH$65/Inventory!$K$105*2205)) ->  | L65: =IF(ISERR(AI$65/Inventory!$K$105*2205),"",(AI$65/Inventory!$K$105*2205)) ->  | N65: =IF(ISERR(AK$65/Inventory!$K$105*2205),"",(AK$65/Inventory!$K$105*2205)) ->  | O65: =IF(ISERR(AL$65/Inventory!$K$105*2205),"",(AL$65/Inventory!$K$105*2205)) ->  | P65: =IF(ISERR(AM$65/Inventory!$K$105*2205),"",(AM$65/Inventory!$K$105*2205)) ->  | Q65: =IF(ISERR(AN$65/Inventory!$K$105*2205),"",(AN$65/Inventory!$K$105*2205)) ->  | R65: =IF((Inventory!$K$109)=0,"",(Inventory!$K$109)) ->  | S65: =IF(ISERR(AO$65/Inventory!$K$105*2205),"",(AO$65/Inventory!$K$105*2205)) ->  | U65: =IF(ISERR((T65-T64)/T64),"",((T65-T64)/T64)) ->  | V65: =IF(ISERR(($T65-$U$91)/$U$91),"",(($T65-$U$91)/$U$91)) ->  | Y65: 2001 | AC65: 2001 | AD65: =Inventory!$H71*Inventory!$F71 -> 0 | AE65: =Inventory!$H72*Inventory!$F72 -> 0 | AF65: =Inventory!$H73*Inventory!$F73 -> 0 | AG65: =Inventory!$H74*Inventory!$F74 -> 0 | AH65: =Inventory!$H75*Inventory!$F75 -> 0 | AI65: =IFERROR(Inventory!$H76*Inventory!$F76,0) -> 0 | AK65: =Inventory!$H78*Inventory!$F78 -> 0 | AL65: =Inventory!$H79*Inventory!$F79 -> 0 | AM65: =Inventory!$K92 -> 0 | AN65: =Inventory!$K101 -> 0 | AO65: =IFERROR(IF(VLOOKUP(Summary!AC65, 'REC Offsets'!$D$31:$L$52,8,FALSE)="",0,VLOOKUP(Summary!AC65, 'REC Offsets'!$D$31:$L$52,8,FALSE)),0)*-Coefficients!$C$5 -> 0 | AP65: 0 | AR65: Current | AS65: =Inventory!$K$5 -> 2014 | AT65: =IF(VLOOKUP($AS65, $F$64:$T$84,2,FALSE )=0,0.00000001,VLOOKUP($AS65, $F$64:$T$84,2,FALSE )) ->  | AU65: =IF(VLOOKUP($AS65, $F$64:$T$84,3,FALSE )=0,0.00000001,VLOOKUP($AS65, $F$64:$T$84,3,FALSE )) ->  | AV65: =IF(VLOOKUP($AS65, $F$64:$T$84,4,FALSE )=0,0.00000001,VLOOKUP($AS65, $F$64:$T$84,4,FALSE )) ->  | AW65: =IF(VLOOKUP($AS65, $F$64:$T$84,5,FALSE )=0,0.00000001,VLOOKUP($AS65, $F$64:$T$84,5,FALSE )) ->  | AX65: =IF(VLOOKUP($AS65, $F$64:$T$84,6,FALSE )=0,0.00000001,VLOOKUP($AS65, $F$64:$T$84,6,FALSE )) ->  | AY65: =IF(VLOOKUP($AS65, $F$64:$T$84,7,FALSE )=0,0.00000001,VLOOKUP($AS65, $F$64:$T$84,7,FALSE )) ->  | AZ65: =IF(VLOOKUP($AS65, $F$64:$T$84,9,FALSE )=0,0.00000001,VLOOKUP($AS65, $F$64:$T$84,9,FALSE )) ->  | BA65: =IF(VLOOKUP($AS65, $F$64:$T$84,10,FALSE )=0,0.00000001,VLOOKUP($AS65, $F$64:$T$84,10,FALSE )) ->  | BB65: =IF(VLOOKUP($AS65, $F$64:$T$84,8,FALSE )=0,0.00000001,VLOOKUP($AS65, $F$64:$T$84,8,FALSE )) -> 1e-08 | BC65: =IF(VLOOKUP($AS65, $F$64:$T$84,14,FALSE )=0,0.00000001,VLOOKUP($AS65, $F$64:$T$84,14,FALSE )) ->  | BD65: =IF(VLOOKUP($AS65, $F$64:$T$84,10,FALSE )=0,0.00000001,VLOOKUP($AS65, $F$64:$T$84,10,FALSE )) ->  | BE65: =IF(VLOOKUP($AS65, $F$64:$T$84,11,FALSE )=0,0.00000001,VLOOKUP($AS65, $F$64:$T$84,11,FALSE )) ->  | BF65: =SUM(AT65:BE65) -> 1e-08
F66: 2002 | G66: =IF(ISERR(AD$66/Inventory!$K$151*2205),"",(AD$66/Inventory!$K$151*2205)) ->  | H66: =IF(ISERR(AE$66/Inventory!$K$151*2205),"",(AE$66/Inventory!$K$151*2205)) ->  | I66: =IF(ISERR(AF$66/Inventory!$K$151*2205),"",(AF$66/Inventory!$K$151*2205)) ->  | J66: =IF(ISERR(AG$66/Inventory!$K$151*2205),"",(AG$66/Inventory!$K$151*2205)) ->  | K66: =IF(ISERR(AH$66/Inventory!$K$151*2205),"",(AH$66/Inventory!$K$151*2205)) ->  | L66: =IF(ISERR(AI$66/Inventory!$K$151*2205),"",(AI$66/Inventory!$K$151*2205)) ->  | N66: =IF(ISERR(AK$66/Inventory!$K$151*2205),"",(AK$66/Inventory!$K$151*2205)) ->  | O66: =IF(ISERR(AL$66/Inventory!$K$151*2205),"",(AL$66/Inventory!$K$151*2205)) ->  | P66: =IF(ISERR(AM$66/Inventory!$K$151*2205),"",(AM$66/Inventory!$K$151*2205)) ->  | Q66: =IF(ISERR(AN$66/Inventory!$K$151*2205),"",(AN$66/Inventory!$K$151*2205)) ->  | R66: =IF((Inventory!$K$155)=0,"",(Inventory!$K$155)) ->  | S66: =IF(ISERR(AO$66/Inventory!$K$151*2205),"",(AO$66/Inventory!$K$151*2205)) ->  | U66: =IF(ISERR((T66-T65)/T65),"",((T66-T65)/T65)) ->  | V66: =IF(ISERR(($T66-$U$91)/$U$91),"",(($T66-$U$91)/$U$91)) ->  | Y66: 2002 | AC66: 2002 | AD66: =Inventory!$H117*Inventory!$F117 -> 0 | AE66: =Inventory!$H118*Inventory!$F118 -> 0 | AF66: =Inventory!$H119*Inventory!$F119 -> 0 | AG66: =Inventory!$H120*Inventory!$F120 -> 0 | AH66: =Inventory!$H121*Inventory!$F121 -> 0 | AI66: =IFERROR(Inventory!$H122*Inventory!$F122,0) -> 0 | AK66: =Inventory!$H124*Inventory!$F124 -> 0 | AL66: =Inventory!$H125*Inventory!$F125 -> 0 | AM66: =Inventory!$K138 -> 0 | AN66: =Inventory!$K147 -> 0 | AO66: =IFERROR(IF(VLOOKUP(Summary!AC66, 'REC Offsets'!$D$31:$L$52,8,FALSE)="",0,VLOOKUP(Summary!AC66, 'REC Offsets'!$D$31:$L$52,8,FALSE)),0)*-Coefficients!$C$5 -> 0 | AP66: 0 | AR66: Base | AS66: =Inventory!$K$7 -> 2005 | AT66: =IF(VLOOKUP($AS66, $F$64:$T$84,2,FALSE )=0,0.00000001,VLOOKUP($AS66, $F$64:$T$84,2,FALSE )) ->  | AU66: =IF(VLOOKUP($AS66, $F$64:$T$84,3,FALSE )=0,0.00000001,VLOOKUP($AS66, $F$64:$T$84,3,FALSE )) ->  | AV66: =IF(VLOOKUP($AS66, $F$64:$T$84,4,FALSE )=0,0.00000001,VLOOKUP($AS66, $F$64:$T$84,4,FALSE )) ->  | AW66: =IF(VLOOKUP($AS66, $F$64:$T$84,5,FALSE )=0,0.00000001,VLOOKUP($AS66, $F$64:$T$84,5,FALSE )) ->  | AX66: =IF(VLOOKUP($AS66, $F$64:$T$84,6,FALSE )=0,0.00000001,VLOOKUP($AS66, $F$64:$T$84,6,FALSE )) ->  | AY66: =IF(VLOOKUP($AS66, $F$64:$T$84,7,FALSE )=0,0.00000001,VLOOKUP($AS66, $F$64:$T$84,7,FALSE )) ->  | AZ66: =IF(VLOOKUP($AS66, $F$64:$T$84,9,FALSE )=0,0.00000001,VLOOKUP($AS66, $F$64:$T$84,9,FALSE )) ->  | BA66: =IF(VLOOKUP($AS66, $F$64:$T$84,10,FALSE )=0,0.00000001,VLOOKUP($AS66, $F$64:$T$84,10,FALSE )) ->  | BB66: =IF(VLOOKUP($AS66, $F$64:$T$84,8,FALSE )=0,0.00000001,VLOOKUP($AS66, $F$64:$T$84,8,FALSE )) -> 1e-08 | BC66: =IF(VLOOKUP($AS66, $F$64:$T$84,14,FALSE )=0,0.00000001,VLOOKUP($AS66, $F$64:$T$84,14,FALSE )) ->  | BD66: =IF(VLOOKUP($AS66, $F$64:$T$84,10,FALSE )=0,0.00000001,VLOOKUP($AS66, $F$64:$T$84,10,FALSE )) ->  | BE66: =IF(VLOOKUP($AS66, $F$64:$T$84,11,FALSE )=0,0.00000001,VLOOKUP($AS66, $F$64:$T$84,11,FALSE )) ->  | BF66: =SUM(AT66:BE66) -> 1e-08
E67: =IF(Inventory!$K$7=2003,"Base Year", "") ->  | F67: 2003 | G67: =IF(ISERR(AD$67/Inventory!$K$197*2205),"",(AD$67/Inventory!$K$197*2205)) ->  | H67: =IF(ISERR(AE$67/Inventory!$K$197*2205),"",(AE$67/Inventory!$K$197*2205)) ->  | I67: =IF(ISERR(AF$67/Inventory!$K$197*2205),"",(AF$67/Inventory!$K$197*2205)) ->  | J67: =IF(ISERR(AG$67/Inventory!$K$197*2205),"",(AG$67/Inventory!$K$197*2205)) ->  | K67: =IF(ISERR(AH$67/Inventory!$K$197*2205),"",(AH$67/Inventory!$K$197*2205)) ->  | L67: =IF(ISERR(AI$67/Inventory!$K$197*2205),"",(AI$67/Inventory!$K$197*2205)) ->  | N67: =IF(ISERR(AK$67/Inventory!$K$197*2205),"",(AK$67/Inventory!$K$197*2205)) ->  | O67: =IF(ISERR(AL$67/Inventory!$K$197*2205),"",(AL$67/Inventory!$K$197*2205)) ->  | P67: =IF(ISERR(AM$67/Inventory!$K$197*2205),"",(AM$67/Inventory!$K$197*2205)) ->  | Q67: =IF(ISERR(AN$67/Inventory!$K$197*2205),"",(AN$67/Inventory!$K$197*2205)) ->  | R67: =IF((Inventory!$K$201)=0,"",(Inventory!$K$201)) ->  | S67: =IF(ISERR(AO$67/Inventory!$K$197*2205),"",(AO$67/Inventory!$K$197*2205)) ->  | Y67: 2003 | AC67: 2003 | AD67: =Inventory!$H163*Inventory!$F163 -> 0 | AE67: =Inventory!$H164*Inventory!$F164 -> 0 | AF67: =Inventory!$H165*Inventory!$F165 -> 0 | AG67: =Inventory!$H166*Inventory!$F166 -> 0 | AH67: =Inventory!$H167*Inventory!$F167 -> 0 | AI67: =IFERROR(Inventory!$H168*Inventory!$F168,0) -> 0 | AK67: =Inventory!$H170*Inventory!$F170 -> 0 | AL67: =Inventory!$H171*Inventory!$F171 -> 0 | AM67: =Inventory!$K184 -> 0 | AN67: =Inventory!$K193 -> 0 | AO67: =IFERROR(IF(VLOOKUP(Summary!AC67, 'REC Offsets'!$D$31:$L$52,8,FALSE)="",0,VLOOKUP(Summary!AC67, 'REC Offsets'!$D$31:$L$52,8,FALSE)),0)*-Coefficients!$C$5 -> 0 | AP67: 0 | AR67: Change | AT67: =AT$66-AT$65 ->  | AU67: =AU$66-AU$65 ->  | AY67: =AY$66-AY$65 ->  | BA67: =BA$66-BA$65 ->  | BB67: =BB$66-BB$65 -> 0 | BF67: =BF$66-BF$65 -> 0
